{"text_format":"1","workbook":"xlsx","n_sheets":3,"sheets":["Расчет","Отчет","Медикаменты"],"not_rendered":{"charts":0,"images":0,"macros":1,"external_links":0,"defined_names":5,"comments":0,"pivot_tables":0},"unopened":[],"bounds":{"document_bytes":16777216,"sheet_cells":100000,"rows_first":2000,"rows_last":500,"rows_between":2000,"halvings":0,"cell_chars":16384,"cell_head_chars":4096},"cells_cut":0,"cells_raw":0,"read":"whole","date_system":"1900"}

{"sheet":"Расчет","index":0,"n_rows":224,"n_cols":43,"rows_kept":224,"cut":false,"hidden":false,"merged":[[0,41,0,42],[1,41,1,42]]}
[{"$f":"IF(SUM(Медикаменты[Код])=0,\"\",1)","v":1},{"$f":"IFERROR(VLOOKUP(A1,Медикаменты[],2,),\"\")","v":"Перчатки (нестер, латекс.)"},null,null,null,null,null,null,null,null,null,null,null,null,null,{"$f":"IF(Опер=\"Операции со складом\",,IFERROR(INDEX(Договоры_tb[Поставщик],SMALL(IF(Договоры_tb[Наименование]=Наим,ROW(Договоры_tb[Наименование])-ROW(Договоры_tb[[#Headers],[Наименование]])),ROW())),))","v":"ООО \"Медресурс\" (дог. №12345; ост.0)"},null,"Расчет",null,"по расходованию медикаментов в дневном стационаре ОГАУЗ ИГДП №2 ",{"$f":"--CONCATENATE(Отчет!A2,\" .\",Отчет!A3)","v":"2018-05-01"},null,null,null,null,null,null,null,null,null,null,"Заказ",null,null,null,null,null,null,null,"Отчет",null,"по расходованию медикаментов в дневном стационаре ОГАУЗ ИГДП №2 "]
[{"$f":"IFERROR(IF(A1+1<=MAX(Медикаменты[Код]),A1+1,\"\"),\"\")","v":2},{"$f":"IFERROR(VLOOKUP(A2,Медикаменты[],2,),\"\")","v":"Перчатки (нестер, нитрил.)"},null,null,null,null,null,null,null,null,null,null,null,null,null,{"$f":"IF(Опер=\"Операции со складом\",,IFERROR(INDEX(Договоры_tb[Поставщик],SMALL(IF(Договоры_tb[Наименование]=Наим,ROW(Договоры_tb[Наименование])-ROW(Договоры_tb[[#Headers],[Наименование]])),ROW())),))","v":"ООО \"Медресурс\" (дог. №ПР-123; ост.30)"},null,null,null,"по расходованию спирта и ИМН  в ОГАУЗ «ИГДП №2»",{"$f":"EOMONTH(U1,0)","v":"2018-05-31"},null,null,null,null,null,null,null,null,null,null,null,null,null,null,null,null,null,null,null,null,"по расходованию спирта и ИМН  в ОГАУЗ «ИГДП №2»"]
[{"$f":"IFERROR(IF(A2+1<=MAX(Медикаменты[Код]),A2+1,\"\"),\"\")","v":3},{"$f":"IFERROR(VLOOKUP(A3,Медикаменты[],2,),\"\")","v":"Перчатки (стер, латекс.)"},null,null,null,null,null,null,null,null,null,null,null,null,null,{"$f":"IF(Опер=\"Операции со складом\",,IFERROR(INDEX(Договоры_tb[Поставщик],SMALL(IF(Договоры_tb[Наименование]=Наим,ROW(Договоры_tb[Наименование])-ROW(Договоры_tb[[#Headers],[Наименование]])),ROW())),))","v":"ООО \"Восток\" (дог. №Кн-999; ост.40)"},null,null,null,null,null,null,null,null,null,null,null,null,null,null,null,null,null,null,null,null,null,null,null,null,null,0]
[{"$f":"IFERROR(IF(A3+1<=MAX(Медикаменты[Код]),A3+1,\"\"),\"\")","v":""},{"$f":"IFERROR(VLOOKUP(A4,Медикаменты[],2,),\"\")","v":""},null,null,null,null,null,null,null,null,null,null,null,null,null,{"$f":"IF(Опер=\"Операции со складом\",,IFERROR(INDEX(Договоры_tb[Поставщик],SMALL(IF(Договоры_tb[Наименование]=Наим,ROW(Договоры_tb[Наименование])-ROW(Договоры_tb[[#Headers],[Наименование]])),ROW())),))","v":"ООО \"Сибмедком\" (дог. №5996; ост.40)"}]
[{"$f":"IFERROR(IF(A4+1<=MAX(Медикаменты[Код]),A4+1,\"\"),\"\")","v":""},{"$f":"IFERROR(VLOOKUP(A5,Медикаменты[],2,),\"\")","v":""},null,null,null,null,null,null,null,null,null,null,null,null,null,{"$f":"IF(Опер=\"Операции со складом\",,IFERROR(INDEX(Договоры_tb[Поставщик],SMALL(IF(Договоры_tb[Наименование]=Наим,ROW(Договоры_tb[Наименование])-ROW(Договоры_tb[[#Headers],[Наименование]])),ROW())),))","v":0}]
[{"$f":"IFERROR(IF(A5+1<=MAX(Медикаменты[Код]),A5+1,\"\"),\"\")","v":""},{"$f":"IFERROR(VLOOKUP(A6,Медикаменты[],2,),\"\")","v":""},null,null,null,null,null,null,null,null,null,null,null,null,null,{"$f":"IF(Опер=\"Операции со складом\",,IFERROR(INDEX(Договоры_tb[Поставщик],SMALL(IF(Договоры_tb[Наименование]=Наим,ROW(Договоры_tb[Наименование])-ROW(Договоры_tb[[#Headers],[Наименование]])),ROW())),))","v":0}]
[{"$f":"IFERROR(IF(A6+1<=MAX(Медикаменты[Код]),A6+1,\"\"),\"\")","v":""},{"$f":"IFERROR(VLOOKUP(A7,Медикаменты[],2,),\"\")","v":""},null,null,null,null,null,null,null,null,null,null,null,null,null,{"$f":"IF(Опер=\"Операции со складом\",,IFERROR(INDEX(Договоры_tb[Поставщик],SMALL(IF(Договоры_tb[Наименование]=Наим,ROW(Договоры_tb[Наименование])-ROW(Договоры_tb[[#Headers],[Наименование]])),ROW())),))","v":0}]
[null,"перч",null,null,null,null,null,null,null,null,null,null,null,null,null,{"$f":"IF(Опер=\"Операции со складом\",,IFERROR(INDEX(Договоры_tb[Поставщик],SMALL(IF(Договоры_tb[Наименование]=Наим,ROW(Договоры_tb[Наименование])-ROW(Договоры_tb[[#Headers],[Наименование]])),ROW())),))","v":0}]
[null,null,"Дата","Наименование","Операция","Выбор поставщика","Дата заказа","Дата доставки","Срок годности","Наличие","Приход","Расход","Остаток","Кому выдано",null,{"$f":"IF(Опер=\"Операции со складом\",,IFERROR(INDEX(Договоры_tb[Поставщик],SMALL(IF(Договоры_tb[Наименование]=Наим,ROW(Договоры_tb[Наименование])-ROW(Договоры_tb[[#Headers],[Наименование]])),ROW())),))","v":0},null,null,"Код","Наименование","Единицы","Количество","Дата остатка","Остаток","Остаток на отч. период","Приход за период","Расход за период","Наличие за период","Приход общий","Расход общий","Наличие общее",null,null,"Столбец1","Столбец2","Столбец3","Столбец4","Столбец5","Столбец6",null,"№","Отчет","Наименование"]
[null,null,"2018-04-01","Адреналин гидрохлорид (р-р, 0,1%, 1 мл.)","Операции со складом",0,null,null,null,{"$f":"IFERROR(IFERROR(LOOKUP(,-1/(Вводные[[#This Row],[Наименование]]=$D$9:D9),$M$9:M9),VLOOKUP(Вводные[[#This Row],[Наименование]],Медикаменты[[Наименование]:[Наличие общее]],5,)),\"\")","v":100},50,100,{"$f":"IFERROR(Вводные[Наличие]+Вводные[Приход]-Вводные[Расход],\"\")","v":50},null,null,{"$f":"IF(Опер=\"Операции со складом\",,IFERROR(INDEX(Договоры_tb[Поставщик],SMALL(IF(Договоры_tb[Наименование]=Наим,ROW(Договоры_tb[Наименование])-ROW(Договоры_tb[[#Headers],[Наименование]])),ROW())),))","v":0},null,null,{"$f":"IF(IFERROR(IF(SEARCH(Расчет!$B$8,T10),\"!\",\"\"),\"\")=\"\",0,MAX($S$9:S9)+1)","v":0},"Адреналин гидрохлорид (р-р, 0,1%, 1 мл.)","уп.",20,"2018-04-01",100,{"$f":"IFERROR(LOOKUP(,-1/($T10=Вводные[Наименование])/(Вводные[Дата]<$U$1),Вводные[Остаток]),0)+IF(Медикаменты[[#This Row],[Дата остатка]]<$U$1,Медикаменты[[#This Row],[Остаток]],0)","v":200},{"$f":"IF(T10=\"\",\"\",SUMPRODUCT((Вводные[Дата]>=$U$1)*(Вводные[Дата]<=$U$2)*(Вводные[Наименование]=$T10),Вводные[Приход]))","v":100},{"$f":"IF(T10=\"\",\"\",SUMPRODUCT((Вводные[Дата]>=$U$1)*(Вводные[Дата]<=$U$2)*(Вводные[Наименование]=$T10),Вводные[Расход]))","v":150},{"$f":"IFERROR(Медикаменты[[#This Row],[Остаток]]+Медикаменты[[#This Row],[Приход за период]]-Медикаменты[[#This Row],[Расход за период]],\"\")","v":50},{"$f":"IFERROR(SUMIF(Вводные[Наименование],Медикаменты[[#This Row],[Наименование]],Вводные[Приход]),0)","v":1200},{"$f":"IFERROR(SUMIF(Вводные[Наименование],Медикаменты[[#This Row],[Наименование]],Вводные[Расход]),0)","v":1250},{"$f":"IFERROR(Медикаменты[[#This Row],[Остаток]]+Медикаменты[[#This Row],[Приход общий]]-Медикаменты[[#This Row],[Расход общий]],0)","v":50},null,null,"Столбец1","Столбец2","Столбец3","Столбец4","Столбец5","Столбец6",null,{"$f":"IF(IFERROR(IF(SEARCH($AM$3,AP10),\"!\",\"\"),\"\")=\"\",0,MAX($AL$9:AO9)+1)","v":1},"Дневной стационар","Актовегин (р-р, 5 мл., №5)"]
[null,null,"2018-04-01","Адреналин гидрохлорид (р-р, 0,1%, 1 мл.)","Получено от поставщика",null,null,null,null,{"$f":"IFERROR(IFERROR(LOOKUP(,-1/(Вводные[[#This Row],[Наименование]]=$D$9:D10),$M$9:M10),VLOOKUP(Вводные[[#This Row],[Наименование]],Медикаменты[[Наименование]:[Наличие общее]],5,)),\"\")","v":50},50,100,{"$f":"IFERROR(Вводные[Наличие]+Вводные[Приход]-Вводные[Расход],\"\")","v":0},null,null,{"$f":"IF(Опер=\"Операции со складом\",,IFERROR(INDEX(Договоры_tb[Поставщик],SMALL(IF(Договоры_tb[Наименование]=Наим,ROW(Договоры_tb[Наименование])-ROW(Договоры_tb[[#Headers],[Наименование]])),ROW())),))","v":0},null,null,{"$f":"IF(IFERROR(IF(SEARCH(Расчет!$B$8,T11),\"!\",\"\"),\"\")=\"\",0,MAX($S$9:S10)+1)","v":0},"Азитромицин (табл., 125 мг, №6)","уп.",10,"","",{"$f":"IFERROR(LOOKUP(,-1/($T11=Вводные[Наименование])/(Вводные[Дата]<$U$1),Вводные[Остаток]),0)+IF(Медикаменты[[#This Row],[Дата остатка]]<$U$1,Медикаменты[[#This Row],[Остаток]],0)","v":0},{"$f":"IF(T11=\"\",\"\",SUMPRODUCT((Вводные[Дата]>=$U$1)*(Вводные[Дата]<=$U$2)*(Вводные[Наименование]=$T11),Вводные[Приход]))","v":0},{"$f":"IF(T11=\"\",\"\",SUMPRODUCT((Вводные[Дата]>=$U$1)*(Вводные[Дата]<=$U$2)*(Вводные[Наименование]=$T11),Вводные[Расход]))","v":0},{"$f":"IFERROR(Медикаменты[[#This Row],[Остаток]]+Медикаменты[[#This Row],[Приход за период]]-Медикаменты[[#This Row],[Расход за период]],\"\")","v":""},{"$f":"IFERROR(SUMIF(Вводные[Наименование],Медикаменты[[#This Row],[Наименование]],Вводные[Приход]),0)","v":0},{"$f":"IFERROR(SUMIF(Вводные[Наименование],Медикаменты[[#This Row],[Наименование]],Вводные[Расход]),0)","v":0},{"$f":"IFERROR(Медикаменты[[#This Row],[Остаток]]+Медикаменты[[#This Row],[Приход общий]]-Медикаменты[[#This Row],[Расход общий]],0)","v":0},null,null,"Наименование","Единицы","Поставщик","Закуплено","Получено","Остаток у поставщика",null,{"$f":"IF(IFERROR(IF(SEARCH($AM$3,AP11),\"!\",\"\"),\"\")=\"\",0,MAX($AL$9:AO10)+1)","v":2},"Дневной стационар","Валериана (20 мг., №50)"]
[null,null,"2018-04-01","Адреналин гидрохлорид (р-р, 0,1%, 1 мл.)","Заказано у поставщика","ООО \"Медресурс\" (дог. №ПР-123; ост.30)",null,null,null,{"$f":"IFERROR(IFERROR(LOOKUP(,-1/(Вводные[[#This Row],[Наименование]]=$D$9:D11),$M$9:M11),VLOOKUP(Вводные[[#This Row],[Наименование]],Медикаменты[[Наименование]:[Наличие общее]],5,)),\"\")","v":0},1000,null,{"$f":"IFERROR(Вводные[Наличие]+Вводные[Приход]-Вводные[Расход],\"\")","v":1000},null,null,{"$f":"IF(Опер=\"Операции со складом\",,IFERROR(INDEX(Договоры_tb[Поставщик],SMALL(IF(Договоры_tb[Наименование]=Наим,ROW(Договоры_tb[Наименование])-ROW(Договоры_tb[[#Headers],[Наименование]])),ROW())),))","v":0},null,null,{"$f":"IF(IFERROR(IF(SEARCH(Расчет!$B$8,T12),\"!\",\"\"),\"\")=\"\",0,MAX($S$9:S11)+1)","v":0},"Азопирам","комп.",10,"2018-06-07",30,{"$f":"IFERROR(LOOKUP(,-1/($T12=Вводные[Наименование])/(Вводные[Дата]<$U$1),Вводные[Остаток]),0)+IF(Медикаменты[[#This Row],[Дата остатка]]<$U$1,Медикаменты[[#This Row],[Остаток]],0)","v":0},{"$f":"IF(T12=\"\",\"\",SUMPRODUCT((Вводные[Дата]>=$U$1)*(Вводные[Дата]<=$U$2)*(Вводные[Наименование]=$T12),Вводные[Приход]))","v":0},{"$f":"IF(T12=\"\",\"\",SUMPRODUCT((Вводные[Дата]>=$U$1)*(Вводные[Дата]<=$U$2)*(Вводные[Наименование]=$T12),Вводные[Расход]))","v":0},{"$f":"IFERROR(Медикаменты[[#This Row],[Остаток]]+Медикаменты[[#This Row],[Приход за период]]-Медикаменты[[#This Row],[Расход за период]],\"\")","v":30},{"$f":"IFERROR(SUMIF(Вводные[Наименование],Медикаменты[[#This Row],[Наименование]],Вводные[Приход]),0)","v":0},{"$f":"IFERROR(SUMIF(Вводные[Наименование],Медикаменты[[#This Row],[Наименование]],Вводные[Расход]),0)","v":0},{"$f":"IFERROR(Медикаменты[[#This Row],[Остаток]]+Медикаменты[[#This Row],[Приход общий]]-Медикаменты[[#This Row],[Расход общий]],0)","v":30},null,null,"Адреналин гидрохлорид (р-р, 0,1%, 1 мл.)","уп.",null,null,null,null,null,{"$f":"IF(IFERROR(IF(SEARCH($AM$3,AP12),\"!\",\"\"),\"\")=\"\",0,MAX($AL$9:AO11)+1)","v":3},"Дневной стационар","Винпоцетин (табл., 5 мг., №10)"]
[null,null,"2018-04-01","Адреналин гидрохлорид (р-р, 0,1%, 1 мл.)","Получено от поставщика","ООО \"Медресурс\" (дог. №12345; ост.0)",null,null,null,{"$f":"IFERROR(IFERROR(LOOKUP(,-1/(Вводные[[#This Row],[Наименование]]=$D$9:D12),$M$9:M12),VLOOKUP(Вводные[[#This Row],[Наименование]],Медикаменты[[Наименование]:[Наличие общее]],5,)),\"\")","v":1000},null,900,{"$f":"IFERROR(Вводные[Наличие]+Вводные[Приход]-Вводные[Расход],\"\")","v":100},null,null,{"$f":"IF(Опер=\"Операции со складом\",,IFERROR(INDEX(Договоры_tb[Поставщик],SMALL(IF(Договоры_tb[Наименование]=Наим,ROW(Договоры_tb[Наименование])-ROW(Договоры_tb[[#Headers],[Наименование]])),ROW())),))","v":0},null,null,{"$f":"IF(IFERROR(IF(SEARCH(Расчет!$B$8,T13),\"!\",\"\"),\"\")=\"\",0,MAX($S$9:S12)+1)","v":0},"Актовегин (р-р, 5 мл., №5)","уп.",2,null,null,{"$f":"IFERROR(LOOKUP(,-1/($T13=Вводные[Наименование])/(Вводные[Дата]<$U$1),Вводные[Остаток]),0)+IF(Медикаменты[[#This Row],[Дата остатка]]<$U$1,Медикаменты[[#This Row],[Остаток]],0)","v":0},{"$f":"IF(T13=\"\",\"\",SUMPRODUCT((Вводные[Дата]>=$U$1)*(Вводные[Дата]<=$U$2)*(Вводные[Наименование]=$T13),Вводные[Приход]))","v":0},{"$f":"IF(T13=\"\",\"\",SUMPRODUCT((Вводные[Дата]>=$U$1)*(Вводные[Дата]<=$U$2)*(Вводные[Наименование]=$T13),Вводные[Расход]))","v":0},{"$f":"IFERROR(Медикаменты[[#This Row],[Остаток]]+Медикаменты[[#This Row],[Приход за период]]-Медикаменты[[#This Row],[Расход за период]],\"\")","v":0},{"$f":"IFERROR(SUMIF(Вводные[Наименование],Медикаменты[[#This Row],[Наименование]],Вводные[Приход]),0)","v":0},{"$f":"IFERROR(SUMIF(Вводные[Наименование],Медикаменты[[#This Row],[Наименование]],Вводные[Расход]),0)","v":0},{"$f":"IFERROR(Медикаменты[[#This Row],[Остаток]]+Медикаменты[[#This Row],[Приход общий]]-Медикаменты[[#This Row],[Расход общий]],0)","v":0},null,null,"Азитромицин (табл., 125 мг, №6)","уп.",null,null,null,null,null,{"$f":"IF(IFERROR(IF(SEARCH($AM$3,AP13),\"!\",\"\"),\"\")=\"\",0,MAX($AL$9:AO12)+1)","v":4},"Дневной стационар","Винпоцетин-АКОС (амп., 2 мл., №10)"]
[null,null,"2018-05-01","Адреналин гидрохлорид (р-р, 0,1%, 1 мл.)","Заказано у поставщика","ООО \"Медресурс\" (дог. №ПР-123; ост.30)",null,null,null,{"$f":"IFERROR(IFERROR(LOOKUP(,-1/(Вводные[[#This Row],[Наименование]]=$D$9:D13),$M$9:M13),VLOOKUP(Вводные[[#This Row],[Наименование]],Медикаменты[[Наименование]:[Наличие общее]],5,)),\"\")","v":100},100,150,{"$f":"IFERROR(Вводные[Наличие]+Вводные[Приход]-Вводные[Расход],\"\")","v":50},null,null,{"$f":"IF(Опер=\"Операции со складом\",,IFERROR(INDEX(Договоры_tb[Поставщик],SMALL(IF(Договоры_tb[Наименование]=Наим,ROW(Договоры_tb[Наименование])-ROW(Договоры_tb[[#Headers],[Наименование]])),ROW())),))","v":0},null,null,{"$f":"IF(IFERROR(IF(SEARCH(Расчет!$B$8,T14),\"!\",\"\"),\"\")=\"\",0,MAX($S$9:S13)+1)","v":0},"Аллерген из библиотечной пыли для диагностики","комплект",2,"","",{"$f":"IFERROR(LOOKUP(,-1/($T14=Вводные[Наименование])/(Вводные[Дата]<$U$1),Вводные[Остаток]),0)+IF(Медикаменты[[#This Row],[Дата остатка]]<$U$1,Медикаменты[[#This Row],[Остаток]],0)","v":0},{"$f":"IF(T14=\"\",\"\",SUMPRODUCT((Вводные[Дата]>=$U$1)*(Вводные[Дата]<=$U$2)*(Вводные[Наименование]=$T14),Вводные[Приход]))","v":0},{"$f":"IF(T14=\"\",\"\",SUMPRODUCT((Вводные[Дата]>=$U$1)*(Вводные[Дата]<=$U$2)*(Вводные[Наименование]=$T14),Вводные[Расход]))","v":0},{"$f":"IFERROR(Медикаменты[[#This Row],[Остаток]]+Медикаменты[[#This Row],[Приход за период]]-Медикаменты[[#This Row],[Расход за период]],\"\")","v":""},{"$f":"IFERROR(SUMIF(Вводные[Наименование],Медикаменты[[#This Row],[Наименование]],Вводные[Приход]),0)","v":0},{"$f":"IFERROR(SUMIF(Вводные[Наименование],Медикаменты[[#This Row],[Наименование]],Вводные[Расход]),0)","v":0},{"$f":"IFERROR(Медикаменты[[#This Row],[Остаток]]+Медикаменты[[#This Row],[Приход общий]]-Медикаменты[[#This Row],[Расход общий]],0)","v":0},null,null,"Азопирам","комп.",null,null,null,null,null,{"$f":"IF(IFERROR(IF(SEARCH($AM$3,AP14),\"!\",\"\"),\"\")=\"\",0,MAX($AL$9:AO13)+1)","v":5},"Дневной стационар","Гипотиазид (табл., 25 мг., №20)"]
[null,null,null,null,null,null,null,null,null,null,null,null,null,null,null,{"$f":"IF(Опер=\"Операции со складом\",,IFERROR(INDEX(Договоры_tb[Поставщик],SMALL(IF(Договоры_tb[Наименование]=Наим,ROW(Договоры_tb[Наименование])-ROW(Договоры_tb[[#Headers],[Наименование]])),ROW())),))","v":0},null,null,{"$f":"IF(IFERROR(IF(SEARCH(Расчет!$B$8,T15),\"!\",\"\"),\"\")=\"\",0,MAX($S$9:S14)+1)","v":0},"Аллерген из дафнии для диагностики","комплект",1,"","",{"$f":"IFERROR(LOOKUP(,-1/($T15=Вводные[Наименование])/(Вводные[Дата]<$U$1),Вводные[Остаток]),0)+IF(Медикаменты[[#This Row],[Дата остатка]]<$U$1,Медикаменты[[#This Row],[Остаток]],0)","v":0},{"$f":"IF(T15=\"\",\"\",SUMPRODUCT((Вводные[Дата]>=$U$1)*(Вводные[Дата]<=$U$2)*(Вводные[Наименование]=$T15),Вводные[Приход]))","v":0},{"$f":"IF(T15=\"\",\"\",SUMPRODUCT((Вводные[Дата]>=$U$1)*(Вводные[Дата]<=$U$2)*(Вводные[Наименование]=$T15),Вводные[Расход]))","v":0},{"$f":"IFERROR(Медикаменты[[#This Row],[Остаток]]+Медикаменты[[#This Row],[Приход за период]]-Медикаменты[[#This Row],[Расход за период]],\"\")","v":""},{"$f":"IFERROR(SUMIF(Вводные[Наименование],Медикаменты[[#This Row],[Наименование]],Вводные[Приход]),0)","v":0},{"$f":"IFERROR(SUMIF(Вводные[Наименование],Медикаменты[[#This Row],[Наименование]],Вводные[Расход]),0)","v":0},{"$f":"IFERROR(Медикаменты[[#This Row],[Остаток]]+Медикаменты[[#This Row],[Приход общий]]-Медикаменты[[#This Row],[Расход общий]],0)","v":0},null,null,"Актовегин (р-р, 5 мл., №5)","уп.",null,null,null,null,null,{"$f":"IF(IFERROR(IF(SEARCH($AM$3,AP15),\"!\",\"\"),\"\")=\"\",0,MAX($AL$9:AO14)+1)","v":6},"Дневной стационар","Глицин (табл., 100 мг., №50)"]
[null,null,null,null,null,null,null,null,null,null,null,null,null,null,null,{"$f":"IF(Опер=\"Операции со складом\",,IFERROR(INDEX(Договоры_tb[Поставщик],SMALL(IF(Договоры_tb[Наименование]=Наим,ROW(Договоры_tb[Наименование])-ROW(Договоры_tb[[#Headers],[Наименование]])),ROW())),))","v":0},null,null,{"$f":"IF(IFERROR(IF(SEARCH(Расчет!$B$8,T16),\"!\",\"\"),\"\")=\"\",0,MAX($S$9:S15)+1)","v":0},"Аллерген из домашней пыли для диагностики","комплект",2,"","",{"$f":"IFERROR(LOOKUP(,-1/($T16=Вводные[Наименование])/(Вводные[Дата]<$U$1),Вводные[Остаток]),0)+IF(Медикаменты[[#This Row],[Дата остатка]]<$U$1,Медикаменты[[#This Row],[Остаток]],0)","v":0},{"$f":"IF(T16=\"\",\"\",SUMPRODUCT((Вводные[Дата]>=$U$1)*(Вводные[Дата]<=$U$2)*(Вводные[Наименование]=$T16),Вводные[Приход]))","v":0},{"$f":"IF(T16=\"\",\"\",SUMPRODUCT((Вводные[Дата]>=$U$1)*(Вводные[Дата]<=$U$2)*(Вводные[Наименование]=$T16),Вводные[Расход]))","v":0},{"$f":"IFERROR(Медикаменты[[#This Row],[Остаток]]+Медикаменты[[#This Row],[Приход за период]]-Медикаменты[[#This Row],[Расход за период]],\"\")","v":""},{"$f":"IFERROR(SUMIF(Вводные[Наименование],Медикаменты[[#This Row],[Наименование]],Вводные[Приход]),0)","v":0},{"$f":"IFERROR(SUMIF(Вводные[Наименование],Медикаменты[[#This Row],[Наименование]],Вводные[Расход]),0)","v":0},{"$f":"IFERROR(Медикаменты[[#This Row],[Остаток]]+Медикаменты[[#This Row],[Приход общий]]-Медикаменты[[#This Row],[Расход общий]],0)","v":0},null,null,"Аллерген из библиотечной пыли для диагностики","комплект",null,null,null,null,null,{"$f":"IF(IFERROR(IF(SEARCH($AM$3,AP16),\"!\",\"\"),\"\")=\"\",0,MAX($AL$9:AO15)+1)","v":7},"Дневной стационар","Диклофенак (75 мг., №10)"]
[null,null,null,null,null,null,null,null,null,null,null,null,null,null,null,{"$f":"IF(Опер=\"Операции со складом\",,IFERROR(INDEX(Договоры_tb[Поставщик],SMALL(IF(Договоры_tb[Наименование]=Наим,ROW(Договоры_tb[Наименование])-ROW(Договоры_tb[[#Headers],[Наименование]])),ROW())),))","v":0},null,null,{"$f":"IF(IFERROR(IF(SEARCH(Расчет!$B$8,T17),\"!\",\"\"),\"\")=\"\",0,MAX($S$9:S16)+1)","v":0},"Аллерген из клеща Dermatophagoides pteronissinus для диагностики и лечения","комплект",2,"","",{"$f":"IFERROR(LOOKUP(,-1/($T17=Вводные[Наименование])/(Вводные[Дата]<$U$1),Вводные[Остаток]),0)+IF(Медикаменты[[#This Row],[Дата остатка]]<$U$1,Медикаменты[[#This Row],[Остаток]],0)","v":0},{"$f":"IF(T17=\"\",\"\",SUMPRODUCT((Вводные[Дата]>=$U$1)*(Вводные[Дата]<=$U$2)*(Вводные[Наименование]=$T17),Вводные[Приход]))","v":0},{"$f":"IF(T17=\"\",\"\",SUMPRODUCT((Вводные[Дата]>=$U$1)*(Вводные[Дата]<=$U$2)*(Вводные[Наименование]=$T17),Вводные[Расход]))","v":0},{"$f":"IFERROR(Медикаменты[[#This Row],[Остаток]]+Медикаменты[[#This Row],[Приход за период]]-Медикаменты[[#This Row],[Расход за период]],\"\")","v":""},{"$f":"IFERROR(SUMIF(Вводные[Наименование],Медикаменты[[#This Row],[Наименование]],Вводные[Приход]),0)","v":0},{"$f":"IFERROR(SUMIF(Вводные[Наименование],Медикаменты[[#This Row],[Наименование]],Вводные[Расход]),0)","v":0},{"$f":"IFERROR(Медикаменты[[#This Row],[Остаток]]+Медикаменты[[#This Row],[Приход общий]]-Медикаменты[[#This Row],[Расход общий]],0)","v":0},null,null,"Аллерген из дафнии для диагностики","комплект",null,null,null,null,null,{"$f":"IF(IFERROR(IF(SEARCH($AM$3,AP17),\"!\",\"\"),\"\")=\"\",0,MAX($AL$9:AO16)+1)","v":8},"Дневной стационар","Дюфастон (табл., 10 мг., №20)"]
[null,null,null,null,null,null,null,null,null,null,null,null,null,null,null,{"$f":"IF(Опер=\"Операции со складом\",,IFERROR(INDEX(Договоры_tb[Поставщик],SMALL(IF(Договоры_tb[Наименование]=Наим,ROW(Договоры_tb[Наименование])-ROW(Договоры_tb[[#Headers],[Наименование]])),ROW())),))","v":0},null,null,{"$f":"IF(IFERROR(IF(SEARCH(Расчет!$B$8,T18),\"!\",\"\"),\"\")=\"\",0,MAX($S$9:S17)+1)","v":0},"Аллерген из пера подушек для диагностики и лечения","комплект",2,"","",{"$f":"IFERROR(LOOKUP(,-1/($T18=Вводные[Наименование])/(Вводные[Дата]<$U$1),Вводные[Остаток]),0)+IF(Медикаменты[[#This Row],[Дата остатка]]<$U$1,Медикаменты[[#This Row],[Остаток]],0)","v":0},{"$f":"IF(T18=\"\",\"\",SUMPRODUCT((Вводные[Дата]>=$U$1)*(Вводные[Дата]<=$U$2)*(Вводные[Наименование]=$T18),Вводные[Приход]))","v":0},{"$f":"IF(T18=\"\",\"\",SUMPRODUCT((Вводные[Дата]>=$U$1)*(Вводные[Дата]<=$U$2)*(Вводные[Наименование]=$T18),Вводные[Расход]))","v":0},{"$f":"IFERROR(Медикаменты[[#This Row],[Остаток]]+Медикаменты[[#This Row],[Приход за период]]-Медикаменты[[#This Row],[Расход за период]],\"\")","v":""},{"$f":"IFERROR(SUMIF(Вводные[Наименование],Медикаменты[[#This Row],[Наименование]],Вводные[Приход]),0)","v":0},{"$f":"IFERROR(SUMIF(Вводные[Наименование],Медикаменты[[#This Row],[Наименование]],Вводные[Расход]),0)","v":0},{"$f":"IFERROR(Медикаменты[[#This Row],[Остаток]]+Медикаменты[[#This Row],[Приход общий]]-Медикаменты[[#This Row],[Расход общий]],0)","v":0},null,null,"Аллерген из домашней пыли для диагностики","комплект",null,null,null,null,null,{"$f":"IF(IFERROR(IF(SEARCH($AM$3,AP18),\"!\",\"\"),\"\")=\"\",0,MAX($AL$9:AO17)+1)","v":9},"Дневной стационар","Кавинтон (амп., 10 мг., 2,0, №10)"]
[null,null,null,null,null,null,null,null,null,null,null,null,null,null,null,null,null,null,{"$f":"IF(IFERROR(IF(SEARCH(Расчет!$B$8,T19),\"!\",\"\"),\"\")=\"\",0,MAX($S$9:S18)+1)","v":0},"Аллерген из перхоти лошади для диагностики","комплект",2,"","",{"$f":"IFERROR(LOOKUP(,-1/($T19=Вводные[Наименование])/(Вводные[Дата]<$U$1),Вводные[Остаток]),0)+IF(Медикаменты[[#This Row],[Дата остатка]]<$U$1,Медикаменты[[#This Row],[Остаток]],0)","v":0},{"$f":"IF(T19=\"\",\"\",SUMPRODUCT((Вводные[Дата]>=$U$1)*(Вводные[Дата]<=$U$2)*(Вводные[Наименование]=$T19),Вводные[Приход]))","v":0},{"$f":"IF(T19=\"\",\"\",SUMPRODUCT((Вводные[Дата]>=$U$1)*(Вводные[Дата]<=$U$2)*(Вводные[Наименование]=$T19),Вводные[Расход]))","v":0},{"$f":"IFERROR(Медикаменты[[#This Row],[Остаток]]+Медикаменты[[#This Row],[Приход за период]]-Медикаменты[[#This Row],[Расход за период]],\"\")","v":""},{"$f":"IFERROR(SUMIF(Вводные[Наименование],Медикаменты[[#This Row],[Наименование]],Вводные[Приход]),0)","v":0},{"$f":"IFERROR(SUMIF(Вводные[Наименование],Медикаменты[[#This Row],[Наименование]],Вводные[Расход]),0)","v":0},{"$f":"IFERROR(Медикаменты[[#This Row],[Остаток]]+Медикаменты[[#This Row],[Приход общий]]-Медикаменты[[#This Row],[Расход общий]],0)","v":0},null,null,"Аллерген из клеща Dermatophagoides pteronissinus для диагностики и лечения","комплект",null,null,null,null,null,{"$f":"IF(IFERROR(IF(SEARCH($AM$3,AP19),\"!\",\"\"),\"\")=\"\",0,MAX($AL$9:AO18)+1)","v":10},"Дневной стационар","Кавинтон (табл. 5 мг., №50)"]
[null,null,null,null,null,null,null,null,null,null,null,null,null,null,null,null,null,null,{"$f":"IF(IFERROR(IF(SEARCH(Расчет!$B$8,T20),\"!\",\"\"),\"\")=\"\",0,MAX($S$9:S19)+1)","v":0},"Аллерген из пыльцы березы висячей для диагностики и лечения","комплект",2,"","",{"$f":"IFERROR(LOOKUP(,-1/($T20=Вводные[Наименование])/(Вводные[Дата]<$U$1),Вводные[Остаток]),0)+IF(Медикаменты[[#This Row],[Дата остатка]]<$U$1,Медикаменты[[#This Row],[Остаток]],0)","v":0},{"$f":"IF(T20=\"\",\"\",SUMPRODUCT((Вводные[Дата]>=$U$1)*(Вводные[Дата]<=$U$2)*(Вводные[Наименование]=$T20),Вводные[Приход]))","v":0},{"$f":"IF(T20=\"\",\"\",SUMPRODUCT((Вводные[Дата]>=$U$1)*(Вводные[Дата]<=$U$2)*(Вводные[Наименование]=$T20),Вводные[Расход]))","v":0},{"$f":"IFERROR(Медикаменты[[#This Row],[Остаток]]+Медикаменты[[#This Row],[Приход за период]]-Медикаменты[[#This Row],[Расход за период]],\"\")","v":""},{"$f":"IFERROR(SUMIF(Вводные[Наименование],Медикаменты[[#This Row],[Наименование]],Вводные[Приход]),0)","v":0},{"$f":"IFERROR(SUMIF(Вводные[Наименование],Медикаменты[[#This Row],[Наименование]],Вводные[Расход]),0)","v":0},{"$f":"IFERROR(Медикаменты[[#This Row],[Остаток]]+Медикаменты[[#This Row],[Приход общий]]-Медикаменты[[#This Row],[Расход общий]],0)","v":0},null,null,"Аллерген из пера подушек для диагностики и лечения","комплект",null,null,null,null,null,{"$f":"IF(IFERROR(IF(SEARCH($AM$3,AP20),\"!\",\"\"),\"\")=\"\",0,MAX($AL$9:AO19)+1)","v":11},"Дневной стационар","Кальция хлорид (10%, 5,0 №10)"]
[null,null,null,null,null,null,null,null,null,null,null,null,null,null,null,null,null,null,{"$f":"IF(IFERROR(IF(SEARCH(Расчет!$B$8,T21),\"!\",\"\"),\"\")=\"\",0,MAX($S$9:S20)+1)","v":0},"Аллерген из пыльцы клена ясенелистного для диагностики и лечения","комплект",1,"","",{"$f":"IFERROR(LOOKUP(,-1/($T21=Вводные[Наименование])/(Вводные[Дата]<$U$1),Вводные[Остаток]),0)+IF(Медикаменты[[#This Row],[Дата остатка]]<$U$1,Медикаменты[[#This Row],[Остаток]],0)","v":0},{"$f":"IF(T21=\"\",\"\",SUMPRODUCT((Вводные[Дата]>=$U$1)*(Вводные[Дата]<=$U$2)*(Вводные[Наименование]=$T21),Вводные[Приход]))","v":0},{"$f":"IF(T21=\"\",\"\",SUMPRODUCT((Вводные[Дата]>=$U$1)*(Вводные[Дата]<=$U$2)*(Вводные[Наименование]=$T21),Вводные[Расход]))","v":0},{"$f":"IFERROR(Медикаменты[[#This Row],[Остаток]]+Медикаменты[[#This Row],[Приход за период]]-Медикаменты[[#This Row],[Расход за период]],\"\")","v":""},{"$f":"IFERROR(SUMIF(Вводные[Наименование],Медикаменты[[#This Row],[Наименование]],Вводные[Приход]),0)","v":0},{"$f":"IFERROR(SUMIF(Вводные[Наименование],Медикаменты[[#This Row],[Наименование]],Вводные[Расход]),0)","v":0},{"$f":"IFERROR(Медикаменты[[#This Row],[Остаток]]+Медикаменты[[#This Row],[Приход общий]]-Медикаменты[[#This Row],[Расход общий]],0)","v":0},null,null,"Аллерген из перхоти лошади для диагностики","комплект",null,null,null,null,null,{"$f":"IF(IFERROR(IF(SEARCH($AM$3,AP21),\"!\",\"\"),\"\")=\"\",0,MAX($AL$9:AO20)+1)","v":12},"Дневной стационар","Корвалол "]
[null,null,null,null,null,null,null,null,null,null,null,null,null,null,null,null,null,null,{"$f":"IF(IFERROR(IF(SEARCH(Расчет!$B$8,T22),\"!\",\"\"),\"\")=\"\",0,MAX($S$9:S21)+1)","v":0},"Аллерген из пыльцы лебеды татарской для диагностики и лечения","комплект",2,"","",{"$f":"IFERROR(LOOKUP(,-1/($T22=Вводные[Наименование])/(Вводные[Дата]<$U$1),Вводные[Остаток]),0)+IF(Медикаменты[[#This Row],[Дата остатка]]<$U$1,Медикаменты[[#This Row],[Остаток]],0)","v":0},{"$f":"IF(T22=\"\",\"\",SUMPRODUCT((Вводные[Дата]>=$U$1)*(Вводные[Дата]<=$U$2)*(Вводные[Наименование]=$T22),Вводные[Приход]))","v":0},{"$f":"IF(T22=\"\",\"\",SUMPRODUCT((Вводные[Дата]>=$U$1)*(Вводные[Дата]<=$U$2)*(Вводные[Наименование]=$T22),Вводные[Расход]))","v":0},{"$f":"IFERROR(Медикаменты[[#This Row],[Остаток]]+Медикаменты[[#This Row],[Приход за период]]-Медикаменты[[#This Row],[Расход за период]],\"\")","v":""},{"$f":"IFERROR(SUMIF(Вводные[Наименование],Медикаменты[[#This Row],[Наименование]],Вводные[Приход]),0)","v":0},{"$f":"IFERROR(SUMIF(Вводные[Наименование],Медикаменты[[#This Row],[Наименование]],Вводные[Расход]),0)","v":0},{"$f":"IFERROR(Медикаменты[[#This Row],[Остаток]]+Медикаменты[[#This Row],[Приход общий]]-Медикаменты[[#This Row],[Расход общий]],0)","v":0},null,null,"Аллерген из пыльцы березы висячей для диагностики и лечения","комплект",null,null,null,null,null,{"$f":"IF(IFERROR(IF(SEARCH($AM$3,AP22),\"!\",\"\"),\"\")=\"\",0,MAX($AL$9:AO21)+1)","v":13},"Дневной стационар","Мексидол (табл., 125 мг., №50)"]
[null,null,null,null,null,null,null,null,null,null,null,null,null,null,null,null,null,null,{"$f":"IF(IFERROR(IF(SEARCH(Расчет!$B$8,T23),\"!\",\"\"),\"\")=\"\",0,MAX($S$9:S22)+1)","v":0},"Аллерген из пыльцы луговых трав для диагностики и лечения","комплект",2,"","",{"$f":"IFERROR(LOOKUP(,-1/($T23=Вводные[Наименование])/(Вводные[Дата]<$U$1),Вводные[Остаток]),0)+IF(Медикаменты[[#This Row],[Дата остатка]]<$U$1,Медикаменты[[#This Row],[Остаток]],0)","v":0},{"$f":"IF(T23=\"\",\"\",SUMPRODUCT((Вводные[Дата]>=$U$1)*(Вводные[Дата]<=$U$2)*(Вводные[Наименование]=$T23),Вводные[Приход]))","v":0},{"$f":"IF(T23=\"\",\"\",SUMPRODUCT((Вводные[Дата]>=$U$1)*(Вводные[Дата]<=$U$2)*(Вводные[Наименование]=$T23),Вводные[Расход]))","v":0},{"$f":"IFERROR(Медикаменты[[#This Row],[Остаток]]+Медикаменты[[#This Row],[Приход за период]]-Медикаменты[[#This Row],[Расход за период]],\"\")","v":""},{"$f":"IFERROR(SUMIF(Вводные[Наименование],Медикаменты[[#This Row],[Наименование]],Вводные[Приход]),0)","v":0},{"$f":"IFERROR(SUMIF(Вводные[Наименование],Медикаменты[[#This Row],[Наименование]],Вводные[Расход]),0)","v":0},{"$f":"IFERROR(Медикаменты[[#This Row],[Остаток]]+Медикаменты[[#This Row],[Приход общий]]-Медикаменты[[#This Row],[Расход общий]],0)","v":0},null,null,"Аллерген из пыльцы клена ясенелистного для диагностики и лечения","комплект",null,null,null,null,null,{"$f":"IF(IFERROR(IF(SEARCH($AM$3,AP23),\"!\",\"\"),\"\")=\"\",0,MAX($AL$9:AO22)+1)","v":14},"Дневной стационар","Мексидол (амп., 50 мг.-2 мл., №10)"]
[null,null,null,null,null,null,null,null,null,null,null,null,null,null,null,null,null,null,{"$f":"IF(IFERROR(IF(SEARCH(Расчет!$B$8,T24),\"!\",\"\"),\"\")=\"\",0,MAX($S$9:S23)+1)","v":0},"Аллерген из пыльцы одуванчика лекарственного для диагностики и лечения","комплект",1,"","",{"$f":"IFERROR(LOOKUP(,-1/($T24=Вводные[Наименование])/(Вводные[Дата]<$U$1),Вводные[Остаток]),0)+IF(Медикаменты[[#This Row],[Дата остатка]]<$U$1,Медикаменты[[#This Row],[Остаток]],0)","v":0},{"$f":"IF(T24=\"\",\"\",SUMPRODUCT((Вводные[Дата]>=$U$1)*(Вводные[Дата]<=$U$2)*(Вводные[Наименование]=$T24),Вводные[Приход]))","v":0},{"$f":"IF(T24=\"\",\"\",SUMPRODUCT((Вводные[Дата]>=$U$1)*(Вводные[Дата]<=$U$2)*(Вводные[Наименование]=$T24),Вводные[Расход]))","v":0},{"$f":"IFERROR(Медикаменты[[#This Row],[Остаток]]+Медикаменты[[#This Row],[Приход за период]]-Медикаменты[[#This Row],[Расход за период]],\"\")","v":""},{"$f":"IFERROR(SUMIF(Вводные[Наименование],Медикаменты[[#This Row],[Наименование]],Вводные[Приход]),0)","v":0},{"$f":"IFERROR(SUMIF(Вводные[Наименование],Медикаменты[[#This Row],[Наименование]],Вводные[Расход]),0)","v":0},{"$f":"IFERROR(Медикаменты[[#This Row],[Остаток]]+Медикаменты[[#This Row],[Приход общий]]-Медикаменты[[#This Row],[Расход общий]],0)","v":0},null,null,"Аллерген из пыльцы лебеды татарской для диагностики и лечения","комплект",null,null,null,null,null,{"$f":"IF(IFERROR(IF(SEARCH($AM$3,AP24),\"!\",\"\"),\"\")=\"\",0,MAX($AL$9:AO23)+1)","v":15},"Дневной стационар","Метронидазол (табл., 0,2 мл., №10)"]
[null,null,null,null,null,null,null,null,null,null,null,null,null,null,null,null,null,null,{"$f":"IF(IFERROR(IF(SEARCH(Расчет!$B$8,T25),\"!\",\"\"),\"\")=\"\",0,MAX($S$9:S24)+1)","v":0},"Аллерген из пыльцы полыни горькой для диагностики и лечения","комплект",2,"","",{"$f":"IFERROR(LOOKUP(,-1/($T25=Вводные[Наименование])/(Вводные[Дата]<$U$1),Вводные[Остаток]),0)+IF(Медикаменты[[#This Row],[Дата остатка]]<$U$1,Медикаменты[[#This Row],[Остаток]],0)","v":0},{"$f":"IF(T25=\"\",\"\",SUMPRODUCT((Вводные[Дата]>=$U$1)*(Вводные[Дата]<=$U$2)*(Вводные[Наименование]=$T25),Вводные[Приход]))","v":0},{"$f":"IF(T25=\"\",\"\",SUMPRODUCT((Вводные[Дата]>=$U$1)*(Вводные[Дата]<=$U$2)*(Вводные[Наименование]=$T25),Вводные[Расход]))","v":0},{"$f":"IFERROR(Медикаменты[[#This Row],[Остаток]]+Медикаменты[[#This Row],[Приход за период]]-Медикаменты[[#This Row],[Расход за период]],\"\")","v":""},{"$f":"IFERROR(SUMIF(Вводные[Наименование],Медикаменты[[#This Row],[Наименование]],Вводные[Приход]),0)","v":0},{"$f":"IFERROR(SUMIF(Вводные[Наименование],Медикаменты[[#This Row],[Наименование]],Вводные[Расход]),0)","v":0},{"$f":"IFERROR(Медикаменты[[#This Row],[Остаток]]+Медикаменты[[#This Row],[Приход общий]]-Медикаменты[[#This Row],[Расход общий]],0)","v":0},null,null,"Аллерген из пыльцы луговых трав для диагностики и лечения","комплект",null,null,null,null,null,{"$f":"IF(IFERROR(IF(SEARCH($AM$3,AP25),\"!\",\"\"),\"\")=\"\",0,MAX($AL$9:AO24)+1)","v":16},"Дневной стационар","Натрия тиосульфат (30%, 10 мл., №10)"]
[null,null,null,null,null,null,null,null,null,null,null,null,null,null,null,null,null,null,{"$f":"IF(IFERROR(IF(SEARCH(Расчет!$B$8,T26),\"!\",\"\"),\"\")=\"\",0,MAX($S$9:S25)+1)","v":0},"Аллерген эпидермальный из шерсти кошки для диагностики","комплект",2,"","",{"$f":"IFERROR(LOOKUP(,-1/($T26=Вводные[Наименование])/(Вводные[Дата]<$U$1),Вводные[Остаток]),0)+IF(Медикаменты[[#This Row],[Дата остатка]]<$U$1,Медикаменты[[#This Row],[Остаток]],0)","v":0},{"$f":"IF(T26=\"\",\"\",SUMPRODUCT((Вводные[Дата]>=$U$1)*(Вводные[Дата]<=$U$2)*(Вводные[Наименование]=$T26),Вводные[Приход]))","v":0},{"$f":"IF(T26=\"\",\"\",SUMPRODUCT((Вводные[Дата]>=$U$1)*(Вводные[Дата]<=$U$2)*(Вводные[Наименование]=$T26),Вводные[Расход]))","v":0},{"$f":"IFERROR(Медикаменты[[#This Row],[Остаток]]+Медикаменты[[#This Row],[Приход за период]]-Медикаменты[[#This Row],[Расход за период]],\"\")","v":""},{"$f":"IFERROR(SUMIF(Вводные[Наименование],Медикаменты[[#This Row],[Наименование]],Вводные[Приход]),0)","v":0},{"$f":"IFERROR(SUMIF(Вводные[Наименование],Медикаменты[[#This Row],[Наименование]],Вводные[Расход]),0)","v":0},{"$f":"IFERROR(Медикаменты[[#This Row],[Остаток]]+Медикаменты[[#This Row],[Приход общий]]-Медикаменты[[#This Row],[Расход общий]],0)","v":0},null,null,"Аллерген из пыльцы одуванчика лекарственного для диагностики и лечения","комплект",null,null,null,null,null,{"$f":"IF(IFERROR(IF(SEARCH($AM$3,AP26),\"!\",\"\"),\"\")=\"\",0,MAX($AL$9:AO25)+1)","v":17},"Дневной стационар","Натрия хлорид (амп., 0,9%, 10 мл., №10)"]
[null,null,null,null,null,null,null,null,null,null,null,null,null,null,null,null,null,null,{"$f":"IF(IFERROR(IF(SEARCH(Расчет!$B$8,T27),\"!\",\"\"),\"\")=\"\",0,MAX($S$9:S26)+1)","v":0},"Аллерген эпидермальный из шерсти собаки для диагностики","комплект",2,"","",{"$f":"IFERROR(LOOKUP(,-1/($T27=Вводные[Наименование])/(Вводные[Дата]<$U$1),Вводные[Остаток]),0)+IF(Медикаменты[[#This Row],[Дата остатка]]<$U$1,Медикаменты[[#This Row],[Остаток]],0)","v":0},{"$f":"IF(T27=\"\",\"\",SUMPRODUCT((Вводные[Дата]>=$U$1)*(Вводные[Дата]<=$U$2)*(Вводные[Наименование]=$T27),Вводные[Приход]))","v":0},{"$f":"IF(T27=\"\",\"\",SUMPRODUCT((Вводные[Дата]>=$U$1)*(Вводные[Дата]<=$U$2)*(Вводные[Наименование]=$T27),Вводные[Расход]))","v":0},{"$f":"IFERROR(Медикаменты[[#This Row],[Остаток]]+Медикаменты[[#This Row],[Приход за период]]-Медикаменты[[#This Row],[Расход за период]],\"\")","v":""},{"$f":"IFERROR(SUMIF(Вводные[Наименование],Медикаменты[[#This Row],[Наименование]],Вводные[Приход]),0)","v":0},{"$f":"IFERROR(SUMIF(Вводные[Наименование],Медикаменты[[#This Row],[Наименование]],Вводные[Расход]),0)","v":0},{"$f":"IFERROR(Медикаменты[[#This Row],[Остаток]]+Медикаменты[[#This Row],[Приход общий]]-Медикаменты[[#This Row],[Расход общий]],0)","v":0},null,null,"Аллерген из пыльцы полыни горькой для диагностики и лечения","комплект",null,null,null,null,null,{"$f":"IF(IFERROR(IF(SEARCH($AM$3,AP27),\"!\",\"\"),\"\")=\"\",0,MAX($AL$9:AO26)+1)","v":18},"Дневной стационар","Натрия хлорид (амп., 0,9%, 10 мл., №10)"]
[null,null,null,null,null,null,null,null,null,null,null,null,null,null,null,null,null,null,{"$f":"IF(IFERROR(IF(SEARCH(Расчет!$B$8,T28),\"!\",\"\"),\"\")=\"\",0,MAX($S$9:S27)+1)","v":0},"Амброксол (амп., 100 мл.)","уп.",10,"","",{"$f":"IFERROR(LOOKUP(,-1/($T28=Вводные[Наименование])/(Вводные[Дата]<$U$1),Вводные[Остаток]),0)+IF(Медикаменты[[#This Row],[Дата остатка]]<$U$1,Медикаменты[[#This Row],[Остаток]],0)","v":0},{"$f":"IF(T28=\"\",\"\",SUMPRODUCT((Вводные[Дата]>=$U$1)*(Вводные[Дата]<=$U$2)*(Вводные[Наименование]=$T28),Вводные[Приход]))","v":0},{"$f":"IF(T28=\"\",\"\",SUMPRODUCT((Вводные[Дата]>=$U$1)*(Вводные[Дата]<=$U$2)*(Вводные[Наименование]=$T28),Вводные[Расход]))","v":0},{"$f":"IFERROR(Медикаменты[[#This Row],[Остаток]]+Медикаменты[[#This Row],[Приход за период]]-Медикаменты[[#This Row],[Расход за период]],\"\")","v":""},{"$f":"IFERROR(SUMIF(Вводные[Наименование],Медикаменты[[#This Row],[Наименование]],Вводные[Приход]),0)","v":0},{"$f":"IFERROR(SUMIF(Вводные[Наименование],Медикаменты[[#This Row],[Наименование]],Вводные[Расход]),0)","v":0},{"$f":"IFERROR(Медикаменты[[#This Row],[Остаток]]+Медикаменты[[#This Row],[Приход общий]]-Медикаменты[[#This Row],[Расход общий]],0)","v":0},null,null,"Аллерген эпидермальный из шерсти кошки для диагностики","комплект",null,null,null,null,null,{"$f":"IF(IFERROR(IF(SEARCH($AM$3,AP28),\"!\",\"\"),\"\")=\"\",0,MAX($AL$9:AO27)+1)","v":19},"Дневной стационар","Никотиновая кислота (амп., 1%, 1 мл., №10)"]
[null,null,null,null,null,null,null,null,null,null,null,null,null,null,null,null,null,null,{"$f":"IF(IFERROR(IF(SEARCH(Расчет!$B$8,T29),\"!\",\"\"),\"\")=\"\",0,MAX($S$9:S28)+1)","v":0},"Амброксол (р-р для приема внутрь и ингаляций, 7,5 мг./1 мл., 100 мл.)","фл.",5,"","",{"$f":"IFERROR(LOOKUP(,-1/($T29=Вводные[Наименование])/(Вводные[Дата]<$U$1),Вводные[Остаток]),0)+IF(Медикаменты[[#This Row],[Дата остатка]]<$U$1,Медикаменты[[#This Row],[Остаток]],0)","v":0},{"$f":"IF(T29=\"\",\"\",SUMPRODUCT((Вводные[Дата]>=$U$1)*(Вводные[Дата]<=$U$2)*(Вводные[Наименование]=$T29),Вводные[Приход]))","v":0},{"$f":"IF(T29=\"\",\"\",SUMPRODUCT((Вводные[Дата]>=$U$1)*(Вводные[Дата]<=$U$2)*(Вводные[Наименование]=$T29),Вводные[Расход]))","v":0},{"$f":"IFERROR(Медикаменты[[#This Row],[Остаток]]+Медикаменты[[#This Row],[Приход за период]]-Медикаменты[[#This Row],[Расход за период]],\"\")","v":""},{"$f":"IFERROR(SUMIF(Вводные[Наименование],Медикаменты[[#This Row],[Наименование]],Вводные[Приход]),0)","v":0},{"$f":"IFERROR(SUMIF(Вводные[Наименование],Медикаменты[[#This Row],[Наименование]],Вводные[Расход]),0)","v":0},{"$f":"IFERROR(Медикаменты[[#This Row],[Остаток]]+Медикаменты[[#This Row],[Приход общий]]-Медикаменты[[#This Row],[Расход общий]],0)","v":0},null,null,"Аллерген эпидермальный из шерсти собаки для диагностики","комплект",null,null,null,null,null,{"$f":"IF(IFERROR(IF(SEARCH($AM$3,AP29),\"!\",\"\"),\"\")=\"\",0,MAX($AL$9:AO28)+1)","v":20},"Дневной стационар","Омепразол (капс., 20 мг., №30)"]
[null,null,null,null,null,null,null,null,null,null,null,null,null,null,null,null,null,null,{"$f":"IF(IFERROR(IF(SEARCH(Расчет!$B$8,T30),\"!\",\"\"),\"\")=\"\",0,MAX($S$9:S29)+1)","v":0},"Аммиака раствор (амп., 10%, 40 мл.)","фл.",50,"","",{"$f":"IFERROR(LOOKUP(,-1/($T30=Вводные[Наименование])/(Вводные[Дата]<$U$1),Вводные[Остаток]),0)+IF(Медикаменты[[#This Row],[Дата остатка]]<$U$1,Медикаменты[[#This Row],[Остаток]],0)","v":0},{"$f":"IF(T30=\"\",\"\",SUMPRODUCT((Вводные[Дата]>=$U$1)*(Вводные[Дата]<=$U$2)*(Вводные[Наименование]=$T30),Вводные[Приход]))","v":0},{"$f":"IF(T30=\"\",\"\",SUMPRODUCT((Вводные[Дата]>=$U$1)*(Вводные[Дата]<=$U$2)*(Вводные[Наименование]=$T30),Вводные[Расход]))","v":0},{"$f":"IFERROR(Медикаменты[[#This Row],[Остаток]]+Медикаменты[[#This Row],[Приход за период]]-Медикаменты[[#This Row],[Расход за период]],\"\")","v":""},{"$f":"IFERROR(SUMIF(Вводные[Наименование],Медикаменты[[#This Row],[Наименование]],Вводные[Приход]),0)","v":0},{"$f":"IFERROR(SUMIF(Вводные[Наименование],Медикаменты[[#This Row],[Наименование]],Вводные[Расход]),0)","v":0},{"$f":"IFERROR(Медикаменты[[#This Row],[Остаток]]+Медикаменты[[#This Row],[Приход общий]]-Медикаменты[[#This Row],[Расход общий]],0)","v":0},null,null,"Амброксол (амп., 100 мл.)","уп.",null,null,null,null,null,{"$f":"IF(IFERROR(IF(SEARCH($AM$3,AP30),\"!\",\"\"),\"\")=\"\",0,MAX($AL$9:AO29)+1)","v":21},"Дневной стационар","Пантогам (таб., 250 мг., №50)"]
[null,null,null,null,null,null,null,null,null,null,null,null,null,null,null,null,null,null,{"$f":"IF(IFERROR(IF(SEARCH(Расчет!$B$8,T31),\"!\",\"\"),\"\")=\"\",0,MAX($S$9:S30)+1)","v":0},"Баллон Политцера с оливами","набор",1,"","",{"$f":"IFERROR(LOOKUP(,-1/($T31=Вводные[Наименование])/(Вводные[Дата]<$U$1),Вводные[Остаток]),0)+IF(Медикаменты[[#This Row],[Дата остатка]]<$U$1,Медикаменты[[#This Row],[Остаток]],0)","v":0},{"$f":"IF(T31=\"\",\"\",SUMPRODUCT((Вводные[Дата]>=$U$1)*(Вводные[Дата]<=$U$2)*(Вводные[Наименование]=$T31),Вводные[Приход]))","v":0},{"$f":"IF(T31=\"\",\"\",SUMPRODUCT((Вводные[Дата]>=$U$1)*(Вводные[Дата]<=$U$2)*(Вводные[Наименование]=$T31),Вводные[Расход]))","v":0},{"$f":"IFERROR(Медикаменты[[#This Row],[Остаток]]+Медикаменты[[#This Row],[Приход за период]]-Медикаменты[[#This Row],[Расход за период]],\"\")","v":""},{"$f":"IFERROR(SUMIF(Вводные[Наименование],Медикаменты[[#This Row],[Наименование]],Вводные[Приход]),0)","v":0},{"$f":"IFERROR(SUMIF(Вводные[Наименование],Медикаменты[[#This Row],[Наименование]],Вводные[Расход]),0)","v":0},{"$f":"IFERROR(Медикаменты[[#This Row],[Остаток]]+Медикаменты[[#This Row],[Приход общий]]-Медикаменты[[#This Row],[Расход общий]],0)","v":0},null,null,"Амброксол (р-р для приема внутрь и ингаляций, 7,5 мг./1 мл., 100 мл.)","фл.",null,null,null,null,null,{"$f":"IF(IFERROR(IF(SEARCH($AM$3,AP31),\"!\",\"\"),\"\")=\"\",0,MAX($AL$9:AO30)+1)","v":22},"Дневной стационар","Пирацетам (амп., 20%, 5 мл., №10)"]
[null,null,null,null,null,null,null,null,null,null,null,null,null,null,null,null,null,null,{"$f":"IF(IFERROR(IF(SEARCH(Расчет!$B$8,T32),\"!\",\"\"),\"\")=\"\",0,MAX($S$9:S31)+1)","v":0},"Берет медицинский (однораз.)","шт.",1000,"2018-06-07",1100,{"$f":"IFERROR(LOOKUP(,-1/($T32=Вводные[Наименование])/(Вводные[Дата]<$U$1),Вводные[Остаток]),0)+IF(Медикаменты[[#This Row],[Дата остатка]]<$U$1,Медикаменты[[#This Row],[Остаток]],0)","v":0},{"$f":"IF(T32=\"\",\"\",SUMPRODUCT((Вводные[Дата]>=$U$1)*(Вводные[Дата]<=$U$2)*(Вводные[Наименование]=$T32),Вводные[Приход]))","v":0},{"$f":"IF(T32=\"\",\"\",SUMPRODUCT((Вводные[Дата]>=$U$1)*(Вводные[Дата]<=$U$2)*(Вводные[Наименование]=$T32),Вводные[Расход]))","v":0},{"$f":"IFERROR(Медикаменты[[#This Row],[Остаток]]+Медикаменты[[#This Row],[Приход за период]]-Медикаменты[[#This Row],[Расход за период]],\"\")","v":1100},{"$f":"IFERROR(SUMIF(Вводные[Наименование],Медикаменты[[#This Row],[Наименование]],Вводные[Приход]),0)","v":0},{"$f":"IFERROR(SUMIF(Вводные[Наименование],Медикаменты[[#This Row],[Наименование]],Вводные[Расход]),0)","v":0},{"$f":"IFERROR(Медикаменты[[#This Row],[Остаток]]+Медикаменты[[#This Row],[Приход общий]]-Медикаменты[[#This Row],[Расход общий]],0)","v":1100},null,null,"Аммиака раствор (амп., 10%, 40 мл.)","фл.",null,null,null,null,null,{"$f":"IF(IFERROR(IF(SEARCH($AM$3,AP32),\"!\",\"\"),\"\")=\"\",0,MAX($AL$9:AO31)+1)","v":23},"Дневной стационар","Пирацетам (табл., 400 мг., №60)"]
[null,null,null,null,null,null,null,null,null,null,null,null,null,null,null,null,null,null,{"$f":"IF(IFERROR(IF(SEARCH(Расчет!$B$8,T33),\"!\",\"\"),\"\")=\"\",0,MAX($S$9:S32)+1)","v":0},"Беродуал (20 мл.)","уп.",10,"","",{"$f":"IFERROR(LOOKUP(,-1/($T33=Вводные[Наименование])/(Вводные[Дата]<$U$1),Вводные[Остаток]),0)+IF(Медикаменты[[#This Row],[Дата остатка]]<$U$1,Медикаменты[[#This Row],[Остаток]],0)","v":0},{"$f":"IF(T33=\"\",\"\",SUMPRODUCT((Вводные[Дата]>=$U$1)*(Вводные[Дата]<=$U$2)*(Вводные[Наименование]=$T33),Вводные[Приход]))","v":0},{"$f":"IF(T33=\"\",\"\",SUMPRODUCT((Вводные[Дата]>=$U$1)*(Вводные[Дата]<=$U$2)*(Вводные[Наименование]=$T33),Вводные[Расход]))","v":0},{"$f":"IFERROR(Медикаменты[[#This Row],[Остаток]]+Медикаменты[[#This Row],[Приход за период]]-Медикаменты[[#This Row],[Расход за период]],\"\")","v":""},{"$f":"IFERROR(SUMIF(Вводные[Наименование],Медикаменты[[#This Row],[Наименование]],Вводные[Приход]),0)","v":0},{"$f":"IFERROR(SUMIF(Вводные[Наименование],Медикаменты[[#This Row],[Наименование]],Вводные[Расход]),0)","v":0},{"$f":"IFERROR(Медикаменты[[#This Row],[Остаток]]+Медикаменты[[#This Row],[Приход общий]]-Медикаменты[[#This Row],[Расход общий]],0)","v":0},null,null,"Баллон Политцера с оливами","набор",null,null,null,null,null,{"$f":"IF(IFERROR(IF(SEARCH($AM$3,AP33),\"!\",\"\"),\"\")=\"\",0,MAX($AL$9:AO32)+1)","v":24},"Дневной стационар","Пиридоксина гидрохлорид (амп., 5%, 1 мл., №10)"]
[null,null,null,null,null,null,null,null,null,null,null,null,null,null,null,null,null,null,{"$f":"IF(IFERROR(IF(SEARCH(Расчет!$B$8,T34),\"!\",\"\"),\"\")=\"\",0,MAX($S$9:S33)+1)","v":0},"Беродуал (р-р для ингаляций флакон/кап. по 20 мл.)","фл.",5,"","",{"$f":"IFERROR(LOOKUP(,-1/($T34=Вводные[Наименование])/(Вводные[Дата]<$U$1),Вводные[Остаток]),0)+IF(Медикаменты[[#This Row],[Дата остатка]]<$U$1,Медикаменты[[#This Row],[Остаток]],0)","v":0},{"$f":"IF(T34=\"\",\"\",SUMPRODUCT((Вводные[Дата]>=$U$1)*(Вводные[Дата]<=$U$2)*(Вводные[Наименование]=$T34),Вводные[Приход]))","v":0},{"$f":"IF(T34=\"\",\"\",SUMPRODUCT((Вводные[Дата]>=$U$1)*(Вводные[Дата]<=$U$2)*(Вводные[Наименование]=$T34),Вводные[Расход]))","v":0},{"$f":"IFERROR(Медикаменты[[#This Row],[Остаток]]+Медикаменты[[#This Row],[Приход за период]]-Медикаменты[[#This Row],[Расход за период]],\"\")","v":""},{"$f":"IFERROR(SUMIF(Вводные[Наименование],Медикаменты[[#This Row],[Наименование]],Вводные[Приход]),0)","v":0},{"$f":"IFERROR(SUMIF(Вводные[Наименование],Медикаменты[[#This Row],[Наименование]],Вводные[Расход]),0)","v":0},{"$f":"IFERROR(Медикаменты[[#This Row],[Остаток]]+Медикаменты[[#This Row],[Приход общий]]-Медикаменты[[#This Row],[Расход общий]],0)","v":0},null,null,"Берет медицинский (однораз.)","шт.",null,null,null,null,null,{"$f":"IF(IFERROR(IF(SEARCH($AM$3,AP34),\"!\",\"\"),\"\")=\"\",0,MAX($AL$9:AO33)+1)","v":25},"Дневной стационар","Рибоксин (таб., 200 мг., №50)"]
[null,null,null,null,null,null,null,null,null,null,null,null,null,null,null,null,null,null,{"$f":"IF(IFERROR(IF(SEARCH(Расчет!$B$8,T35),\"!\",\"\"),\"\")=\"\",0,MAX($S$9:S34)+1)","v":0},"Бинт (нест., 10 м.х15 см.)","шт.",200,"","",{"$f":"IFERROR(LOOKUP(,-1/($T35=Вводные[Наименование])/(Вводные[Дата]<$U$1),Вводные[Остаток]),0)+IF(Медикаменты[[#This Row],[Дата остатка]]<$U$1,Медикаменты[[#This Row],[Остаток]],0)","v":0},{"$f":"IF(T35=\"\",\"\",SUMPRODUCT((Вводные[Дата]>=$U$1)*(Вводные[Дата]<=$U$2)*(Вводные[Наименование]=$T35),Вводные[Приход]))","v":0},{"$f":"IF(T35=\"\",\"\",SUMPRODUCT((Вводные[Дата]>=$U$1)*(Вводные[Дата]<=$U$2)*(Вводные[Наименование]=$T35),Вводные[Расход]))","v":0},{"$f":"IFERROR(Медикаменты[[#This Row],[Остаток]]+Медикаменты[[#This Row],[Приход за период]]-Медикаменты[[#This Row],[Расход за период]],\"\")","v":""},{"$f":"IFERROR(SUMIF(Вводные[Наименование],Медикаменты[[#This Row],[Наименование]],Вводные[Приход]),0)","v":0},{"$f":"IFERROR(SUMIF(Вводные[Наименование],Медикаменты[[#This Row],[Наименование]],Вводные[Расход]),0)","v":0},{"$f":"IFERROR(Медикаменты[[#This Row],[Остаток]]+Медикаменты[[#This Row],[Приход общий]]-Медикаменты[[#This Row],[Расход общий]],0)","v":0},null,null,"Беродуал (20 мл.)","уп.",null,null,null,null,null,{"$f":"IF(IFERROR(IF(SEARCH($AM$3,AP35),\"!\",\"\"),\"\")=\"\",0,MAX($AL$9:AO34)+1)","v":26},"Дневной стационар","Сбор успокоительный (50,0 г.)"]
[null,null,null,null,null,null,null,null,null,null,null,null,null,null,null,null,null,null,{"$f":"IF(IFERROR(IF(SEARCH(Расчет!$B$8,T36),\"!\",\"\"),\"\")=\"\",0,MAX($S$9:S35)+1)","v":0},"Бинт (нест., 5 м.х10 см.)","шт.",700,"","",{"$f":"IFERROR(LOOKUP(,-1/($T36=Вводные[Наименование])/(Вводные[Дата]<$U$1),Вводные[Остаток]),0)+IF(Медикаменты[[#This Row],[Дата остатка]]<$U$1,Медикаменты[[#This Row],[Остаток]],0)","v":0},{"$f":"IF(T36=\"\",\"\",SUMPRODUCT((Вводные[Дата]>=$U$1)*(Вводные[Дата]<=$U$2)*(Вводные[Наименование]=$T36),Вводные[Приход]))","v":0},{"$f":"IF(T36=\"\",\"\",SUMPRODUCT((Вводные[Дата]>=$U$1)*(Вводные[Дата]<=$U$2)*(Вводные[Наименование]=$T36),Вводные[Расход]))","v":0},{"$f":"IFERROR(Медикаменты[[#This Row],[Остаток]]+Медикаменты[[#This Row],[Приход за период]]-Медикаменты[[#This Row],[Расход за период]],\"\")","v":""},{"$f":"IFERROR(SUMIF(Вводные[Наименование],Медикаменты[[#This Row],[Наименование]],Вводные[Приход]),0)","v":0},{"$f":"IFERROR(SUMIF(Вводные[Наименование],Медикаменты[[#This Row],[Наименование]],Вводные[Расход]),0)","v":0},{"$f":"IFERROR(Медикаменты[[#This Row],[Остаток]]+Медикаменты[[#This Row],[Приход общий]]-Медикаменты[[#This Row],[Расход общий]],0)","v":0},null,null,"Беродуал (р-р для ингаляций флакон/кап. по 20 мл.)","фл.",null,null,null,null,null,{"$f":"IF(IFERROR(IF(SEARCH($AM$3,AP36),\"!\",\"\"),\"\")=\"\",0,MAX($AL$9:AO35)+1)","v":27},"Дневной стационар","Сорбифер-Дурулес (таб., 320 мг., №30)"]
[null,null,null,null,null,null,null,null,null,null,null,null,null,null,null,null,null,null,{"$f":"IF(IFERROR(IF(SEARCH(Расчет!$B$8,T37),\"!\",\"\"),\"\")=\"\",0,MAX($S$9:S36)+1)","v":0},"Бинт (стер. 10 м.х15 см.)","шт.",80,"2018-03-30",55,{"$f":"IFERROR(LOOKUP(,-1/($T37=Вводные[Наименование])/(Вводные[Дата]<$U$1),Вводные[Остаток]),0)+IF(Медикаменты[[#This Row],[Дата остатка]]<$U$1,Медикаменты[[#This Row],[Остаток]],0)","v":55},{"$f":"IF(T37=\"\",\"\",SUMPRODUCT((Вводные[Дата]>=$U$1)*(Вводные[Дата]<=$U$2)*(Вводные[Наименование]=$T37),Вводные[Приход]))","v":0},{"$f":"IF(T37=\"\",\"\",SUMPRODUCT((Вводные[Дата]>=$U$1)*(Вводные[Дата]<=$U$2)*(Вводные[Наименование]=$T37),Вводные[Расход]))","v":0},{"$f":"IFERROR(Медикаменты[[#This Row],[Остаток]]+Медикаменты[[#This Row],[Приход за период]]-Медикаменты[[#This Row],[Расход за период]],\"\")","v":55},{"$f":"IFERROR(SUMIF(Вводные[Наименование],Медикаменты[[#This Row],[Наименование]],Вводные[Приход]),0)","v":0},{"$f":"IFERROR(SUMIF(Вводные[Наименование],Медикаменты[[#This Row],[Наименование]],Вводные[Расход]),0)","v":0},{"$f":"IFERROR(Медикаменты[[#This Row],[Остаток]]+Медикаменты[[#This Row],[Приход общий]]-Медикаменты[[#This Row],[Расход общий]],0)","v":55},null,null,"Бинт (нест., 10 м.х15 см.)","шт.",null,null,null,null,null,{"$f":"IF(IFERROR(IF(SEARCH($AM$3,AP37),\"!\",\"\"),\"\")=\"\",0,MAX($AL$9:AO36)+1)","v":28},"Дневной стационар","Супрастин (амп., 2%, 1,0 мл.)"]
[null,null,null,null,null,null,null,null,null,null,null,null,null,null,null,null,null,null,{"$f":"IF(IFERROR(IF(SEARCH(Расчет!$B$8,T38),\"!\",\"\"),\"\")=\"\",0,MAX($S$9:S37)+1)","v":0},"Бинт (стер. 5 м.х10 см.)","шт.",600,"","",{"$f":"IFERROR(LOOKUP(,-1/($T38=Вводные[Наименование])/(Вводные[Дата]<$U$1),Вводные[Остаток]),0)+IF(Медикаменты[[#This Row],[Дата остатка]]<$U$1,Медикаменты[[#This Row],[Остаток]],0)","v":0},{"$f":"IF(T38=\"\",\"\",SUMPRODUCT((Вводные[Дата]>=$U$1)*(Вводные[Дата]<=$U$2)*(Вводные[Наименование]=$T38),Вводные[Приход]))","v":0},{"$f":"IF(T38=\"\",\"\",SUMPRODUCT((Вводные[Дата]>=$U$1)*(Вводные[Дата]<=$U$2)*(Вводные[Наименование]=$T38),Вводные[Расход]))","v":0},{"$f":"IFERROR(Медикаменты[[#This Row],[Остаток]]+Медикаменты[[#This Row],[Приход за период]]-Медикаменты[[#This Row],[Расход за период]],\"\")","v":""},{"$f":"IFERROR(SUMIF(Вводные[Наименование],Медикаменты[[#This Row],[Наименование]],Вводные[Приход]),0)","v":0},{"$f":"IFERROR(SUMIF(Вводные[Наименование],Медикаменты[[#This Row],[Наименование]],Вводные[Расход]),0)","v":0},{"$f":"IFERROR(Медикаменты[[#This Row],[Остаток]]+Медикаменты[[#This Row],[Приход общий]]-Медикаменты[[#This Row],[Расход общий]],0)","v":0},null,null,"Бинт (нест., 5 м.х10 см.)","шт.",null,null,null,null,null,{"$f":"IF(IFERROR(IF(SEARCH($AM$3,AP38),\"!\",\"\"),\"\")=\"\",0,MAX($AL$9:AO37)+1)","v":29},"Дневной стационар","Супрастин (табл., 25 мг., №20)"]
[null,null,null,null,null,null,null,null,null,null,null,null,null,null,null,null,null,null,{"$f":"IF(IFERROR(IF(SEARCH(Расчет!$B$8,T39),\"!\",\"\"),\"\")=\"\",0,MAX($S$9:S38)+1)","v":0},"Бонадерм, крем для рук восстанавливающий (100 мл.)","шт.",84,"","",{"$f":"IFERROR(LOOKUP(,-1/($T39=Вводные[Наименование])/(Вводные[Дата]<$U$1),Вводные[Остаток]),0)+IF(Медикаменты[[#This Row],[Дата остатка]]<$U$1,Медикаменты[[#This Row],[Остаток]],0)","v":0},{"$f":"IF(T39=\"\",\"\",SUMPRODUCT((Вводные[Дата]>=$U$1)*(Вводные[Дата]<=$U$2)*(Вводные[Наименование]=$T39),Вводные[Приход]))","v":0},{"$f":"IF(T39=\"\",\"\",SUMPRODUCT((Вводные[Дата]>=$U$1)*(Вводные[Дата]<=$U$2)*(Вводные[Наименование]=$T39),Вводные[Расход]))","v":0},{"$f":"IFERROR(Медикаменты[[#This Row],[Остаток]]+Медикаменты[[#This Row],[Приход за период]]-Медикаменты[[#This Row],[Расход за период]],\"\")","v":""},{"$f":"IFERROR(SUMIF(Вводные[Наименование],Медикаменты[[#This Row],[Наименование]],Вводные[Приход]),0)","v":0},{"$f":"IFERROR(SUMIF(Вводные[Наименование],Медикаменты[[#This Row],[Наименование]],Вводные[Расход]),0)","v":0},{"$f":"IFERROR(Медикаменты[[#This Row],[Остаток]]+Медикаменты[[#This Row],[Приход общий]]-Медикаменты[[#This Row],[Расход общий]],0)","v":0},null,null,"Бинт (стер. 10 м.х15 см.)","шт.",null,null,null,null,null,{"$f":"IF(IFERROR(IF(SEARCH($AM$3,AP39),\"!\",\"\"),\"\")=\"\",0,MAX($AL$9:AO38)+1)","v":30},"Дневной стационар","Тиамин-хлорид 5%-1,0 №10 амп."]
[null,null,null,null,null,null,null,null,null,null,null,null,null,null,null,null,null,null,{"$f":"IF(IFERROR(IF(SEARCH(Расчет!$B$8,T40),\"!\",\"\"),\"\")=\"\",0,MAX($S$9:S39)+1)","v":0},"Бонадерм-гель (100 мл.)","шт.",402,"2018-06-07",184,{"$f":"IFERROR(LOOKUP(,-1/($T40=Вводные[Наименование])/(Вводные[Дата]<$U$1),Вводные[Остаток]),0)+IF(Медикаменты[[#This Row],[Дата остатка]]<$U$1,Медикаменты[[#This Row],[Остаток]],0)","v":0},{"$f":"IF(T40=\"\",\"\",SUMPRODUCT((Вводные[Дата]>=$U$1)*(Вводные[Дата]<=$U$2)*(Вводные[Наименование]=$T40),Вводные[Приход]))","v":0},{"$f":"IF(T40=\"\",\"\",SUMPRODUCT((Вводные[Дата]>=$U$1)*(Вводные[Дата]<=$U$2)*(Вводные[Наименование]=$T40),Вводные[Расход]))","v":0},{"$f":"IFERROR(Медикаменты[[#This Row],[Остаток]]+Медикаменты[[#This Row],[Приход за период]]-Медикаменты[[#This Row],[Расход за период]],\"\")","v":184},{"$f":"IFERROR(SUMIF(Вводные[Наименование],Медикаменты[[#This Row],[Наименование]],Вводные[Приход]),0)","v":0},{"$f":"IFERROR(SUMIF(Вводные[Наименование],Медикаменты[[#This Row],[Наименование]],Вводные[Расход]),0)","v":0},{"$f":"IFERROR(Медикаменты[[#This Row],[Остаток]]+Медикаменты[[#This Row],[Приход общий]]-Медикаменты[[#This Row],[Расход общий]],0)","v":184},null,null,"Бинт (стер. 5 м.х10 см.)","шт.",null,null,null,null,null,{"$f":"IF(IFERROR(IF(SEARCH($AM$3,AP40),\"!\",\"\"),\"\")=\"\",0,MAX($AL$9:AO39)+1)","v":31},"Дневной стационар","Токоферола ацетат (50% 100 мг., №10)"]
[null,null,null,null,null,null,null,null,null,null,null,null,null,null,null,null,null,null,{"$f":"IF(IFERROR(IF(SEARCH(Расчет!$B$8,T41),\"!\",\"\"),\"\")=\"\",0,MAX($S$9:S40)+1)","v":0},"Бонадерм-ИП салфетки (100 шт.)","уп.",150,"2018-06-07",80,{"$f":"IFERROR(LOOKUP(,-1/($T41=Вводные[Наименование])/(Вводные[Дата]<$U$1),Вводные[Остаток]),0)+IF(Медикаменты[[#This Row],[Дата остатка]]<$U$1,Медикаменты[[#This Row],[Остаток]],0)","v":0},{"$f":"IF(T41=\"\",\"\",SUMPRODUCT((Вводные[Дата]>=$U$1)*(Вводные[Дата]<=$U$2)*(Вводные[Наименование]=$T41),Вводные[Приход]))","v":0},{"$f":"IF(T41=\"\",\"\",SUMPRODUCT((Вводные[Дата]>=$U$1)*(Вводные[Дата]<=$U$2)*(Вводные[Наименование]=$T41),Вводные[Расход]))","v":0},{"$f":"IFERROR(Медикаменты[[#This Row],[Остаток]]+Медикаменты[[#This Row],[Приход за период]]-Медикаменты[[#This Row],[Расход за период]],\"\")","v":80},{"$f":"IFERROR(SUMIF(Вводные[Наименование],Медикаменты[[#This Row],[Наименование]],Вводные[Приход]),0)","v":0},{"$f":"IFERROR(SUMIF(Вводные[Наименование],Медикаменты[[#This Row],[Наименование]],Вводные[Расход]),0)","v":0},{"$f":"IFERROR(Медикаменты[[#This Row],[Остаток]]+Медикаменты[[#This Row],[Приход общий]]-Медикаменты[[#This Row],[Расход общий]],0)","v":80},null,null,"Бонадерм, крем для рук восстанавливающий (100 мл.)","шт.",null,null,null,null,null,{"$f":"IF(IFERROR(IF(SEARCH($AM$3,AP41),\"!\",\"\"),\"\")=\"\",0,MAX($AL$9:AO40)+1)","v":32},"Дневной стационар","Фенибут (табл., 250 мг., №20)"]
[null,null,null,null,null,null,null,null,null,null,null,null,null,null,null,null,null,null,{"$f":"IF(IFERROR(IF(SEARCH(Расчет!$B$8,T42),\"!\",\"\"),\"\")=\"\",0,MAX($S$9:S41)+1)","v":0},"Бонадерм-Ультра (100 мл., с распыляющей насадкой)","шт.",500,"","",{"$f":"IFERROR(LOOKUP(,-1/($T42=Вводные[Наименование])/(Вводные[Дата]<$U$1),Вводные[Остаток]),0)+IF(Медикаменты[[#This Row],[Дата остатка]]<$U$1,Медикаменты[[#This Row],[Остаток]],0)","v":0},{"$f":"IF(T42=\"\",\"\",SUMPRODUCT((Вводные[Дата]>=$U$1)*(Вводные[Дата]<=$U$2)*(Вводные[Наименование]=$T42),Вводные[Приход]))","v":0},{"$f":"IF(T42=\"\",\"\",SUMPRODUCT((Вводные[Дата]>=$U$1)*(Вводные[Дата]<=$U$2)*(Вводные[Наименование]=$T42),Вводные[Расход]))","v":0},{"$f":"IFERROR(Медикаменты[[#This Row],[Остаток]]+Медикаменты[[#This Row],[Приход за период]]-Медикаменты[[#This Row],[Расход за период]],\"\")","v":""},{"$f":"IFERROR(SUMIF(Вводные[Наименование],Медикаменты[[#This Row],[Наименование]],Вводные[Приход]),0)","v":0},{"$f":"IFERROR(SUMIF(Вводные[Наименование],Медикаменты[[#This Row],[Наименование]],Вводные[Расход]),0)","v":0},{"$f":"IFERROR(Медикаменты[[#This Row],[Остаток]]+Медикаменты[[#This Row],[Приход общий]]-Медикаменты[[#This Row],[Расход общий]],0)","v":0},null,null,"Бонадерм-гель (100 мл.)","шт.",null,null,null,null,null,{"$f":"IF(IFERROR(IF(SEARCH($AM$3,AP42),\"!\",\"\"),\"\")=\"\",0,MAX($AL$9:AO41)+1)","v":33},"Дневной стационар","Хлоргексидин (амп., 0,05%, 100 мл.)"]
[null,null,null,null,null,null,null,null,null,null,null,null,null,null,null,null,null,null,{"$f":"IF(IFERROR(IF(SEARCH(Расчет!$B$8,T43),\"!\",\"\"),\"\")=\"\",0,MAX($S$9:S42)+1)","v":0},"Бонадерм-Ультра (50 мл., с распыляющей насадкой)","шт.",300,"","",{"$f":"IFERROR(LOOKUP(,-1/($T43=Вводные[Наименование])/(Вводные[Дата]<$U$1),Вводные[Остаток]),0)+IF(Медикаменты[[#This Row],[Дата остатка]]<$U$1,Медикаменты[[#This Row],[Остаток]],0)","v":0},{"$f":"IF(T43=\"\",\"\",SUMPRODUCT((Вводные[Дата]>=$U$1)*(Вводные[Дата]<=$U$2)*(Вводные[Наименование]=$T43),Вводные[Приход]))","v":0},{"$f":"IF(T43=\"\",\"\",SUMPRODUCT((Вводные[Дата]>=$U$1)*(Вводные[Дата]<=$U$2)*(Вводные[Наименование]=$T43),Вводные[Расход]))","v":0},{"$f":"IFERROR(Медикаменты[[#This Row],[Остаток]]+Медикаменты[[#This Row],[Приход за период]]-Медикаменты[[#This Row],[Расход за период]],\"\")","v":""},{"$f":"IFERROR(SUMIF(Вводные[Наименование],Медикаменты[[#This Row],[Наименование]],Вводные[Приход]),0)","v":0},{"$f":"IFERROR(SUMIF(Вводные[Наименование],Медикаменты[[#This Row],[Наименование]],Вводные[Расход]),0)","v":0},{"$f":"IFERROR(Медикаменты[[#This Row],[Остаток]]+Медикаменты[[#This Row],[Приход общий]]-Медикаменты[[#This Row],[Расход общий]],0)","v":0},null,null,"Бонадерм-ИП салфетки (100 шт.)","уп.",null,null,null,null,null,{"$f":"IF(IFERROR(IF(SEARCH($AM$3,AP43),\"!\",\"\"),\"\")=\"\",0,MAX($AL$9:AO42)+1)","v":34},"Дневной стационар","Церебролизин (амп., 5 мл, №5)"]
[null,null,null,null,null,null,null,null,null,null,null,null,null,null,null,null,null,null,{"$f":"IF(IFERROR(IF(SEARCH(Расчет!$B$8,T44),\"!\",\"\"),\"\")=\"\",0,MAX($S$9:S43)+1)","v":0},"Бриллиантовый зеленый (амп., 1%, 10 мл.)","шт.",140,"","",{"$f":"IFERROR(LOOKUP(,-1/($T44=Вводные[Наименование])/(Вводные[Дата]<$U$1),Вводные[Остаток]),0)+IF(Медикаменты[[#This Row],[Дата остатка]]<$U$1,Медикаменты[[#This Row],[Остаток]],0)","v":0},{"$f":"IF(T44=\"\",\"\",SUMPRODUCT((Вводные[Дата]>=$U$1)*(Вводные[Дата]<=$U$2)*(Вводные[Наименование]=$T44),Вводные[Приход]))","v":0},{"$f":"IF(T44=\"\",\"\",SUMPRODUCT((Вводные[Дата]>=$U$1)*(Вводные[Дата]<=$U$2)*(Вводные[Наименование]=$T44),Вводные[Расход]))","v":0},{"$f":"IFERROR(Медикаменты[[#This Row],[Остаток]]+Медикаменты[[#This Row],[Приход за период]]-Медикаменты[[#This Row],[Расход за период]],\"\")","v":""},{"$f":"IFERROR(SUMIF(Вводные[Наименование],Медикаменты[[#This Row],[Наименование]],Вводные[Приход]),0)","v":0},{"$f":"IFERROR(SUMIF(Вводные[Наименование],Медикаменты[[#This Row],[Наименование]],Вводные[Расход]),0)","v":0},{"$f":"IFERROR(Медикаменты[[#This Row],[Остаток]]+Медикаменты[[#This Row],[Приход общий]]-Медикаменты[[#This Row],[Расход общий]],0)","v":0},null,null,"Бонадерм-Ультра (100 мл., с распыляющей насадкой)","шт.",null,null,null,null,null,{"$f":"IF(IFERROR(IF(SEARCH($AM$3,AP44),\"!\",\"\"),\"\")=\"\",0,MAX($AL$9:AO43)+1)","v":35},"Дневной стационар","Цианокобаламин (амп., 1 мл., №10)"]
[null,null,null,null,null,null,null,null,null,null,null,null,null,null,null,null,null,null,{"$f":"IF(IFERROR(IF(SEARCH(Расчет!$B$8,T45),\"!\",\"\"),\"\")=\"\",0,MAX($S$9:S44)+1)","v":0},"Бромгексин (табл., 4 мг., № 50)","уп.",50,"","",{"$f":"IFERROR(LOOKUP(,-1/($T45=Вводные[Наименование])/(Вводные[Дата]<$U$1),Вводные[Остаток]),0)+IF(Медикаменты[[#This Row],[Дата остатка]]<$U$1,Медикаменты[[#This Row],[Остаток]],0)","v":0},{"$f":"IF(T45=\"\",\"\",SUMPRODUCT((Вводные[Дата]>=$U$1)*(Вводные[Дата]<=$U$2)*(Вводные[Наименование]=$T45),Вводные[Приход]))","v":0},{"$f":"IF(T45=\"\",\"\",SUMPRODUCT((Вводные[Дата]>=$U$1)*(Вводные[Дата]<=$U$2)*(Вводные[Наименование]=$T45),Вводные[Расход]))","v":0},{"$f":"IFERROR(Медикаменты[[#This Row],[Остаток]]+Медикаменты[[#This Row],[Приход за период]]-Медикаменты[[#This Row],[Расход за период]],\"\")","v":""},{"$f":"IFERROR(SUMIF(Вводные[Наименование],Медикаменты[[#This Row],[Наименование]],Вводные[Приход]),0)","v":0},{"$f":"IFERROR(SUMIF(Вводные[Наименование],Медикаменты[[#This Row],[Наименование]],Вводные[Расход]),0)","v":0},{"$f":"IFERROR(Медикаменты[[#This Row],[Остаток]]+Медикаменты[[#This Row],[Приход общий]]-Медикаменты[[#This Row],[Расход общий]],0)","v":0},null,null,"Бонадерм-Ультра (50 мл., с распыляющей насадкой)","шт.",null,null,null,null,null,{"$f":"IF(IFERROR(IF(SEARCH($AM$3,AP45),\"!\",\"\"),\"\")=\"\",0,MAX($AL$9:AO44)+1)","v":36},"Дневной стационар","Циннаризин (табл. 25 мг., №50)"]
[null,null,null,null,null,null,null,null,null,null,null,null,null,null,null,null,null,null,{"$f":"IF(IFERROR(IF(SEARCH(Расчет!$B$8,T46),\"!\",\"\"),\"\")=\"\",0,MAX($S$9:S45)+1)","v":0},"Бромгексин (табл., 8 мг., № 20)","уп.",20,"","",{"$f":"IFERROR(LOOKUP(,-1/($T46=Вводные[Наименование])/(Вводные[Дата]<$U$1),Вводные[Остаток]),0)+IF(Медикаменты[[#This Row],[Дата остатка]]<$U$1,Медикаменты[[#This Row],[Остаток]],0)","v":0},{"$f":"IF(T46=\"\",\"\",SUMPRODUCT((Вводные[Дата]>=$U$1)*(Вводные[Дата]<=$U$2)*(Вводные[Наименование]=$T46),Вводные[Приход]))","v":0},{"$f":"IF(T46=\"\",\"\",SUMPRODUCT((Вводные[Дата]>=$U$1)*(Вводные[Дата]<=$U$2)*(Вводные[Наименование]=$T46),Вводные[Расход]))","v":0},{"$f":"IFERROR(Медикаменты[[#This Row],[Остаток]]+Медикаменты[[#This Row],[Приход за период]]-Медикаменты[[#This Row],[Расход за период]],\"\")","v":""},{"$f":"IFERROR(SUMIF(Вводные[Наименование],Медикаменты[[#This Row],[Наименование]],Вводные[Приход]),0)","v":0},{"$f":"IFERROR(SUMIF(Вводные[Наименование],Медикаменты[[#This Row],[Наименование]],Вводные[Расход]),0)","v":0},{"$f":"IFERROR(Медикаменты[[#This Row],[Остаток]]+Медикаменты[[#This Row],[Приход общий]]-Медикаменты[[#This Row],[Расход общий]],0)","v":0},null,null,"Бриллиантовый зеленый (амп., 1%, 10 мл.)","шт.",null,null,null,null,null,{"$f":"IF(IFERROR(IF(SEARCH($AM$3,AP46),\"!\",\"\"),\"\")=\"\",0,MAX($AL$9:AO45)+1)","v":37},"Дневной стационар","Энап (таб., 10 мг., №20)"]
[null,null,null,null,null,null,null,null,null,null,null,null,null,null,null,null,null,null,{"$f":"IF(IFERROR(IF(SEARCH(Расчет!$B$8,T47),\"!\",\"\"),\"\")=\"\",0,MAX($S$9:S46)+1)","v":0},"Бумага для спирографа Микролаб viasys (110*12*12)","уп",5,"2018-06-07",5,{"$f":"IFERROR(LOOKUP(,-1/($T47=Вводные[Наименование])/(Вводные[Дата]<$U$1),Вводные[Остаток]),0)+IF(Медикаменты[[#This Row],[Дата остатка]]<$U$1,Медикаменты[[#This Row],[Остаток]],0)","v":0},{"$f":"IF(T47=\"\",\"\",SUMPRODUCT((Вводные[Дата]>=$U$1)*(Вводные[Дата]<=$U$2)*(Вводные[Наименование]=$T47),Вводные[Приход]))","v":0},{"$f":"IF(T47=\"\",\"\",SUMPRODUCT((Вводные[Дата]>=$U$1)*(Вводные[Дата]<=$U$2)*(Вводные[Наименование]=$T47),Вводные[Расход]))","v":0},{"$f":"IFERROR(Медикаменты[[#This Row],[Остаток]]+Медикаменты[[#This Row],[Приход за период]]-Медикаменты[[#This Row],[Расход за период]],\"\")","v":5},{"$f":"IFERROR(SUMIF(Вводные[Наименование],Медикаменты[[#This Row],[Наименование]],Вводные[Приход]),0)","v":0},{"$f":"IFERROR(SUMIF(Вводные[Наименование],Медикаменты[[#This Row],[Наименование]],Вводные[Расход]),0)","v":0},{"$f":"IFERROR(Медикаменты[[#This Row],[Остаток]]+Медикаменты[[#This Row],[Приход общий]]-Медикаменты[[#This Row],[Расход общий]],0)","v":5},null,null,"Бромгексин (табл., 4 мг., № 50)","уп.",null,null,null,null,null,{"$f":"IF(IFERROR(IF(SEARCH($AM$3,AP47),\"!\",\"\"),\"\")=\"\",0,MAX($AL$9:AO46)+1)","v":38},"Дневной стационар","Фамотидин (табл. 20 мг., №20)"]
[null,null,null,null,null,null,null,null,null,null,null,null,null,null,null,null,null,null,{"$f":"IF(IFERROR(IF(SEARCH(Расчет!$B$8,T48),\"!\",\"\"),\"\")=\"\",0,MAX($S$9:S47)+1)","v":0},"Бумага УЗИ сканер (20 м.)","рул.",2,"2018-06-07",10,{"$f":"IFERROR(LOOKUP(,-1/($T48=Вводные[Наименование])/(Вводные[Дата]<$U$1),Вводные[Остаток]),0)+IF(Медикаменты[[#This Row],[Дата остатка]]<$U$1,Медикаменты[[#This Row],[Остаток]],0)","v":0},{"$f":"IF(T48=\"\",\"\",SUMPRODUCT((Вводные[Дата]>=$U$1)*(Вводные[Дата]<=$U$2)*(Вводные[Наименование]=$T48),Вводные[Приход]))","v":0},{"$f":"IF(T48=\"\",\"\",SUMPRODUCT((Вводные[Дата]>=$U$1)*(Вводные[Дата]<=$U$2)*(Вводные[Наименование]=$T48),Вводные[Расход]))","v":0},{"$f":"IFERROR(Медикаменты[[#This Row],[Остаток]]+Медикаменты[[#This Row],[Приход за период]]-Медикаменты[[#This Row],[Расход за период]],\"\")","v":10},{"$f":"IFERROR(SUMIF(Вводные[Наименование],Медикаменты[[#This Row],[Наименование]],Вводные[Приход]),0)","v":0},{"$f":"IFERROR(SUMIF(Вводные[Наименование],Медикаменты[[#This Row],[Наименование]],Вводные[Расход]),0)","v":0},{"$f":"IFERROR(Медикаменты[[#This Row],[Остаток]]+Медикаменты[[#This Row],[Приход общий]]-Медикаменты[[#This Row],[Расход общий]],0)","v":10},null,null,"Бромгексин (табл., 8 мг., № 20)","уп.",null,null,null,null,null,{"$f":"IF(IFERROR(IF(SEARCH($AM$3,AP48),\"!\",\"\"),\"\")=\"\",0,MAX($AL$9:AO47)+1)","v":39},"Спирт и ИМН","Спирт этиловый (70%, 100 мл.)"]
[null,null,null,null,null,null,null,null,null,null,null,null,null,null,null,null,null,null,{"$f":"IF(IFERROR(IF(SEARCH(Расчет!$B$8,T49),\"!\",\"\"),\"\")=\"\",0,MAX($S$9:S48)+1)","v":0},"Бумага ЭКГ (110 мм. х 30 мм.)","рул",60,"2018-06-07",40,{"$f":"IFERROR(LOOKUP(,-1/($T49=Вводные[Наименование])/(Вводные[Дата]<$U$1),Вводные[Остаток]),0)+IF(Медикаменты[[#This Row],[Дата остатка]]<$U$1,Медикаменты[[#This Row],[Остаток]],0)","v":0},{"$f":"IF(T49=\"\",\"\",SUMPRODUCT((Вводные[Дата]>=$U$1)*(Вводные[Дата]<=$U$2)*(Вводные[Наименование]=$T49),Вводные[Приход]))","v":0},{"$f":"IF(T49=\"\",\"\",SUMPRODUCT((Вводные[Дата]>=$U$1)*(Вводные[Дата]<=$U$2)*(Вводные[Наименование]=$T49),Вводные[Расход]))","v":0},{"$f":"IFERROR(Медикаменты[[#This Row],[Остаток]]+Медикаменты[[#This Row],[Приход за период]]-Медикаменты[[#This Row],[Расход за период]],\"\")","v":40},{"$f":"IFERROR(SUMIF(Вводные[Наименование],Медикаменты[[#This Row],[Наименование]],Вводные[Приход]),0)","v":0},{"$f":"IFERROR(SUMIF(Вводные[Наименование],Медикаменты[[#This Row],[Наименование]],Вводные[Расход]),0)","v":0},{"$f":"IFERROR(Медикаменты[[#This Row],[Остаток]]+Медикаменты[[#This Row],[Приход общий]]-Медикаменты[[#This Row],[Расход общий]],0)","v":40},null,null,"Бумага для спирографа Микролаб viasys (110*12*12)","уп",null,null,null,null,null,{"$f":"IF(IFERROR(IF(SEARCH($AM$3,AP49),\"!\",\"\"),\"\")=\"\",0,MAX($AL$9:AO48)+1)","v":40},"Спирт и ИМН","Спирт этиловый (95%, 100 мл.)"]
[null,null,null,null,null,null,null,null,null,null,null,null,null,null,null,null,null,null,{"$f":"IF(IFERROR(IF(SEARCH(Расчет!$B$8,T50),\"!\",\"\"),\"\")=\"\",0,MAX($S$9:S49)+1)","v":0},"Бумага ЭКГ (80 мм. х 70 мм., 300 л.)","пач.",50,"00:00:00",0,{"$f":"IFERROR(LOOKUP(,-1/($T50=Вводные[Наименование])/(Вводные[Дата]<$U$1),Вводные[Остаток]),0)+IF(Медикаменты[[#This Row],[Дата остатка]]<$U$1,Медикаменты[[#This Row],[Остаток]],0)","v":0},{"$f":"IF(T50=\"\",\"\",SUMPRODUCT((Вводные[Дата]>=$U$1)*(Вводные[Дата]<=$U$2)*(Вводные[Наименование]=$T50),Вводные[Приход]))","v":0},{"$f":"IF(T50=\"\",\"\",SUMPRODUCT((Вводные[Дата]>=$U$1)*(Вводные[Дата]<=$U$2)*(Вводные[Наименование]=$T50),Вводные[Расход]))","v":0},{"$f":"IFERROR(Медикаменты[[#This Row],[Остаток]]+Медикаменты[[#This Row],[Приход за период]]-Медикаменты[[#This Row],[Расход за период]],\"\")","v":0},{"$f":"IFERROR(SUMIF(Вводные[Наименование],Медикаменты[[#This Row],[Наименование]],Вводные[Приход]),0)","v":0},{"$f":"IFERROR(SUMIF(Вводные[Наименование],Медикаменты[[#This Row],[Наименование]],Вводные[Расход]),0)","v":0},{"$f":"IFERROR(Медикаменты[[#This Row],[Остаток]]+Медикаменты[[#This Row],[Приход общий]]-Медикаменты[[#This Row],[Расход общий]],0)","v":0},null,null,"Бумага УЗИ сканер (20 м.)","рул.",null,null,null,null,null,{"$f":"IF(IFERROR(IF(SEARCH($AM$3,AP50),\"!\",\"\"),\"\")=\"\",0,MAX($AL$9:AO49)+1)","v":41},"Спирт и ИМН","Бинт н/с  "]
[null,null,null,null,null,null,null,null,null,null,null,null,null,null,null,null,null,null,{"$f":"IF(IFERROR(IF(SEARCH(Расчет!$B$8,T51),\"!\",\"\"),\"\")=\"\",0,MAX($S$9:S50)+1)","v":0},"Вазелиновое масло (100 мл.)","шт.",150,"","",{"$f":"IFERROR(LOOKUP(,-1/($T51=Вводные[Наименование])/(Вводные[Дата]<$U$1),Вводные[Остаток]),0)+IF(Медикаменты[[#This Row],[Дата остатка]]<$U$1,Медикаменты[[#This Row],[Остаток]],0)","v":0},{"$f":"IF(T51=\"\",\"\",SUMPRODUCT((Вводные[Дата]>=$U$1)*(Вводные[Дата]<=$U$2)*(Вводные[Наименование]=$T51),Вводные[Приход]))","v":0},{"$f":"IF(T51=\"\",\"\",SUMPRODUCT((Вводные[Дата]>=$U$1)*(Вводные[Дата]<=$U$2)*(Вводные[Наименование]=$T51),Вводные[Расход]))","v":0},{"$f":"IFERROR(Медикаменты[[#This Row],[Остаток]]+Медикаменты[[#This Row],[Приход за период]]-Медикаменты[[#This Row],[Расход за период]],\"\")","v":""},{"$f":"IFERROR(SUMIF(Вводные[Наименование],Медикаменты[[#This Row],[Наименование]],Вводные[Приход]),0)","v":0},{"$f":"IFERROR(SUMIF(Вводные[Наименование],Медикаменты[[#This Row],[Наименование]],Вводные[Расход]),0)","v":0},{"$f":"IFERROR(Медикаменты[[#This Row],[Остаток]]+Медикаменты[[#This Row],[Приход общий]]-Медикаменты[[#This Row],[Расход общий]],0)","v":0},null,null,"Бумага ЭКГ (110 мм. х 30 мм.)","рул",null,null,null,null,null,{"$f":"IF(IFERROR(IF(SEARCH($AM$3,AP51),\"!\",\"\"),\"\")=\"\",0,MAX($AL$9:AO50)+1)","v":42},"Спирт и ИМН","Бинт стерильный  "]
[null,null,null,null,null,null,null,null,null,null,null,null,null,null,null,null,null,null,{"$f":"IF(IFERROR(IF(SEARCH(Расчет!$B$8,T52),\"!\",\"\"),\"\")=\"\",0,MAX($S$9:S51)+1)","v":0},"Валериана (20 мг., №50)",0,0,"00:00:00",0,{"$f":"IFERROR(LOOKUP(,-1/($T52=Вводные[Наименование])/(Вводные[Дата]<$U$1),Вводные[Остаток]),0)+IF(Медикаменты[[#This Row],[Дата остатка]]<$U$1,Медикаменты[[#This Row],[Остаток]],0)","v":0},{"$f":"IF(T52=\"\",\"\",SUMPRODUCT((Вводные[Дата]>=$U$1)*(Вводные[Дата]<=$U$2)*(Вводные[Наименование]=$T52),Вводные[Приход]))","v":0},{"$f":"IF(T52=\"\",\"\",SUMPRODUCT((Вводные[Дата]>=$U$1)*(Вводные[Дата]<=$U$2)*(Вводные[Наименование]=$T52),Вводные[Расход]))","v":0},{"$f":"IFERROR(Медикаменты[[#This Row],[Остаток]]+Медикаменты[[#This Row],[Приход за период]]-Медикаменты[[#This Row],[Расход за период]],\"\")","v":0},{"$f":"IFERROR(SUMIF(Вводные[Наименование],Медикаменты[[#This Row],[Наименование]],Вводные[Приход]),0)","v":0},{"$f":"IFERROR(SUMIF(Вводные[Наименование],Медикаменты[[#This Row],[Наименование]],Вводные[Расход]),0)","v":0},{"$f":"IFERROR(Медикаменты[[#This Row],[Остаток]]+Медикаменты[[#This Row],[Приход общий]]-Медикаменты[[#This Row],[Расход общий]],0)","v":0},null,null,"Бумага ЭКГ (80 мм. х 70 мм., 300 л.)","пач.",null,null,null,null,null,{"$f":"IF(IFERROR(IF(SEARCH($AM$3,AP52),\"!\",\"\"),\"\")=\"\",0,MAX($AL$9:AO51)+1)","v":43},"Спирт и ИМН","Вата"]
[null,null,null,null,null,null,null,null,null,null,null,null,null,null,null,null,null,null,{"$f":"IF(IFERROR(IF(SEARCH(Расчет!$B$8,T53),\"!\",\"\"),\"\")=\"\",0,MAX($S$9:S52)+1)","v":0},"Вата (нест. 100 г.)","уп.",70,"","",{"$f":"IFERROR(LOOKUP(,-1/($T53=Вводные[Наименование])/(Вводные[Дата]<$U$1),Вводные[Остаток]),0)+IF(Медикаменты[[#This Row],[Дата остатка]]<$U$1,Медикаменты[[#This Row],[Остаток]],0)","v":0},{"$f":"IF(T53=\"\",\"\",SUMPRODUCT((Вводные[Дата]>=$U$1)*(Вводные[Дата]<=$U$2)*(Вводные[Наименование]=$T53),Вводные[Приход]))","v":0},{"$f":"IF(T53=\"\",\"\",SUMPRODUCT((Вводные[Дата]>=$U$1)*(Вводные[Дата]<=$U$2)*(Вводные[Наименование]=$T53),Вводные[Расход]))","v":0},{"$f":"IFERROR(Медикаменты[[#This Row],[Остаток]]+Медикаменты[[#This Row],[Приход за период]]-Медикаменты[[#This Row],[Расход за период]],\"\")","v":""},{"$f":"IFERROR(SUMIF(Вводные[Наименование],Медикаменты[[#This Row],[Наименование]],Вводные[Приход]),0)","v":0},{"$f":"IFERROR(SUMIF(Вводные[Наименование],Медикаменты[[#This Row],[Наименование]],Вводные[Расход]),0)","v":0},{"$f":"IFERROR(Медикаменты[[#This Row],[Остаток]]+Медикаменты[[#This Row],[Приход общий]]-Медикаменты[[#This Row],[Расход общий]],0)","v":0},null,null,"Вазелиновое масло (100 мл.)","шт.",null,null,null,null,null,{"$f":"IF(IFERROR(IF(SEARCH($AM$3,AP53),\"!\",\"\"),\"\")=\"\",0,MAX($AL$9:AO52)+1)","v":44},"Спирт и ИМН","Лейкопластырь (катушка, 2х500 см.)"]
[null,null,null,null,null,null,null,null,null,null,null,null,null,null,null,null,null,null,{"$f":"IF(IFERROR(IF(SEARCH(Расчет!$B$8,T54),\"!\",\"\"),\"\")=\"\",0,MAX($S$9:S53)+1)","v":0},"Вата (нест. 250 г.)","уп.",60,"","",{"$f":"IFERROR(LOOKUP(,-1/($T54=Вводные[Наименование])/(Вводные[Дата]<$U$1),Вводные[Остаток]),0)+IF(Медикаменты[[#This Row],[Дата остатка]]<$U$1,Медикаменты[[#This Row],[Остаток]],0)","v":0},{"$f":"IF(T54=\"\",\"\",SUMPRODUCT((Вводные[Дата]>=$U$1)*(Вводные[Дата]<=$U$2)*(Вводные[Наименование]=$T54),Вводные[Приход]))","v":0},{"$f":"IF(T54=\"\",\"\",SUMPRODUCT((Вводные[Дата]>=$U$1)*(Вводные[Дата]<=$U$2)*(Вводные[Наименование]=$T54),Вводные[Расход]))","v":0},{"$f":"IFERROR(Медикаменты[[#This Row],[Остаток]]+Медикаменты[[#This Row],[Приход за период]]-Медикаменты[[#This Row],[Расход за период]],\"\")","v":""},{"$f":"IFERROR(SUMIF(Вводные[Наименование],Медикаменты[[#This Row],[Наименование]],Вводные[Приход]),0)","v":0},{"$f":"IFERROR(SUMIF(Вводные[Наименование],Медикаменты[[#This Row],[Наименование]],Вводные[Расход]),0)","v":0},{"$f":"IFERROR(Медикаменты[[#This Row],[Остаток]]+Медикаменты[[#This Row],[Приход общий]]-Медикаменты[[#This Row],[Расход общий]],0)","v":0},null,null,"Валериана (20 мг., №50)",null,null,null,null,null,null,{"$f":"IF(IFERROR(IF(SEARCH($AM$3,AP54),\"!\",\"\"),\"\")=\"\",0,MAX($AL$9:AO53)+1)","v":45},"Спирт и ИМН","Марля"]
[null,null,null,null,null,null,null,null,null,null,null,null,null,null,null,null,null,null,{"$f":"IF(IFERROR(IF(SEARCH(Расчет!$B$8,T55),\"!\",\"\"),\"\")=\"\",0,MAX($S$9:S54)+1)","v":0},"Вата (стер. 100 г.)","уп.",5,"","",{"$f":"IFERROR(LOOKUP(,-1/($T55=Вводные[Наименование])/(Вводные[Дата]<$U$1),Вводные[Остаток]),0)+IF(Медикаменты[[#This Row],[Дата остатка]]<$U$1,Медикаменты[[#This Row],[Остаток]],0)","v":0},{"$f":"IF(T55=\"\",\"\",SUMPRODUCT((Вводные[Дата]>=$U$1)*(Вводные[Дата]<=$U$2)*(Вводные[Наименование]=$T55),Вводные[Приход]))","v":0},{"$f":"IF(T55=\"\",\"\",SUMPRODUCT((Вводные[Дата]>=$U$1)*(Вводные[Дата]<=$U$2)*(Вводные[Наименование]=$T55),Вводные[Расход]))","v":0},{"$f":"IFERROR(Медикаменты[[#This Row],[Остаток]]+Медикаменты[[#This Row],[Приход за период]]-Медикаменты[[#This Row],[Расход за период]],\"\")","v":""},{"$f":"IFERROR(SUMIF(Вводные[Наименование],Медикаменты[[#This Row],[Наименование]],Вводные[Приход]),0)","v":0},{"$f":"IFERROR(SUMIF(Вводные[Наименование],Медикаменты[[#This Row],[Наименование]],Вводные[Расход]),0)","v":0},{"$f":"IFERROR(Медикаменты[[#This Row],[Остаток]]+Медикаменты[[#This Row],[Приход общий]]-Медикаменты[[#This Row],[Расход общий]],0)","v":0},null,null,"Вата (нест. 100 г.)","уп.",null,null,null,null,null,{"$f":"IF(IFERROR(IF(SEARCH($AM$3,AP55),\"!\",\"\"),\"\")=\"\",0,MAX($AL$9:AO54)+1)","v":46},"Спирт и ИМН","Перчатки нестерил"]
[null,null,null,null,null,null,null,null,null,null,null,null,null,null,null,null,null,null,{"$f":"IF(IFERROR(IF(SEARCH(Расчет!$B$8,T56),\"!\",\"\"),\"\")=\"\",0,MAX($S$9:S55)+1)","v":0},"Ватные палочки, ушные (100 шт.)","шт.",5000,"","",{"$f":"IFERROR(LOOKUP(,-1/($T56=Вводные[Наименование])/(Вводные[Дата]<$U$1),Вводные[Остаток]),0)+IF(Медикаменты[[#This Row],[Дата остатка]]<$U$1,Медикаменты[[#This Row],[Остаток]],0)","v":0},{"$f":"IF(T56=\"\",\"\",SUMPRODUCT((Вводные[Дата]>=$U$1)*(Вводные[Дата]<=$U$2)*(Вводные[Наименование]=$T56),Вводные[Приход]))","v":0},{"$f":"IF(T56=\"\",\"\",SUMPRODUCT((Вводные[Дата]>=$U$1)*(Вводные[Дата]<=$U$2)*(Вводные[Наименование]=$T56),Вводные[Расход]))","v":0},{"$f":"IFERROR(Медикаменты[[#This Row],[Остаток]]+Медикаменты[[#This Row],[Приход за период]]-Медикаменты[[#This Row],[Расход за период]],\"\")","v":""},{"$f":"IFERROR(SUMIF(Вводные[Наименование],Медикаменты[[#This Row],[Наименование]],Вводные[Приход]),0)","v":0},{"$f":"IFERROR(SUMIF(Вводные[Наименование],Медикаменты[[#This Row],[Наименование]],Вводные[Расход]),0)","v":0},{"$f":"IFERROR(Медикаменты[[#This Row],[Остаток]]+Медикаменты[[#This Row],[Приход общий]]-Медикаменты[[#This Row],[Расход общий]],0)","v":0},null,null,"Вата (нест. 250 г.)","уп.",null,null,null,null,null,{"$f":"IF(IFERROR(IF(SEARCH($AM$3,AP56),\"!\",\"\"),\"\")=\"\",0,MAX($AL$9:AO55)+1)","v":47},"Спирт и ИМН","Перчатки стерильные"]
[null,null,null,null,null,null,null,null,null,null,null,null,null,null,null,null,null,null,{"$f":"IF(IFERROR(IF(SEARCH(Расчет!$B$8,T57),\"!\",\"\"),\"\")=\"\",0,MAX($S$9:S56)+1)","v":0},"Ватные шарики (стер.)",0,0,"2018-06-07",120,{"$f":"IFERROR(LOOKUP(,-1/($T57=Вводные[Наименование])/(Вводные[Дата]<$U$1),Вводные[Остаток]),0)+IF(Медикаменты[[#This Row],[Дата остатка]]<$U$1,Медикаменты[[#This Row],[Остаток]],0)","v":0},{"$f":"IF(T57=\"\",\"\",SUMPRODUCT((Вводные[Дата]>=$U$1)*(Вводные[Дата]<=$U$2)*(Вводные[Наименование]=$T57),Вводные[Приход]))","v":0},{"$f":"IF(T57=\"\",\"\",SUMPRODUCT((Вводные[Дата]>=$U$1)*(Вводные[Дата]<=$U$2)*(Вводные[Наименование]=$T57),Вводные[Расход]))","v":0},{"$f":"IFERROR(Медикаменты[[#This Row],[Остаток]]+Медикаменты[[#This Row],[Приход за период]]-Медикаменты[[#This Row],[Расход за период]],\"\")","v":120},{"$f":"IFERROR(SUMIF(Вводные[Наименование],Медикаменты[[#This Row],[Наименование]],Вводные[Приход]),0)","v":0},{"$f":"IFERROR(SUMIF(Вводные[Наименование],Медикаменты[[#This Row],[Наименование]],Вводные[Расход]),0)","v":0},{"$f":"IFERROR(Медикаменты[[#This Row],[Остаток]]+Медикаменты[[#This Row],[Приход общий]]-Медикаменты[[#This Row],[Расход общий]],0)","v":120},null,null,"Вата (стер. 100 г.)","уп.",null,null,null,null,null,{"$f":"IF(IFERROR(IF(SEARCH($AM$3,AP57),\"!\",\"\"),\"\")=\"\",0,MAX($AL$9:AO56)+1)","v":48},"Спирт и ИМН","Салфетка стер спирт."]
[null,null,null,null,null,null,null,null,null,null,null,null,null,null,null,null,null,null,{"$f":"IF(IFERROR(IF(SEARCH(Расчет!$B$8,T58),\"!\",\"\"),\"\")=\"\",0,MAX($S$9:S57)+1)","v":0},"Вентолин Небулы (амп., для ингаляций 1 мг/мл., 2,5 мл. № 20)","уп.",3,"","",{"$f":"IFERROR(LOOKUP(,-1/($T58=Вводные[Наименование])/(Вводные[Дата]<$U$1),Вводные[Остаток]),0)+IF(Медикаменты[[#This Row],[Дата остатка]]<$U$1,Медикаменты[[#This Row],[Остаток]],0)","v":0},{"$f":"IF(T58=\"\",\"\",SUMPRODUCT((Вводные[Дата]>=$U$1)*(Вводные[Дата]<=$U$2)*(Вводные[Наименование]=$T58),Вводные[Приход]))","v":0},{"$f":"IF(T58=\"\",\"\",SUMPRODUCT((Вводные[Дата]>=$U$1)*(Вводные[Дата]<=$U$2)*(Вводные[Наименование]=$T58),Вводные[Расход]))","v":0},{"$f":"IFERROR(Медикаменты[[#This Row],[Остаток]]+Медикаменты[[#This Row],[Приход за период]]-Медикаменты[[#This Row],[Расход за период]],\"\")","v":""},{"$f":"IFERROR(SUMIF(Вводные[Наименование],Медикаменты[[#This Row],[Наименование]],Вводные[Приход]),0)","v":0},{"$f":"IFERROR(SUMIF(Вводные[Наименование],Медикаменты[[#This Row],[Наименование]],Вводные[Расход]),0)","v":0},{"$f":"IFERROR(Медикаменты[[#This Row],[Остаток]]+Медикаменты[[#This Row],[Приход общий]]-Медикаменты[[#This Row],[Расход общий]],0)","v":0},null,null,"Ватные палочки, ушные (100 шт.)","шт.",null,null,null,null,null,{"$f":"IF(IFERROR(IF(SEARCH($AM$3,AP58),\"!\",\"\"),\"\")=\"\",0,MAX($AL$9:AO57)+1)","v":49},"Спирт и ИМН","Шпатель (стер., 100 шт.)"]
[null,null,null,null,null,null,null,null,null,null,null,null,null,null,null,null,null,null,{"$f":"IF(IFERROR(IF(SEARCH(Расчет!$B$8,T59),\"!\",\"\"),\"\")=\"\",0,MAX($S$9:S58)+1)","v":0},"Винпоцетин (таб., 5 мг., №10)","уп.",70,"","",{"$f":"IFERROR(LOOKUP(,-1/($T59=Вводные[Наименование])/(Вводные[Дата]<$U$1),Вводные[Остаток]),0)+IF(Медикаменты[[#This Row],[Дата остатка]]<$U$1,Медикаменты[[#This Row],[Остаток]],0)","v":0},{"$f":"IF(T59=\"\",\"\",SUMPRODUCT((Вводные[Дата]>=$U$1)*(Вводные[Дата]<=$U$2)*(Вводные[Наименование]=$T59),Вводные[Приход]))","v":0},{"$f":"IF(T59=\"\",\"\",SUMPRODUCT((Вводные[Дата]>=$U$1)*(Вводные[Дата]<=$U$2)*(Вводные[Наименование]=$T59),Вводные[Расход]))","v":0},{"$f":"IFERROR(Медикаменты[[#This Row],[Остаток]]+Медикаменты[[#This Row],[Приход за период]]-Медикаменты[[#This Row],[Расход за период]],\"\")","v":""},{"$f":"IFERROR(SUMIF(Вводные[Наименование],Медикаменты[[#This Row],[Наименование]],Вводные[Приход]),0)","v":0},{"$f":"IFERROR(SUMIF(Вводные[Наименование],Медикаменты[[#This Row],[Наименование]],Вводные[Расход]),0)","v":0},{"$f":"IFERROR(Медикаменты[[#This Row],[Остаток]]+Медикаменты[[#This Row],[Приход общий]]-Медикаменты[[#This Row],[Расход общий]],0)","v":0},null,null,"Ватные шарики (стер.)",null,null,null,null,null,null,{"$f":"IF(IFERROR(IF(SEARCH($AM$3,AP59),\"!\",\"\"),\"\")=\"\",0,MAX($AL$9:AO58)+1)","v":50},"Спирт и ИМН","Шприц однораз."]
[null,null,null,null,null,null,null,null,null,null,null,null,null,null,null,null,null,null,{"$f":"IF(IFERROR(IF(SEARCH(Расчет!$B$8,T60),\"!\",\"\"),\"\")=\"\",0,MAX($S$9:S59)+1)","v":0},"Винпоцетин-АКОС (амп., 2 мл., №10)","уп.",20,"","",{"$f":"IFERROR(LOOKUP(,-1/($T60=Вводные[Наименование])/(Вводные[Дата]<$U$1),Вводные[Остаток]),0)+IF(Медикаменты[[#This Row],[Дата остатка]]<$U$1,Медикаменты[[#This Row],[Остаток]],0)","v":0},{"$f":"IF(T60=\"\",\"\",SUMPRODUCT((Вводные[Дата]>=$U$1)*(Вводные[Дата]<=$U$2)*(Вводные[Наименование]=$T60),Вводные[Приход]))","v":0},{"$f":"IF(T60=\"\",\"\",SUMPRODUCT((Вводные[Дата]>=$U$1)*(Вводные[Дата]<=$U$2)*(Вводные[Наименование]=$T60),Вводные[Расход]))","v":0},{"$f":"IFERROR(Медикаменты[[#This Row],[Остаток]]+Медикаменты[[#This Row],[Приход за период]]-Медикаменты[[#This Row],[Расход за период]],\"\")","v":""},{"$f":"IFERROR(SUMIF(Вводные[Наименование],Медикаменты[[#This Row],[Наименование]],Вводные[Приход]),0)","v":0},{"$f":"IFERROR(SUMIF(Вводные[Наименование],Медикаменты[[#This Row],[Наименование]],Вводные[Расход]),0)","v":0},{"$f":"IFERROR(Медикаменты[[#This Row],[Остаток]]+Медикаменты[[#This Row],[Приход общий]]-Медикаменты[[#This Row],[Расход общий]],0)","v":0},null,null,"Вентолин Небулы (амп., для ингаляций 1 мг/мл., 2,5 мл. № 20)","уп.",null,null,null,null,null,{"$f":"IF(IFERROR(IF(SEARCH($AM$3,AP60),\"!\",\"\"),\"\")=\"\",0,MAX($AL$9:AO59)+1)","v":51},"Спирт и ИМН","Маска однораз. "]
[null,null,null,null,null,null,null,null,null,null,null,null,null,null,null,null,null,null,{"$f":"IF(IFERROR(IF(SEARCH(Расчет!$B$8,T61),\"!\",\"\"),\"\")=\"\",0,MAX($S$9:S60)+1)","v":0},"Вода дистиллированная (амп., 50 мл., №10)","уп.",60,"","",{"$f":"IFERROR(LOOKUP(,-1/($T61=Вводные[Наименование])/(Вводные[Дата]<$U$1),Вводные[Остаток]),0)+IF(Медикаменты[[#This Row],[Дата остатка]]<$U$1,Медикаменты[[#This Row],[Остаток]],0)","v":0},{"$f":"IF(T61=\"\",\"\",SUMPRODUCT((Вводные[Дата]>=$U$1)*(Вводные[Дата]<=$U$2)*(Вводные[Наименование]=$T61),Вводные[Приход]))","v":0},{"$f":"IF(T61=\"\",\"\",SUMPRODUCT((Вводные[Дата]>=$U$1)*(Вводные[Дата]<=$U$2)*(Вводные[Наименование]=$T61),Вводные[Расход]))","v":0},{"$f":"IFERROR(Медикаменты[[#This Row],[Остаток]]+Медикаменты[[#This Row],[Приход за период]]-Медикаменты[[#This Row],[Расход за период]],\"\")","v":""},{"$f":"IFERROR(SUMIF(Вводные[Наименование],Медикаменты[[#This Row],[Наименование]],Вводные[Приход]),0)","v":0},{"$f":"IFERROR(SUMIF(Вводные[Наименование],Медикаменты[[#This Row],[Наименование]],Вводные[Расход]),0)","v":0},{"$f":"IFERROR(Медикаменты[[#This Row],[Остаток]]+Медикаменты[[#This Row],[Приход общий]]-Медикаменты[[#This Row],[Расход общий]],0)","v":0},null,null,"Винпоцетин (таб., 5 мг., №10)","уп.",null,null,null,null,null,{"$f":"IF(IFERROR(IF(SEARCH($AM$3,AP61),\"!\",\"\"),\"\")=\"\",0,MAX($AL$9:AO60)+1)","v":52},"Спирт и ИМН","Салфетка (спанлейс, 30х40, 100 шт.)"]
[null,null,null,null,null,null,null,null,null,null,null,null,null,null,null,null,null,null,{"$f":"IF(IFERROR(IF(SEARCH(Расчет!$B$8,T62),\"!\",\"\"),\"\")=\"\",0,MAX($S$9:S61)+1)","v":0},"Воронка ушная (1-4 мм.)","шт",30,"","",{"$f":"IFERROR(LOOKUP(,-1/($T62=Вводные[Наименование])/(Вводные[Дата]<$U$1),Вводные[Остаток]),0)+IF(Медикаменты[[#This Row],[Дата остатка]]<$U$1,Медикаменты[[#This Row],[Остаток]],0)","v":0},{"$f":"IF(T62=\"\",\"\",SUMPRODUCT((Вводные[Дата]>=$U$1)*(Вводные[Дата]<=$U$2)*(Вводные[Наименование]=$T62),Вводные[Приход]))","v":0},{"$f":"IF(T62=\"\",\"\",SUMPRODUCT((Вводные[Дата]>=$U$1)*(Вводные[Дата]<=$U$2)*(Вводные[Наименование]=$T62),Вводные[Расход]))","v":0},{"$f":"IFERROR(Медикаменты[[#This Row],[Остаток]]+Медикаменты[[#This Row],[Приход за период]]-Медикаменты[[#This Row],[Расход за период]],\"\")","v":""},{"$f":"IFERROR(SUMIF(Вводные[Наименование],Медикаменты[[#This Row],[Наименование]],Вводные[Приход]),0)","v":0},{"$f":"IFERROR(SUMIF(Вводные[Наименование],Медикаменты[[#This Row],[Наименование]],Вводные[Расход]),0)","v":0},{"$f":"IFERROR(Медикаменты[[#This Row],[Остаток]]+Медикаменты[[#This Row],[Приход общий]]-Медикаменты[[#This Row],[Расход общий]],0)","v":0},null,null,"Винпоцетин-АКОС (амп., 2 мл., №10)","уп.",null,null,null,null,null,{"$f":"IF(IFERROR(IF(SEARCH($AM$3,AP62),\"!\",\"\"),\"\")=\"\",0,MAX($AL$9:AO61)+1)","v":53},"Спирт и ИМН","Полотенце бумажное (200 шт.)"]
[null,null,null,null,null,null,null,null,null,null,null,null,null,null,null,null,null,null,{"$f":"IF(IFERROR(IF(SEARCH(Расчет!$B$8,T63),\"!\",\"\"),\"\")=\"\",0,MAX($S$9:S62)+1)","v":0},"Воронка ушная (2-5 мм.)","шт",30,"","",{"$f":"IFERROR(LOOKUP(,-1/($T63=Вводные[Наименование])/(Вводные[Дата]<$U$1),Вводные[Остаток]),0)+IF(Медикаменты[[#This Row],[Дата остатка]]<$U$1,Медикаменты[[#This Row],[Остаток]],0)","v":0},{"$f":"IF(T63=\"\",\"\",SUMPRODUCT((Вводные[Дата]>=$U$1)*(Вводные[Дата]<=$U$2)*(Вводные[Наименование]=$T63),Вводные[Приход]))","v":0},{"$f":"IF(T63=\"\",\"\",SUMPRODUCT((Вводные[Дата]>=$U$1)*(Вводные[Дата]<=$U$2)*(Вводные[Наименование]=$T63),Вводные[Расход]))","v":0},{"$f":"IFERROR(Медикаменты[[#This Row],[Остаток]]+Медикаменты[[#This Row],[Приход за период]]-Медикаменты[[#This Row],[Расход за период]],\"\")","v":""},{"$f":"IFERROR(SUMIF(Вводные[Наименование],Медикаменты[[#This Row],[Наименование]],Вводные[Приход]),0)","v":0},{"$f":"IFERROR(SUMIF(Вводные[Наименование],Медикаменты[[#This Row],[Наименование]],Вводные[Расход]),0)","v":0},{"$f":"IFERROR(Медикаменты[[#This Row],[Остаток]]+Медикаменты[[#This Row],[Приход общий]]-Медикаменты[[#This Row],[Расход общий]],0)","v":0},null,null,"Вода дистиллированная (амп., 50 мл., №10)","уп."]
[null,null,null,null,null,null,null,null,null,null,null,null,null,null,null,null,null,null,{"$f":"IF(IFERROR(IF(SEARCH(Расчет!$B$8,T64),\"!\",\"\"),\"\")=\"\",0,MAX($S$9:S63)+1)","v":0},"Гель для УЗИ (1л.)","фл.",10,"","",{"$f":"IFERROR(LOOKUP(,-1/($T64=Вводные[Наименование])/(Вводные[Дата]<$U$1),Вводные[Остаток]),0)+IF(Медикаменты[[#This Row],[Дата остатка]]<$U$1,Медикаменты[[#This Row],[Остаток]],0)","v":0},{"$f":"IF(T64=\"\",\"\",SUMPRODUCT((Вводные[Дата]>=$U$1)*(Вводные[Дата]<=$U$2)*(Вводные[Наименование]=$T64),Вводные[Приход]))","v":0},{"$f":"IF(T64=\"\",\"\",SUMPRODUCT((Вводные[Дата]>=$U$1)*(Вводные[Дата]<=$U$2)*(Вводные[Наименование]=$T64),Вводные[Расход]))","v":0},{"$f":"IFERROR(Медикаменты[[#This Row],[Остаток]]+Медикаменты[[#This Row],[Приход за период]]-Медикаменты[[#This Row],[Расход за период]],\"\")","v":""},{"$f":"IFERROR(SUMIF(Вводные[Наименование],Медикаменты[[#This Row],[Наименование]],Вводные[Приход]),0)","v":0},{"$f":"IFERROR(SUMIF(Вводные[Наименование],Медикаменты[[#This Row],[Наименование]],Вводные[Расход]),0)","v":0},{"$f":"IFERROR(Медикаменты[[#This Row],[Остаток]]+Медикаменты[[#This Row],[Приход общий]]-Медикаменты[[#This Row],[Расход общий]],0)","v":0},null,null,"Воронка ушная (1-4 мм.)","шт"]
[null,null,null,null,null,null,null,null,null,null,null,null,null,null,null,null,null,null,{"$f":"IF(IFERROR(IF(SEARCH(Расчет!$B$8,T65),\"!\",\"\"),\"\")=\"\",0,MAX($S$9:S64)+1)","v":0},"Гель для УЗИ (5 л.)","кан.",1,"2018-06-07",2,{"$f":"IFERROR(LOOKUP(,-1/($T65=Вводные[Наименование])/(Вводные[Дата]<$U$1),Вводные[Остаток]),0)+IF(Медикаменты[[#This Row],[Дата остатка]]<$U$1,Медикаменты[[#This Row],[Остаток]],0)","v":0},{"$f":"IF(T65=\"\",\"\",SUMPRODUCT((Вводные[Дата]>=$U$1)*(Вводные[Дата]<=$U$2)*(Вводные[Наименование]=$T65),Вводные[Приход]))","v":0},{"$f":"IF(T65=\"\",\"\",SUMPRODUCT((Вводные[Дата]>=$U$1)*(Вводные[Дата]<=$U$2)*(Вводные[Наименование]=$T65),Вводные[Расход]))","v":0},{"$f":"IFERROR(Медикаменты[[#This Row],[Остаток]]+Медикаменты[[#This Row],[Приход за период]]-Медикаменты[[#This Row],[Расход за период]],\"\")","v":2},{"$f":"IFERROR(SUMIF(Вводные[Наименование],Медикаменты[[#This Row],[Наименование]],Вводные[Приход]),0)","v":0},{"$f":"IFERROR(SUMIF(Вводные[Наименование],Медикаменты[[#This Row],[Наименование]],Вводные[Расход]),0)","v":0},{"$f":"IFERROR(Медикаменты[[#This Row],[Остаток]]+Медикаменты[[#This Row],[Приход общий]]-Медикаменты[[#This Row],[Расход общий]],0)","v":2},null,null,"Воронка ушная (2-5 мм.)","шт"]
[null,null,null,null,null,null,null,null,null,null,null,null,null,null,null,null,null,null,{"$f":"IF(IFERROR(IF(SEARCH(Расчет!$B$8,T66),\"!\",\"\"),\"\")=\"\",0,MAX($S$9:S65)+1)","v":0},"Гипотиазид (таб., 25 мг., №20)","шт.",0,"","",{"$f":"IFERROR(LOOKUP(,-1/($T66=Вводные[Наименование])/(Вводные[Дата]<$U$1),Вводные[Остаток]),0)+IF(Медикаменты[[#This Row],[Дата остатка]]<$U$1,Медикаменты[[#This Row],[Остаток]],0)","v":0},{"$f":"IF(T66=\"\",\"\",SUMPRODUCT((Вводные[Дата]>=$U$1)*(Вводные[Дата]<=$U$2)*(Вводные[Наименование]=$T66),Вводные[Приход]))","v":0},{"$f":"IF(T66=\"\",\"\",SUMPRODUCT((Вводные[Дата]>=$U$1)*(Вводные[Дата]<=$U$2)*(Вводные[Наименование]=$T66),Вводные[Расход]))","v":0},{"$f":"IFERROR(Медикаменты[[#This Row],[Остаток]]+Медикаменты[[#This Row],[Приход за период]]-Медикаменты[[#This Row],[Расход за период]],\"\")","v":""},{"$f":"IFERROR(SUMIF(Вводные[Наименование],Медикаменты[[#This Row],[Наименование]],Вводные[Приход]),0)","v":0},{"$f":"IFERROR(SUMIF(Вводные[Наименование],Медикаменты[[#This Row],[Наименование]],Вводные[Расход]),0)","v":0},{"$f":"IFERROR(Медикаменты[[#This Row],[Остаток]]+Медикаменты[[#This Row],[Приход общий]]-Медикаменты[[#This Row],[Расход общий]],0)","v":0},null,null,"Гель для УЗИ (1л.)","фл."]
[null,null,null,null,null,null,null,null,null,null,null,null,null,null,null,null,null,null,{"$f":"IF(IFERROR(IF(SEARCH(Расчет!$B$8,T67),\"!\",\"\"),\"\")=\"\",0,MAX($S$9:S66)+1)","v":0},"Глицин (таб., 100 мг., №50)","уп.",75,"","",{"$f":"IFERROR(LOOKUP(,-1/($T67=Вводные[Наименование])/(Вводные[Дата]<$U$1),Вводные[Остаток]),0)+IF(Медикаменты[[#This Row],[Дата остатка]]<$U$1,Медикаменты[[#This Row],[Остаток]],0)","v":0},{"$f":"IF(T67=\"\",\"\",SUMPRODUCT((Вводные[Дата]>=$U$1)*(Вводные[Дата]<=$U$2)*(Вводные[Наименование]=$T67),Вводные[Приход]))","v":0},{"$f":"IF(T67=\"\",\"\",SUMPRODUCT((Вводные[Дата]>=$U$1)*(Вводные[Дата]<=$U$2)*(Вводные[Наименование]=$T67),Вводные[Расход]))","v":0},{"$f":"IFERROR(Медикаменты[[#This Row],[Остаток]]+Медикаменты[[#This Row],[Приход за период]]-Медикаменты[[#This Row],[Расход за период]],\"\")","v":""},{"$f":"IFERROR(SUMIF(Вводные[Наименование],Медикаменты[[#This Row],[Наименование]],Вводные[Приход]),0)","v":0},{"$f":"IFERROR(SUMIF(Вводные[Наименование],Медикаменты[[#This Row],[Наименование]],Вводные[Расход]),0)","v":0},{"$f":"IFERROR(Медикаменты[[#This Row],[Остаток]]+Медикаменты[[#This Row],[Приход общий]]-Медикаменты[[#This Row],[Расход общий]],0)","v":0},null,null,"Гель для УЗИ (5 л.)","кан."]
[null,null,null,null,null,null,null,null,null,null,null,null,null,null,null,null,null,null,{"$f":"IF(IFERROR(IF(SEARCH(Расчет!$B$8,T68),\"!\",\"\"),\"\")=\"\",0,MAX($S$9:S67)+1)","v":0},"Губка гемостатическая коллагеновая (90х90 мм., №1)","уп.",150,"","",{"$f":"IFERROR(LOOKUP(,-1/($T68=Вводные[Наименование])/(Вводные[Дата]<$U$1),Вводные[Остаток]),0)+IF(Медикаменты[[#This Row],[Дата остатка]]<$U$1,Медикаменты[[#This Row],[Остаток]],0)","v":0},{"$f":"IF(T68=\"\",\"\",SUMPRODUCT((Вводные[Дата]>=$U$1)*(Вводные[Дата]<=$U$2)*(Вводные[Наименование]=$T68),Вводные[Приход]))","v":0},{"$f":"IF(T68=\"\",\"\",SUMPRODUCT((Вводные[Дата]>=$U$1)*(Вводные[Дата]<=$U$2)*(Вводные[Наименование]=$T68),Вводные[Расход]))","v":0},{"$f":"IFERROR(Медикаменты[[#This Row],[Остаток]]+Медикаменты[[#This Row],[Приход за период]]-Медикаменты[[#This Row],[Расход за период]],\"\")","v":""},{"$f":"IFERROR(SUMIF(Вводные[Наименование],Медикаменты[[#This Row],[Наименование]],Вводные[Приход]),0)","v":0},{"$f":"IFERROR(SUMIF(Вводные[Наименование],Медикаменты[[#This Row],[Наименование]],Вводные[Расход]),0)","v":0},{"$f":"IFERROR(Медикаменты[[#This Row],[Остаток]]+Медикаменты[[#This Row],[Приход общий]]-Медикаменты[[#This Row],[Расход общий]],0)","v":0},null,null,"Гипотиазид (таб., 25 мг., №20)","шт."]
[null,null,null,null,null,null,null,null,null,null,null,null,null,null,null,null,null,null,{"$f":"IF(IFERROR(IF(SEARCH(Расчет!$B$8,T69),\"!\",\"\"),\"\")=\"\",0,MAX($S$9:S68)+1)","v":0},"Дексаметазон (сусп., 5 мл., №1)","уп.",3,"","",{"$f":"IFERROR(LOOKUP(,-1/($T69=Вводные[Наименование])/(Вводные[Дата]<$U$1),Вводные[Остаток]),0)+IF(Медикаменты[[#This Row],[Дата остатка]]<$U$1,Медикаменты[[#This Row],[Остаток]],0)","v":0},{"$f":"IF(T69=\"\",\"\",SUMPRODUCT((Вводные[Дата]>=$U$1)*(Вводные[Дата]<=$U$2)*(Вводные[Наименование]=$T69),Вводные[Приход]))","v":0},{"$f":"IF(T69=\"\",\"\",SUMPRODUCT((Вводные[Дата]>=$U$1)*(Вводные[Дата]<=$U$2)*(Вводные[Наименование]=$T69),Вводные[Расход]))","v":0},{"$f":"IFERROR(Медикаменты[[#This Row],[Остаток]]+Медикаменты[[#This Row],[Приход за период]]-Медикаменты[[#This Row],[Расход за период]],\"\")","v":""},{"$f":"IFERROR(SUMIF(Вводные[Наименование],Медикаменты[[#This Row],[Наименование]],Вводные[Приход]),0)","v":0},{"$f":"IFERROR(SUMIF(Вводные[Наименование],Медикаменты[[#This Row],[Наименование]],Вводные[Расход]),0)","v":0},{"$f":"IFERROR(Медикаменты[[#This Row],[Остаток]]+Медикаменты[[#This Row],[Приход общий]]-Медикаменты[[#This Row],[Расход общий]],0)","v":0},null,null,"Глицин (таб., 100 мг., №50)","уп."]
[null,null,null,null,null,null,null,null,null,null,null,null,null,null,null,null,null,null,{"$f":"IF(IFERROR(IF(SEARCH(Расчет!$B$8,T70),\"!\",\"\"),\"\")=\"\",0,MAX($S$9:S69)+1)","v":0},"Диклофенак (75 мг., №10)",0,0,"00:00:00",0,{"$f":"IFERROR(LOOKUP(,-1/($T70=Вводные[Наименование])/(Вводные[Дата]<$U$1),Вводные[Остаток]),0)+IF(Медикаменты[[#This Row],[Дата остатка]]<$U$1,Медикаменты[[#This Row],[Остаток]],0)","v":0},{"$f":"IF(T70=\"\",\"\",SUMPRODUCT((Вводные[Дата]>=$U$1)*(Вводные[Дата]<=$U$2)*(Вводные[Наименование]=$T70),Вводные[Приход]))","v":0},{"$f":"IF(T70=\"\",\"\",SUMPRODUCT((Вводные[Дата]>=$U$1)*(Вводные[Дата]<=$U$2)*(Вводные[Наименование]=$T70),Вводные[Расход]))","v":0},{"$f":"IFERROR(Медикаменты[[#This Row],[Остаток]]+Медикаменты[[#This Row],[Приход за период]]-Медикаменты[[#This Row],[Расход за период]],\"\")","v":0},{"$f":"IFERROR(SUMIF(Вводные[Наименование],Медикаменты[[#This Row],[Наименование]],Вводные[Приход]),0)","v":0},{"$f":"IFERROR(SUMIF(Вводные[Наименование],Медикаменты[[#This Row],[Наименование]],Вводные[Расход]),0)","v":0},{"$f":"IFERROR(Медикаменты[[#This Row],[Остаток]]+Медикаменты[[#This Row],[Приход общий]]-Медикаменты[[#This Row],[Расход общий]],0)","v":0},null,null,"Губка гемостатическая коллагеновая (90х90 мм., №1)","уп."]
[null,null,null,null,null,null,null,null,null,null,null,null,null,null,null,null,null,null,{"$f":"IF(IFERROR(IF(SEARCH(Расчет!$B$8,T71),\"!\",\"\"),\"\")=\"\",0,MAX($S$9:S70)+1)","v":0},"Димексид (100 мл.)","уп.",4,"","",{"$f":"IFERROR(LOOKUP(,-1/($T71=Вводные[Наименование])/(Вводные[Дата]<$U$1),Вводные[Остаток]),0)+IF(Медикаменты[[#This Row],[Дата остатка]]<$U$1,Медикаменты[[#This Row],[Остаток]],0)","v":0},{"$f":"IF(T71=\"\",\"\",SUMPRODUCT((Вводные[Дата]>=$U$1)*(Вводные[Дата]<=$U$2)*(Вводные[Наименование]=$T71),Вводные[Приход]))","v":0},{"$f":"IF(T71=\"\",\"\",SUMPRODUCT((Вводные[Дата]>=$U$1)*(Вводные[Дата]<=$U$2)*(Вводные[Наименование]=$T71),Вводные[Расход]))","v":0},{"$f":"IFERROR(Медикаменты[[#This Row],[Остаток]]+Медикаменты[[#This Row],[Приход за период]]-Медикаменты[[#This Row],[Расход за период]],\"\")","v":""},{"$f":"IFERROR(SUMIF(Вводные[Наименование],Медикаменты[[#This Row],[Наименование]],Вводные[Приход]),0)","v":0},{"$f":"IFERROR(SUMIF(Вводные[Наименование],Медикаменты[[#This Row],[Наименование]],Вводные[Расход]),0)","v":0},{"$f":"IFERROR(Медикаменты[[#This Row],[Остаток]]+Медикаменты[[#This Row],[Приход общий]]-Медикаменты[[#This Row],[Расход общий]],0)","v":0},null,null,"Дексаметазон (сусп., 5 мл., №1)","уп."]
[null,null,null,null,null,null,null,null,null,null,null,null,null,null,null,null,null,null,{"$f":"IF(IFERROR(IF(SEARCH(Расчет!$B$8,T72),\"!\",\"\"),\"\")=\"\",0,MAX($S$9:S71)+1)","v":0},"Дюфастон (таб., 10 мг., №20)",0,0,"","",{"$f":"IFERROR(LOOKUP(,-1/($T72=Вводные[Наименование])/(Вводные[Дата]<$U$1),Вводные[Остаток]),0)+IF(Медикаменты[[#This Row],[Дата остатка]]<$U$1,Медикаменты[[#This Row],[Остаток]],0)","v":0},{"$f":"IF(T72=\"\",\"\",SUMPRODUCT((Вводные[Дата]>=$U$1)*(Вводные[Дата]<=$U$2)*(Вводные[Наименование]=$T72),Вводные[Приход]))","v":0},{"$f":"IF(T72=\"\",\"\",SUMPRODUCT((Вводные[Дата]>=$U$1)*(Вводные[Дата]<=$U$2)*(Вводные[Наименование]=$T72),Вводные[Расход]))","v":0},{"$f":"IFERROR(Медикаменты[[#This Row],[Остаток]]+Медикаменты[[#This Row],[Приход за период]]-Медикаменты[[#This Row],[Расход за период]],\"\")","v":""},{"$f":"IFERROR(SUMIF(Вводные[Наименование],Медикаменты[[#This Row],[Наименование]],Вводные[Приход]),0)","v":0},{"$f":"IFERROR(SUMIF(Вводные[Наименование],Медикаменты[[#This Row],[Наименование]],Вводные[Расход]),0)","v":0},{"$f":"IFERROR(Медикаменты[[#This Row],[Остаток]]+Медикаменты[[#This Row],[Приход общий]]-Медикаменты[[#This Row],[Расход общий]],0)","v":0},null,null,"Диклофенак (75 мг., №10)"]
[null,null,null,null,null,null,null,null,null,null,null,null,null,null,null,null,null,null,{"$f":"IF(IFERROR(IF(SEARCH(Расчет!$B$8,T73),\"!\",\"\"),\"\")=\"\",0,MAX($S$9:S72)+1)","v":0},"Ёмкость для сбора использованного медицинского материала класса Б","шт.",1000,"","",{"$f":"IFERROR(LOOKUP(,-1/($T73=Вводные[Наименование])/(Вводные[Дата]<$U$1),Вводные[Остаток]),0)+IF(Медикаменты[[#This Row],[Дата остатка]]<$U$1,Медикаменты[[#This Row],[Остаток]],0)","v":0},{"$f":"IF(T73=\"\",\"\",SUMPRODUCT((Вводные[Дата]>=$U$1)*(Вводные[Дата]<=$U$2)*(Вводные[Наименование]=$T73),Вводные[Приход]))","v":0},{"$f":"IF(T73=\"\",\"\",SUMPRODUCT((Вводные[Дата]>=$U$1)*(Вводные[Дата]<=$U$2)*(Вводные[Наименование]=$T73),Вводные[Расход]))","v":0},{"$f":"IFERROR(Медикаменты[[#This Row],[Остаток]]+Медикаменты[[#This Row],[Приход за период]]-Медикаменты[[#This Row],[Расход за период]],\"\")","v":""},{"$f":"IFERROR(SUMIF(Вводные[Наименование],Медикаменты[[#This Row],[Наименование]],Вводные[Приход]),0)","v":0},{"$f":"IFERROR(SUMIF(Вводные[Наименование],Медикаменты[[#This Row],[Наименование]],Вводные[Расход]),0)","v":0},{"$f":"IFERROR(Медикаменты[[#This Row],[Остаток]]+Медикаменты[[#This Row],[Приход общий]]-Медикаменты[[#This Row],[Расход общий]],0)","v":0},null,null,"Димексид (100 мл.)","уп."]
[null,null,null,null,null,null,null,null,null,null,null,null,null,null,null,null,null,null,{"$f":"IF(IFERROR(IF(SEARCH(Расчет!$B$8,T74),\"!\",\"\"),\"\")=\"\",0,MAX($S$9:S73)+1)","v":0},"Жгут резиновый кровостанавливающий (1,5 м.)","шт",1,"","",{"$f":"IFERROR(LOOKUP(,-1/($T74=Вводные[Наименование])/(Вводные[Дата]<$U$1),Вводные[Остаток]),0)+IF(Медикаменты[[#This Row],[Дата остатка]]<$U$1,Медикаменты[[#This Row],[Остаток]],0)","v":0},{"$f":"IF(T74=\"\",\"\",SUMPRODUCT((Вводные[Дата]>=$U$1)*(Вводные[Дата]<=$U$2)*(Вводные[Наименование]=$T74),Вводные[Приход]))","v":0},{"$f":"IF(T74=\"\",\"\",SUMPRODUCT((Вводные[Дата]>=$U$1)*(Вводные[Дата]<=$U$2)*(Вводные[Наименование]=$T74),Вводные[Расход]))","v":0},{"$f":"IFERROR(Медикаменты[[#This Row],[Остаток]]+Медикаменты[[#This Row],[Приход за период]]-Медикаменты[[#This Row],[Расход за период]],\"\")","v":""},{"$f":"IFERROR(SUMIF(Вводные[Наименование],Медикаменты[[#This Row],[Наименование]],Вводные[Приход]),0)","v":0},{"$f":"IFERROR(SUMIF(Вводные[Наименование],Медикаменты[[#This Row],[Наименование]],Вводные[Расход]),0)","v":0},{"$f":"IFERROR(Медикаменты[[#This Row],[Остаток]]+Медикаменты[[#This Row],[Приход общий]]-Медикаменты[[#This Row],[Расход общий]],0)","v":0},null,null,"Дюфастон (таб., 10 мг., №20)"]
[null,null,null,null,null,null,null,null,null,null,null,null,null,null,null,null,null,null,{"$f":"IF(IFERROR(IF(SEARCH(Расчет!$B$8,T75),\"!\",\"\"),\"\")=\"\",0,MAX($S$9:S74)+1)","v":0},"Зажим типа Москит изогнутый (140 мм.)","шт",1,"","",{"$f":"IFERROR(LOOKUP(,-1/($T75=Вводные[Наименование])/(Вводные[Дата]<$U$1),Вводные[Остаток]),0)+IF(Медикаменты[[#This Row],[Дата остатка]]<$U$1,Медикаменты[[#This Row],[Остаток]],0)","v":0},{"$f":"IF(T75=\"\",\"\",SUMPRODUCT((Вводные[Дата]>=$U$1)*(Вводные[Дата]<=$U$2)*(Вводные[Наименование]=$T75),Вводные[Приход]))","v":0},{"$f":"IF(T75=\"\",\"\",SUMPRODUCT((Вводные[Дата]>=$U$1)*(Вводные[Дата]<=$U$2)*(Вводные[Наименование]=$T75),Вводные[Расход]))","v":0},{"$f":"IFERROR(Медикаменты[[#This Row],[Остаток]]+Медикаменты[[#This Row],[Приход за период]]-Медикаменты[[#This Row],[Расход за период]],\"\")","v":""},{"$f":"IFERROR(SUMIF(Вводные[Наименование],Медикаменты[[#This Row],[Наименование]],Вводные[Приход]),0)","v":0},{"$f":"IFERROR(SUMIF(Вводные[Наименование],Медикаменты[[#This Row],[Наименование]],Вводные[Расход]),0)","v":0},{"$f":"IFERROR(Медикаменты[[#This Row],[Остаток]]+Медикаменты[[#This Row],[Приход общий]]-Медикаменты[[#This Row],[Расход общий]],0)","v":0},null,null,"Ёмкость для сбора использованного медицинского материала класса Б","шт."]
[null,null,null,null,null,null,null,null,null,null,null,null,null,null,null,null,null,null,{"$f":"IF(IFERROR(IF(SEARCH(Расчет!$B$8,T76),\"!\",\"\"),\"\")=\"\",0,MAX($S$9:S75)+1)","v":0},"Зажим типа Москит прямой (150 мм.)","шт",1,"","",{"$f":"IFERROR(LOOKUP(,-1/($T76=Вводные[Наименование])/(Вводные[Дата]<$U$1),Вводные[Остаток]),0)+IF(Медикаменты[[#This Row],[Дата остатка]]<$U$1,Медикаменты[[#This Row],[Остаток]],0)","v":0},{"$f":"IF(T76=\"\",\"\",SUMPRODUCT((Вводные[Дата]>=$U$1)*(Вводные[Дата]<=$U$2)*(Вводные[Наименование]=$T76),Вводные[Приход]))","v":0},{"$f":"IF(T76=\"\",\"\",SUMPRODUCT((Вводные[Дата]>=$U$1)*(Вводные[Дата]<=$U$2)*(Вводные[Наименование]=$T76),Вводные[Расход]))","v":0},{"$f":"IFERROR(Медикаменты[[#This Row],[Остаток]]+Медикаменты[[#This Row],[Приход за период]]-Медикаменты[[#This Row],[Расход за период]],\"\")","v":""},{"$f":"IFERROR(SUMIF(Вводные[Наименование],Медикаменты[[#This Row],[Наименование]],Вводные[Приход]),0)","v":0},{"$f":"IFERROR(SUMIF(Вводные[Наименование],Медикаменты[[#This Row],[Наименование]],Вводные[Расход]),0)","v":0},{"$f":"IFERROR(Медикаменты[[#This Row],[Остаток]]+Медикаменты[[#This Row],[Приход общий]]-Медикаменты[[#This Row],[Расход общий]],0)","v":0},null,null,"Жгут резиновый кровостанавливающий (1,5 м.)","шт"]
[null,null,null,null,null,null,null,null,null,null,null,null,null,null,null,null,null,null,{"$f":"IF(IFERROR(IF(SEARCH(Расчет!$B$8,T77),\"!\",\"\"),\"\")=\"\",0,MAX($S$9:S76)+1)","v":0},"Зеркало гинекологическое \"Куско\"",0,0,"2018-06-07",100,{"$f":"IFERROR(LOOKUP(,-1/($T77=Вводные[Наименование])/(Вводные[Дата]<$U$1),Вводные[Остаток]),0)+IF(Медикаменты[[#This Row],[Дата остатка]]<$U$1,Медикаменты[[#This Row],[Остаток]],0)","v":0},{"$f":"IF(T77=\"\",\"\",SUMPRODUCT((Вводные[Дата]>=$U$1)*(Вводные[Дата]<=$U$2)*(Вводные[Наименование]=$T77),Вводные[Приход]))","v":0},{"$f":"IF(T77=\"\",\"\",SUMPRODUCT((Вводные[Дата]>=$U$1)*(Вводные[Дата]<=$U$2)*(Вводные[Наименование]=$T77),Вводные[Расход]))","v":0},{"$f":"IFERROR(Медикаменты[[#This Row],[Остаток]]+Медикаменты[[#This Row],[Приход за период]]-Медикаменты[[#This Row],[Расход за период]],\"\")","v":100},{"$f":"IFERROR(SUMIF(Вводные[Наименование],Медикаменты[[#This Row],[Наименование]],Вводные[Приход]),0)","v":0},{"$f":"IFERROR(SUMIF(Вводные[Наименование],Медикаменты[[#This Row],[Наименование]],Вводные[Расход]),0)","v":0},{"$f":"IFERROR(Медикаменты[[#This Row],[Остаток]]+Медикаменты[[#This Row],[Приход общий]]-Медикаменты[[#This Row],[Расход общий]],0)","v":100},null,null,"Зажим типа Москит изогнутый (140 мм.)","шт"]
[null,null,null,null,null,null,null,null,null,null,null,null,null,null,null,null,null,null,{"$f":"IF(IFERROR(IF(SEARCH(Расчет!$B$8,T78),\"!\",\"\"),\"\")=\"\",0,MAX($S$9:S77)+1)","v":0},"Зеркало носовое (№30)","шт",20,"","",{"$f":"IFERROR(LOOKUP(,-1/($T78=Вводные[Наименование])/(Вводные[Дата]<$U$1),Вводные[Остаток]),0)+IF(Медикаменты[[#This Row],[Дата остатка]]<$U$1,Медикаменты[[#This Row],[Остаток]],0)","v":0},{"$f":"IF(T78=\"\",\"\",SUMPRODUCT((Вводные[Дата]>=$U$1)*(Вводные[Дата]<=$U$2)*(Вводные[Наименование]=$T78),Вводные[Приход]))","v":0},{"$f":"IF(T78=\"\",\"\",SUMPRODUCT((Вводные[Дата]>=$U$1)*(Вводные[Дата]<=$U$2)*(Вводные[Наименование]=$T78),Вводные[Расход]))","v":0},{"$f":"IFERROR(Медикаменты[[#This Row],[Остаток]]+Медикаменты[[#This Row],[Приход за период]]-Медикаменты[[#This Row],[Расход за период]],\"\")","v":""},{"$f":"IFERROR(SUMIF(Вводные[Наименование],Медикаменты[[#This Row],[Наименование]],Вводные[Приход]),0)","v":0},{"$f":"IFERROR(SUMIF(Вводные[Наименование],Медикаменты[[#This Row],[Наименование]],Вводные[Расход]),0)","v":0},{"$f":"IFERROR(Медикаменты[[#This Row],[Остаток]]+Медикаменты[[#This Row],[Приход общий]]-Медикаменты[[#This Row],[Расход общий]],0)","v":0},null,null,"Зажим типа Москит прямой (150 мм.)","шт"]
[null,null,null,null,null,null,null,null,null,null,null,null,null,null,null,null,null,null,{"$f":"IF(IFERROR(IF(SEARCH(Расчет!$B$8,T79),\"!\",\"\"),\"\")=\"\",0,MAX($S$9:S78)+1)","v":0},"Зеркало носовое (№35)","шт",20,"","",{"$f":"IFERROR(LOOKUP(,-1/($T79=Вводные[Наименование])/(Вводные[Дата]<$U$1),Вводные[Остаток]),0)+IF(Медикаменты[[#This Row],[Дата остатка]]<$U$1,Медикаменты[[#This Row],[Остаток]],0)","v":0},{"$f":"IF(T79=\"\",\"\",SUMPRODUCT((Вводные[Дата]>=$U$1)*(Вводные[Дата]<=$U$2)*(Вводные[Наименование]=$T79),Вводные[Приход]))","v":0},{"$f":"IF(T79=\"\",\"\",SUMPRODUCT((Вводные[Дата]>=$U$1)*(Вводные[Дата]<=$U$2)*(Вводные[Наименование]=$T79),Вводные[Расход]))","v":0},{"$f":"IFERROR(Медикаменты[[#This Row],[Остаток]]+Медикаменты[[#This Row],[Приход за период]]-Медикаменты[[#This Row],[Расход за период]],\"\")","v":""},{"$f":"IFERROR(SUMIF(Вводные[Наименование],Медикаменты[[#This Row],[Наименование]],Вводные[Приход]),0)","v":0},{"$f":"IFERROR(SUMIF(Вводные[Наименование],Медикаменты[[#This Row],[Наименование]],Вводные[Расход]),0)","v":0},{"$f":"IFERROR(Медикаменты[[#This Row],[Остаток]]+Медикаменты[[#This Row],[Приход общий]]-Медикаменты[[#This Row],[Расход общий]],0)","v":0},null,null,"Зеркало гинекологическое \"Куско\""]
[null,null,null,null,null,null,null,null,null,null,null,null,null,null,null,null,null,null,{"$f":"IF(IFERROR(IF(SEARCH(Расчет!$B$8,T80),\"!\",\"\"),\"\")=\"\",0,MAX($S$9:S79)+1)","v":0},"Зеркало носовое (№40)","шт",20,"","",{"$f":"IFERROR(LOOKUP(,-1/($T80=Вводные[Наименование])/(Вводные[Дата]<$U$1),Вводные[Остаток]),0)+IF(Медикаменты[[#This Row],[Дата остатка]]<$U$1,Медикаменты[[#This Row],[Остаток]],0)","v":0},{"$f":"IF(T80=\"\",\"\",SUMPRODUCT((Вводные[Дата]>=$U$1)*(Вводные[Дата]<=$U$2)*(Вводные[Наименование]=$T80),Вводные[Приход]))","v":0},{"$f":"IF(T80=\"\",\"\",SUMPRODUCT((Вводные[Дата]>=$U$1)*(Вводные[Дата]<=$U$2)*(Вводные[Наименование]=$T80),Вводные[Расход]))","v":0},{"$f":"IFERROR(Медикаменты[[#This Row],[Остаток]]+Медикаменты[[#This Row],[Приход за период]]-Медикаменты[[#This Row],[Расход за период]],\"\")","v":""},{"$f":"IFERROR(SUMIF(Вводные[Наименование],Медикаменты[[#This Row],[Наименование]],Вводные[Приход]),0)","v":0},{"$f":"IFERROR(SUMIF(Вводные[Наименование],Медикаменты[[#This Row],[Наименование]],Вводные[Расход]),0)","v":0},{"$f":"IFERROR(Медикаменты[[#This Row],[Остаток]]+Медикаменты[[#This Row],[Приход общий]]-Медикаменты[[#This Row],[Расход общий]],0)","v":0},null,null,"Зеркало носовое (№30)","шт"]
[null,null,null,null,null,null,null,null,null,null,null,null,null,null,null,null,null,null,{"$f":"IF(IFERROR(IF(SEARCH(Расчет!$B$8,T81),\"!\",\"\"),\"\")=\"\",0,MAX($S$9:S80)+1)","v":0},"Зонд аттиковый (140 мм.)","шт",1,"","",{"$f":"IFERROR(LOOKUP(,-1/($T81=Вводные[Наименование])/(Вводные[Дата]<$U$1),Вводные[Остаток]),0)+IF(Медикаменты[[#This Row],[Дата остатка]]<$U$1,Медикаменты[[#This Row],[Остаток]],0)","v":0},{"$f":"IF(T81=\"\",\"\",SUMPRODUCT((Вводные[Дата]>=$U$1)*(Вводные[Дата]<=$U$2)*(Вводные[Наименование]=$T81),Вводные[Приход]))","v":0},{"$f":"IF(T81=\"\",\"\",SUMPRODUCT((Вводные[Дата]>=$U$1)*(Вводные[Дата]<=$U$2)*(Вводные[Наименование]=$T81),Вводные[Расход]))","v":0},{"$f":"IFERROR(Медикаменты[[#This Row],[Остаток]]+Медикаменты[[#This Row],[Приход за период]]-Медикаменты[[#This Row],[Расход за период]],\"\")","v":""},{"$f":"IFERROR(SUMIF(Вводные[Наименование],Медикаменты[[#This Row],[Наименование]],Вводные[Приход]),0)","v":0},{"$f":"IFERROR(SUMIF(Вводные[Наименование],Медикаменты[[#This Row],[Наименование]],Вводные[Расход]),0)","v":0},{"$f":"IFERROR(Медикаменты[[#This Row],[Остаток]]+Медикаменты[[#This Row],[Приход общий]]-Медикаменты[[#This Row],[Расход общий]],0)","v":0},null,null,"Зеркало носовое (№35)","шт"]
[null,null,null,null,null,null,null,null,null,null,null,null,null,null,null,null,null,null,{"$f":"IF(IFERROR(IF(SEARCH(Расчет!$B$8,T82),\"!\",\"\"),\"\")=\"\",0,MAX($S$9:S81)+1)","v":0},"Зонд урогенитальный (стер., однораз.)","шт.",100,"","",{"$f":"IFERROR(LOOKUP(,-1/($T82=Вводные[Наименование])/(Вводные[Дата]<$U$1),Вводные[Остаток]),0)+IF(Медикаменты[[#This Row],[Дата остатка]]<$U$1,Медикаменты[[#This Row],[Остаток]],0)","v":0},{"$f":"IF(T82=\"\",\"\",SUMPRODUCT((Вводные[Дата]>=$U$1)*(Вводные[Дата]<=$U$2)*(Вводные[Наименование]=$T82),Вводные[Приход]))","v":0},{"$f":"IF(T82=\"\",\"\",SUMPRODUCT((Вводные[Дата]>=$U$1)*(Вводные[Дата]<=$U$2)*(Вводные[Наименование]=$T82),Вводные[Расход]))","v":0},{"$f":"IFERROR(Медикаменты[[#This Row],[Остаток]]+Медикаменты[[#This Row],[Приход за период]]-Медикаменты[[#This Row],[Расход за период]],\"\")","v":""},{"$f":"IFERROR(SUMIF(Вводные[Наименование],Медикаменты[[#This Row],[Наименование]],Вводные[Приход]),0)","v":0},{"$f":"IFERROR(SUMIF(Вводные[Наименование],Медикаменты[[#This Row],[Наименование]],Вводные[Расход]),0)","v":0},{"$f":"IFERROR(Медикаменты[[#This Row],[Остаток]]+Медикаменты[[#This Row],[Приход общий]]-Медикаменты[[#This Row],[Расход общий]],0)","v":0},null,null,"Зеркало носовое (№40)","шт"]
[null,null,null,null,null,null,null,null,null,null,null,null,null,null,null,null,null,null,{"$f":"IF(IFERROR(IF(SEARCH(Расчет!$B$8,T83),\"!\",\"\"),\"\")=\"\",0,MAX($S$9:S82)+1)","v":0},"Игла зеленая для пробирок Vacuette (100 шт.)","шт",2000,"","",{"$f":"IFERROR(LOOKUP(,-1/($T83=Вводные[Наименование])/(Вводные[Дата]<$U$1),Вводные[Остаток]),0)+IF(Медикаменты[[#This Row],[Дата остатка]]<$U$1,Медикаменты[[#This Row],[Остаток]],0)","v":0},{"$f":"IF(T83=\"\",\"\",SUMPRODUCT((Вводные[Дата]>=$U$1)*(Вводные[Дата]<=$U$2)*(Вводные[Наименование]=$T83),Вводные[Приход]))","v":0},{"$f":"IF(T83=\"\",\"\",SUMPRODUCT((Вводные[Дата]>=$U$1)*(Вводные[Дата]<=$U$2)*(Вводные[Наименование]=$T83),Вводные[Расход]))","v":0},{"$f":"IFERROR(Медикаменты[[#This Row],[Остаток]]+Медикаменты[[#This Row],[Приход за период]]-Медикаменты[[#This Row],[Расход за период]],\"\")","v":""},{"$f":"IFERROR(SUMIF(Вводные[Наименование],Медикаменты[[#This Row],[Наименование]],Вводные[Приход]),0)","v":0},{"$f":"IFERROR(SUMIF(Вводные[Наименование],Медикаменты[[#This Row],[Наименование]],Вводные[Расход]),0)","v":0},{"$f":"IFERROR(Медикаменты[[#This Row],[Остаток]]+Медикаменты[[#This Row],[Приход общий]]-Медикаменты[[#This Row],[Расход общий]],0)","v":0},null,null,"Зонд аттиковый (140 мм.)","шт"]
[null,null,null,null,null,null,null,null,null,null,null,null,null,null,null,null,null,null,{"$f":"IF(IFERROR(IF(SEARCH(Расчет!$B$8,T84),\"!\",\"\"),\"\")=\"\",0,MAX($S$9:S83)+1)","v":0},"Иглодержатель","шт",2,"","",{"$f":"IFERROR(LOOKUP(,-1/($T84=Вводные[Наименование])/(Вводные[Дата]<$U$1),Вводные[Остаток]),0)+IF(Медикаменты[[#This Row],[Дата остатка]]<$U$1,Медикаменты[[#This Row],[Остаток]],0)","v":0},{"$f":"IF(T84=\"\",\"\",SUMPRODUCT((Вводные[Дата]>=$U$1)*(Вводные[Дата]<=$U$2)*(Вводные[Наименование]=$T84),Вводные[Приход]))","v":0},{"$f":"IF(T84=\"\",\"\",SUMPRODUCT((Вводные[Дата]>=$U$1)*(Вводные[Дата]<=$U$2)*(Вводные[Наименование]=$T84),Вводные[Расход]))","v":0},{"$f":"IFERROR(Медикаменты[[#This Row],[Остаток]]+Медикаменты[[#This Row],[Приход за период]]-Медикаменты[[#This Row],[Расход за период]],\"\")","v":""},{"$f":"IFERROR(SUMIF(Вводные[Наименование],Медикаменты[[#This Row],[Наименование]],Вводные[Приход]),0)","v":0},{"$f":"IFERROR(SUMIF(Вводные[Наименование],Медикаменты[[#This Row],[Наименование]],Вводные[Расход]),0)","v":0},{"$f":"IFERROR(Медикаменты[[#This Row],[Остаток]]+Медикаменты[[#This Row],[Приход общий]]-Медикаменты[[#This Row],[Расход общий]],0)","v":0},null,null,"Зонд урогенитальный (стер., однораз.)","шт."]
[null,null,null,null,null,null,null,null,null,null,null,null,null,null,null,null,null,null,{"$f":"IF(IFERROR(IF(SEARCH(Расчет!$B$8,T85),\"!\",\"\"),\"\")=\"\",0,MAX($S$9:S84)+1)","v":0},"Кавинтон (амп., 10 мг., 2,0, №10)",0,0,"2018-03-30",20,{"$f":"IFERROR(LOOKUP(,-1/($T85=Вводные[Наименование])/(Вводные[Дата]<$U$1),Вводные[Остаток]),0)+IF(Медикаменты[[#This Row],[Дата остатка]]<$U$1,Медикаменты[[#This Row],[Остаток]],0)","v":20},{"$f":"IF(T85=\"\",\"\",SUMPRODUCT((Вводные[Дата]>=$U$1)*(Вводные[Дата]<=$U$2)*(Вводные[Наименование]=$T85),Вводные[Приход]))","v":0},{"$f":"IF(T85=\"\",\"\",SUMPRODUCT((Вводные[Дата]>=$U$1)*(Вводные[Дата]<=$U$2)*(Вводные[Наименование]=$T85),Вводные[Расход]))","v":0},{"$f":"IFERROR(Медикаменты[[#This Row],[Остаток]]+Медикаменты[[#This Row],[Приход за период]]-Медикаменты[[#This Row],[Расход за период]],\"\")","v":20},{"$f":"IFERROR(SUMIF(Вводные[Наименование],Медикаменты[[#This Row],[Наименование]],Вводные[Приход]),0)","v":0},{"$f":"IFERROR(SUMIF(Вводные[Наименование],Медикаменты[[#This Row],[Наименование]],Вводные[Расход]),0)","v":0},{"$f":"IFERROR(Медикаменты[[#This Row],[Остаток]]+Медикаменты[[#This Row],[Приход общий]]-Медикаменты[[#This Row],[Расход общий]],0)","v":20},null,null,"Игла зеленая для пробирок Vacuette (100 шт.)","шт"]
[null,null,null,null,null,null,null,null,null,null,null,null,null,null,null,null,null,null,{"$f":"IF(IFERROR(IF(SEARCH(Расчет!$B$8,T86),\"!\",\"\"),\"\")=\"\",0,MAX($S$9:S85)+1)","v":0},"Кавинтон (таб. 5 мг., №50)",0,0,"","",{"$f":"IFERROR(LOOKUP(,-1/($T86=Вводные[Наименование])/(Вводные[Дата]<$U$1),Вводные[Остаток]),0)+IF(Медикаменты[[#This Row],[Дата остатка]]<$U$1,Медикаменты[[#This Row],[Остаток]],0)","v":0},{"$f":"IF(T86=\"\",\"\",SUMPRODUCT((Вводные[Дата]>=$U$1)*(Вводные[Дата]<=$U$2)*(Вводные[Наименование]=$T86),Вводные[Приход]))","v":0},{"$f":"IF(T86=\"\",\"\",SUMPRODUCT((Вводные[Дата]>=$U$1)*(Вводные[Дата]<=$U$2)*(Вводные[Наименование]=$T86),Вводные[Расход]))","v":0},{"$f":"IFERROR(Медикаменты[[#This Row],[Остаток]]+Медикаменты[[#This Row],[Приход за период]]-Медикаменты[[#This Row],[Расход за период]],\"\")","v":""},{"$f":"IFERROR(SUMIF(Вводные[Наименование],Медикаменты[[#This Row],[Наименование]],Вводные[Приход]),0)","v":0},{"$f":"IFERROR(SUMIF(Вводные[Наименование],Медикаменты[[#This Row],[Наименование]],Вводные[Расход]),0)","v":0},{"$f":"IFERROR(Медикаменты[[#This Row],[Остаток]]+Медикаменты[[#This Row],[Приход общий]]-Медикаменты[[#This Row],[Расход общий]],0)","v":0},null,null,"Иглодержатель","шт"]
[null,null,null,null,null,null,null,null,null,null,null,null,null,null,null,null,null,null,{"$f":"IF(IFERROR(IF(SEARCH(Расчет!$B$8,T87),\"!\",\"\"),\"\")=\"\",0,MAX($S$9:S86)+1)","v":0},"Кальция хлорид (10%, 5,0 №10)",0,0,"2018-03-30",30,{"$f":"IFERROR(LOOKUP(,-1/($T87=Вводные[Наименование])/(Вводные[Дата]<$U$1),Вводные[Остаток]),0)+IF(Медикаменты[[#This Row],[Дата остатка]]<$U$1,Медикаменты[[#This Row],[Остаток]],0)","v":30},{"$f":"IF(T87=\"\",\"\",SUMPRODUCT((Вводные[Дата]>=$U$1)*(Вводные[Дата]<=$U$2)*(Вводные[Наименование]=$T87),Вводные[Приход]))","v":0},{"$f":"IF(T87=\"\",\"\",SUMPRODUCT((Вводные[Дата]>=$U$1)*(Вводные[Дата]<=$U$2)*(Вводные[Наименование]=$T87),Вводные[Расход]))","v":0},{"$f":"IFERROR(Медикаменты[[#This Row],[Остаток]]+Медикаменты[[#This Row],[Приход за период]]-Медикаменты[[#This Row],[Расход за период]],\"\")","v":30},{"$f":"IFERROR(SUMIF(Вводные[Наименование],Медикаменты[[#This Row],[Наименование]],Вводные[Приход]),0)","v":0},{"$f":"IFERROR(SUMIF(Вводные[Наименование],Медикаменты[[#This Row],[Наименование]],Вводные[Расход]),0)","v":0},{"$f":"IFERROR(Медикаменты[[#This Row],[Остаток]]+Медикаменты[[#This Row],[Приход общий]]-Медикаменты[[#This Row],[Расход общий]],0)","v":30},null,null,"Кавинтон (амп., 10 мг., 2,0, №10)"]
[null,null,null,null,null,null,null,null,null,null,null,null,null,null,null,null,null,null,{"$f":"IF(IFERROR(IF(SEARCH(Расчет!$B$8,T88),\"!\",\"\"),\"\")=\"\",0,MAX($S$9:S87)+1)","v":0},"Канюля для промывания аттика","шт",5,"","",{"$f":"IFERROR(LOOKUP(,-1/($T88=Вводные[Наименование])/(Вводные[Дата]<$U$1),Вводные[Остаток]),0)+IF(Медикаменты[[#This Row],[Дата остатка]]<$U$1,Медикаменты[[#This Row],[Остаток]],0)","v":0},{"$f":"IF(T88=\"\",\"\",SUMPRODUCT((Вводные[Дата]>=$U$1)*(Вводные[Дата]<=$U$2)*(Вводные[Наименование]=$T88),Вводные[Приход]))","v":0},{"$f":"IF(T88=\"\",\"\",SUMPRODUCT((Вводные[Дата]>=$U$1)*(Вводные[Дата]<=$U$2)*(Вводные[Наименование]=$T88),Вводные[Расход]))","v":0},{"$f":"IFERROR(Медикаменты[[#This Row],[Остаток]]+Медикаменты[[#This Row],[Приход за период]]-Медикаменты[[#This Row],[Расход за период]],\"\")","v":""},{"$f":"IFERROR(SUMIF(Вводные[Наименование],Медикаменты[[#This Row],[Наименование]],Вводные[Приход]),0)","v":0},{"$f":"IFERROR(SUMIF(Вводные[Наименование],Медикаменты[[#This Row],[Наименование]],Вводные[Расход]),0)","v":0},{"$f":"IFERROR(Медикаменты[[#This Row],[Остаток]]+Медикаменты[[#This Row],[Приход общий]]-Медикаменты[[#This Row],[Расход общий]],0)","v":0},null,null,"Кавинтон (таб. 5 мг., №50)"]
[null,null,null,null,null,null,null,null,null,null,null,null,null,null,null,null,null,null,{"$f":"IF(IFERROR(IF(SEARCH(Расчет!$B$8,T89),\"!\",\"\"),\"\")=\"\",0,MAX($S$9:S88)+1)","v":0},"Катетер урологический (женский, стер.)","шт",5,"","",{"$f":"IFERROR(LOOKUP(,-1/($T89=Вводные[Наименование])/(Вводные[Дата]<$U$1),Вводные[Остаток]),0)+IF(Медикаменты[[#This Row],[Дата остатка]]<$U$1,Медикаменты[[#This Row],[Остаток]],0)","v":0},{"$f":"IF(T89=\"\",\"\",SUMPRODUCT((Вводные[Дата]>=$U$1)*(Вводные[Дата]<=$U$2)*(Вводные[Наименование]=$T89),Вводные[Приход]))","v":0},{"$f":"IF(T89=\"\",\"\",SUMPRODUCT((Вводные[Дата]>=$U$1)*(Вводные[Дата]<=$U$2)*(Вводные[Наименование]=$T89),Вводные[Расход]))","v":0},{"$f":"IFERROR(Медикаменты[[#This Row],[Остаток]]+Медикаменты[[#This Row],[Приход за период]]-Медикаменты[[#This Row],[Расход за период]],\"\")","v":""},{"$f":"IFERROR(SUMIF(Вводные[Наименование],Медикаменты[[#This Row],[Наименование]],Вводные[Приход]),0)","v":0},{"$f":"IFERROR(SUMIF(Вводные[Наименование],Медикаменты[[#This Row],[Наименование]],Вводные[Расход]),0)","v":0},{"$f":"IFERROR(Медикаменты[[#This Row],[Остаток]]+Медикаменты[[#This Row],[Приход общий]]-Медикаменты[[#This Row],[Расход общий]],0)","v":0},null,null,"Кальция хлорид (10%, 5,0 №10)"]
[null,null,null,null,null,null,null,null,null,null,null,null,null,null,null,null,null,null,{"$f":"IF(IFERROR(IF(SEARCH(Расчет!$B$8,T90),\"!\",\"\"),\"\")=\"\",0,MAX($S$9:S89)+1)","v":0},"Кислородная подушка (25 л.)","шт",2,"","",{"$f":"IFERROR(LOOKUP(,-1/($T90=Вводные[Наименование])/(Вводные[Дата]<$U$1),Вводные[Остаток]),0)+IF(Медикаменты[[#This Row],[Дата остатка]]<$U$1,Медикаменты[[#This Row],[Остаток]],0)","v":0},{"$f":"IF(T90=\"\",\"\",SUMPRODUCT((Вводные[Дата]>=$U$1)*(Вводные[Дата]<=$U$2)*(Вводные[Наименование]=$T90),Вводные[Приход]))","v":0},{"$f":"IF(T90=\"\",\"\",SUMPRODUCT((Вводные[Дата]>=$U$1)*(Вводные[Дата]<=$U$2)*(Вводные[Наименование]=$T90),Вводные[Расход]))","v":0},{"$f":"IFERROR(Медикаменты[[#This Row],[Остаток]]+Медикаменты[[#This Row],[Приход за период]]-Медикаменты[[#This Row],[Расход за период]],\"\")","v":""},{"$f":"IFERROR(SUMIF(Вводные[Наименование],Медикаменты[[#This Row],[Наименование]],Вводные[Приход]),0)","v":0},{"$f":"IFERROR(SUMIF(Вводные[Наименование],Медикаменты[[#This Row],[Наименование]],Вводные[Расход]),0)","v":0},{"$f":"IFERROR(Медикаменты[[#This Row],[Остаток]]+Медикаменты[[#This Row],[Приход общий]]-Медикаменты[[#This Row],[Расход общий]],0)","v":0},null,null,"Канюля для промывания аттика","шт"]
[null,null,null,null,null,null,null,null,null,null,null,null,null,null,null,null,null,null,{"$f":"IF(IFERROR(IF(SEARCH(Расчет!$B$8,T91),\"!\",\"\"),\"\")=\"\",0,MAX($S$9:S90)+1)","v":0},"Комплект противоэпидемический","комп.",3,"","",{"$f":"IFERROR(LOOKUP(,-1/($T91=Вводные[Наименование])/(Вводные[Дата]<$U$1),Вводные[Остаток]),0)+IF(Медикаменты[[#This Row],[Дата остатка]]<$U$1,Медикаменты[[#This Row],[Остаток]],0)","v":0},{"$f":"IF(T91=\"\",\"\",SUMPRODUCT((Вводные[Дата]>=$U$1)*(Вводные[Дата]<=$U$2)*(Вводные[Наименование]=$T91),Вводные[Приход]))","v":0},{"$f":"IF(T91=\"\",\"\",SUMPRODUCT((Вводные[Дата]>=$U$1)*(Вводные[Дата]<=$U$2)*(Вводные[Наименование]=$T91),Вводные[Расход]))","v":0},{"$f":"IFERROR(Медикаменты[[#This Row],[Остаток]]+Медикаменты[[#This Row],[Приход за период]]-Медикаменты[[#This Row],[Расход за период]],\"\")","v":""},{"$f":"IFERROR(SUMIF(Вводные[Наименование],Медикаменты[[#This Row],[Наименование]],Вводные[Приход]),0)","v":0},{"$f":"IFERROR(SUMIF(Вводные[Наименование],Медикаменты[[#This Row],[Наименование]],Вводные[Расход]),0)","v":0},{"$f":"IFERROR(Медикаменты[[#This Row],[Остаток]]+Медикаменты[[#This Row],[Приход общий]]-Медикаменты[[#This Row],[Расход общий]],0)","v":0},null,null,"Катетер урологический (женский, стер.)","шт"]
[null,null,null,null,null,null,null,null,null,null,null,null,null,null,null,null,null,null,{"$f":"IF(IFERROR(IF(SEARCH(Расчет!$B$8,T92),\"!\",\"\"),\"\")=\"\",0,MAX($S$9:S91)+1)","v":0},"Контейнер для сбора кала (стер., 40 мл.)","шт",20,"","",{"$f":"IFERROR(LOOKUP(,-1/($T92=Вводные[Наименование])/(Вводные[Дата]<$U$1),Вводные[Остаток]),0)+IF(Медикаменты[[#This Row],[Дата остатка]]<$U$1,Медикаменты[[#This Row],[Остаток]],0)","v":0},{"$f":"IF(T92=\"\",\"\",SUMPRODUCT((Вводные[Дата]>=$U$1)*(Вводные[Дата]<=$U$2)*(Вводные[Наименование]=$T92),Вводные[Приход]))","v":0},{"$f":"IF(T92=\"\",\"\",SUMPRODUCT((Вводные[Дата]>=$U$1)*(Вводные[Дата]<=$U$2)*(Вводные[Наименование]=$T92),Вводные[Расход]))","v":0},{"$f":"IFERROR(Медикаменты[[#This Row],[Остаток]]+Медикаменты[[#This Row],[Приход за период]]-Медикаменты[[#This Row],[Расход за период]],\"\")","v":""},{"$f":"IFERROR(SUMIF(Вводные[Наименование],Медикаменты[[#This Row],[Наименование]],Вводные[Приход]),0)","v":0},{"$f":"IFERROR(SUMIF(Вводные[Наименование],Медикаменты[[#This Row],[Наименование]],Вводные[Расход]),0)","v":0},{"$f":"IFERROR(Медикаменты[[#This Row],[Остаток]]+Медикаменты[[#This Row],[Приход общий]]-Медикаменты[[#This Row],[Расход общий]],0)","v":0},null,null,"Кислородная подушка (25 л.)","шт"]
[null,null,null,null,null,null,null,null,null,null,null,null,null,null,null,null,null,null,{"$f":"IF(IFERROR(IF(SEARCH(Расчет!$B$8,T93),\"!\",\"\"),\"\")=\"\",0,MAX($S$9:S92)+1)","v":0},"Контейнер для сбора мочи (стер., 100 мл.)","шт",120,"","",{"$f":"IFERROR(LOOKUP(,-1/($T93=Вводные[Наименование])/(Вводные[Дата]<$U$1),Вводные[Остаток]),0)+IF(Медикаменты[[#This Row],[Дата остатка]]<$U$1,Медикаменты[[#This Row],[Остаток]],0)","v":0},{"$f":"IF(T93=\"\",\"\",SUMPRODUCT((Вводные[Дата]>=$U$1)*(Вводные[Дата]<=$U$2)*(Вводные[Наименование]=$T93),Вводные[Приход]))","v":0},{"$f":"IF(T93=\"\",\"\",SUMPRODUCT((Вводные[Дата]>=$U$1)*(Вводные[Дата]<=$U$2)*(Вводные[Наименование]=$T93),Вводные[Расход]))","v":0},{"$f":"IFERROR(Медикаменты[[#This Row],[Остаток]]+Медикаменты[[#This Row],[Приход за период]]-Медикаменты[[#This Row],[Расход за период]],\"\")","v":""},{"$f":"IFERROR(SUMIF(Вводные[Наименование],Медикаменты[[#This Row],[Наименование]],Вводные[Приход]),0)","v":0},{"$f":"IFERROR(SUMIF(Вводные[Наименование],Медикаменты[[#This Row],[Наименование]],Вводные[Расход]),0)","v":0},{"$f":"IFERROR(Медикаменты[[#This Row],[Остаток]]+Медикаменты[[#This Row],[Приход общий]]-Медикаменты[[#This Row],[Расход общий]],0)","v":0},null,null,"Комплект противоэпидемический","комп."]
[null,null,null,null,null,null,null,null,null,null,null,null,null,null,null,null,null,null,{"$f":"IF(IFERROR(IF(SEARCH(Расчет!$B$8,T94),\"!\",\"\"),\"\")=\"\",0,MAX($S$9:S93)+1)","v":0},"Контейнер для утилизации отходов МК-01 (однораз., желтый, 0,25 л.)","шт",100,"","",{"$f":"IFERROR(LOOKUP(,-1/($T94=Вводные[Наименование])/(Вводные[Дата]<$U$1),Вводные[Остаток]),0)+IF(Медикаменты[[#This Row],[Дата остатка]]<$U$1,Медикаменты[[#This Row],[Остаток]],0)","v":0},{"$f":"IF(T94=\"\",\"\",SUMPRODUCT((Вводные[Дата]>=$U$1)*(Вводные[Дата]<=$U$2)*(Вводные[Наименование]=$T94),Вводные[Приход]))","v":0},{"$f":"IF(T94=\"\",\"\",SUMPRODUCT((Вводные[Дата]>=$U$1)*(Вводные[Дата]<=$U$2)*(Вводные[Наименование]=$T94),Вводные[Расход]))","v":0},{"$f":"IFERROR(Медикаменты[[#This Row],[Остаток]]+Медикаменты[[#This Row],[Приход за период]]-Медикаменты[[#This Row],[Расход за период]],\"\")","v":""},{"$f":"IFERROR(SUMIF(Вводные[Наименование],Медикаменты[[#This Row],[Наименование]],Вводные[Приход]),0)","v":0},{"$f":"IFERROR(SUMIF(Вводные[Наименование],Медикаменты[[#This Row],[Наименование]],Вводные[Расход]),0)","v":0},{"$f":"IFERROR(Медикаменты[[#This Row],[Остаток]]+Медикаменты[[#This Row],[Приход общий]]-Медикаменты[[#This Row],[Расход общий]],0)","v":0},null,null,"Контейнер для сбора кала (стер., 40 мл.)","шт"]
[null,null,null,null,null,null,null,null,null,null,null,null,null,null,null,null,null,null,{"$f":"IF(IFERROR(IF(SEARCH(Расчет!$B$8,T95),\"!\",\"\"),\"\")=\"\",0,MAX($S$9:S94)+1)","v":0},"Контейнер для утилизации отходов МК-01 (однораз., желтый, 3 л.)","шт",100,"","",{"$f":"IFERROR(LOOKUP(,-1/($T95=Вводные[Наименование])/(Вводные[Дата]<$U$1),Вводные[Остаток]),0)+IF(Медикаменты[[#This Row],[Дата остатка]]<$U$1,Медикаменты[[#This Row],[Остаток]],0)","v":0},{"$f":"IF(T95=\"\",\"\",SUMPRODUCT((Вводные[Дата]>=$U$1)*(Вводные[Дата]<=$U$2)*(Вводные[Наименование]=$T95),Вводные[Приход]))","v":0},{"$f":"IF(T95=\"\",\"\",SUMPRODUCT((Вводные[Дата]>=$U$1)*(Вводные[Дата]<=$U$2)*(Вводные[Наименование]=$T95),Вводные[Расход]))","v":0},{"$f":"IFERROR(Медикаменты[[#This Row],[Остаток]]+Медикаменты[[#This Row],[Приход за период]]-Медикаменты[[#This Row],[Расход за период]],\"\")","v":""},{"$f":"IFERROR(SUMIF(Вводные[Наименование],Медикаменты[[#This Row],[Наименование]],Вводные[Приход]),0)","v":0},{"$f":"IFERROR(SUMIF(Вводные[Наименование],Медикаменты[[#This Row],[Наименование]],Вводные[Расход]),0)","v":0},{"$f":"IFERROR(Медикаменты[[#This Row],[Остаток]]+Медикаменты[[#This Row],[Приход общий]]-Медикаменты[[#This Row],[Расход общий]],0)","v":0},null,null,"Контейнер для сбора мочи (стер., 100 мл.)","шт"]
[null,null,null,null,null,null,null,null,null,null,null,null,null,null,null,null,null,null,{"$f":"IF(IFERROR(IF(SEARCH(Расчет!$B$8,T96),\"!\",\"\"),\"\")=\"\",0,MAX($S$9:S95)+1)","v":0},"Контейнер для утилизации отходов МК-04 (многораз., бирюзовый, 7,5 л.).","шт",7,"","",{"$f":"IFERROR(LOOKUP(,-1/($T96=Вводные[Наименование])/(Вводные[Дата]<$U$1),Вводные[Остаток]),0)+IF(Медикаменты[[#This Row],[Дата остатка]]<$U$1,Медикаменты[[#This Row],[Остаток]],0)","v":0},{"$f":"IF(T96=\"\",\"\",SUMPRODUCT((Вводные[Дата]>=$U$1)*(Вводные[Дата]<=$U$2)*(Вводные[Наименование]=$T96),Вводные[Приход]))","v":0},{"$f":"IF(T96=\"\",\"\",SUMPRODUCT((Вводные[Дата]>=$U$1)*(Вводные[Дата]<=$U$2)*(Вводные[Наименование]=$T96),Вводные[Расход]))","v":0},{"$f":"IFERROR(Медикаменты[[#This Row],[Остаток]]+Медикаменты[[#This Row],[Приход за период]]-Медикаменты[[#This Row],[Расход за период]],\"\")","v":""},{"$f":"IFERROR(SUMIF(Вводные[Наименование],Медикаменты[[#This Row],[Наименование]],Вводные[Приход]),0)","v":0},{"$f":"IFERROR(SUMIF(Вводные[Наименование],Медикаменты[[#This Row],[Наименование]],Вводные[Расход]),0)","v":0},{"$f":"IFERROR(Медикаменты[[#This Row],[Остаток]]+Медикаменты[[#This Row],[Приход общий]]-Медикаменты[[#This Row],[Расход общий]],0)","v":0},null,null,"Контейнер для утилизации отходов МК-01 (однораз., желтый, 0,25 л.)","шт"]
[null,null,null,null,null,null,null,null,null,null,null,null,null,null,null,null,null,null,{"$f":"IF(IFERROR(IF(SEARCH(Расчет!$B$8,T97),\"!\",\"\"),\"\")=\"\",0,MAX($S$9:S96)+1)","v":0},"Контейнер для утилизации отходов МК-05 (многораз., желтый 50 л.)","шт",5,"","",{"$f":"IFERROR(LOOKUP(,-1/($T97=Вводные[Наименование])/(Вводные[Дата]<$U$1),Вводные[Остаток]),0)+IF(Медикаменты[[#This Row],[Дата остатка]]<$U$1,Медикаменты[[#This Row],[Остаток]],0)","v":0},{"$f":"IF(T97=\"\",\"\",SUMPRODUCT((Вводные[Дата]>=$U$1)*(Вводные[Дата]<=$U$2)*(Вводные[Наименование]=$T97),Вводные[Приход]))","v":0},{"$f":"IF(T97=\"\",\"\",SUMPRODUCT((Вводные[Дата]>=$U$1)*(Вводные[Дата]<=$U$2)*(Вводные[Наименование]=$T97),Вводные[Расход]))","v":0},{"$f":"IFERROR(Медикаменты[[#This Row],[Остаток]]+Медикаменты[[#This Row],[Приход за период]]-Медикаменты[[#This Row],[Расход за период]],\"\")","v":""},{"$f":"IFERROR(SUMIF(Вводные[Наименование],Медикаменты[[#This Row],[Наименование]],Вводные[Приход]),0)","v":0},{"$f":"IFERROR(SUMIF(Вводные[Наименование],Медикаменты[[#This Row],[Наименование]],Вводные[Расход]),0)","v":0},{"$f":"IFERROR(Медикаменты[[#This Row],[Остаток]]+Медикаменты[[#This Row],[Приход общий]]-Медикаменты[[#This Row],[Расход общий]],0)","v":0},null,null,"Контейнер для утилизации отходов МК-01 (однораз., желтый, 3 л.)","шт"]
[null,null,null,null,null,null,null,null,null,null,null,null,null,null,null,null,null,null,{"$f":"IF(IFERROR(IF(SEARCH(Расчет!$B$8,T98),\"!\",\"\"),\"\")=\"\",0,MAX($S$9:S97)+1)","v":0},"Корвалол ",0,0,"00:00:00",0,{"$f":"IFERROR(LOOKUP(,-1/($T98=Вводные[Наименование])/(Вводные[Дата]<$U$1),Вводные[Остаток]),0)+IF(Медикаменты[[#This Row],[Дата остатка]]<$U$1,Медикаменты[[#This Row],[Остаток]],0)","v":0},{"$f":"IF(T98=\"\",\"\",SUMPRODUCT((Вводные[Дата]>=$U$1)*(Вводные[Дата]<=$U$2)*(Вводные[Наименование]=$T98),Вводные[Приход]))","v":0},{"$f":"IF(T98=\"\",\"\",SUMPRODUCT((Вводные[Дата]>=$U$1)*(Вводные[Дата]<=$U$2)*(Вводные[Наименование]=$T98),Вводные[Расход]))","v":0},{"$f":"IFERROR(Медикаменты[[#This Row],[Остаток]]+Медикаменты[[#This Row],[Приход за период]]-Медикаменты[[#This Row],[Расход за период]],\"\")","v":0},{"$f":"IFERROR(SUMIF(Вводные[Наименование],Медикаменты[[#This Row],[Наименование]],Вводные[Приход]),0)","v":0},{"$f":"IFERROR(SUMIF(Вводные[Наименование],Медикаменты[[#This Row],[Наименование]],Вводные[Расход]),0)","v":0},{"$f":"IFERROR(Медикаменты[[#This Row],[Остаток]]+Медикаменты[[#This Row],[Приход общий]]-Медикаменты[[#This Row],[Расход общий]],0)","v":0},null,null,"Контейнер для утилизации отходов МК-04 (многораз., бирюзовый, 7,5 л.).","шт"]
[null,null,null,null,null,null,null,null,null,null,null,null,null,null,null,null,null,null,{"$f":"IF(IFERROR(IF(SEARCH(Расчет!$B$8,T99),\"!\",\"\"),\"\")=\"\",0,MAX($S$9:S98)+1)","v":0},"Крафт-пакет (100 шт.)","уп.",2,"2018-06-07",600,{"$f":"IFERROR(LOOKUP(,-1/($T99=Вводные[Наименование])/(Вводные[Дата]<$U$1),Вводные[Остаток]),0)+IF(Медикаменты[[#This Row],[Дата остатка]]<$U$1,Медикаменты[[#This Row],[Остаток]],0)","v":0},{"$f":"IF(T99=\"\",\"\",SUMPRODUCT((Вводные[Дата]>=$U$1)*(Вводные[Дата]<=$U$2)*(Вводные[Наименование]=$T99),Вводные[Приход]))","v":0},{"$f":"IF(T99=\"\",\"\",SUMPRODUCT((Вводные[Дата]>=$U$1)*(Вводные[Дата]<=$U$2)*(Вводные[Наименование]=$T99),Вводные[Расход]))","v":0},{"$f":"IFERROR(Медикаменты[[#This Row],[Остаток]]+Медикаменты[[#This Row],[Приход за период]]-Медикаменты[[#This Row],[Расход за период]],\"\")","v":600},{"$f":"IFERROR(SUMIF(Вводные[Наименование],Медикаменты[[#This Row],[Наименование]],Вводные[Приход]),0)","v":0},{"$f":"IFERROR(SUMIF(Вводные[Наименование],Медикаменты[[#This Row],[Наименование]],Вводные[Расход]),0)","v":0},{"$f":"IFERROR(Медикаменты[[#This Row],[Остаток]]+Медикаменты[[#This Row],[Приход общий]]-Медикаменты[[#This Row],[Расход общий]],0)","v":600},null,null,"Контейнер для утилизации отходов МК-05 (многораз., желтый 50 л.)","шт"]
[null,null,null,null,null,null,null,null,null,null,null,null,null,null,null,null,null,null,{"$f":"IF(IFERROR(IF(SEARCH(Расчет!$B$8,T100),\"!\",\"\"),\"\")=\"\",0,MAX($S$9:S99)+1)","v":0},"Крючок Воячека","шт",3,"","",{"$f":"IFERROR(LOOKUP(,-1/($T100=Вводные[Наименование])/(Вводные[Дата]<$U$1),Вводные[Остаток]),0)+IF(Медикаменты[[#This Row],[Дата остатка]]<$U$1,Медикаменты[[#This Row],[Остаток]],0)","v":0},{"$f":"IF(T100=\"\",\"\",SUMPRODUCT((Вводные[Дата]>=$U$1)*(Вводные[Дата]<=$U$2)*(Вводные[Наименование]=$T100),Вводные[Приход]))","v":0},{"$f":"IF(T100=\"\",\"\",SUMPRODUCT((Вводные[Дата]>=$U$1)*(Вводные[Дата]<=$U$2)*(Вводные[Наименование]=$T100),Вводные[Расход]))","v":0},{"$f":"IFERROR(Медикаменты[[#This Row],[Остаток]]+Медикаменты[[#This Row],[Приход за период]]-Медикаменты[[#This Row],[Расход за период]],\"\")","v":""},{"$f":"IFERROR(SUMIF(Вводные[Наименование],Медикаменты[[#This Row],[Наименование]],Вводные[Приход]),0)","v":0},{"$f":"IFERROR(SUMIF(Вводные[Наименование],Медикаменты[[#This Row],[Наименование]],Вводные[Расход]),0)","v":0},{"$f":"IFERROR(Медикаменты[[#This Row],[Остаток]]+Медикаменты[[#This Row],[Приход общий]]-Медикаменты[[#This Row],[Расход общий]],0)","v":0},null,null,"Корвалол "]
[null,null,null,null,null,null,null,null,null,null,null,null,null,null,null,null,null,null,{"$f":"IF(IFERROR(IF(SEARCH(Расчет!$B$8,T101),\"!\",\"\"),\"\")=\"\",0,MAX($S$9:S100)+1)","v":0},"Ланцет одноразовый автоматический (200 шт.)","уп.",20,"","",{"$f":"IFERROR(LOOKUP(,-1/($T101=Вводные[Наименование])/(Вводные[Дата]<$U$1),Вводные[Остаток]),0)+IF(Медикаменты[[#This Row],[Дата остатка]]<$U$1,Медикаменты[[#This Row],[Остаток]],0)","v":0},{"$f":"IF(T101=\"\",\"\",SUMPRODUCT((Вводные[Дата]>=$U$1)*(Вводные[Дата]<=$U$2)*(Вводные[Наименование]=$T101),Вводные[Приход]))","v":0},{"$f":"IF(T101=\"\",\"\",SUMPRODUCT((Вводные[Дата]>=$U$1)*(Вводные[Дата]<=$U$2)*(Вводные[Наименование]=$T101),Вводные[Расход]))","v":0},{"$f":"IFERROR(Медикаменты[[#This Row],[Остаток]]+Медикаменты[[#This Row],[Приход за период]]-Медикаменты[[#This Row],[Расход за период]],\"\")","v":""},{"$f":"IFERROR(SUMIF(Вводные[Наименование],Медикаменты[[#This Row],[Наименование]],Вводные[Приход]),0)","v":0},{"$f":"IFERROR(SUMIF(Вводные[Наименование],Медикаменты[[#This Row],[Наименование]],Вводные[Расход]),0)","v":0},{"$f":"IFERROR(Медикаменты[[#This Row],[Остаток]]+Медикаменты[[#This Row],[Приход общий]]-Медикаменты[[#This Row],[Расход общий]],0)","v":0},null,null,"Крафт-пакет (100 шт.)","уп."]
[null,null,null,null,null,null,null,null,null,null,null,null,null,null,null,null,null,null,{"$f":"IF(IFERROR(IF(SEARCH(Расчет!$B$8,T102),\"!\",\"\"),\"\")=\"\",0,MAX($S$9:S101)+1)","v":0},"Лейкопластырь (бактер. 2х6 см.)","шт.",800,"","",{"$f":"IFERROR(LOOKUP(,-1/($T102=Вводные[Наименование])/(Вводные[Дата]<$U$1),Вводные[Остаток]),0)+IF(Медикаменты[[#This Row],[Дата остатка]]<$U$1,Медикаменты[[#This Row],[Остаток]],0)","v":0},{"$f":"IF(T102=\"\",\"\",SUMPRODUCT((Вводные[Дата]>=$U$1)*(Вводные[Дата]<=$U$2)*(Вводные[Наименование]=$T102),Вводные[Приход]))","v":0},{"$f":"IF(T102=\"\",\"\",SUMPRODUCT((Вводные[Дата]>=$U$1)*(Вводные[Дата]<=$U$2)*(Вводные[Наименование]=$T102),Вводные[Расход]))","v":0},{"$f":"IFERROR(Медикаменты[[#This Row],[Остаток]]+Медикаменты[[#This Row],[Приход за период]]-Медикаменты[[#This Row],[Расход за период]],\"\")","v":""},{"$f":"IFERROR(SUMIF(Вводные[Наименование],Медикаменты[[#This Row],[Наименование]],Вводные[Приход]),0)","v":0},{"$f":"IFERROR(SUMIF(Вводные[Наименование],Медикаменты[[#This Row],[Наименование]],Вводные[Расход]),0)","v":0},{"$f":"IFERROR(Медикаменты[[#This Row],[Остаток]]+Медикаменты[[#This Row],[Приход общий]]-Медикаменты[[#This Row],[Расход общий]],0)","v":0},null,null,"Крючок Воячека","шт"]
[null,null,null,null,null,null,null,null,null,null,null,null,null,null,null,null,null,null,{"$f":"IF(IFERROR(IF(SEARCH(Расчет!$B$8,T103),\"!\",\"\"),\"\")=\"\",0,MAX($S$9:S102)+1)","v":0},"Лейкопластырь (катушка, 2х500 см.)","шт.",60,"","",{"$f":"IFERROR(LOOKUP(,-1/($T103=Вводные[Наименование])/(Вводные[Дата]<$U$1),Вводные[Остаток]),0)+IF(Медикаменты[[#This Row],[Дата остатка]]<$U$1,Медикаменты[[#This Row],[Остаток]],0)","v":0},{"$f":"IF(T103=\"\",\"\",SUMPRODUCT((Вводные[Дата]>=$U$1)*(Вводные[Дата]<=$U$2)*(Вводные[Наименование]=$T103),Вводные[Приход]))","v":0},{"$f":"IF(T103=\"\",\"\",SUMPRODUCT((Вводные[Дата]>=$U$1)*(Вводные[Дата]<=$U$2)*(Вводные[Наименование]=$T103),Вводные[Расход]))","v":0},{"$f":"IFERROR(Медикаменты[[#This Row],[Остаток]]+Медикаменты[[#This Row],[Приход за период]]-Медикаменты[[#This Row],[Расход за период]],\"\")","v":""},{"$f":"IFERROR(SUMIF(Вводные[Наименование],Медикаменты[[#This Row],[Наименование]],Вводные[Приход]),0)","v":0},{"$f":"IFERROR(SUMIF(Вводные[Наименование],Медикаменты[[#This Row],[Наименование]],Вводные[Расход]),0)","v":0},{"$f":"IFERROR(Медикаменты[[#This Row],[Остаток]]+Медикаменты[[#This Row],[Приход общий]]-Медикаменты[[#This Row],[Расход общий]],0)","v":0},null,null,"Ланцет одноразовый автоматический (200 шт.)","уп."]
[null,null,null,null,null,null,null,null,null,null,null,null,null,null,null,null,null,null,{"$f":"IF(IFERROR(IF(SEARCH(Расчет!$B$8,T104),\"!\",\"\"),\"\")=\"\",0,MAX($S$9:S103)+1)","v":0},"Лейкопластырь (фикс. 6 рул.)","уп.",1,"","",{"$f":"IFERROR(LOOKUP(,-1/($T104=Вводные[Наименование])/(Вводные[Дата]<$U$1),Вводные[Остаток]),0)+IF(Медикаменты[[#This Row],[Дата остатка]]<$U$1,Медикаменты[[#This Row],[Остаток]],0)","v":0},{"$f":"IF(T104=\"\",\"\",SUMPRODUCT((Вводные[Дата]>=$U$1)*(Вводные[Дата]<=$U$2)*(Вводные[Наименование]=$T104),Вводные[Приход]))","v":0},{"$f":"IF(T104=\"\",\"\",SUMPRODUCT((Вводные[Дата]>=$U$1)*(Вводные[Дата]<=$U$2)*(Вводные[Наименование]=$T104),Вводные[Расход]))","v":0},{"$f":"IFERROR(Медикаменты[[#This Row],[Остаток]]+Медикаменты[[#This Row],[Приход за период]]-Медикаменты[[#This Row],[Расход за период]],\"\")","v":""},{"$f":"IFERROR(SUMIF(Вводные[Наименование],Медикаменты[[#This Row],[Наименование]],Вводные[Приход]),0)","v":0},{"$f":"IFERROR(SUMIF(Вводные[Наименование],Медикаменты[[#This Row],[Наименование]],Вводные[Расход]),0)","v":0},{"$f":"IFERROR(Медикаменты[[#This Row],[Остаток]]+Медикаменты[[#This Row],[Приход общий]]-Медикаменты[[#This Row],[Расход общий]],0)","v":0},null,null,"Лейкопластырь (бактер. 2х6 см.)","шт."]
[null,null,null,null,null,null,null,null,null,null,null,null,null,null,null,null,null,null,{"$f":"IF(IFERROR(IF(SEARCH(Расчет!$B$8,T105),\"!\",\"\"),\"\")=\"\",0,MAX($S$9:S104)+1)","v":0},"Лидокаин (амп., 2%, №10)","уп.",5,"","",{"$f":"IFERROR(LOOKUP(,-1/($T105=Вводные[Наименование])/(Вводные[Дата]<$U$1),Вводные[Остаток]),0)+IF(Медикаменты[[#This Row],[Дата остатка]]<$U$1,Медикаменты[[#This Row],[Остаток]],0)","v":0},{"$f":"IF(T105=\"\",\"\",SUMPRODUCT((Вводные[Дата]>=$U$1)*(Вводные[Дата]<=$U$2)*(Вводные[Наименование]=$T105),Вводные[Приход]))","v":0},{"$f":"IF(T105=\"\",\"\",SUMPRODUCT((Вводные[Дата]>=$U$1)*(Вводные[Дата]<=$U$2)*(Вводные[Наименование]=$T105),Вводные[Расход]))","v":0},{"$f":"IFERROR(Медикаменты[[#This Row],[Остаток]]+Медикаменты[[#This Row],[Приход за период]]-Медикаменты[[#This Row],[Расход за период]],\"\")","v":""},{"$f":"IFERROR(SUMIF(Вводные[Наименование],Медикаменты[[#This Row],[Наименование]],Вводные[Приход]),0)","v":0},{"$f":"IFERROR(SUMIF(Вводные[Наименование],Медикаменты[[#This Row],[Наименование]],Вводные[Расход]),0)","v":0},{"$f":"IFERROR(Медикаменты[[#This Row],[Остаток]]+Медикаменты[[#This Row],[Приход общий]]-Медикаменты[[#This Row],[Расход общий]],0)","v":0},null,null,"Лейкопластырь (катушка, 2х500 см.)","шт."]
[null,null,null,null,null,null,null,null,null,null,null,null,null,null,null,null,null,null,{"$f":"IF(IFERROR(IF(SEARCH(Расчет!$B$8,T106),\"!\",\"\"),\"\")=\"\",0,MAX($S$9:S105)+1)","v":0},"Лидокаин (спрей, 10%, 38 г.)","уп.",3,"","",{"$f":"IFERROR(LOOKUP(,-1/($T106=Вводные[Наименование])/(Вводные[Дата]<$U$1),Вводные[Остаток]),0)+IF(Медикаменты[[#This Row],[Дата остатка]]<$U$1,Медикаменты[[#This Row],[Остаток]],0)","v":0},{"$f":"IF(T106=\"\",\"\",SUMPRODUCT((Вводные[Дата]>=$U$1)*(Вводные[Дата]<=$U$2)*(Вводные[Наименование]=$T106),Вводные[Приход]))","v":0},{"$f":"IF(T106=\"\",\"\",SUMPRODUCT((Вводные[Дата]>=$U$1)*(Вводные[Дата]<=$U$2)*(Вводные[Наименование]=$T106),Вводные[Расход]))","v":0},{"$f":"IFERROR(Медикаменты[[#This Row],[Остаток]]+Медикаменты[[#This Row],[Приход за период]]-Медикаменты[[#This Row],[Расход за период]],\"\")","v":""},{"$f":"IFERROR(SUMIF(Вводные[Наименование],Медикаменты[[#This Row],[Наименование]],Вводные[Приход]),0)","v":0},{"$f":"IFERROR(SUMIF(Вводные[Наименование],Медикаменты[[#This Row],[Наименование]],Вводные[Расход]),0)","v":0},{"$f":"IFERROR(Медикаменты[[#This Row],[Остаток]]+Медикаменты[[#This Row],[Приход общий]]-Медикаменты[[#This Row],[Расход общий]],0)","v":0},null,null,"Лейкопластырь (фикс. 6 рул.)","уп."]
[null,null,null,null,null,null,null,null,null,null,null,null,null,null,null,null,null,null,{"$f":"IF(IFERROR(IF(SEARCH(Расчет!$B$8,T107),\"!\",\"\"),\"\")=\"\",0,MAX($S$9:S106)+1)","v":0},"Линкомицин (амп., 1 мл., №10)","уп.",4,"","",{"$f":"IFERROR(LOOKUP(,-1/($T107=Вводные[Наименование])/(Вводные[Дата]<$U$1),Вводные[Остаток]),0)+IF(Медикаменты[[#This Row],[Дата остатка]]<$U$1,Медикаменты[[#This Row],[Остаток]],0)","v":0},{"$f":"IF(T107=\"\",\"\",SUMPRODUCT((Вводные[Дата]>=$U$1)*(Вводные[Дата]<=$U$2)*(Вводные[Наименование]=$T107),Вводные[Приход]))","v":0},{"$f":"IF(T107=\"\",\"\",SUMPRODUCT((Вводные[Дата]>=$U$1)*(Вводные[Дата]<=$U$2)*(Вводные[Наименование]=$T107),Вводные[Расход]))","v":0},{"$f":"IFERROR(Медикаменты[[#This Row],[Остаток]]+Медикаменты[[#This Row],[Приход за период]]-Медикаменты[[#This Row],[Расход за период]],\"\")","v":""},{"$f":"IFERROR(SUMIF(Вводные[Наименование],Медикаменты[[#This Row],[Наименование]],Вводные[Приход]),0)","v":0},{"$f":"IFERROR(SUMIF(Вводные[Наименование],Медикаменты[[#This Row],[Наименование]],Вводные[Расход]),0)","v":0},{"$f":"IFERROR(Медикаменты[[#This Row],[Остаток]]+Медикаменты[[#This Row],[Приход общий]]-Медикаменты[[#This Row],[Расход общий]],0)","v":0},null,null,"Лидокаин (амп., 2%, №10)","уп."]
[null,null,null,null,null,null,null,null,null,null,null,null,null,null,null,null,null,null,{"$f":"IF(IFERROR(IF(SEARCH(Расчет!$B$8,T108),\"!\",\"\"),\"\")=\"\",0,MAX($S$9:S107)+1)","v":0},"Ложка Фолькмана","шт.",500,"2018-06-07",100,{"$f":"IFERROR(LOOKUP(,-1/($T108=Вводные[Наименование])/(Вводные[Дата]<$U$1),Вводные[Остаток]),0)+IF(Медикаменты[[#This Row],[Дата остатка]]<$U$1,Медикаменты[[#This Row],[Остаток]],0)","v":0},{"$f":"IF(T108=\"\",\"\",SUMPRODUCT((Вводные[Дата]>=$U$1)*(Вводные[Дата]<=$U$2)*(Вводные[Наименование]=$T108),Вводные[Приход]))","v":0},{"$f":"IF(T108=\"\",\"\",SUMPRODUCT((Вводные[Дата]>=$U$1)*(Вводные[Дата]<=$U$2)*(Вводные[Наименование]=$T108),Вводные[Расход]))","v":0},{"$f":"IFERROR(Медикаменты[[#This Row],[Остаток]]+Медикаменты[[#This Row],[Приход за период]]-Медикаменты[[#This Row],[Расход за период]],\"\")","v":100},{"$f":"IFERROR(SUMIF(Вводные[Наименование],Медикаменты[[#This Row],[Наименование]],Вводные[Приход]),0)","v":0},{"$f":"IFERROR(SUMIF(Вводные[Наименование],Медикаменты[[#This Row],[Наименование]],Вводные[Расход]),0)","v":0},{"$f":"IFERROR(Медикаменты[[#This Row],[Остаток]]+Медикаменты[[#This Row],[Приход общий]]-Медикаменты[[#This Row],[Расход общий]],0)","v":100},null,null,"Лидокаин (спрей, 10%, 38 г.)","уп."]
[null,null,null,null,null,null,null,null,null,null,null,null,null,null,null,null,null,null,{"$f":"IF(IFERROR(IF(SEARCH(Расчет!$B$8,T109),\"!\",\"\"),\"\")=\"\",0,MAX($S$9:S108)+1)","v":0},"Мазь гидрокортизоновая (0,5%, 5 мл.)","уп.",4,"","",{"$f":"IFERROR(LOOKUP(,-1/($T109=Вводные[Наименование])/(Вводные[Дата]<$U$1),Вводные[Остаток]),0)+IF(Медикаменты[[#This Row],[Дата остатка]]<$U$1,Медикаменты[[#This Row],[Остаток]],0)","v":0},{"$f":"IF(T109=\"\",\"\",SUMPRODUCT((Вводные[Дата]>=$U$1)*(Вводные[Дата]<=$U$2)*(Вводные[Наименование]=$T109),Вводные[Приход]))","v":0},{"$f":"IF(T109=\"\",\"\",SUMPRODUCT((Вводные[Дата]>=$U$1)*(Вводные[Дата]<=$U$2)*(Вводные[Наименование]=$T109),Вводные[Расход]))","v":0},{"$f":"IFERROR(Медикаменты[[#This Row],[Остаток]]+Медикаменты[[#This Row],[Приход за период]]-Медикаменты[[#This Row],[Расход за период]],\"\")","v":""},{"$f":"IFERROR(SUMIF(Вводные[Наименование],Медикаменты[[#This Row],[Наименование]],Вводные[Приход]),0)","v":0},{"$f":"IFERROR(SUMIF(Вводные[Наименование],Медикаменты[[#This Row],[Наименование]],Вводные[Расход]),0)","v":0},{"$f":"IFERROR(Медикаменты[[#This Row],[Остаток]]+Медикаменты[[#This Row],[Приход общий]]-Медикаменты[[#This Row],[Расход общий]],0)","v":0},null,null,"Линкомицин (амп., 1 мл., №10)","уп."]
[null,null,null,null,null,null,null,null,null,null,null,null,null,null,null,null,null,null,{"$f":"IF(IFERROR(IF(SEARCH(Расчет!$B$8,T110),\"!\",\"\"),\"\")=\"\",0,MAX($S$9:S109)+1)","v":0},"Мазь левомеколь (40 г.)","уп.",7,"","",{"$f":"IFERROR(LOOKUP(,-1/($T110=Вводные[Наименование])/(Вводные[Дата]<$U$1),Вводные[Остаток]),0)+IF(Медикаменты[[#This Row],[Дата остатка]]<$U$1,Медикаменты[[#This Row],[Остаток]],0)","v":0},{"$f":"IF(T110=\"\",\"\",SUMPRODUCT((Вводные[Дата]>=$U$1)*(Вводные[Дата]<=$U$2)*(Вводные[Наименование]=$T110),Вводные[Приход]))","v":0},{"$f":"IF(T110=\"\",\"\",SUMPRODUCT((Вводные[Дата]>=$U$1)*(Вводные[Дата]<=$U$2)*(Вводные[Наименование]=$T110),Вводные[Расход]))","v":0},{"$f":"IFERROR(Медикаменты[[#This Row],[Остаток]]+Медикаменты[[#This Row],[Приход за период]]-Медикаменты[[#This Row],[Расход за период]],\"\")","v":""},{"$f":"IFERROR(SUMIF(Вводные[Наименование],Медикаменты[[#This Row],[Наименование]],Вводные[Приход]),0)","v":0},{"$f":"IFERROR(SUMIF(Вводные[Наименование],Медикаменты[[#This Row],[Наименование]],Вводные[Расход]),0)","v":0},{"$f":"IFERROR(Медикаменты[[#This Row],[Остаток]]+Медикаменты[[#This Row],[Приход общий]]-Медикаменты[[#This Row],[Расход общий]],0)","v":0},null,null,"Ложка Фолькмана","шт."]
[null,null,null,null,null,null,null,null,null,null,null,null,null,null,null,null,null,null,{"$f":"IF(IFERROR(IF(SEARCH(Расчет!$B$8,T111),\"!\",\"\"),\"\")=\"\",0,MAX($S$9:S110)+1)","v":0},"Мазь тетрациклиновая (1%, 5 г.)","уп.",2,"","",{"$f":"IFERROR(LOOKUP(,-1/($T111=Вводные[Наименование])/(Вводные[Дата]<$U$1),Вводные[Остаток]),0)+IF(Медикаменты[[#This Row],[Дата остатка]]<$U$1,Медикаменты[[#This Row],[Остаток]],0)","v":0},{"$f":"IF(T111=\"\",\"\",SUMPRODUCT((Вводные[Дата]>=$U$1)*(Вводные[Дата]<=$U$2)*(Вводные[Наименование]=$T111),Вводные[Приход]))","v":0},{"$f":"IF(T111=\"\",\"\",SUMPRODUCT((Вводные[Дата]>=$U$1)*(Вводные[Дата]<=$U$2)*(Вводные[Наименование]=$T111),Вводные[Расход]))","v":0},{"$f":"IFERROR(Медикаменты[[#This Row],[Остаток]]+Медикаменты[[#This Row],[Приход за период]]-Медикаменты[[#This Row],[Расход за период]],\"\")","v":""},{"$f":"IFERROR(SUMIF(Вводные[Наименование],Медикаменты[[#This Row],[Наименование]],Вводные[Приход]),0)","v":0},{"$f":"IFERROR(SUMIF(Вводные[Наименование],Медикаменты[[#This Row],[Наименование]],Вводные[Расход]),0)","v":0},{"$f":"IFERROR(Медикаменты[[#This Row],[Остаток]]+Медикаменты[[#This Row],[Приход общий]]-Медикаменты[[#This Row],[Расход общий]],0)","v":0},null,null,"Мазь гидрокортизоновая (0,5%, 5 мл.)","уп."]
[null,null,null,null,null,null,null,null,null,null,null,null,null,null,null,null,null,null,{"$f":"IF(IFERROR(IF(SEARCH(Расчет!$B$8,T112),\"!\",\"\"),\"\")=\"\",0,MAX($S$9:S111)+1)","v":0},"Марля (нестр.)","м",150,"","",{"$f":"IFERROR(LOOKUP(,-1/($T112=Вводные[Наименование])/(Вводные[Дата]<$U$1),Вводные[Остаток]),0)+IF(Медикаменты[[#This Row],[Дата остатка]]<$U$1,Медикаменты[[#This Row],[Остаток]],0)","v":0},{"$f":"IF(T112=\"\",\"\",SUMPRODUCT((Вводные[Дата]>=$U$1)*(Вводные[Дата]<=$U$2)*(Вводные[Наименование]=$T112),Вводные[Приход]))","v":0},{"$f":"IF(T112=\"\",\"\",SUMPRODUCT((Вводные[Дата]>=$U$1)*(Вводные[Дата]<=$U$2)*(Вводные[Наименование]=$T112),Вводные[Расход]))","v":0},{"$f":"IFERROR(Медикаменты[[#This Row],[Остаток]]+Медикаменты[[#This Row],[Приход за период]]-Медикаменты[[#This Row],[Расход за период]],\"\")","v":""},{"$f":"IFERROR(SUMIF(Вводные[Наименование],Медикаменты[[#This Row],[Наименование]],Вводные[Приход]),0)","v":0},{"$f":"IFERROR(SUMIF(Вводные[Наименование],Медикаменты[[#This Row],[Наименование]],Вводные[Расход]),0)","v":0},{"$f":"IFERROR(Медикаменты[[#This Row],[Остаток]]+Медикаменты[[#This Row],[Приход общий]]-Медикаменты[[#This Row],[Расход общий]],0)","v":0},null,null,"Мазь левомеколь (40 г.)","уп."]
[null,null,null,null,null,null,null,null,null,null,null,null,null,null,null,null,null,null,{"$f":"IF(IFERROR(IF(SEARCH(Расчет!$B$8,T113),\"!\",\"\"),\"\")=\"\",0,MAX($S$9:S112)+1)","v":0},"Маска Лепесток 200","шт",50,"","",{"$f":"IFERROR(LOOKUP(,-1/($T113=Вводные[Наименование])/(Вводные[Дата]<$U$1),Вводные[Остаток]),0)+IF(Медикаменты[[#This Row],[Дата остатка]]<$U$1,Медикаменты[[#This Row],[Остаток]],0)","v":0},{"$f":"IF(T113=\"\",\"\",SUMPRODUCT((Вводные[Дата]>=$U$1)*(Вводные[Дата]<=$U$2)*(Вводные[Наименование]=$T113),Вводные[Приход]))","v":0},{"$f":"IF(T113=\"\",\"\",SUMPRODUCT((Вводные[Дата]>=$U$1)*(Вводные[Дата]<=$U$2)*(Вводные[Наименование]=$T113),Вводные[Расход]))","v":0},{"$f":"IFERROR(Медикаменты[[#This Row],[Остаток]]+Медикаменты[[#This Row],[Приход за период]]-Медикаменты[[#This Row],[Расход за период]],\"\")","v":""},{"$f":"IFERROR(SUMIF(Вводные[Наименование],Медикаменты[[#This Row],[Наименование]],Вводные[Приход]),0)","v":0},{"$f":"IFERROR(SUMIF(Вводные[Наименование],Медикаменты[[#This Row],[Наименование]],Вводные[Расход]),0)","v":0},{"$f":"IFERROR(Медикаменты[[#This Row],[Остаток]]+Медикаменты[[#This Row],[Приход общий]]-Медикаменты[[#This Row],[Расход общий]],0)","v":0},null,null,"Мазь тетрациклиновая (1%, 5 г.)","уп."]
[null,null,null,null,null,null,null,null,null,null,null,null,null,null,null,null,null,null,{"$f":"IF(IFERROR(IF(SEARCH(Расчет!$B$8,T114),\"!\",\"\"),\"\")=\"\",0,MAX($S$9:S113)+1)","v":0},"Маска медицинская трёхслойная, одноразовая (нестер., 50 шт.)","шт.",5000,"","",{"$f":"IFERROR(LOOKUP(,-1/($T114=Вводные[Наименование])/(Вводные[Дата]<$U$1),Вводные[Остаток]),0)+IF(Медикаменты[[#This Row],[Дата остатка]]<$U$1,Медикаменты[[#This Row],[Остаток]],0)","v":0},{"$f":"IF(T114=\"\",\"\",SUMPRODUCT((Вводные[Дата]>=$U$1)*(Вводные[Дата]<=$U$2)*(Вводные[Наименование]=$T114),Вводные[Приход]))","v":0},{"$f":"IF(T114=\"\",\"\",SUMPRODUCT((Вводные[Дата]>=$U$1)*(Вводные[Дата]<=$U$2)*(Вводные[Наименование]=$T114),Вводные[Расход]))","v":0},{"$f":"IFERROR(Медикаменты[[#This Row],[Остаток]]+Медикаменты[[#This Row],[Приход за период]]-Медикаменты[[#This Row],[Расход за период]],\"\")","v":""},{"$f":"IFERROR(SUMIF(Вводные[Наименование],Медикаменты[[#This Row],[Наименование]],Вводные[Приход]),0)","v":0},{"$f":"IFERROR(SUMIF(Вводные[Наименование],Медикаменты[[#This Row],[Наименование]],Вводные[Расход]),0)","v":0},{"$f":"IFERROR(Медикаменты[[#This Row],[Остаток]]+Медикаменты[[#This Row],[Приход общий]]-Медикаменты[[#This Row],[Расход общий]],0)","v":0},null,null,"Марля (нестр.)","м"]
[null,null,null,null,null,null,null,null,null,null,null,null,null,null,null,null,null,null,{"$f":"IF(IFERROR(IF(SEARCH(Расчет!$B$8,T115),\"!\",\"\"),\"\")=\"\",0,MAX($S$9:S114)+1)","v":0},"МДГР (5 л.)","шт.",18,"2018-06-07",32,{"$f":"IFERROR(LOOKUP(,-1/($T115=Вводные[Наименование])/(Вводные[Дата]<$U$1),Вводные[Остаток]),0)+IF(Медикаменты[[#This Row],[Дата остатка]]<$U$1,Медикаменты[[#This Row],[Остаток]],0)","v":0},{"$f":"IF(T115=\"\",\"\",SUMPRODUCT((Вводные[Дата]>=$U$1)*(Вводные[Дата]<=$U$2)*(Вводные[Наименование]=$T115),Вводные[Приход]))","v":0},{"$f":"IF(T115=\"\",\"\",SUMPRODUCT((Вводные[Дата]>=$U$1)*(Вводные[Дата]<=$U$2)*(Вводные[Наименование]=$T115),Вводные[Расход]))","v":0},{"$f":"IFERROR(Медикаменты[[#This Row],[Остаток]]+Медикаменты[[#This Row],[Приход за период]]-Медикаменты[[#This Row],[Расход за период]],\"\")","v":32},{"$f":"IFERROR(SUMIF(Вводные[Наименование],Медикаменты[[#This Row],[Наименование]],Вводные[Приход]),0)","v":0},{"$f":"IFERROR(SUMIF(Вводные[Наименование],Медикаменты[[#This Row],[Наименование]],Вводные[Расход]),0)","v":0},{"$f":"IFERROR(Медикаменты[[#This Row],[Остаток]]+Медикаменты[[#This Row],[Приход общий]]-Медикаменты[[#This Row],[Расход общий]],0)","v":32},null,null,"Маска Лепесток 200","шт"]
[null,null,null,null,null,null,null,null,null,null,null,null,null,null,null,null,null,null,{"$f":"IF(IFERROR(IF(SEARCH(Расчет!$B$8,T116),\"!\",\"\"),\"\")=\"\",0,MAX($S$9:S115)+1)","v":0},"Мексидол (амп., 5%, 50 мг.- 2 мл., №10)","уп.",50,"","",{"$f":"IFERROR(LOOKUP(,-1/($T116=Вводные[Наименование])/(Вводные[Дата]<$U$1),Вводные[Остаток]),0)+IF(Медикаменты[[#This Row],[Дата остатка]]<$U$1,Медикаменты[[#This Row],[Остаток]],0)","v":0},{"$f":"IF(T116=\"\",\"\",SUMPRODUCT((Вводные[Дата]>=$U$1)*(Вводные[Дата]<=$U$2)*(Вводные[Наименование]=$T116),Вводные[Приход]))","v":0},{"$f":"IF(T116=\"\",\"\",SUMPRODUCT((Вводные[Дата]>=$U$1)*(Вводные[Дата]<=$U$2)*(Вводные[Наименование]=$T116),Вводные[Расход]))","v":0},{"$f":"IFERROR(Медикаменты[[#This Row],[Остаток]]+Медикаменты[[#This Row],[Приход за период]]-Медикаменты[[#This Row],[Расход за период]],\"\")","v":""},{"$f":"IFERROR(SUMIF(Вводные[Наименование],Медикаменты[[#This Row],[Наименование]],Вводные[Приход]),0)","v":0},{"$f":"IFERROR(SUMIF(Вводные[Наименование],Медикаменты[[#This Row],[Наименование]],Вводные[Расход]),0)","v":0},{"$f":"IFERROR(Медикаменты[[#This Row],[Остаток]]+Медикаменты[[#This Row],[Приход общий]]-Медикаменты[[#This Row],[Расход общий]],0)","v":0},null,null,"Маска медицинская трёхслойная, одноразовая (нестер., 50 шт.)","шт."]
[null,null,null,null,null,null,null,null,null,null,null,null,null,null,null,null,null,null,{"$f":"IF(IFERROR(IF(SEARCH(Расчет!$B$8,T117),\"!\",\"\"),\"\")=\"\",0,MAX($S$9:S116)+1)","v":0},"Мексидол (р-р для инъекций по 2 мл., №10)","уп.",20,"","",{"$f":"IFERROR(LOOKUP(,-1/($T117=Вводные[Наименование])/(Вводные[Дата]<$U$1),Вводные[Остаток]),0)+IF(Медикаменты[[#This Row],[Дата остатка]]<$U$1,Медикаменты[[#This Row],[Остаток]],0)","v":0},{"$f":"IF(T117=\"\",\"\",SUMPRODUCT((Вводные[Дата]>=$U$1)*(Вводные[Дата]<=$U$2)*(Вводные[Наименование]=$T117),Вводные[Приход]))","v":0},{"$f":"IF(T117=\"\",\"\",SUMPRODUCT((Вводные[Дата]>=$U$1)*(Вводные[Дата]<=$U$2)*(Вводные[Наименование]=$T117),Вводные[Расход]))","v":0},{"$f":"IFERROR(Медикаменты[[#This Row],[Остаток]]+Медикаменты[[#This Row],[Приход за период]]-Медикаменты[[#This Row],[Расход за период]],\"\")","v":""},{"$f":"IFERROR(SUMIF(Вводные[Наименование],Медикаменты[[#This Row],[Наименование]],Вводные[Приход]),0)","v":0},{"$f":"IFERROR(SUMIF(Вводные[Наименование],Медикаменты[[#This Row],[Наименование]],Вводные[Расход]),0)","v":0},{"$f":"IFERROR(Медикаменты[[#This Row],[Остаток]]+Медикаменты[[#This Row],[Приход общий]]-Медикаменты[[#This Row],[Расход общий]],0)","v":0},null,null,"МДГР (5 л.)","шт."]
[null,null,null,null,null,null,null,null,null,null,null,null,null,null,null,null,null,null,{"$f":"IF(IFERROR(IF(SEARCH(Расчет!$B$8,T118),\"!\",\"\"),\"\")=\"\",0,MAX($S$9:S117)+1)","v":0},"Мексидол (таб., 125 мг., №50)","уп.",20,"","",{"$f":"IFERROR(LOOKUP(,-1/($T118=Вводные[Наименование])/(Вводные[Дата]<$U$1),Вводные[Остаток]),0)+IF(Медикаменты[[#This Row],[Дата остатка]]<$U$1,Медикаменты[[#This Row],[Остаток]],0)","v":0},{"$f":"IF(T118=\"\",\"\",SUMPRODUCT((Вводные[Дата]>=$U$1)*(Вводные[Дата]<=$U$2)*(Вводные[Наименование]=$T118),Вводные[Приход]))","v":0},{"$f":"IF(T118=\"\",\"\",SUMPRODUCT((Вводные[Дата]>=$U$1)*(Вводные[Дата]<=$U$2)*(Вводные[Наименование]=$T118),Вводные[Расход]))","v":0},{"$f":"IFERROR(Медикаменты[[#This Row],[Остаток]]+Медикаменты[[#This Row],[Приход за период]]-Медикаменты[[#This Row],[Расход за период]],\"\")","v":""},{"$f":"IFERROR(SUMIF(Вводные[Наименование],Медикаменты[[#This Row],[Наименование]],Вводные[Приход]),0)","v":0},{"$f":"IFERROR(SUMIF(Вводные[Наименование],Медикаменты[[#This Row],[Наименование]],Вводные[Расход]),0)","v":0},{"$f":"IFERROR(Медикаменты[[#This Row],[Остаток]]+Медикаменты[[#This Row],[Приход общий]]-Медикаменты[[#This Row],[Расход общий]],0)","v":0},null,null,"Мексидол (амп., 5%, 50 мг.- 2 мл., №10)","уп."]
[null,null,null,null,null,null,null,null,null,null,null,null,null,null,null,null,null,null,{"$f":"IF(IFERROR(IF(SEARCH(Расчет!$B$8,T119),\"!\",\"\"),\"\")=\"\",0,MAX($S$9:S118)+1)","v":0},"Метронидазол (таб., 0,2 мл., №10)",0,0,"","",{"$f":"IFERROR(LOOKUP(,-1/($T119=Вводные[Наименование])/(Вводные[Дата]<$U$1),Вводные[Остаток]),0)+IF(Медикаменты[[#This Row],[Дата остатка]]<$U$1,Медикаменты[[#This Row],[Остаток]],0)","v":0},{"$f":"IF(T119=\"\",\"\",SUMPRODUCT((Вводные[Дата]>=$U$1)*(Вводные[Дата]<=$U$2)*(Вводные[Наименование]=$T119),Вводные[Приход]))","v":0},{"$f":"IF(T119=\"\",\"\",SUMPRODUCT((Вводные[Дата]>=$U$1)*(Вводные[Дата]<=$U$2)*(Вводные[Наименование]=$T119),Вводные[Расход]))","v":0},{"$f":"IFERROR(Медикаменты[[#This Row],[Остаток]]+Медикаменты[[#This Row],[Приход за период]]-Медикаменты[[#This Row],[Расход за период]],\"\")","v":""},{"$f":"IFERROR(SUMIF(Вводные[Наименование],Медикаменты[[#This Row],[Наименование]],Вводные[Приход]),0)","v":0},{"$f":"IFERROR(SUMIF(Вводные[Наименование],Медикаменты[[#This Row],[Наименование]],Вводные[Расход]),0)","v":0},{"$f":"IFERROR(Медикаменты[[#This Row],[Остаток]]+Медикаменты[[#This Row],[Приход общий]]-Медикаменты[[#This Row],[Расход общий]],0)","v":0},null,null,"Мексидол (р-р для инъекций по 2 мл., №10)","уп."]
[null,null,null,null,null,null,null,null,null,null,null,null,null,null,null,null,null,null,{"$f":"IF(IFERROR(IF(SEARCH(Расчет!$B$8,T120),\"!\",\"\"),\"\")=\"\",0,MAX($S$9:S119)+1)","v":0},"Мешок АМБУ детский","шт",7,"","",{"$f":"IFERROR(LOOKUP(,-1/($T120=Вводные[Наименование])/(Вводные[Дата]<$U$1),Вводные[Остаток]),0)+IF(Медикаменты[[#This Row],[Дата остатка]]<$U$1,Медикаменты[[#This Row],[Остаток]],0)","v":0},{"$f":"IF(T120=\"\",\"\",SUMPRODUCT((Вводные[Дата]>=$U$1)*(Вводные[Дата]<=$U$2)*(Вводные[Наименование]=$T120),Вводные[Приход]))","v":0},{"$f":"IF(T120=\"\",\"\",SUMPRODUCT((Вводные[Дата]>=$U$1)*(Вводные[Дата]<=$U$2)*(Вводные[Наименование]=$T120),Вводные[Расход]))","v":0},{"$f":"IFERROR(Медикаменты[[#This Row],[Остаток]]+Медикаменты[[#This Row],[Приход за период]]-Медикаменты[[#This Row],[Расход за период]],\"\")","v":""},{"$f":"IFERROR(SUMIF(Вводные[Наименование],Медикаменты[[#This Row],[Наименование]],Вводные[Приход]),0)","v":0},{"$f":"IFERROR(SUMIF(Вводные[Наименование],Медикаменты[[#This Row],[Наименование]],Вводные[Расход]),0)","v":0},{"$f":"IFERROR(Медикаменты[[#This Row],[Остаток]]+Медикаменты[[#This Row],[Приход общий]]-Медикаменты[[#This Row],[Расход общий]],0)","v":0},null,null,"Мексидол (таб., 125 мг., №50)","уп."]
[null,null,null,null,null,null,null,null,null,null,null,null,null,null,null,null,null,null,{"$f":"IF(IFERROR(IF(SEARCH(Расчет!$B$8,T121),\"!\",\"\"),\"\")=\"\",0,MAX($S$9:S120)+1)","v":0},"Мундштук картонный одноразовый","шт",1400,"","",{"$f":"IFERROR(LOOKUP(,-1/($T121=Вводные[Наименование])/(Вводные[Дата]<$U$1),Вводные[Остаток]),0)+IF(Медикаменты[[#This Row],[Дата остатка]]<$U$1,Медикаменты[[#This Row],[Остаток]],0)","v":0},{"$f":"IF(T121=\"\",\"\",SUMPRODUCT((Вводные[Дата]>=$U$1)*(Вводные[Дата]<=$U$2)*(Вводные[Наименование]=$T121),Вводные[Приход]))","v":0},{"$f":"IF(T121=\"\",\"\",SUMPRODUCT((Вводные[Дата]>=$U$1)*(Вводные[Дата]<=$U$2)*(Вводные[Наименование]=$T121),Вводные[Расход]))","v":0},{"$f":"IFERROR(Медикаменты[[#This Row],[Остаток]]+Медикаменты[[#This Row],[Приход за период]]-Медикаменты[[#This Row],[Расход за период]],\"\")","v":""},{"$f":"IFERROR(SUMIF(Вводные[Наименование],Медикаменты[[#This Row],[Наименование]],Вводные[Приход]),0)","v":0},{"$f":"IFERROR(SUMIF(Вводные[Наименование],Медикаменты[[#This Row],[Наименование]],Вводные[Расход]),0)","v":0},{"$f":"IFERROR(Медикаменты[[#This Row],[Остаток]]+Медикаменты[[#This Row],[Приход общий]]-Медикаменты[[#This Row],[Расход общий]],0)","v":0},null,null,"Метронидазол (таб., 0,2 мл., №10)"]
[null,null,null,null,null,null,null,null,null,null,null,null,null,null,null,null,null,null,{"$f":"IF(IFERROR(IF(SEARCH(Расчет!$B$8,T122),\"!\",\"\"),\"\")=\"\",0,MAX($S$9:S121)+1)","v":0},"Напальчник","шт.",135,"","",{"$f":"IFERROR(LOOKUP(,-1/($T122=Вводные[Наименование])/(Вводные[Дата]<$U$1),Вводные[Остаток]),0)+IF(Медикаменты[[#This Row],[Дата остатка]]<$U$1,Медикаменты[[#This Row],[Остаток]],0)","v":0},{"$f":"IF(T122=\"\",\"\",SUMPRODUCT((Вводные[Дата]>=$U$1)*(Вводные[Дата]<=$U$2)*(Вводные[Наименование]=$T122),Вводные[Приход]))","v":0},{"$f":"IF(T122=\"\",\"\",SUMPRODUCT((Вводные[Дата]>=$U$1)*(Вводные[Дата]<=$U$2)*(Вводные[Наименование]=$T122),Вводные[Расход]))","v":0},{"$f":"IFERROR(Медикаменты[[#This Row],[Остаток]]+Медикаменты[[#This Row],[Приход за период]]-Медикаменты[[#This Row],[Расход за период]],\"\")","v":""},{"$f":"IFERROR(SUMIF(Вводные[Наименование],Медикаменты[[#This Row],[Наименование]],Вводные[Приход]),0)","v":0},{"$f":"IFERROR(SUMIF(Вводные[Наименование],Медикаменты[[#This Row],[Наименование]],Вводные[Расход]),0)","v":0},{"$f":"IFERROR(Медикаменты[[#This Row],[Остаток]]+Медикаменты[[#This Row],[Приход общий]]-Медикаменты[[#This Row],[Расход общий]],0)","v":0},null,null,"Мешок АМБУ детский","шт"]
[null,null,null,null,null,null,null,null,null,null,null,null,null,null,null,null,null,null,{"$f":"IF(IFERROR(IF(SEARCH(Расчет!$B$8,T123),\"!\",\"\"),\"\")=\"\",0,MAX($S$9:S122)+1)","v":0},"Настойка йода (амп., 5%, 10 мл.)","уп.",140,"","",{"$f":"IFERROR(LOOKUP(,-1/($T123=Вводные[Наименование])/(Вводные[Дата]<$U$1),Вводные[Остаток]),0)+IF(Медикаменты[[#This Row],[Дата остатка]]<$U$1,Медикаменты[[#This Row],[Остаток]],0)","v":0},{"$f":"IF(T123=\"\",\"\",SUMPRODUCT((Вводные[Дата]>=$U$1)*(Вводные[Дата]<=$U$2)*(Вводные[Наименование]=$T123),Вводные[Приход]))","v":0},{"$f":"IF(T123=\"\",\"\",SUMPRODUCT((Вводные[Дата]>=$U$1)*(Вводные[Дата]<=$U$2)*(Вводные[Наименование]=$T123),Вводные[Расход]))","v":0},{"$f":"IFERROR(Медикаменты[[#This Row],[Остаток]]+Медикаменты[[#This Row],[Приход за период]]-Медикаменты[[#This Row],[Расход за период]],\"\")","v":""},{"$f":"IFERROR(SUMIF(Вводные[Наименование],Медикаменты[[#This Row],[Наименование]],Вводные[Приход]),0)","v":0},{"$f":"IFERROR(SUMIF(Вводные[Наименование],Медикаменты[[#This Row],[Наименование]],Вводные[Расход]),0)","v":0},{"$f":"IFERROR(Медикаменты[[#This Row],[Остаток]]+Медикаменты[[#This Row],[Приход общий]]-Медикаменты[[#This Row],[Расход общий]],0)","v":0},null,null,"Мундштук картонный одноразовый","шт"]
[null,null,null,null,null,null,null,null,null,null,null,null,null,null,null,null,null,null,{"$f":"IF(IFERROR(IF(SEARCH(Расчет!$B$8,T124),\"!\",\"\"),\"\")=\"\",0,MAX($S$9:S123)+1)","v":0},"Натрия тиосульфат (30%, 10 мл., №10)",0,0,"00:00:00",0,{"$f":"IFERROR(LOOKUP(,-1/($T124=Вводные[Наименование])/(Вводные[Дата]<$U$1),Вводные[Остаток]),0)+IF(Медикаменты[[#This Row],[Дата остатка]]<$U$1,Медикаменты[[#This Row],[Остаток]],0)","v":0},{"$f":"IF(T124=\"\",\"\",SUMPRODUCT((Вводные[Дата]>=$U$1)*(Вводные[Дата]<=$U$2)*(Вводные[Наименование]=$T124),Вводные[Приход]))","v":0},{"$f":"IF(T124=\"\",\"\",SUMPRODUCT((Вводные[Дата]>=$U$1)*(Вводные[Дата]<=$U$2)*(Вводные[Наименование]=$T124),Вводные[Расход]))","v":0},{"$f":"IFERROR(Медикаменты[[#This Row],[Остаток]]+Медикаменты[[#This Row],[Приход за период]]-Медикаменты[[#This Row],[Расход за период]],\"\")","v":0},{"$f":"IFERROR(SUMIF(Вводные[Наименование],Медикаменты[[#This Row],[Наименование]],Вводные[Приход]),0)","v":0},{"$f":"IFERROR(SUMIF(Вводные[Наименование],Медикаменты[[#This Row],[Наименование]],Вводные[Расход]),0)","v":0},{"$f":"IFERROR(Медикаменты[[#This Row],[Остаток]]+Медикаменты[[#This Row],[Приход общий]]-Медикаменты[[#This Row],[Расход общий]],0)","v":0},null,null,"Напальчник","шт."]
[null,null,null,null,null,null,null,null,null,null,null,null,null,null,null,null,null,null,{"$f":"IF(IFERROR(IF(SEARCH(Расчет!$B$8,T125),\"!\",\"\"),\"\")=\"\",0,MAX($S$9:S124)+1)","v":0},"Натрия хлорид (амп., 0,9%, 10 мл., №10)","уп.",40,"","",{"$f":"IFERROR(LOOKUP(,-1/($T125=Вводные[Наименование])/(Вводные[Дата]<$U$1),Вводные[Остаток]),0)+IF(Медикаменты[[#This Row],[Дата остатка]]<$U$1,Медикаменты[[#This Row],[Остаток]],0)","v":0},{"$f":"IF(T125=\"\",\"\",SUMPRODUCT((Вводные[Дата]>=$U$1)*(Вводные[Дата]<=$U$2)*(Вводные[Наименование]=$T125),Вводные[Приход]))","v":0},{"$f":"IF(T125=\"\",\"\",SUMPRODUCT((Вводные[Дата]>=$U$1)*(Вводные[Дата]<=$U$2)*(Вводные[Наименование]=$T125),Вводные[Расход]))","v":0},{"$f":"IFERROR(Медикаменты[[#This Row],[Остаток]]+Медикаменты[[#This Row],[Приход за период]]-Медикаменты[[#This Row],[Расход за период]],\"\")","v":""},{"$f":"IFERROR(SUMIF(Вводные[Наименование],Медикаменты[[#This Row],[Наименование]],Вводные[Приход]),0)","v":0},{"$f":"IFERROR(SUMIF(Вводные[Наименование],Медикаменты[[#This Row],[Наименование]],Вводные[Расход]),0)","v":0},{"$f":"IFERROR(Медикаменты[[#This Row],[Остаток]]+Медикаменты[[#This Row],[Приход общий]]-Медикаменты[[#This Row],[Расход общий]],0)","v":0},null,null,"Настойка йода (амп., 5%, 10 мл.)","уп."]
[null,null,null,null,null,null,null,null,null,null,null,null,null,null,null,null,null,null,{"$f":"IF(IFERROR(IF(SEARCH(Расчет!$B$8,T126),\"!\",\"\"),\"\")=\"\",0,MAX($S$9:S125)+1)","v":0},"Натрия хлорид (амп., 0,9%, 5 мл., №10)","уп.",30,"","",{"$f":"IFERROR(LOOKUP(,-1/($T126=Вводные[Наименование])/(Вводные[Дата]<$U$1),Вводные[Остаток]),0)+IF(Медикаменты[[#This Row],[Дата остатка]]<$U$1,Медикаменты[[#This Row],[Остаток]],0)","v":0},{"$f":"IF(T126=\"\",\"\",SUMPRODUCT((Вводные[Дата]>=$U$1)*(Вводные[Дата]<=$U$2)*(Вводные[Наименование]=$T126),Вводные[Приход]))","v":0},{"$f":"IF(T126=\"\",\"\",SUMPRODUCT((Вводные[Дата]>=$U$1)*(Вводные[Дата]<=$U$2)*(Вводные[Наименование]=$T126),Вводные[Расход]))","v":0},{"$f":"IFERROR(Медикаменты[[#This Row],[Остаток]]+Медикаменты[[#This Row],[Приход за период]]-Медикаменты[[#This Row],[Расход за период]],\"\")","v":""},{"$f":"IFERROR(SUMIF(Вводные[Наименование],Медикаменты[[#This Row],[Наименование]],Вводные[Приход]),0)","v":0},{"$f":"IFERROR(SUMIF(Вводные[Наименование],Медикаменты[[#This Row],[Наименование]],Вводные[Расход]),0)","v":0},{"$f":"IFERROR(Медикаменты[[#This Row],[Остаток]]+Медикаменты[[#This Row],[Приход общий]]-Медикаменты[[#This Row],[Расход общий]],0)","v":0},null,null,"Натрия тиосульфат (30%, 10 мл., №10)"]
[null,null,null,null,null,null,null,null,null,null,null,null,null,null,null,null,null,null,{"$f":"IF(IFERROR(IF(SEARCH(Расчет!$B$8,T127),\"!\",\"\"),\"\")=\"\",0,MAX($S$9:S126)+1)","v":0},"Натрия хлорид (стер., амп., 0,9%, 250 мл.)","фл.",125,"","",{"$f":"IFERROR(LOOKUP(,-1/($T127=Вводные[Наименование])/(Вводные[Дата]<$U$1),Вводные[Остаток]),0)+IF(Медикаменты[[#This Row],[Дата остатка]]<$U$1,Медикаменты[[#This Row],[Остаток]],0)","v":0},{"$f":"IF(T127=\"\",\"\",SUMPRODUCT((Вводные[Дата]>=$U$1)*(Вводные[Дата]<=$U$2)*(Вводные[Наименование]=$T127),Вводные[Приход]))","v":0},{"$f":"IF(T127=\"\",\"\",SUMPRODUCT((Вводные[Дата]>=$U$1)*(Вводные[Дата]<=$U$2)*(Вводные[Наименование]=$T127),Вводные[Расход]))","v":0},{"$f":"IFERROR(Медикаменты[[#This Row],[Остаток]]+Медикаменты[[#This Row],[Приход за период]]-Медикаменты[[#This Row],[Расход за период]],\"\")","v":""},{"$f":"IFERROR(SUMIF(Вводные[Наименование],Медикаменты[[#This Row],[Наименование]],Вводные[Приход]),0)","v":0},{"$f":"IFERROR(SUMIF(Вводные[Наименование],Медикаменты[[#This Row],[Наименование]],Вводные[Расход]),0)","v":0},{"$f":"IFERROR(Медикаменты[[#This Row],[Остаток]]+Медикаменты[[#This Row],[Приход общий]]-Медикаменты[[#This Row],[Расход общий]],0)","v":0},null,null,"Натрия хлорид (амп., 0,9%, 10 мл., №10)","уп."]
[null,null,null,null,null,null,null,null,null,null,null,null,null,null,null,null,null,null,{"$f":"IF(IFERROR(IF(SEARCH(Расчет!$B$8,T128),\"!\",\"\"),\"\")=\"\",0,MAX($S$9:S127)+1)","v":0},"Никотиновая кислота (амп., 1%, 1 мл., №10)",0,0,"00:00:00",0,{"$f":"IFERROR(LOOKUP(,-1/($T128=Вводные[Наименование])/(Вводные[Дата]<$U$1),Вводные[Остаток]),0)+IF(Медикаменты[[#This Row],[Дата остатка]]<$U$1,Медикаменты[[#This Row],[Остаток]],0)","v":0},{"$f":"IF(T128=\"\",\"\",SUMPRODUCT((Вводные[Дата]>=$U$1)*(Вводные[Дата]<=$U$2)*(Вводные[Наименование]=$T128),Вводные[Приход]))","v":0},{"$f":"IF(T128=\"\",\"\",SUMPRODUCT((Вводные[Дата]>=$U$1)*(Вводные[Дата]<=$U$2)*(Вводные[Наименование]=$T128),Вводные[Расход]))","v":0},{"$f":"IFERROR(Медикаменты[[#This Row],[Остаток]]+Медикаменты[[#This Row],[Приход за период]]-Медикаменты[[#This Row],[Расход за период]],\"\")","v":0},{"$f":"IFERROR(SUMIF(Вводные[Наименование],Медикаменты[[#This Row],[Наименование]],Вводные[Приход]),0)","v":0},{"$f":"IFERROR(SUMIF(Вводные[Наименование],Медикаменты[[#This Row],[Наименование]],Вводные[Расход]),0)","v":0},{"$f":"IFERROR(Медикаменты[[#This Row],[Остаток]]+Медикаменты[[#This Row],[Приход общий]]-Медикаменты[[#This Row],[Расход общий]],0)","v":0},null,null,"Натрия хлорид (амп., 0,9%, 5 мл., №10)","уп."]
[null,null,null,null,null,null,null,null,null,null,null,null,null,null,null,null,null,null,{"$f":"IF(IFERROR(IF(SEARCH(Расчет!$B$8,T129),\"!\",\"\"),\"\")=\"\",0,MAX($S$9:S128)+1)","v":0},"Новокаин (амп., 0,5%, 5 мл., №10)","уп.",3,"","",{"$f":"IFERROR(LOOKUP(,-1/($T129=Вводные[Наименование])/(Вводные[Дата]<$U$1),Вводные[Остаток]),0)+IF(Медикаменты[[#This Row],[Дата остатка]]<$U$1,Медикаменты[[#This Row],[Остаток]],0)","v":0},{"$f":"IF(T129=\"\",\"\",SUMPRODUCT((Вводные[Дата]>=$U$1)*(Вводные[Дата]<=$U$2)*(Вводные[Наименование]=$T129),Вводные[Приход]))","v":0},{"$f":"IF(T129=\"\",\"\",SUMPRODUCT((Вводные[Дата]>=$U$1)*(Вводные[Дата]<=$U$2)*(Вводные[Наименование]=$T129),Вводные[Расход]))","v":0},{"$f":"IFERROR(Медикаменты[[#This Row],[Остаток]]+Медикаменты[[#This Row],[Приход за период]]-Медикаменты[[#This Row],[Расход за период]],\"\")","v":""},{"$f":"IFERROR(SUMIF(Вводные[Наименование],Медикаменты[[#This Row],[Наименование]],Вводные[Приход]),0)","v":0},{"$f":"IFERROR(SUMIF(Вводные[Наименование],Медикаменты[[#This Row],[Наименование]],Вводные[Расход]),0)","v":0},{"$f":"IFERROR(Медикаменты[[#This Row],[Остаток]]+Медикаменты[[#This Row],[Приход общий]]-Медикаменты[[#This Row],[Расход общий]],0)","v":0},null,null,"Натрия хлорид (стер., амп., 0,9%, 250 мл.)","фл."]
[null,null,null,null,null,null,null,null,null,null,null,null,null,null,null,null,null,null,{"$f":"IF(IFERROR(IF(SEARCH(Расчет!$B$8,T130),\"!\",\"\"),\"\")=\"\",0,MAX($S$9:S129)+1)","v":0},"Новокаин (амп., 2%, 2 мл., №10)","уп.",4,"","",{"$f":"IFERROR(LOOKUP(,-1/($T130=Вводные[Наименование])/(Вводные[Дата]<$U$1),Вводные[Остаток]),0)+IF(Медикаменты[[#This Row],[Дата остатка]]<$U$1,Медикаменты[[#This Row],[Остаток]],0)","v":0},{"$f":"IF(T130=\"\",\"\",SUMPRODUCT((Вводные[Дата]>=$U$1)*(Вводные[Дата]<=$U$2)*(Вводные[Наименование]=$T130),Вводные[Приход]))","v":0},{"$f":"IF(T130=\"\",\"\",SUMPRODUCT((Вводные[Дата]>=$U$1)*(Вводные[Дата]<=$U$2)*(Вводные[Наименование]=$T130),Вводные[Расход]))","v":0},{"$f":"IFERROR(Медикаменты[[#This Row],[Остаток]]+Медикаменты[[#This Row],[Приход за период]]-Медикаменты[[#This Row],[Расход за период]],\"\")","v":""},{"$f":"IFERROR(SUMIF(Вводные[Наименование],Медикаменты[[#This Row],[Наименование]],Вводные[Приход]),0)","v":0},{"$f":"IFERROR(SUMIF(Вводные[Наименование],Медикаменты[[#This Row],[Наименование]],Вводные[Расход]),0)","v":0},{"$f":"IFERROR(Медикаменты[[#This Row],[Остаток]]+Медикаменты[[#This Row],[Приход общий]]-Медикаменты[[#This Row],[Расход общий]],0)","v":0},null,null,"Никотиновая кислота (амп., 1%, 1 мл., №10)"]
[null,null,null,null,null,null,null,null,null,null,null,null,null,null,null,null,null,null,{"$f":"IF(IFERROR(IF(SEARCH(Расчет!$B$8,T131),\"!\",\"\"),\"\")=\"\",0,MAX($S$9:S130)+1)","v":0},"Омепразол (капс., 20 мг., №30)","уп.",1,"","",{"$f":"IFERROR(LOOKUP(,-1/($T131=Вводные[Наименование])/(Вводные[Дата]<$U$1),Вводные[Остаток]),0)+IF(Медикаменты[[#This Row],[Дата остатка]]<$U$1,Медикаменты[[#This Row],[Остаток]],0)","v":0},{"$f":"IF(T131=\"\",\"\",SUMPRODUCT((Вводные[Дата]>=$U$1)*(Вводные[Дата]<=$U$2)*(Вводные[Наименование]=$T131),Вводные[Приход]))","v":0},{"$f":"IF(T131=\"\",\"\",SUMPRODUCT((Вводные[Дата]>=$U$1)*(Вводные[Дата]<=$U$2)*(Вводные[Наименование]=$T131),Вводные[Расход]))","v":0},{"$f":"IFERROR(Медикаменты[[#This Row],[Остаток]]+Медикаменты[[#This Row],[Приход за период]]-Медикаменты[[#This Row],[Расход за период]],\"\")","v":""},{"$f":"IFERROR(SUMIF(Вводные[Наименование],Медикаменты[[#This Row],[Наименование]],Вводные[Приход]),0)","v":0},{"$f":"IFERROR(SUMIF(Вводные[Наименование],Медикаменты[[#This Row],[Наименование]],Вводные[Расход]),0)","v":0},{"$f":"IFERROR(Медикаменты[[#This Row],[Остаток]]+Медикаменты[[#This Row],[Приход общий]]-Медикаменты[[#This Row],[Расход общий]],0)","v":0},null,null,"Новокаин (амп., 0,5%, 5 мл., №10)","уп."]
[null,null,null,null,null,null,null,null,null,null,null,null,null,null,null,null,null,null,{"$f":"IF(IFERROR(IF(SEARCH(Расчет!$B$8,T132),\"!\",\"\"),\"\")=\"\",0,MAX($S$9:S131)+1)","v":0},"Омепразол (капс., 20 мг., №50)",0,0,"","",{"$f":"IFERROR(LOOKUP(,-1/($T132=Вводные[Наименование])/(Вводные[Дата]<$U$1),Вводные[Остаток]),0)+IF(Медикаменты[[#This Row],[Дата остатка]]<$U$1,Медикаменты[[#This Row],[Остаток]],0)","v":0},{"$f":"IF(T132=\"\",\"\",SUMPRODUCT((Вводные[Дата]>=$U$1)*(Вводные[Дата]<=$U$2)*(Вводные[Наименование]=$T132),Вводные[Приход]))","v":0},{"$f":"IF(T132=\"\",\"\",SUMPRODUCT((Вводные[Дата]>=$U$1)*(Вводные[Дата]<=$U$2)*(Вводные[Наименование]=$T132),Вводные[Расход]))","v":0},{"$f":"IFERROR(Медикаменты[[#This Row],[Остаток]]+Медикаменты[[#This Row],[Приход за период]]-Медикаменты[[#This Row],[Расход за период]],\"\")","v":""},{"$f":"IFERROR(SUMIF(Вводные[Наименование],Медикаменты[[#This Row],[Наименование]],Вводные[Приход]),0)","v":0},{"$f":"IFERROR(SUMIF(Вводные[Наименование],Медикаменты[[#This Row],[Наименование]],Вводные[Расход]),0)","v":0},{"$f":"IFERROR(Медикаменты[[#This Row],[Остаток]]+Медикаменты[[#This Row],[Приход общий]]-Медикаменты[[#This Row],[Расход общий]],0)","v":0},null,null,"Новокаин (амп., 2%, 2 мл., №10)","уп."]
[null,null,null,null,null,null,null,null,null,null,null,null,null,null,null,null,null,null,{"$f":"IF(IFERROR(IF(SEARCH(Расчет!$B$8,T133),\"!\",\"\"),\"\")=\"\",0,MAX($S$9:S132)+1)","v":0},"Пакет для сбора медицинских отходов класса Б (30 л., 100 шт.)","шт.",3000,"","",{"$f":"IFERROR(LOOKUP(,-1/($T133=Вводные[Наименование])/(Вводные[Дата]<$U$1),Вводные[Остаток]),0)+IF(Медикаменты[[#This Row],[Дата остатка]]<$U$1,Медикаменты[[#This Row],[Остаток]],0)","v":0},{"$f":"IF(T133=\"\",\"\",SUMPRODUCT((Вводные[Дата]>=$U$1)*(Вводные[Дата]<=$U$2)*(Вводные[Наименование]=$T133),Вводные[Приход]))","v":0},{"$f":"IF(T133=\"\",\"\",SUMPRODUCT((Вводные[Дата]>=$U$1)*(Вводные[Дата]<=$U$2)*(Вводные[Наименование]=$T133),Вводные[Расход]))","v":0},{"$f":"IFERROR(Медикаменты[[#This Row],[Остаток]]+Медикаменты[[#This Row],[Приход за период]]-Медикаменты[[#This Row],[Расход за период]],\"\")","v":""},{"$f":"IFERROR(SUMIF(Вводные[Наименование],Медикаменты[[#This Row],[Наименование]],Вводные[Приход]),0)","v":0},{"$f":"IFERROR(SUMIF(Вводные[Наименование],Медикаменты[[#This Row],[Наименование]],Вводные[Расход]),0)","v":0},{"$f":"IFERROR(Медикаменты[[#This Row],[Остаток]]+Медикаменты[[#This Row],[Приход общий]]-Медикаменты[[#This Row],[Расход общий]],0)","v":0},null,null,"Омепразол (капс., 20 мг., №30)","уп."]
[null,null,null,null,null,null,null,null,null,null,null,null,null,null,null,null,null,null,{"$f":"IF(IFERROR(IF(SEARCH(Расчет!$B$8,T134),\"!\",\"\"),\"\")=\"\",0,MAX($S$9:S133)+1)","v":0},"Пакеты упаковочные для стерилизации СтериТ (100*200, 100 шт.)","шт",200,"","",{"$f":"IFERROR(LOOKUP(,-1/($T134=Вводные[Наименование])/(Вводные[Дата]<$U$1),Вводные[Остаток]),0)+IF(Медикаменты[[#This Row],[Дата остатка]]<$U$1,Медикаменты[[#This Row],[Остаток]],0)","v":0},{"$f":"IF(T134=\"\",\"\",SUMPRODUCT((Вводные[Дата]>=$U$1)*(Вводные[Дата]<=$U$2)*(Вводные[Наименование]=$T134),Вводные[Приход]))","v":0},{"$f":"IF(T134=\"\",\"\",SUMPRODUCT((Вводные[Дата]>=$U$1)*(Вводные[Дата]<=$U$2)*(Вводные[Наименование]=$T134),Вводные[Расход]))","v":0},{"$f":"IFERROR(Медикаменты[[#This Row],[Остаток]]+Медикаменты[[#This Row],[Приход за период]]-Медикаменты[[#This Row],[Расход за период]],\"\")","v":""},{"$f":"IFERROR(SUMIF(Вводные[Наименование],Медикаменты[[#This Row],[Наименование]],Вводные[Приход]),0)","v":0},{"$f":"IFERROR(SUMIF(Вводные[Наименование],Медикаменты[[#This Row],[Наименование]],Вводные[Расход]),0)","v":0},{"$f":"IFERROR(Медикаменты[[#This Row],[Остаток]]+Медикаменты[[#This Row],[Приход общий]]-Медикаменты[[#This Row],[Расход общий]],0)","v":0},null,null,"Омепразол (капс., 20 мг., №50)"]
[null,null,null,null,null,null,null,null,null,null,null,null,null,null,null,null,null,null,{"$f":"IF(IFERROR(IF(SEARCH(Расчет!$B$8,T135),\"!\",\"\"),\"\")=\"\",0,MAX($S$9:S134)+1)","v":0},"Пакеты упаковочные для стерилизации СтериТ (150*250, 100 шт.)","шт",200,"","",{"$f":"IFERROR(LOOKUP(,-1/($T135=Вводные[Наименование])/(Вводные[Дата]<$U$1),Вводные[Остаток]),0)+IF(Медикаменты[[#This Row],[Дата остатка]]<$U$1,Медикаменты[[#This Row],[Остаток]],0)","v":0},{"$f":"IF(T135=\"\",\"\",SUMPRODUCT((Вводные[Дата]>=$U$1)*(Вводные[Дата]<=$U$2)*(Вводные[Наименование]=$T135),Вводные[Приход]))","v":0},{"$f":"IF(T135=\"\",\"\",SUMPRODUCT((Вводные[Дата]>=$U$1)*(Вводные[Дата]<=$U$2)*(Вводные[Наименование]=$T135),Вводные[Расход]))","v":0},{"$f":"IFERROR(Медикаменты[[#This Row],[Остаток]]+Медикаменты[[#This Row],[Приход за период]]-Медикаменты[[#This Row],[Расход за период]],\"\")","v":""},{"$f":"IFERROR(SUMIF(Вводные[Наименование],Медикаменты[[#This Row],[Наименование]],Вводные[Приход]),0)","v":0},{"$f":"IFERROR(SUMIF(Вводные[Наименование],Медикаменты[[#This Row],[Наименование]],Вводные[Расход]),0)","v":0},{"$f":"IFERROR(Медикаменты[[#This Row],[Остаток]]+Медикаменты[[#This Row],[Приход общий]]-Медикаменты[[#This Row],[Расход общий]],0)","v":0},null,null,"Пакет для сбора медицинских отходов класса Б (30 л., 100 шт.)","шт."]
[null,null,null,null,null,null,null,null,null,null,null,null,null,null,null,null,null,null,{"$f":"IF(IFERROR(IF(SEARCH(Расчет!$B$8,T136),\"!\",\"\"),\"\")=\"\",0,MAX($S$9:S135)+1)","v":0},"Пакеты упаковочные для стерилизации СтериТ (200*300, 100 шт.)","шт",100,"","",{"$f":"IFERROR(LOOKUP(,-1/($T136=Вводные[Наименование])/(Вводные[Дата]<$U$1),Вводные[Остаток]),0)+IF(Медикаменты[[#This Row],[Дата остатка]]<$U$1,Медикаменты[[#This Row],[Остаток]],0)","v":0},{"$f":"IF(T136=\"\",\"\",SUMPRODUCT((Вводные[Дата]>=$U$1)*(Вводные[Дата]<=$U$2)*(Вводные[Наименование]=$T136),Вводные[Приход]))","v":0},{"$f":"IF(T136=\"\",\"\",SUMPRODUCT((Вводные[Дата]>=$U$1)*(Вводные[Дата]<=$U$2)*(Вводные[Наименование]=$T136),Вводные[Расход]))","v":0},{"$f":"IFERROR(Медикаменты[[#This Row],[Остаток]]+Медикаменты[[#This Row],[Приход за период]]-Медикаменты[[#This Row],[Расход за период]],\"\")","v":""},{"$f":"IFERROR(SUMIF(Вводные[Наименование],Медикаменты[[#This Row],[Наименование]],Вводные[Приход]),0)","v":0},{"$f":"IFERROR(SUMIF(Вводные[Наименование],Медикаменты[[#This Row],[Наименование]],Вводные[Расход]),0)","v":0},{"$f":"IFERROR(Медикаменты[[#This Row],[Остаток]]+Медикаменты[[#This Row],[Приход общий]]-Медикаменты[[#This Row],[Расход общий]],0)","v":0},null,null,"Пакеты упаковочные для стерилизации СтериТ (100*200, 100 шт.)","шт"]
[null,null,null,null,null,null,null,null,null,null,null,null,null,null,null,null,null,null,{"$f":"IF(IFERROR(IF(SEARCH(Расчет!$B$8,T137),\"!\",\"\"),\"\")=\"\",0,MAX($S$9:S136)+1)","v":0},"Пакеты упаковочные для стерилизации СтериТ (200*330, 100 шт.)","шт",200,"","",{"$f":"IFERROR(LOOKUP(,-1/($T137=Вводные[Наименование])/(Вводные[Дата]<$U$1),Вводные[Остаток]),0)+IF(Медикаменты[[#This Row],[Дата остатка]]<$U$1,Медикаменты[[#This Row],[Остаток]],0)","v":0},{"$f":"IF(T137=\"\",\"\",SUMPRODUCT((Вводные[Дата]>=$U$1)*(Вводные[Дата]<=$U$2)*(Вводные[Наименование]=$T137),Вводные[Приход]))","v":0},{"$f":"IF(T137=\"\",\"\",SUMPRODUCT((Вводные[Дата]>=$U$1)*(Вводные[Дата]<=$U$2)*(Вводные[Наименование]=$T137),Вводные[Расход]))","v":0},{"$f":"IFERROR(Медикаменты[[#This Row],[Остаток]]+Медикаменты[[#This Row],[Приход за период]]-Медикаменты[[#This Row],[Расход за период]],\"\")","v":""},{"$f":"IFERROR(SUMIF(Вводные[Наименование],Медикаменты[[#This Row],[Наименование]],Вводные[Приход]),0)","v":0},{"$f":"IFERROR(SUMIF(Вводные[Наименование],Медикаменты[[#This Row],[Наименование]],Вводные[Расход]),0)","v":0},{"$f":"IFERROR(Медикаменты[[#This Row],[Остаток]]+Медикаменты[[#This Row],[Приход общий]]-Медикаменты[[#This Row],[Расход общий]],0)","v":0},null,null,"Пакеты упаковочные для стерилизации СтериТ (150*250, 100 шт.)","шт"]
[null,null,null,null,null,null,null,null,null,null,null,null,null,null,null,null,null,null,{"$f":"IF(IFERROR(IF(SEARCH(Расчет!$B$8,T138),\"!\",\"\"),\"\")=\"\",0,MAX($S$9:S137)+1)","v":0},"Пантогам (таб., 250 мг., №50)","уп.",40,"00:00:00",0,{"$f":"IFERROR(LOOKUP(,-1/($T138=Вводные[Наименование])/(Вводные[Дата]<$U$1),Вводные[Остаток]),0)+IF(Медикаменты[[#This Row],[Дата остатка]]<$U$1,Медикаменты[[#This Row],[Остаток]],0)","v":0},{"$f":"IF(T138=\"\",\"\",SUMPRODUCT((Вводные[Дата]>=$U$1)*(Вводные[Дата]<=$U$2)*(Вводные[Наименование]=$T138),Вводные[Приход]))","v":0},{"$f":"IF(T138=\"\",\"\",SUMPRODUCT((Вводные[Дата]>=$U$1)*(Вводные[Дата]<=$U$2)*(Вводные[Наименование]=$T138),Вводные[Расход]))","v":0},{"$f":"IFERROR(Медикаменты[[#This Row],[Остаток]]+Медикаменты[[#This Row],[Приход за период]]-Медикаменты[[#This Row],[Расход за период]],\"\")","v":0},{"$f":"IFERROR(SUMIF(Вводные[Наименование],Медикаменты[[#This Row],[Наименование]],Вводные[Приход]),0)","v":0},{"$f":"IFERROR(SUMIF(Вводные[Наименование],Медикаменты[[#This Row],[Наименование]],Вводные[Расход]),0)","v":0},{"$f":"IFERROR(Медикаменты[[#This Row],[Остаток]]+Медикаменты[[#This Row],[Приход общий]]-Медикаменты[[#This Row],[Расход общий]],0)","v":0},null,null,"Пакеты упаковочные для стерилизации СтериТ (200*300, 100 шт.)","шт"]
[null,null,null,null,null,null,null,null,null,null,null,null,null,null,null,null,null,null,{"$f":"IF(IFERROR(IF(SEARCH(Расчет!$B$8,T139),\"!\",\"\"),\"\")=\"\",0,MAX($S$9:S138)+1)","v":0},"Пантогам (табл., 250 мг., №50)","уп.",20,"","",{"$f":"IFERROR(LOOKUP(,-1/($T139=Вводные[Наименование])/(Вводные[Дата]<$U$1),Вводные[Остаток]),0)+IF(Медикаменты[[#This Row],[Дата остатка]]<$U$1,Медикаменты[[#This Row],[Остаток]],0)","v":0},{"$f":"IF(T139=\"\",\"\",SUMPRODUCT((Вводные[Дата]>=$U$1)*(Вводные[Дата]<=$U$2)*(Вводные[Наименование]=$T139),Вводные[Приход]))","v":0},{"$f":"IF(T139=\"\",\"\",SUMPRODUCT((Вводные[Дата]>=$U$1)*(Вводные[Дата]<=$U$2)*(Вводные[Наименование]=$T139),Вводные[Расход]))","v":0},{"$f":"IFERROR(Медикаменты[[#This Row],[Остаток]]+Медикаменты[[#This Row],[Приход за период]]-Медикаменты[[#This Row],[Расход за период]],\"\")","v":""},{"$f":"IFERROR(SUMIF(Вводные[Наименование],Медикаменты[[#This Row],[Наименование]],Вводные[Приход]),0)","v":0},{"$f":"IFERROR(SUMIF(Вводные[Наименование],Медикаменты[[#This Row],[Наименование]],Вводные[Расход]),0)","v":0},{"$f":"IFERROR(Медикаменты[[#This Row],[Остаток]]+Медикаменты[[#This Row],[Приход общий]]-Медикаменты[[#This Row],[Расход общий]],0)","v":0},null,null,"Пакеты упаковочные для стерилизации СтериТ (200*330, 100 шт.)","шт"]
[null,null,null,null,null,null,null,null,null,null,null,null,null,null,null,null,null,null,{"$f":"IF(IFERROR(IF(SEARCH(Расчет!$B$8,T140),\"!\",\"\"),\"\")=\"\",0,MAX($S$9:S139)+1)","v":0},"Папаверин (амп., 2%, 2мл №10)","уп.",110,"","",{"$f":"IFERROR(LOOKUP(,-1/($T140=Вводные[Наименование])/(Вводные[Дата]<$U$1),Вводные[Остаток]),0)+IF(Медикаменты[[#This Row],[Дата остатка]]<$U$1,Медикаменты[[#This Row],[Остаток]],0)","v":0},{"$f":"IF(T140=\"\",\"\",SUMPRODUCT((Вводные[Дата]>=$U$1)*(Вводные[Дата]<=$U$2)*(Вводные[Наименование]=$T140),Вводные[Приход]))","v":0},{"$f":"IF(T140=\"\",\"\",SUMPRODUCT((Вводные[Дата]>=$U$1)*(Вводные[Дата]<=$U$2)*(Вводные[Наименование]=$T140),Вводные[Расход]))","v":0},{"$f":"IFERROR(Медикаменты[[#This Row],[Остаток]]+Медикаменты[[#This Row],[Приход за период]]-Медикаменты[[#This Row],[Расход за период]],\"\")","v":""},{"$f":"IFERROR(SUMIF(Вводные[Наименование],Медикаменты[[#This Row],[Наименование]],Вводные[Приход]),0)","v":0},{"$f":"IFERROR(SUMIF(Вводные[Наименование],Медикаменты[[#This Row],[Наименование]],Вводные[Расход]),0)","v":0},{"$f":"IFERROR(Медикаменты[[#This Row],[Остаток]]+Медикаменты[[#This Row],[Приход общий]]-Медикаменты[[#This Row],[Расход общий]],0)","v":0},null,null,"Пантогам (таб., 250 мг., №50)","уп."]
[null,null,null,null,null,null,null,null,null,null,null,null,null,null,null,null,null,null,{"$f":"IF(IFERROR(IF(SEARCH(Расчет!$B$8,T141),\"!\",\"\"),\"\")=\"\",0,MAX($S$9:S140)+1)","v":0},"Парацентезная игла","шт",3,"","",{"$f":"IFERROR(LOOKUP(,-1/($T141=Вводные[Наименование])/(Вводные[Дата]<$U$1),Вводные[Остаток]),0)+IF(Медикаменты[[#This Row],[Дата остатка]]<$U$1,Медикаменты[[#This Row],[Остаток]],0)","v":0},{"$f":"IF(T141=\"\",\"\",SUMPRODUCT((Вводные[Дата]>=$U$1)*(Вводные[Дата]<=$U$2)*(Вводные[Наименование]=$T141),Вводные[Приход]))","v":0},{"$f":"IF(T141=\"\",\"\",SUMPRODUCT((Вводные[Дата]>=$U$1)*(Вводные[Дата]<=$U$2)*(Вводные[Наименование]=$T141),Вводные[Расход]))","v":0},{"$f":"IFERROR(Медикаменты[[#This Row],[Остаток]]+Медикаменты[[#This Row],[Приход за период]]-Медикаменты[[#This Row],[Расход за период]],\"\")","v":""},{"$f":"IFERROR(SUMIF(Вводные[Наименование],Медикаменты[[#This Row],[Наименование]],Вводные[Приход]),0)","v":0},{"$f":"IFERROR(SUMIF(Вводные[Наименование],Медикаменты[[#This Row],[Наименование]],Вводные[Расход]),0)","v":0},{"$f":"IFERROR(Медикаменты[[#This Row],[Остаток]]+Медикаменты[[#This Row],[Приход общий]]-Медикаменты[[#This Row],[Расход общий]],0)","v":0},null,null,"Пантогам (табл., 250 мг., №50)","уп."]
[null,null,null,null,null,null,null,null,null,null,null,null,null,null,null,null,null,null,{"$f":"IF(IFERROR(IF(SEARCH(Расчет!$B$8,T142),\"!\",\"\"),\"\")=\"\",0,MAX($S$9:S141)+1)","v":0},"Парацетамол (таб., 500 мг., №10)","уп.",400,"","",{"$f":"IFERROR(LOOKUP(,-1/($T142=Вводные[Наименование])/(Вводные[Дата]<$U$1),Вводные[Остаток]),0)+IF(Медикаменты[[#This Row],[Дата остатка]]<$U$1,Медикаменты[[#This Row],[Остаток]],0)","v":0},{"$f":"IF(T142=\"\",\"\",SUMPRODUCT((Вводные[Дата]>=$U$1)*(Вводные[Дата]<=$U$2)*(Вводные[Наименование]=$T142),Вводные[Приход]))","v":0},{"$f":"IF(T142=\"\",\"\",SUMPRODUCT((Вводные[Дата]>=$U$1)*(Вводные[Дата]<=$U$2)*(Вводные[Наименование]=$T142),Вводные[Расход]))","v":0},{"$f":"IFERROR(Медикаменты[[#This Row],[Остаток]]+Медикаменты[[#This Row],[Приход за период]]-Медикаменты[[#This Row],[Расход за период]],\"\")","v":""},{"$f":"IFERROR(SUMIF(Вводные[Наименование],Медикаменты[[#This Row],[Наименование]],Вводные[Приход]),0)","v":0},{"$f":"IFERROR(SUMIF(Вводные[Наименование],Медикаменты[[#This Row],[Наименование]],Вводные[Расход]),0)","v":0},{"$f":"IFERROR(Медикаменты[[#This Row],[Остаток]]+Медикаменты[[#This Row],[Приход общий]]-Медикаменты[[#This Row],[Расход общий]],0)","v":0},null,null,"Папаверин (амп., 2%, 2мл №10)","уп."]
[null,null,null,null,null,null,null,null,null,null,null,null,null,null,null,null,null,null,{"$f":"IF(IFERROR(IF(SEARCH(Расчет!$B$8,T143),\"!\",\"\"),\"\")=\"\",0,MAX($S$9:S142)+1)","v":0},"Парацетамол детский (сусп., 100 г.)","уп.",25,"","",{"$f":"IFERROR(LOOKUP(,-1/($T143=Вводные[Наименование])/(Вводные[Дата]<$U$1),Вводные[Остаток]),0)+IF(Медикаменты[[#This Row],[Дата остатка]]<$U$1,Медикаменты[[#This Row],[Остаток]],0)","v":0},{"$f":"IF(T143=\"\",\"\",SUMPRODUCT((Вводные[Дата]>=$U$1)*(Вводные[Дата]<=$U$2)*(Вводные[Наименование]=$T143),Вводные[Приход]))","v":0},{"$f":"IF(T143=\"\",\"\",SUMPRODUCT((Вводные[Дата]>=$U$1)*(Вводные[Дата]<=$U$2)*(Вводные[Наименование]=$T143),Вводные[Расход]))","v":0},{"$f":"IFERROR(Медикаменты[[#This Row],[Остаток]]+Медикаменты[[#This Row],[Приход за период]]-Медикаменты[[#This Row],[Расход за период]],\"\")","v":""},{"$f":"IFERROR(SUMIF(Вводные[Наименование],Медикаменты[[#This Row],[Наименование]],Вводные[Приход]),0)","v":0},{"$f":"IFERROR(SUMIF(Вводные[Наименование],Медикаменты[[#This Row],[Наименование]],Вводные[Расход]),0)","v":0},{"$f":"IFERROR(Медикаменты[[#This Row],[Остаток]]+Медикаменты[[#This Row],[Приход общий]]-Медикаменты[[#This Row],[Расход общий]],0)","v":0},null,null,"Парацентезная игла","шт"]
[null,null,null,null,null,null,null,null,null,null,null,null,null,null,null,null,null,null,{"$f":"IF(IFERROR(IF(SEARCH(Расчет!$B$8,T144),\"!\",\"\"),\"\")=\"\",0,MAX($S$9:S143)+1)","v":0},"Перекись водорода (амп., 3%, 100 мл.)","фл.",170,"","",{"$f":"IFERROR(LOOKUP(,-1/($T144=Вводные[Наименование])/(Вводные[Дата]<$U$1),Вводные[Остаток]),0)+IF(Медикаменты[[#This Row],[Дата остатка]]<$U$1,Медикаменты[[#This Row],[Остаток]],0)","v":0},{"$f":"IF(T144=\"\",\"\",SUMPRODUCT((Вводные[Дата]>=$U$1)*(Вводные[Дата]<=$U$2)*(Вводные[Наименование]=$T144),Вводные[Приход]))","v":0},{"$f":"IF(T144=\"\",\"\",SUMPRODUCT((Вводные[Дата]>=$U$1)*(Вводные[Дата]<=$U$2)*(Вводные[Наименование]=$T144),Вводные[Расход]))","v":0},{"$f":"IFERROR(Медикаменты[[#This Row],[Остаток]]+Медикаменты[[#This Row],[Приход за период]]-Медикаменты[[#This Row],[Расход за период]],\"\")","v":""},{"$f":"IFERROR(SUMIF(Вводные[Наименование],Медикаменты[[#This Row],[Наименование]],Вводные[Приход]),0)","v":0},{"$f":"IFERROR(SUMIF(Вводные[Наименование],Медикаменты[[#This Row],[Наименование]],Вводные[Расход]),0)","v":0},{"$f":"IFERROR(Медикаменты[[#This Row],[Остаток]]+Медикаменты[[#This Row],[Приход общий]]-Медикаменты[[#This Row],[Расход общий]],0)","v":0},null,null,"Парацетамол (таб., 500 мг., №10)","уп."]
[null,null,null,null,null,null,null,null,null,null,null,null,null,null,null,null,null,null,{"$f":"IF(IFERROR(IF(SEARCH(Расчет!$B$8,T145),\"!\",\"\"),\"\")=\"\",0,MAX($S$9:S144)+1)","v":1},"Перчатки (нестер, латекс.)","пара",40000,"","",{"$f":"IFERROR(LOOKUP(,-1/($T145=Вводные[Наименование])/(Вводные[Дата]<$U$1),Вводные[Остаток]),0)+IF(Медикаменты[[#This Row],[Дата остатка]]<$U$1,Медикаменты[[#This Row],[Остаток]],0)","v":0},{"$f":"IF(T145=\"\",\"\",SUMPRODUCT((Вводные[Дата]>=$U$1)*(Вводные[Дата]<=$U$2)*(Вводные[Наименование]=$T145),Вводные[Приход]))","v":0},{"$f":"IF(T145=\"\",\"\",SUMPRODUCT((Вводные[Дата]>=$U$1)*(Вводные[Дата]<=$U$2)*(Вводные[Наименование]=$T145),Вводные[Расход]))","v":0},{"$f":"IFERROR(Медикаменты[[#This Row],[Остаток]]+Медикаменты[[#This Row],[Приход за период]]-Медикаменты[[#This Row],[Расход за период]],\"\")","v":""},{"$f":"IFERROR(SUMIF(Вводные[Наименование],Медикаменты[[#This Row],[Наименование]],Вводные[Приход]),0)","v":0},{"$f":"IFERROR(SUMIF(Вводные[Наименование],Медикаменты[[#This Row],[Наименование]],Вводные[Расход]),0)","v":0},{"$f":"IFERROR(Медикаменты[[#This Row],[Остаток]]+Медикаменты[[#This Row],[Приход общий]]-Медикаменты[[#This Row],[Расход общий]],0)","v":0},null,null,"Парацетамол детский (сусп., 100 г.)","уп."]
[null,null,null,null,null,null,null,null,null,null,null,null,null,null,null,null,null,null,{"$f":"IF(IFERROR(IF(SEARCH(Расчет!$B$8,T146),\"!\",\"\"),\"\")=\"\",0,MAX($S$9:S145)+1)","v":2},"Перчатки (нестер, нитрил.)","пара",500,"","",{"$f":"IFERROR(LOOKUP(,-1/($T146=Вводные[Наименование])/(Вводные[Дата]<$U$1),Вводные[Остаток]),0)+IF(Медикаменты[[#This Row],[Дата остатка]]<$U$1,Медикаменты[[#This Row],[Остаток]],0)","v":0},{"$f":"IF(T146=\"\",\"\",SUMPRODUCT((Вводные[Дата]>=$U$1)*(Вводные[Дата]<=$U$2)*(Вводные[Наименование]=$T146),Вводные[Приход]))","v":0},{"$f":"IF(T146=\"\",\"\",SUMPRODUCT((Вводные[Дата]>=$U$1)*(Вводные[Дата]<=$U$2)*(Вводные[Наименование]=$T146),Вводные[Расход]))","v":0},{"$f":"IFERROR(Медикаменты[[#This Row],[Остаток]]+Медикаменты[[#This Row],[Приход за период]]-Медикаменты[[#This Row],[Расход за период]],\"\")","v":""},{"$f":"IFERROR(SUMIF(Вводные[Наименование],Медикаменты[[#This Row],[Наименование]],Вводные[Приход]),0)","v":0},{"$f":"IFERROR(SUMIF(Вводные[Наименование],Медикаменты[[#This Row],[Наименование]],Вводные[Расход]),0)","v":0},{"$f":"IFERROR(Медикаменты[[#This Row],[Остаток]]+Медикаменты[[#This Row],[Приход общий]]-Медикаменты[[#This Row],[Расход общий]],0)","v":0},null,null,"Перекись водорода (амп., 3%, 100 мл.)","фл."]
[null,null,null,null,null,null,null,null,null,null,null,null,null,null,null,null,null,null,{"$f":"IF(IFERROR(IF(SEARCH(Расчет!$B$8,T147),\"!\",\"\"),\"\")=\"\",0,MAX($S$9:S146)+1)","v":3},"Перчатки (стер, латекс.)","пара",350,"","",{"$f":"IFERROR(LOOKUP(,-1/($T147=Вводные[Наименование])/(Вводные[Дата]<$U$1),Вводные[Остаток]),0)+IF(Медикаменты[[#This Row],[Дата остатка]]<$U$1,Медикаменты[[#This Row],[Остаток]],0)","v":0},{"$f":"IF(T147=\"\",\"\",SUMPRODUCT((Вводные[Дата]>=$U$1)*(Вводные[Дата]<=$U$2)*(Вводные[Наименование]=$T147),Вводные[Приход]))","v":0},{"$f":"IF(T147=\"\",\"\",SUMPRODUCT((Вводные[Дата]>=$U$1)*(Вводные[Дата]<=$U$2)*(Вводные[Наименование]=$T147),Вводные[Расход]))","v":0},{"$f":"IFERROR(Медикаменты[[#This Row],[Остаток]]+Медикаменты[[#This Row],[Приход за период]]-Медикаменты[[#This Row],[Расход за период]],\"\")","v":""},{"$f":"IFERROR(SUMIF(Вводные[Наименование],Медикаменты[[#This Row],[Наименование]],Вводные[Приход]),0)","v":0},{"$f":"IFERROR(SUMIF(Вводные[Наименование],Медикаменты[[#This Row],[Наименование]],Вводные[Расход]),0)","v":0},{"$f":"IFERROR(Медикаменты[[#This Row],[Остаток]]+Медикаменты[[#This Row],[Приход общий]]-Медикаменты[[#This Row],[Расход общий]],0)","v":0},null,null,"Перчатки (нестер, латекс.)","пара"]
[null,null,null,null,null,null,null,null,null,null,null,null,null,null,null,null,null,null,{"$f":"IF(IFERROR(IF(SEARCH(Расчет!$B$8,T148),\"!\",\"\"),\"\")=\"\",0,MAX($S$9:S147)+1)","v":0},"Пинцет (многораз.)","шт",10,"","",{"$f":"IFERROR(LOOKUP(,-1/($T148=Вводные[Наименование])/(Вводные[Дата]<$U$1),Вводные[Остаток]),0)+IF(Медикаменты[[#This Row],[Дата остатка]]<$U$1,Медикаменты[[#This Row],[Остаток]],0)","v":0},{"$f":"IF(T148=\"\",\"\",SUMPRODUCT((Вводные[Дата]>=$U$1)*(Вводные[Дата]<=$U$2)*(Вводные[Наименование]=$T148),Вводные[Приход]))","v":0},{"$f":"IF(T148=\"\",\"\",SUMPRODUCT((Вводные[Дата]>=$U$1)*(Вводные[Дата]<=$U$2)*(Вводные[Наименование]=$T148),Вводные[Расход]))","v":0},{"$f":"IFERROR(Медикаменты[[#This Row],[Остаток]]+Медикаменты[[#This Row],[Приход за период]]-Медикаменты[[#This Row],[Расход за период]],\"\")","v":""},{"$f":"IFERROR(SUMIF(Вводные[Наименование],Медикаменты[[#This Row],[Наименование]],Вводные[Приход]),0)","v":0},{"$f":"IFERROR(SUMIF(Вводные[Наименование],Медикаменты[[#This Row],[Наименование]],Вводные[Расход]),0)","v":0},{"$f":"IFERROR(Медикаменты[[#This Row],[Остаток]]+Медикаменты[[#This Row],[Приход общий]]-Медикаменты[[#This Row],[Расход общий]],0)","v":0},null,null,"Перчатки (нестер, нитрил.)","пара"]
[null,null,null,null,null,null,null,null,null,null,null,null,null,null,null,null,null,null,{"$f":"IF(IFERROR(IF(SEARCH(Расчет!$B$8,T149),\"!\",\"\"),\"\")=\"\",0,MAX($S$9:S148)+1)","v":0},"Пинцет (однораз., стер.)","шт",100,"","",{"$f":"IFERROR(LOOKUP(,-1/($T149=Вводные[Наименование])/(Вводные[Дата]<$U$1),Вводные[Остаток]),0)+IF(Медикаменты[[#This Row],[Дата остатка]]<$U$1,Медикаменты[[#This Row],[Остаток]],0)","v":0},{"$f":"IF(T149=\"\",\"\",SUMPRODUCT((Вводные[Дата]>=$U$1)*(Вводные[Дата]<=$U$2)*(Вводные[Наименование]=$T149),Вводные[Приход]))","v":0},{"$f":"IF(T149=\"\",\"\",SUMPRODUCT((Вводные[Дата]>=$U$1)*(Вводные[Дата]<=$U$2)*(Вводные[Наименование]=$T149),Вводные[Расход]))","v":0},{"$f":"IFERROR(Медикаменты[[#This Row],[Остаток]]+Медикаменты[[#This Row],[Приход за период]]-Медикаменты[[#This Row],[Расход за период]],\"\")","v":""},{"$f":"IFERROR(SUMIF(Вводные[Наименование],Медикаменты[[#This Row],[Наименование]],Вводные[Приход]),0)","v":0},{"$f":"IFERROR(SUMIF(Вводные[Наименование],Медикаменты[[#This Row],[Наименование]],Вводные[Расход]),0)","v":0},{"$f":"IFERROR(Медикаменты[[#This Row],[Остаток]]+Медикаменты[[#This Row],[Приход общий]]-Медикаменты[[#This Row],[Расход общий]],0)","v":0},null,null,"Перчатки (стер, латекс.)","пара"]
[null,null,null,null,null,null,null,null,null,null,null,null,null,null,null,null,null,null,{"$f":"IF(IFERROR(IF(SEARCH(Расчет!$B$8,T150),\"!\",\"\"),\"\")=\"\",0,MAX($S$9:S149)+1)","v":0},"Пирацетам (амп., 20%, 5 мл., №10)","уп.",65,"","",{"$f":"IFERROR(LOOKUP(,-1/($T150=Вводные[Наименование])/(Вводные[Дата]<$U$1),Вводные[Остаток]),0)+IF(Медикаменты[[#This Row],[Дата остатка]]<$U$1,Медикаменты[[#This Row],[Остаток]],0)","v":0},{"$f":"IF(T150=\"\",\"\",SUMPRODUCT((Вводные[Дата]>=$U$1)*(Вводные[Дата]<=$U$2)*(Вводные[Наименование]=$T150),Вводные[Приход]))","v":0},{"$f":"IF(T150=\"\",\"\",SUMPRODUCT((Вводные[Дата]>=$U$1)*(Вводные[Дата]<=$U$2)*(Вводные[Наименование]=$T150),Вводные[Расход]))","v":0},{"$f":"IFERROR(Медикаменты[[#This Row],[Остаток]]+Медикаменты[[#This Row],[Приход за период]]-Медикаменты[[#This Row],[Расход за период]],\"\")","v":""},{"$f":"IFERROR(SUMIF(Вводные[Наименование],Медикаменты[[#This Row],[Наименование]],Вводные[Приход]),0)","v":0},{"$f":"IFERROR(SUMIF(Вводные[Наименование],Медикаменты[[#This Row],[Наименование]],Вводные[Расход]),0)","v":0},{"$f":"IFERROR(Медикаменты[[#This Row],[Остаток]]+Медикаменты[[#This Row],[Приход общий]]-Медикаменты[[#This Row],[Расход общий]],0)","v":0},null,null,"Пинцет (многораз.)","шт"]
[null,null,null,null,null,null,null,null,null,null,null,null,null,null,null,null,null,null,{"$f":"IF(IFERROR(IF(SEARCH(Расчет!$B$8,T151),\"!\",\"\"),\"\")=\"\",0,MAX($S$9:S150)+1)","v":0},"Пирацетам (таб., 400 мг., №60)","уп.",34,"","",{"$f":"IFERROR(LOOKUP(,-1/($T151=Вводные[Наименование])/(Вводные[Дата]<$U$1),Вводные[Остаток]),0)+IF(Медикаменты[[#This Row],[Дата остатка]]<$U$1,Медикаменты[[#This Row],[Остаток]],0)","v":0},{"$f":"IF(T151=\"\",\"\",SUMPRODUCT((Вводные[Дата]>=$U$1)*(Вводные[Дата]<=$U$2)*(Вводные[Наименование]=$T151),Вводные[Приход]))","v":0},{"$f":"IF(T151=\"\",\"\",SUMPRODUCT((Вводные[Дата]>=$U$1)*(Вводные[Дата]<=$U$2)*(Вводные[Наименование]=$T151),Вводные[Расход]))","v":0},{"$f":"IFERROR(Медикаменты[[#This Row],[Остаток]]+Медикаменты[[#This Row],[Приход за период]]-Медикаменты[[#This Row],[Расход за период]],\"\")","v":""},{"$f":"IFERROR(SUMIF(Вводные[Наименование],Медикаменты[[#This Row],[Наименование]],Вводные[Приход]),0)","v":0},{"$f":"IFERROR(SUMIF(Вводные[Наименование],Медикаменты[[#This Row],[Наименование]],Вводные[Расход]),0)","v":0},{"$f":"IFERROR(Медикаменты[[#This Row],[Остаток]]+Медикаменты[[#This Row],[Приход общий]]-Медикаменты[[#This Row],[Расход общий]],0)","v":0},null,null,"Пинцет (однораз., стер.)","шт"]
[null,null,null,null,null,null,null,null,null,null,null,null,null,null,null,null,null,null,{"$f":"IF(IFERROR(IF(SEARCH(Расчет!$B$8,T152),\"!\",\"\"),\"\")=\"\",0,MAX($S$9:S151)+1)","v":0},"Пиридоксин (р-р для инъекций по 50 мг/1 мл, амп. по 1 мл., № 10)","уп.",100,"","",{"$f":"IFERROR(LOOKUP(,-1/($T152=Вводные[Наименование])/(Вводные[Дата]<$U$1),Вводные[Остаток]),0)+IF(Медикаменты[[#This Row],[Дата остатка]]<$U$1,Медикаменты[[#This Row],[Остаток]],0)","v":0},{"$f":"IF(T152=\"\",\"\",SUMPRODUCT((Вводные[Дата]>=$U$1)*(Вводные[Дата]<=$U$2)*(Вводные[Наименование]=$T152),Вводные[Приход]))","v":0},{"$f":"IF(T152=\"\",\"\",SUMPRODUCT((Вводные[Дата]>=$U$1)*(Вводные[Дата]<=$U$2)*(Вводные[Наименование]=$T152),Вводные[Расход]))","v":0},{"$f":"IFERROR(Медикаменты[[#This Row],[Остаток]]+Медикаменты[[#This Row],[Приход за период]]-Медикаменты[[#This Row],[Расход за период]],\"\")","v":""},{"$f":"IFERROR(SUMIF(Вводные[Наименование],Медикаменты[[#This Row],[Наименование]],Вводные[Приход]),0)","v":0},{"$f":"IFERROR(SUMIF(Вводные[Наименование],Медикаменты[[#This Row],[Наименование]],Вводные[Расход]),0)","v":0},{"$f":"IFERROR(Медикаменты[[#This Row],[Остаток]]+Медикаменты[[#This Row],[Приход общий]]-Медикаменты[[#This Row],[Расход общий]],0)","v":0},null,null,"Пирацетам (амп., 20%, 5 мл., №10)","уп."]
[null,null,null,null,null,null,null,null,null,null,null,null,null,null,null,null,null,null,{"$f":"IF(IFERROR(IF(SEARCH(Расчет!$B$8,T153),\"!\",\"\"),\"\")=\"\",0,MAX($S$9:S152)+1)","v":0},"Пиридоксина гидрохлорид (амп., 5%, 1 мл., №10)","уп.",70,"","",{"$f":"IFERROR(LOOKUP(,-1/($T153=Вводные[Наименование])/(Вводные[Дата]<$U$1),Вводные[Остаток]),0)+IF(Медикаменты[[#This Row],[Дата остатка]]<$U$1,Медикаменты[[#This Row],[Остаток]],0)","v":0},{"$f":"IF(T153=\"\",\"\",SUMPRODUCT((Вводные[Дата]>=$U$1)*(Вводные[Дата]<=$U$2)*(Вводные[Наименование]=$T153),Вводные[Приход]))","v":0},{"$f":"IF(T153=\"\",\"\",SUMPRODUCT((Вводные[Дата]>=$U$1)*(Вводные[Дата]<=$U$2)*(Вводные[Наименование]=$T153),Вводные[Расход]))","v":0},{"$f":"IFERROR(Медикаменты[[#This Row],[Остаток]]+Медикаменты[[#This Row],[Приход за период]]-Медикаменты[[#This Row],[Расход за период]],\"\")","v":""},{"$f":"IFERROR(SUMIF(Вводные[Наименование],Медикаменты[[#This Row],[Наименование]],Вводные[Приход]),0)","v":0},{"$f":"IFERROR(SUMIF(Вводные[Наименование],Медикаменты[[#This Row],[Наименование]],Вводные[Расход]),0)","v":0},{"$f":"IFERROR(Медикаменты[[#This Row],[Остаток]]+Медикаменты[[#This Row],[Приход общий]]-Медикаменты[[#This Row],[Расход общий]],0)","v":0},null,null,"Пирацетам (таб., 400 мг., №60)","уп."]
[null,null,null,null,null,null,null,null,null,null,null,null,null,null,null,null,null,null,{"$f":"IF(IFERROR(IF(SEARCH(Расчет!$B$8,T154),\"!\",\"\"),\"\")=\"\",0,MAX($S$9:S153)+1)","v":0},"Повязка медицинская (стер., 10х20 см., 25 шт.)","уп.",1,"","",{"$f":"IFERROR(LOOKUP(,-1/($T154=Вводные[Наименование])/(Вводные[Дата]<$U$1),Вводные[Остаток]),0)+IF(Медикаменты[[#This Row],[Дата остатка]]<$U$1,Медикаменты[[#This Row],[Остаток]],0)","v":0},{"$f":"IF(T154=\"\",\"\",SUMPRODUCT((Вводные[Дата]>=$U$1)*(Вводные[Дата]<=$U$2)*(Вводные[Наименование]=$T154),Вводные[Приход]))","v":0},{"$f":"IF(T154=\"\",\"\",SUMPRODUCT((Вводные[Дата]>=$U$1)*(Вводные[Дата]<=$U$2)*(Вводные[Наименование]=$T154),Вводные[Расход]))","v":0},{"$f":"IFERROR(Медикаменты[[#This Row],[Остаток]]+Медикаменты[[#This Row],[Приход за период]]-Медикаменты[[#This Row],[Расход за период]],\"\")","v":""},{"$f":"IFERROR(SUMIF(Вводные[Наименование],Медикаменты[[#This Row],[Наименование]],Вводные[Приход]),0)","v":0},{"$f":"IFERROR(SUMIF(Вводные[Наименование],Медикаменты[[#This Row],[Наименование]],Вводные[Расход]),0)","v":0},{"$f":"IFERROR(Медикаменты[[#This Row],[Остаток]]+Медикаменты[[#This Row],[Приход общий]]-Медикаменты[[#This Row],[Расход общий]],0)","v":0},null,null,"Пиридоксин (р-р для инъекций по 50 мг/1 мл, амп. по 1 мл., № 10)","уп."]
[null,null,null,null,null,null,null,null,null,null,null,null,null,null,null,null,null,null,{"$f":"IF(IFERROR(IF(SEARCH(Расчет!$B$8,T155),\"!\",\"\"),\"\")=\"\",0,MAX($S$9:S154)+1)","v":0},"Повязка медицинская (стер., 10х20 см., 50 шт.)","уп.",1,"","",{"$f":"IFERROR(LOOKUP(,-1/($T155=Вводные[Наименование])/(Вводные[Дата]<$U$1),Вводные[Остаток]),0)+IF(Медикаменты[[#This Row],[Дата остатка]]<$U$1,Медикаменты[[#This Row],[Остаток]],0)","v":0},{"$f":"IF(T155=\"\",\"\",SUMPRODUCT((Вводные[Дата]>=$U$1)*(Вводные[Дата]<=$U$2)*(Вводные[Наименование]=$T155),Вводные[Приход]))","v":0},{"$f":"IF(T155=\"\",\"\",SUMPRODUCT((Вводные[Дата]>=$U$1)*(Вводные[Дата]<=$U$2)*(Вводные[Наименование]=$T155),Вводные[Расход]))","v":0},{"$f":"IFERROR(Медикаменты[[#This Row],[Остаток]]+Медикаменты[[#This Row],[Приход за период]]-Медикаменты[[#This Row],[Расход за период]],\"\")","v":""},{"$f":"IFERROR(SUMIF(Вводные[Наименование],Медикаменты[[#This Row],[Наименование]],Вводные[Приход]),0)","v":0},{"$f":"IFERROR(SUMIF(Вводные[Наименование],Медикаменты[[#This Row],[Наименование]],Вводные[Расход]),0)","v":0},{"$f":"IFERROR(Медикаменты[[#This Row],[Остаток]]+Медикаменты[[#This Row],[Приход общий]]-Медикаменты[[#This Row],[Расход общий]],0)","v":0},null,null,"Пиридоксина гидрохлорид (амп., 5%, 1 мл., №10)","уп."]
[null,null,null,null,null,null,null,null,null,null,null,null,null,null,null,null,null,null,{"$f":"IF(IFERROR(IF(SEARCH(Расчет!$B$8,T156),\"!\",\"\"),\"\")=\"\",0,MAX($S$9:S155)+1)","v":0},"Повязка медицинская (стер., 9х10 см., 30 шт.)","уп.",1,"","",{"$f":"IFERROR(LOOKUP(,-1/($T156=Вводные[Наименование])/(Вводные[Дата]<$U$1),Вводные[Остаток]),0)+IF(Медикаменты[[#This Row],[Дата остатка]]<$U$1,Медикаменты[[#This Row],[Остаток]],0)","v":0},{"$f":"IF(T156=\"\",\"\",SUMPRODUCT((Вводные[Дата]>=$U$1)*(Вводные[Дата]<=$U$2)*(Вводные[Наименование]=$T156),Вводные[Приход]))","v":0},{"$f":"IF(T156=\"\",\"\",SUMPRODUCT((Вводные[Дата]>=$U$1)*(Вводные[Дата]<=$U$2)*(Вводные[Наименование]=$T156),Вводные[Расход]))","v":0},{"$f":"IFERROR(Медикаменты[[#This Row],[Остаток]]+Медикаменты[[#This Row],[Приход за период]]-Медикаменты[[#This Row],[Расход за период]],\"\")","v":""},{"$f":"IFERROR(SUMIF(Вводные[Наименование],Медикаменты[[#This Row],[Наименование]],Вводные[Приход]),0)","v":0},{"$f":"IFERROR(SUMIF(Вводные[Наименование],Медикаменты[[#This Row],[Наименование]],Вводные[Расход]),0)","v":0},{"$f":"IFERROR(Медикаменты[[#This Row],[Остаток]]+Медикаменты[[#This Row],[Приход общий]]-Медикаменты[[#This Row],[Расход общий]],0)","v":0},null,null,"Повязка медицинская (стер., 10х20 см., 25 шт.)","уп."]
[null,null,null,null,null,null,null,null,null,null,null,null,null,null,null,null,null,null,{"$f":"IF(IFERROR(IF(SEARCH(Расчет!$B$8,T157),\"!\",\"\"),\"\")=\"\",0,MAX($S$9:S156)+1)","v":0},"Повязка медицинская (стер., 9х10 см., 50 шт.)","уп.",1,"","",{"$f":"IFERROR(LOOKUP(,-1/($T157=Вводные[Наименование])/(Вводные[Дата]<$U$1),Вводные[Остаток]),0)+IF(Медикаменты[[#This Row],[Дата остатка]]<$U$1,Медикаменты[[#This Row],[Остаток]],0)","v":0},{"$f":"IF(T157=\"\",\"\",SUMPRODUCT((Вводные[Дата]>=$U$1)*(Вводные[Дата]<=$U$2)*(Вводные[Наименование]=$T157),Вводные[Приход]))","v":0},{"$f":"IF(T157=\"\",\"\",SUMPRODUCT((Вводные[Дата]>=$U$1)*(Вводные[Дата]<=$U$2)*(Вводные[Наименование]=$T157),Вводные[Расход]))","v":0},{"$f":"IFERROR(Медикаменты[[#This Row],[Остаток]]+Медикаменты[[#This Row],[Приход за период]]-Медикаменты[[#This Row],[Расход за период]],\"\")","v":""},{"$f":"IFERROR(SUMIF(Вводные[Наименование],Медикаменты[[#This Row],[Наименование]],Вводные[Приход]),0)","v":0},{"$f":"IFERROR(SUMIF(Вводные[Наименование],Медикаменты[[#This Row],[Наименование]],Вводные[Расход]),0)","v":0},{"$f":"IFERROR(Медикаменты[[#This Row],[Остаток]]+Медикаменты[[#This Row],[Приход общий]]-Медикаменты[[#This Row],[Расход общий]],0)","v":0},null,null,"Повязка медицинская (стер., 10х20 см., 50 шт.)","уп."]
[null,null,null,null,null,null,null,null,null,null,null,null,null,null,null,null,null,null,{"$f":"IF(IFERROR(IF(SEARCH(Расчет!$B$8,T158),\"!\",\"\"),\"\")=\"\",0,MAX($S$9:S157)+1)","v":0},"Полотенце бумажное (200 шт.)","пач.",200,"2018-03-30",148,{"$f":"IFERROR(LOOKUP(,-1/($T158=Вводные[Наименование])/(Вводные[Дата]<$U$1),Вводные[Остаток]),0)+IF(Медикаменты[[#This Row],[Дата остатка]]<$U$1,Медикаменты[[#This Row],[Остаток]],0)","v":148},{"$f":"IF(T158=\"\",\"\",SUMPRODUCT((Вводные[Дата]>=$U$1)*(Вводные[Дата]<=$U$2)*(Вводные[Наименование]=$T158),Вводные[Приход]))","v":0},{"$f":"IF(T158=\"\",\"\",SUMPRODUCT((Вводные[Дата]>=$U$1)*(Вводные[Дата]<=$U$2)*(Вводные[Наименование]=$T158),Вводные[Расход]))","v":0},{"$f":"IFERROR(Медикаменты[[#This Row],[Остаток]]+Медикаменты[[#This Row],[Приход за период]]-Медикаменты[[#This Row],[Расход за период]],\"\")","v":148},{"$f":"IFERROR(SUMIF(Вводные[Наименование],Медикаменты[[#This Row],[Наименование]],Вводные[Приход]),0)","v":0},{"$f":"IFERROR(SUMIF(Вводные[Наименование],Медикаменты[[#This Row],[Наименование]],Вводные[Расход]),0)","v":0},{"$f":"IFERROR(Медикаменты[[#This Row],[Остаток]]+Медикаменты[[#This Row],[Приход общий]]-Медикаменты[[#This Row],[Расход общий]],0)","v":148},null,null,"Повязка медицинская (стер., 9х10 см., 30 шт.)","уп."]
[null,null,null,null,null,null,null,null,null,null,null,null,null,null,null,null,null,null,{"$f":"IF(IFERROR(IF(SEARCH(Расчет!$B$8,T159),\"!\",\"\"),\"\")=\"\",0,MAX($S$9:S158)+1)","v":0},"Преднизол (амп., 30мг/мл, 1 мл., №3)","уп.",58,"","",{"$f":"IFERROR(LOOKUP(,-1/($T159=Вводные[Наименование])/(Вводные[Дата]<$U$1),Вводные[Остаток]),0)+IF(Медикаменты[[#This Row],[Дата остатка]]<$U$1,Медикаменты[[#This Row],[Остаток]],0)","v":0},{"$f":"IF(T159=\"\",\"\",SUMPRODUCT((Вводные[Дата]>=$U$1)*(Вводные[Дата]<=$U$2)*(Вводные[Наименование]=$T159),Вводные[Приход]))","v":0},{"$f":"IF(T159=\"\",\"\",SUMPRODUCT((Вводные[Дата]>=$U$1)*(Вводные[Дата]<=$U$2)*(Вводные[Наименование]=$T159),Вводные[Расход]))","v":0},{"$f":"IFERROR(Медикаменты[[#This Row],[Остаток]]+Медикаменты[[#This Row],[Приход за период]]-Медикаменты[[#This Row],[Расход за период]],\"\")","v":""},{"$f":"IFERROR(SUMIF(Вводные[Наименование],Медикаменты[[#This Row],[Наименование]],Вводные[Приход]),0)","v":0},{"$f":"IFERROR(SUMIF(Вводные[Наименование],Медикаменты[[#This Row],[Наименование]],Вводные[Расход]),0)","v":0},{"$f":"IFERROR(Медикаменты[[#This Row],[Остаток]]+Медикаменты[[#This Row],[Приход общий]]-Медикаменты[[#This Row],[Расход общий]],0)","v":0},null,null,"Повязка медицинская (стер., 9х10 см., 50 шт.)","уп."]
[null,null,null,null,null,null,null,null,null,null,null,null,null,null,null,null,null,null,{"$f":"IF(IFERROR(IF(SEARCH(Расчет!$B$8,T160),\"!\",\"\"),\"\")=\"\",0,MAX($S$9:S159)+1)","v":0},"Пробирка Vacuette (4 мл., 50 шт.)","шт.",5500,"2018-04-01",100,{"$f":"IFERROR(LOOKUP(,-1/($T160=Вводные[Наименование])/(Вводные[Дата]<$U$1),Вводные[Остаток]),0)+IF(Медикаменты[[#This Row],[Дата остатка]]<$U$1,Медикаменты[[#This Row],[Остаток]],0)","v":100},{"$f":"IF(T160=\"\",\"\",SUMPRODUCT((Вводные[Дата]>=$U$1)*(Вводные[Дата]<=$U$2)*(Вводные[Наименование]=$T160),Вводные[Приход]))","v":0},{"$f":"IF(T160=\"\",\"\",SUMPRODUCT((Вводные[Дата]>=$U$1)*(Вводные[Дата]<=$U$2)*(Вводные[Наименование]=$T160),Вводные[Расход]))","v":0},{"$f":"IFERROR(Медикаменты[[#This Row],[Остаток]]+Медикаменты[[#This Row],[Приход за период]]-Медикаменты[[#This Row],[Расход за период]],\"\")","v":100},{"$f":"IFERROR(SUMIF(Вводные[Наименование],Медикаменты[[#This Row],[Наименование]],Вводные[Приход]),0)","v":0},{"$f":"IFERROR(SUMIF(Вводные[Наименование],Медикаменты[[#This Row],[Наименование]],Вводные[Расход]),0)","v":0},{"$f":"IFERROR(Медикаменты[[#This Row],[Остаток]]+Медикаменты[[#This Row],[Приход общий]]-Медикаменты[[#This Row],[Расход общий]],0)","v":100},null,null,"Полотенце бумажное (200 шт.)","пач."]
[null,null,null,null,null,null,null,null,null,null,null,null,null,null,null,null,null,null,{"$f":"IF(IFERROR(IF(SEARCH(Расчет!$B$8,T161),\"!\",\"\"),\"\")=\"\",0,MAX($S$9:S160)+1)","v":0},"Пробирка Vacuette (8 мл., 50 шт.)","шт.",1200,"","",{"$f":"IFERROR(LOOKUP(,-1/($T161=Вводные[Наименование])/(Вводные[Дата]<$U$1),Вводные[Остаток]),0)+IF(Медикаменты[[#This Row],[Дата остатка]]<$U$1,Медикаменты[[#This Row],[Остаток]],0)","v":0},{"$f":"IF(T161=\"\",\"\",SUMPRODUCT((Вводные[Дата]>=$U$1)*(Вводные[Дата]<=$U$2)*(Вводные[Наименование]=$T161),Вводные[Приход]))","v":0},{"$f":"IF(T161=\"\",\"\",SUMPRODUCT((Вводные[Дата]>=$U$1)*(Вводные[Дата]<=$U$2)*(Вводные[Наименование]=$T161),Вводные[Расход]))","v":0},{"$f":"IFERROR(Медикаменты[[#This Row],[Остаток]]+Медикаменты[[#This Row],[Приход за период]]-Медикаменты[[#This Row],[Расход за период]],\"\")","v":""},{"$f":"IFERROR(SUMIF(Вводные[Наименование],Медикаменты[[#This Row],[Наименование]],Вводные[Приход]),0)","v":0},{"$f":"IFERROR(SUMIF(Вводные[Наименование],Медикаменты[[#This Row],[Наименование]],Вводные[Расход]),0)","v":0},{"$f":"IFERROR(Медикаменты[[#This Row],[Остаток]]+Медикаменты[[#This Row],[Приход общий]]-Медикаменты[[#This Row],[Расход общий]],0)","v":0},null,null,"Преднизол (амп., 30мг/мл, 1 мл., №3)","уп."]
[null,null,null,null,null,null,null,null,null,null,null,null,null,null,null,null,null,null,{"$f":"IF(IFERROR(IF(SEARCH(Расчет!$B$8,T162),\"!\",\"\"),\"\")=\"\",0,MAX($S$9:S161)+1)","v":0},"Пробирка Vacuette (9 мл., 50 шт.)","шт.",1000,"","",{"$f":"IFERROR(LOOKUP(,-1/($T162=Вводные[Наименование])/(Вводные[Дата]<$U$1),Вводные[Остаток]),0)+IF(Медикаменты[[#This Row],[Дата остатка]]<$U$1,Медикаменты[[#This Row],[Остаток]],0)","v":0},{"$f":"IF(T162=\"\",\"\",SUMPRODUCT((Вводные[Дата]>=$U$1)*(Вводные[Дата]<=$U$2)*(Вводные[Наименование]=$T162),Вводные[Приход]))","v":0},{"$f":"IF(T162=\"\",\"\",SUMPRODUCT((Вводные[Дата]>=$U$1)*(Вводные[Дата]<=$U$2)*(Вводные[Наименование]=$T162),Вводные[Расход]))","v":0},{"$f":"IFERROR(Медикаменты[[#This Row],[Остаток]]+Медикаменты[[#This Row],[Приход за период]]-Медикаменты[[#This Row],[Расход за период]],\"\")","v":""},{"$f":"IFERROR(SUMIF(Вводные[Наименование],Медикаменты[[#This Row],[Наименование]],Вводные[Приход]),0)","v":0},{"$f":"IFERROR(SUMIF(Вводные[Наименование],Медикаменты[[#This Row],[Наименование]],Вводные[Расход]),0)","v":0},{"$f":"IFERROR(Медикаменты[[#This Row],[Остаток]]+Медикаменты[[#This Row],[Приход общий]]-Медикаменты[[#This Row],[Расход общий]],0)","v":0},null,null,"Пробирка Vacuette (4 мл., 50 шт.)","шт."]
[null,null,null,null,null,null,null,null,null,null,null,null,null,null,null,null,null,null,{"$f":"IF(IFERROR(IF(SEARCH(Расчет!$B$8,T163),\"!\",\"\"),\"\")=\"\",0,MAX($S$9:S162)+1)","v":0},"Пробирка с ватным тампоном стерильная (без наполнителя)","шт",100,"","",{"$f":"IFERROR(LOOKUP(,-1/($T163=Вводные[Наименование])/(Вводные[Дата]<$U$1),Вводные[Остаток]),0)+IF(Медикаменты[[#This Row],[Дата остатка]]<$U$1,Медикаменты[[#This Row],[Остаток]],0)","v":0},{"$f":"IF(T163=\"\",\"\",SUMPRODUCT((Вводные[Дата]>=$U$1)*(Вводные[Дата]<=$U$2)*(Вводные[Наименование]=$T163),Вводные[Приход]))","v":0},{"$f":"IF(T163=\"\",\"\",SUMPRODUCT((Вводные[Дата]>=$U$1)*(Вводные[Дата]<=$U$2)*(Вводные[Наименование]=$T163),Вводные[Расход]))","v":0},{"$f":"IFERROR(Медикаменты[[#This Row],[Остаток]]+Медикаменты[[#This Row],[Приход за период]]-Медикаменты[[#This Row],[Расход за период]],\"\")","v":""},{"$f":"IFERROR(SUMIF(Вводные[Наименование],Медикаменты[[#This Row],[Наименование]],Вводные[Приход]),0)","v":0},{"$f":"IFERROR(SUMIF(Вводные[Наименование],Медикаменты[[#This Row],[Наименование]],Вводные[Расход]),0)","v":0},{"$f":"IFERROR(Медикаменты[[#This Row],[Остаток]]+Медикаменты[[#This Row],[Приход общий]]-Медикаменты[[#This Row],[Расход общий]],0)","v":0},null,null,"Пробирка Vacuette (8 мл., 50 шт.)","шт."]
[null,null,null,null,null,null,null,null,null,null,null,null,null,null,null,null,null,null,{"$f":"IF(IFERROR(IF(SEARCH(Расчет!$B$8,T164),\"!\",\"\"),\"\")=\"\",0,MAX($S$9:S163)+1)","v":0},"Пробирки ВАКУТЫ",0,0,"2018-06-07",40,{"$f":"IFERROR(LOOKUP(,-1/($T164=Вводные[Наименование])/(Вводные[Дата]<$U$1),Вводные[Остаток]),0)+IF(Медикаменты[[#This Row],[Дата остатка]]<$U$1,Медикаменты[[#This Row],[Остаток]],0)","v":0},{"$f":"IF(T164=\"\",\"\",SUMPRODUCT((Вводные[Дата]>=$U$1)*(Вводные[Дата]<=$U$2)*(Вводные[Наименование]=$T164),Вводные[Приход]))","v":0},{"$f":"IF(T164=\"\",\"\",SUMPRODUCT((Вводные[Дата]>=$U$1)*(Вводные[Дата]<=$U$2)*(Вводные[Наименование]=$T164),Вводные[Расход]))","v":0},{"$f":"IFERROR(Медикаменты[[#This Row],[Остаток]]+Медикаменты[[#This Row],[Приход за период]]-Медикаменты[[#This Row],[Расход за период]],\"\")","v":40},{"$f":"IFERROR(SUMIF(Вводные[Наименование],Медикаменты[[#This Row],[Наименование]],Вводные[Приход]),0)","v":0},{"$f":"IFERROR(SUMIF(Вводные[Наименование],Медикаменты[[#This Row],[Наименование]],Вводные[Расход]),0)","v":0},{"$f":"IFERROR(Медикаменты[[#This Row],[Остаток]]+Медикаменты[[#This Row],[Приход общий]]-Медикаменты[[#This Row],[Расход общий]],0)","v":40},null,null,"Пробирка Vacuette (9 мл., 50 шт.)","шт."]
[null,null,null,null,null,null,null,null,null,null,null,null,null,null,null,null,null,null,{"$f":"IF(IFERROR(IF(SEARCH(Расчет!$B$8,T165),\"!\",\"\"),\"\")=\"\",0,MAX($S$9:S164)+1)","v":0},"Проклин антисептик (1 л. с триггером)","шт.",200,"","",{"$f":"IFERROR(LOOKUP(,-1/($T165=Вводные[Наименование])/(Вводные[Дата]<$U$1),Вводные[Остаток]),0)+IF(Медикаменты[[#This Row],[Дата остатка]]<$U$1,Медикаменты[[#This Row],[Остаток]],0)","v":0},{"$f":"IF(T165=\"\",\"\",SUMPRODUCT((Вводные[Дата]>=$U$1)*(Вводные[Дата]<=$U$2)*(Вводные[Наименование]=$T165),Вводные[Приход]))","v":0},{"$f":"IF(T165=\"\",\"\",SUMPRODUCT((Вводные[Дата]>=$U$1)*(Вводные[Дата]<=$U$2)*(Вводные[Наименование]=$T165),Вводные[Расход]))","v":0},{"$f":"IFERROR(Медикаменты[[#This Row],[Остаток]]+Медикаменты[[#This Row],[Приход за период]]-Медикаменты[[#This Row],[Расход за период]],\"\")","v":""},{"$f":"IFERROR(SUMIF(Вводные[Наименование],Медикаменты[[#This Row],[Наименование]],Вводные[Приход]),0)","v":0},{"$f":"IFERROR(SUMIF(Вводные[Наименование],Медикаменты[[#This Row],[Наименование]],Вводные[Расход]),0)","v":0},{"$f":"IFERROR(Медикаменты[[#This Row],[Остаток]]+Медикаменты[[#This Row],[Приход общий]]-Медикаменты[[#This Row],[Расход общий]],0)","v":0},null,null,"Пробирка с ватным тампоном стерильная (без наполнителя)","шт"]
[null,null,null,null,null,null,null,null,null,null,null,null,null,null,null,null,null,null,{"$f":"IF(IFERROR(IF(SEARCH(Расчет!$B$8,T166),\"!\",\"\"),\"\")=\"\",0,MAX($S$9:S165)+1)","v":0},"Простыня (нест, 70х80 см., 200 шт.)","рул.",45,"","",{"$f":"IFERROR(LOOKUP(,-1/($T166=Вводные[Наименование])/(Вводные[Дата]<$U$1),Вводные[Остаток]),0)+IF(Медикаменты[[#This Row],[Дата остатка]]<$U$1,Медикаменты[[#This Row],[Остаток]],0)","v":0},{"$f":"IF(T166=\"\",\"\",SUMPRODUCT((Вводные[Дата]>=$U$1)*(Вводные[Дата]<=$U$2)*(Вводные[Наименование]=$T166),Вводные[Приход]))","v":0},{"$f":"IF(T166=\"\",\"\",SUMPRODUCT((Вводные[Дата]>=$U$1)*(Вводные[Дата]<=$U$2)*(Вводные[Наименование]=$T166),Вводные[Расход]))","v":0},{"$f":"IFERROR(Медикаменты[[#This Row],[Остаток]]+Медикаменты[[#This Row],[Приход за период]]-Медикаменты[[#This Row],[Расход за период]],\"\")","v":""},{"$f":"IFERROR(SUMIF(Вводные[Наименование],Медикаменты[[#This Row],[Наименование]],Вводные[Приход]),0)","v":0},{"$f":"IFERROR(SUMIF(Вводные[Наименование],Медикаменты[[#This Row],[Наименование]],Вводные[Расход]),0)","v":0},{"$f":"IFERROR(Медикаменты[[#This Row],[Остаток]]+Медикаменты[[#This Row],[Приход общий]]-Медикаменты[[#This Row],[Расход общий]],0)","v":0},null,null,"Пробирки ВАКУТЫ"]
[null,null,null,null,null,null,null,null,null,null,null,null,null,null,null,null,null,null,{"$f":"IF(IFERROR(IF(SEARCH(Расчет!$B$8,T167),\"!\",\"\"),\"\")=\"\",0,MAX($S$9:S166)+1)","v":0},"Пульмикорт (суспензия для ингаляций 0,5 мг/мл, 2 мл., №20)","уп.",50,"","",{"$f":"IFERROR(LOOKUP(,-1/($T167=Вводные[Наименование])/(Вводные[Дата]<$U$1),Вводные[Остаток]),0)+IF(Медикаменты[[#This Row],[Дата остатка]]<$U$1,Медикаменты[[#This Row],[Остаток]],0)","v":0},{"$f":"IF(T167=\"\",\"\",SUMPRODUCT((Вводные[Дата]>=$U$1)*(Вводные[Дата]<=$U$2)*(Вводные[Наименование]=$T167),Вводные[Приход]))","v":0},{"$f":"IF(T167=\"\",\"\",SUMPRODUCT((Вводные[Дата]>=$U$1)*(Вводные[Дата]<=$U$2)*(Вводные[Наименование]=$T167),Вводные[Расход]))","v":0},{"$f":"IFERROR(Медикаменты[[#This Row],[Остаток]]+Медикаменты[[#This Row],[Приход за период]]-Медикаменты[[#This Row],[Расход за период]],\"\")","v":""},{"$f":"IFERROR(SUMIF(Вводные[Наименование],Медикаменты[[#This Row],[Наименование]],Вводные[Приход]),0)","v":0},{"$f":"IFERROR(SUMIF(Вводные[Наименование],Медикаменты[[#This Row],[Наименование]],Вводные[Расход]),0)","v":0},{"$f":"IFERROR(Медикаменты[[#This Row],[Остаток]]+Медикаменты[[#This Row],[Приход общий]]-Медикаменты[[#This Row],[Расход общий]],0)","v":0},null,null,"Проклин антисептик (1 л. с триггером)","шт."]
[null,null,null,null,null,null,null,null,null,null,null,null,null,null,null,null,null,null,{"$f":"IF(IFERROR(IF(SEARCH(Расчет!$B$8,T168),\"!\",\"\"),\"\")=\"\",0,MAX($S$9:S167)+1)","v":0},"Рентгеновская пленка Carestream Health Dry View 5700 Laser Imager (20х25 см., 125 л.)","уп.",10,"","",{"$f":"IFERROR(LOOKUP(,-1/($T168=Вводные[Наименование])/(Вводные[Дата]<$U$1),Вводные[Остаток]),0)+IF(Медикаменты[[#This Row],[Дата остатка]]<$U$1,Медикаменты[[#This Row],[Остаток]],0)","v":0},{"$f":"IF(T168=\"\",\"\",SUMPRODUCT((Вводные[Дата]>=$U$1)*(Вводные[Дата]<=$U$2)*(Вводные[Наименование]=$T168),Вводные[Приход]))","v":0},{"$f":"IF(T168=\"\",\"\",SUMPRODUCT((Вводные[Дата]>=$U$1)*(Вводные[Дата]<=$U$2)*(Вводные[Наименование]=$T168),Вводные[Расход]))","v":0},{"$f":"IFERROR(Медикаменты[[#This Row],[Остаток]]+Медикаменты[[#This Row],[Приход за период]]-Медикаменты[[#This Row],[Расход за период]],\"\")","v":""},{"$f":"IFERROR(SUMIF(Вводные[Наименование],Медикаменты[[#This Row],[Наименование]],Вводные[Приход]),0)","v":0},{"$f":"IFERROR(SUMIF(Вводные[Наименование],Медикаменты[[#This Row],[Наименование]],Вводные[Расход]),0)","v":0},{"$f":"IFERROR(Медикаменты[[#This Row],[Остаток]]+Медикаменты[[#This Row],[Приход общий]]-Медикаменты[[#This Row],[Расход общий]],0)","v":0},null,null,"Простыня (нест, 70х80 см., 200 шт.)","рул."]
[null,null,null,null,null,null,null,null,null,null,null,null,null,null,null,null,null,null,{"$f":"IF(IFERROR(IF(SEARCH(Расчет!$B$8,T169),\"!\",\"\"),\"\")=\"\",0,MAX($S$9:S168)+1)","v":0},"Рентгеновская пленка Carestream Health Dry View 5700 Laser Imager (35х43 см., 125 л.)","уп.",6,"","",{"$f":"IFERROR(LOOKUP(,-1/($T169=Вводные[Наименование])/(Вводные[Дата]<$U$1),Вводные[Остаток]),0)+IF(Медикаменты[[#This Row],[Дата остатка]]<$U$1,Медикаменты[[#This Row],[Остаток]],0)","v":0},{"$f":"IF(T169=\"\",\"\",SUMPRODUCT((Вводные[Дата]>=$U$1)*(Вводные[Дата]<=$U$2)*(Вводные[Наименование]=$T169),Вводные[Приход]))","v":0},{"$f":"IF(T169=\"\",\"\",SUMPRODUCT((Вводные[Дата]>=$U$1)*(Вводные[Дата]<=$U$2)*(Вводные[Наименование]=$T169),Вводные[Расход]))","v":0},{"$f":"IFERROR(Медикаменты[[#This Row],[Остаток]]+Медикаменты[[#This Row],[Приход за период]]-Медикаменты[[#This Row],[Расход за период]],\"\")","v":""},{"$f":"IFERROR(SUMIF(Вводные[Наименование],Медикаменты[[#This Row],[Наименование]],Вводные[Приход]),0)","v":0},{"$f":"IFERROR(SUMIF(Вводные[Наименование],Медикаменты[[#This Row],[Наименование]],Вводные[Расход]),0)","v":0},{"$f":"IFERROR(Медикаменты[[#This Row],[Остаток]]+Медикаменты[[#This Row],[Приход общий]]-Медикаменты[[#This Row],[Расход общий]],0)","v":0},null,null,"Пульмикорт (суспензия для ингаляций 0,5 мг/мл, 2 мл., №20)","уп."]
[null,null,null,null,null,null,null,null,null,null,null,null,null,null,null,null,null,null,{"$f":"IF(IFERROR(IF(SEARCH(Расчет!$B$8,T170),\"!\",\"\"),\"\")=\"\",0,MAX($S$9:S169)+1)","v":0},"Рибоксин (таб., 200 мг., №50)","уп.",5,"2018-03-30",300,{"$f":"IFERROR(LOOKUP(,-1/($T170=Вводные[Наименование])/(Вводные[Дата]<$U$1),Вводные[Остаток]),0)+IF(Медикаменты[[#This Row],[Дата остатка]]<$U$1,Медикаменты[[#This Row],[Остаток]],0)","v":300},{"$f":"IF(T170=\"\",\"\",SUMPRODUCT((Вводные[Дата]>=$U$1)*(Вводные[Дата]<=$U$2)*(Вводные[Наименование]=$T170),Вводные[Приход]))","v":0},{"$f":"IF(T170=\"\",\"\",SUMPRODUCT((Вводные[Дата]>=$U$1)*(Вводные[Дата]<=$U$2)*(Вводные[Наименование]=$T170),Вводные[Расход]))","v":0},{"$f":"IFERROR(Медикаменты[[#This Row],[Остаток]]+Медикаменты[[#This Row],[Приход за период]]-Медикаменты[[#This Row],[Расход за период]],\"\")","v":300},{"$f":"IFERROR(SUMIF(Вводные[Наименование],Медикаменты[[#This Row],[Наименование]],Вводные[Приход]),0)","v":0},{"$f":"IFERROR(SUMIF(Вводные[Наименование],Медикаменты[[#This Row],[Наименование]],Вводные[Расход]),0)","v":0},{"$f":"IFERROR(Медикаменты[[#This Row],[Остаток]]+Медикаменты[[#This Row],[Приход общий]]-Медикаменты[[#This Row],[Расход общий]],0)","v":300},null,null,"Рентгеновская пленка Carestream Health Dry View 5700 Laser Imager (20х25 см., 125 л.)","уп."]
[null,null,null,null,null,null,null,null,null,null,null,null,null,null,null,null,null,null,{"$f":"IF(IFERROR(IF(SEARCH(Расчет!$B$8,T171),\"!\",\"\"),\"\")=\"\",0,MAX($S$9:S170)+1)","v":0},"Роторасширитель с фиксатором для детей","шт",7,"","",{"$f":"IFERROR(LOOKUP(,-1/($T171=Вводные[Наименование])/(Вводные[Дата]<$U$1),Вводные[Остаток]),0)+IF(Медикаменты[[#This Row],[Дата остатка]]<$U$1,Медикаменты[[#This Row],[Остаток]],0)","v":0},{"$f":"IF(T171=\"\",\"\",SUMPRODUCT((Вводные[Дата]>=$U$1)*(Вводные[Дата]<=$U$2)*(Вводные[Наименование]=$T171),Вводные[Приход]))","v":0},{"$f":"IF(T171=\"\",\"\",SUMPRODUCT((Вводные[Дата]>=$U$1)*(Вводные[Дата]<=$U$2)*(Вводные[Наименование]=$T171),Вводные[Расход]))","v":0},{"$f":"IFERROR(Медикаменты[[#This Row],[Остаток]]+Медикаменты[[#This Row],[Приход за период]]-Медикаменты[[#This Row],[Расход за период]],\"\")","v":""},{"$f":"IFERROR(SUMIF(Вводные[Наименование],Медикаменты[[#This Row],[Наименование]],Вводные[Приход]),0)","v":0},{"$f":"IFERROR(SUMIF(Вводные[Наименование],Медикаменты[[#This Row],[Наименование]],Вводные[Расход]),0)","v":0},{"$f":"IFERROR(Медикаменты[[#This Row],[Остаток]]+Медикаменты[[#This Row],[Приход общий]]-Медикаменты[[#This Row],[Расход общий]],0)","v":0},null,null,"Рентгеновская пленка Carestream Health Dry View 5700 Laser Imager (35х43 см., 125 л.)","уп."]
[null,null,null,null,null,null,null,null,null,null,null,null,null,null,null,null,null,null,{"$f":"IF(IFERROR(IF(SEARCH(Расчет!$B$8,T172),\"!\",\"\"),\"\")=\"\",0,MAX($S$9:S171)+1)","v":0},"Салфетка (спанлейс, 30х40, 100 шт.)","уп.",140,"2018-03-30",22,{"$f":"IFERROR(LOOKUP(,-1/($T172=Вводные[Наименование])/(Вводные[Дата]<$U$1),Вводные[Остаток]),0)+IF(Медикаменты[[#This Row],[Дата остатка]]<$U$1,Медикаменты[[#This Row],[Остаток]],0)","v":22},{"$f":"IF(T172=\"\",\"\",SUMPRODUCT((Вводные[Дата]>=$U$1)*(Вводные[Дата]<=$U$2)*(Вводные[Наименование]=$T172),Вводные[Приход]))","v":0},{"$f":"IF(T172=\"\",\"\",SUMPRODUCT((Вводные[Дата]>=$U$1)*(Вводные[Дата]<=$U$2)*(Вводные[Наименование]=$T172),Вводные[Расход]))","v":0},{"$f":"IFERROR(Медикаменты[[#This Row],[Остаток]]+Медикаменты[[#This Row],[Приход за период]]-Медикаменты[[#This Row],[Расход за период]],\"\")","v":22},{"$f":"IFERROR(SUMIF(Вводные[Наименование],Медикаменты[[#This Row],[Наименование]],Вводные[Приход]),0)","v":0},{"$f":"IFERROR(SUMIF(Вводные[Наименование],Медикаменты[[#This Row],[Наименование]],Вводные[Расход]),0)","v":0},{"$f":"IFERROR(Медикаменты[[#This Row],[Остаток]]+Медикаменты[[#This Row],[Приход общий]]-Медикаменты[[#This Row],[Расход общий]],0)","v":22},null,null,"Рибоксин (таб., 200 мг., №50)","уп."]
[null,null,null,null,null,null,null,null,null,null,null,null,null,null,null,null,null,null,{"$f":"IF(IFERROR(IF(SEARCH(Расчет!$B$8,T173),\"!\",\"\"),\"\")=\"\",0,MAX($S$9:S172)+1)","v":0},"Салфетка (стер., 110х85 мм., 70%)","шт.",3000,"","",{"$f":"IFERROR(LOOKUP(,-1/($T173=Вводные[Наименование])/(Вводные[Дата]<$U$1),Вводные[Остаток]),0)+IF(Медикаменты[[#This Row],[Дата остатка]]<$U$1,Медикаменты[[#This Row],[Остаток]],0)","v":0},{"$f":"IF(T173=\"\",\"\",SUMPRODUCT((Вводные[Дата]>=$U$1)*(Вводные[Дата]<=$U$2)*(Вводные[Наименование]=$T173),Вводные[Приход]))","v":0},{"$f":"IF(T173=\"\",\"\",SUMPRODUCT((Вводные[Дата]>=$U$1)*(Вводные[Дата]<=$U$2)*(Вводные[Наименование]=$T173),Вводные[Расход]))","v":0},{"$f":"IFERROR(Медикаменты[[#This Row],[Остаток]]+Медикаменты[[#This Row],[Приход за период]]-Медикаменты[[#This Row],[Расход за период]],\"\")","v":""},{"$f":"IFERROR(SUMIF(Вводные[Наименование],Медикаменты[[#This Row],[Наименование]],Вводные[Приход]),0)","v":0},{"$f":"IFERROR(SUMIF(Вводные[Наименование],Медикаменты[[#This Row],[Наименование]],Вводные[Расход]),0)","v":0},{"$f":"IFERROR(Медикаменты[[#This Row],[Остаток]]+Медикаменты[[#This Row],[Приход общий]]-Медикаменты[[#This Row],[Расход общий]],0)","v":0},null,null,"Роторасширитель с фиксатором для детей","шт"]
[null,null,null,null,null,null,null,null,null,null,null,null,null,null,null,null,null,null,{"$f":"IF(IFERROR(IF(SEARCH(Расчет!$B$8,T174),\"!\",\"\"),\"\")=\"\",0,MAX($S$9:S173)+1)","v":0},"Салфетка (стер., 14х16 см., №10)","уп.",200,"00:00:00",0,{"$f":"IFERROR(LOOKUP(,-1/($T174=Вводные[Наименование])/(Вводные[Дата]<$U$1),Вводные[Остаток]),0)+IF(Медикаменты[[#This Row],[Дата остатка]]<$U$1,Медикаменты[[#This Row],[Остаток]],0)","v":0},{"$f":"IF(T174=\"\",\"\",SUMPRODUCT((Вводные[Дата]>=$U$1)*(Вводные[Дата]<=$U$2)*(Вводные[Наименование]=$T174),Вводные[Приход]))","v":0},{"$f":"IF(T174=\"\",\"\",SUMPRODUCT((Вводные[Дата]>=$U$1)*(Вводные[Дата]<=$U$2)*(Вводные[Наименование]=$T174),Вводные[Расход]))","v":0},{"$f":"IFERROR(Медикаменты[[#This Row],[Остаток]]+Медикаменты[[#This Row],[Приход за период]]-Медикаменты[[#This Row],[Расход за период]],\"\")","v":0},{"$f":"IFERROR(SUMIF(Вводные[Наименование],Медикаменты[[#This Row],[Наименование]],Вводные[Приход]),0)","v":0},{"$f":"IFERROR(SUMIF(Вводные[Наименование],Медикаменты[[#This Row],[Наименование]],Вводные[Расход]),0)","v":0},{"$f":"IFERROR(Медикаменты[[#This Row],[Остаток]]+Медикаменты[[#This Row],[Приход общий]]-Медикаменты[[#This Row],[Расход общий]],0)","v":0},null,null,"Салфетка (спанлейс, 30х40, 100 шт.)","уп."]
[null,null,null,null,null,null,null,null,null,null,null,null,null,null,null,null,null,null,{"$f":"IF(IFERROR(IF(SEARCH(Расчет!$B$8,T175),\"!\",\"\"),\"\")=\"\",0,MAX($S$9:S174)+1)","v":0},"Салфетка (стер., 5х5 см., №10)","уп.",700,"2018-06-07",73,{"$f":"IFERROR(LOOKUP(,-1/($T175=Вводные[Наименование])/(Вводные[Дата]<$U$1),Вводные[Остаток]),0)+IF(Медикаменты[[#This Row],[Дата остатка]]<$U$1,Медикаменты[[#This Row],[Остаток]],0)","v":0},{"$f":"IF(T175=\"\",\"\",SUMPRODUCT((Вводные[Дата]>=$U$1)*(Вводные[Дата]<=$U$2)*(Вводные[Наименование]=$T175),Вводные[Приход]))","v":0},{"$f":"IF(T175=\"\",\"\",SUMPRODUCT((Вводные[Дата]>=$U$1)*(Вводные[Дата]<=$U$2)*(Вводные[Наименование]=$T175),Вводные[Расход]))","v":0},{"$f":"IFERROR(Медикаменты[[#This Row],[Остаток]]+Медикаменты[[#This Row],[Приход за период]]-Медикаменты[[#This Row],[Расход за период]],\"\")","v":73},{"$f":"IFERROR(SUMIF(Вводные[Наименование],Медикаменты[[#This Row],[Наименование]],Вводные[Приход]),0)","v":0},{"$f":"IFERROR(SUMIF(Вводные[Наименование],Медикаменты[[#This Row],[Наименование]],Вводные[Расход]),0)","v":0},{"$f":"IFERROR(Медикаменты[[#This Row],[Остаток]]+Медикаменты[[#This Row],[Приход общий]]-Медикаменты[[#This Row],[Расход общий]],0)","v":73},null,null,"Салфетка (стер., 110х85 мм., 70%)","шт."]
[null,null,null,null,null,null,null,null,null,null,null,null,null,null,null,null,null,null,{"$f":"IF(IFERROR(IF(SEARCH(Расчет!$B$8,T176),\"!\",\"\"),\"\")=\"\",0,MAX($S$9:S175)+1)","v":0},"Салфетка (стер., 60х100 мм., 70%)","шт.",30000,"","",{"$f":"IFERROR(LOOKUP(,-1/($T176=Вводные[Наименование])/(Вводные[Дата]<$U$1),Вводные[Остаток]),0)+IF(Медикаменты[[#This Row],[Дата остатка]]<$U$1,Медикаменты[[#This Row],[Остаток]],0)","v":0},{"$f":"IF(T176=\"\",\"\",SUMPRODUCT((Вводные[Дата]>=$U$1)*(Вводные[Дата]<=$U$2)*(Вводные[Наименование]=$T176),Вводные[Приход]))","v":0},{"$f":"IF(T176=\"\",\"\",SUMPRODUCT((Вводные[Дата]>=$U$1)*(Вводные[Дата]<=$U$2)*(Вводные[Наименование]=$T176),Вводные[Расход]))","v":0},{"$f":"IFERROR(Медикаменты[[#This Row],[Остаток]]+Медикаменты[[#This Row],[Приход за период]]-Медикаменты[[#This Row],[Расход за период]],\"\")","v":""},{"$f":"IFERROR(SUMIF(Вводные[Наименование],Медикаменты[[#This Row],[Наименование]],Вводные[Приход]),0)","v":0},{"$f":"IFERROR(SUMIF(Вводные[Наименование],Медикаменты[[#This Row],[Наименование]],Вводные[Расход]),0)","v":0},{"$f":"IFERROR(Медикаменты[[#This Row],[Остаток]]+Медикаменты[[#This Row],[Приход общий]]-Медикаменты[[#This Row],[Расход общий]],0)","v":0},null,null,"Салфетка (стер., 14х16 см., №10)","уп."]
[null,null,null,null,null,null,null,null,null,null,null,null,null,null,null,null,null,null,{"$f":"IF(IFERROR(IF(SEARCH(Расчет!$B$8,T177),\"!\",\"\"),\"\")=\"\",0,MAX($S$9:S176)+1)","v":0},"Сальбутамол (12 мл.)","уп.",123,"","",{"$f":"IFERROR(LOOKUP(,-1/($T177=Вводные[Наименование])/(Вводные[Дата]<$U$1),Вводные[Остаток]),0)+IF(Медикаменты[[#This Row],[Дата остатка]]<$U$1,Медикаменты[[#This Row],[Остаток]],0)","v":0},{"$f":"IF(T177=\"\",\"\",SUMPRODUCT((Вводные[Дата]>=$U$1)*(Вводные[Дата]<=$U$2)*(Вводные[Наименование]=$T177),Вводные[Приход]))","v":0},{"$f":"IF(T177=\"\",\"\",SUMPRODUCT((Вводные[Дата]>=$U$1)*(Вводные[Дата]<=$U$2)*(Вводные[Наименование]=$T177),Вводные[Расход]))","v":0},{"$f":"IFERROR(Медикаменты[[#This Row],[Остаток]]+Медикаменты[[#This Row],[Приход за период]]-Медикаменты[[#This Row],[Расход за период]],\"\")","v":""},{"$f":"IFERROR(SUMIF(Вводные[Наименование],Медикаменты[[#This Row],[Наименование]],Вводные[Приход]),0)","v":0},{"$f":"IFERROR(SUMIF(Вводные[Наименование],Медикаменты[[#This Row],[Наименование]],Вводные[Расход]),0)","v":0},{"$f":"IFERROR(Медикаменты[[#This Row],[Остаток]]+Медикаменты[[#This Row],[Приход общий]]-Медикаменты[[#This Row],[Расход общий]],0)","v":0},null,null,"Салфетка (стер., 5х5 см., №10)","уп."]
[null,null,null,null,null,null,null,null,null,null,null,null,null,null,null,null,null,null,{"$f":"IF(IFERROR(IF(SEARCH(Расчет!$B$8,T178),\"!\",\"\"),\"\")=\"\",0,MAX($S$9:S177)+1)","v":0},"Сбор успокоительный (50,0 г.)",0,0,"","",{"$f":"IFERROR(LOOKUP(,-1/($T178=Вводные[Наименование])/(Вводные[Дата]<$U$1),Вводные[Остаток]),0)+IF(Медикаменты[[#This Row],[Дата остатка]]<$U$1,Медикаменты[[#This Row],[Остаток]],0)","v":0},{"$f":"IF(T178=\"\",\"\",SUMPRODUCT((Вводные[Дата]>=$U$1)*(Вводные[Дата]<=$U$2)*(Вводные[Наименование]=$T178),Вводные[Приход]))","v":0},{"$f":"IF(T178=\"\",\"\",SUMPRODUCT((Вводные[Дата]>=$U$1)*(Вводные[Дата]<=$U$2)*(Вводные[Наименование]=$T178),Вводные[Расход]))","v":0},{"$f":"IFERROR(Медикаменты[[#This Row],[Остаток]]+Медикаменты[[#This Row],[Приход за период]]-Медикаменты[[#This Row],[Расход за период]],\"\")","v":""},{"$f":"IFERROR(SUMIF(Вводные[Наименование],Медикаменты[[#This Row],[Наименование]],Вводные[Приход]),0)","v":0},{"$f":"IFERROR(SUMIF(Вводные[Наименование],Медикаменты[[#This Row],[Наименование]],Вводные[Расход]),0)","v":0},{"$f":"IFERROR(Медикаменты[[#This Row],[Остаток]]+Медикаменты[[#This Row],[Приход общий]]-Медикаменты[[#This Row],[Расход общий]],0)","v":0},null,null,"Салфетка (стер., 60х100 мм., 70%)","шт."]
[null,null,null,null,null,null,null,null,null,null,null,null,null,null,null,null,null,null,{"$f":"IF(IFERROR(IF(SEARCH(Расчет!$B$8,T179),\"!\",\"\"),\"\")=\"\",0,MAX($S$9:S178)+1)","v":0},"Септолит-Форте (1 л.)","шт.",4,"2018-06-07",1,{"$f":"IFERROR(LOOKUP(,-1/($T179=Вводные[Наименование])/(Вводные[Дата]<$U$1),Вводные[Остаток]),0)+IF(Медикаменты[[#This Row],[Дата остатка]]<$U$1,Медикаменты[[#This Row],[Остаток]],0)","v":0},{"$f":"IF(T179=\"\",\"\",SUMPRODUCT((Вводные[Дата]>=$U$1)*(Вводные[Дата]<=$U$2)*(Вводные[Наименование]=$T179),Вводные[Приход]))","v":0},{"$f":"IF(T179=\"\",\"\",SUMPRODUCT((Вводные[Дата]>=$U$1)*(Вводные[Дата]<=$U$2)*(Вводные[Наименование]=$T179),Вводные[Расход]))","v":0},{"$f":"IFERROR(Медикаменты[[#This Row],[Остаток]]+Медикаменты[[#This Row],[Приход за период]]-Медикаменты[[#This Row],[Расход за период]],\"\")","v":1},{"$f":"IFERROR(SUMIF(Вводные[Наименование],Медикаменты[[#This Row],[Наименование]],Вводные[Приход]),0)","v":0},{"$f":"IFERROR(SUMIF(Вводные[Наименование],Медикаменты[[#This Row],[Наименование]],Вводные[Расход]),0)","v":0},{"$f":"IFERROR(Медикаменты[[#This Row],[Остаток]]+Медикаменты[[#This Row],[Приход общий]]-Медикаменты[[#This Row],[Расход общий]],0)","v":1},null,null,"Сальбутамол (12 мл.)","уп."]
[null,null,null,null,null,null,null,null,null,null,null,null,null,null,null,null,null,null,{"$f":"IF(IFERROR(IF(SEARCH(Расчет!$B$8,T180),\"!\",\"\"),\"\")=\"\",0,MAX($S$9:S179)+1)","v":0},"Скальпель (однораз., хир., стер.)","шт.",100,"","",{"$f":"IFERROR(LOOKUP(,-1/($T180=Вводные[Наименование])/(Вводные[Дата]<$U$1),Вводные[Остаток]),0)+IF(Медикаменты[[#This Row],[Дата остатка]]<$U$1,Медикаменты[[#This Row],[Остаток]],0)","v":0},{"$f":"IF(T180=\"\",\"\",SUMPRODUCT((Вводные[Дата]>=$U$1)*(Вводные[Дата]<=$U$2)*(Вводные[Наименование]=$T180),Вводные[Приход]))","v":0},{"$f":"IF(T180=\"\",\"\",SUMPRODUCT((Вводные[Дата]>=$U$1)*(Вводные[Дата]<=$U$2)*(Вводные[Наименование]=$T180),Вводные[Расход]))","v":0},{"$f":"IFERROR(Медикаменты[[#This Row],[Остаток]]+Медикаменты[[#This Row],[Приход за период]]-Медикаменты[[#This Row],[Расход за период]],\"\")","v":""},{"$f":"IFERROR(SUMIF(Вводные[Наименование],Медикаменты[[#This Row],[Наименование]],Вводные[Приход]),0)","v":0},{"$f":"IFERROR(SUMIF(Вводные[Наименование],Медикаменты[[#This Row],[Наименование]],Вводные[Расход]),0)","v":0},{"$f":"IFERROR(Медикаменты[[#This Row],[Остаток]]+Медикаменты[[#This Row],[Приход общий]]-Медикаменты[[#This Row],[Расход общий]],0)","v":0},null,null,"Сбор успокоительный (50,0 г.)"]
[null,null,null,null,null,null,null,null,null,null,null,null,null,null,null,null,null,null,{"$f":"IF(IFERROR(IF(SEARCH(Расчет!$B$8,T181),\"!\",\"\"),\"\")=\"\",0,MAX($S$9:S180)+1)","v":0},"Скарификатор (однора., метал.)","шт.",1000,"","",{"$f":"IFERROR(LOOKUP(,-1/($T181=Вводные[Наименование])/(Вводные[Дата]<$U$1),Вводные[Остаток]),0)+IF(Медикаменты[[#This Row],[Дата остатка]]<$U$1,Медикаменты[[#This Row],[Остаток]],0)","v":0},{"$f":"IF(T181=\"\",\"\",SUMPRODUCT((Вводные[Дата]>=$U$1)*(Вводные[Дата]<=$U$2)*(Вводные[Наименование]=$T181),Вводные[Приход]))","v":0},{"$f":"IF(T181=\"\",\"\",SUMPRODUCT((Вводные[Дата]>=$U$1)*(Вводные[Дата]<=$U$2)*(Вводные[Наименование]=$T181),Вводные[Расход]))","v":0},{"$f":"IFERROR(Медикаменты[[#This Row],[Остаток]]+Медикаменты[[#This Row],[Приход за период]]-Медикаменты[[#This Row],[Расход за период]],\"\")","v":""},{"$f":"IFERROR(SUMIF(Вводные[Наименование],Медикаменты[[#This Row],[Наименование]],Вводные[Приход]),0)","v":0},{"$f":"IFERROR(SUMIF(Вводные[Наименование],Медикаменты[[#This Row],[Наименование]],Вводные[Расход]),0)","v":0},{"$f":"IFERROR(Медикаменты[[#This Row],[Остаток]]+Медикаменты[[#This Row],[Приход общий]]-Медикаменты[[#This Row],[Расход общий]],0)","v":0},null,null,"Септолит-Форте (1 л.)","шт."]
[null,null,null,null,null,null,null,null,null,null,null,null,null,null,null,null,null,null,{"$f":"IF(IFERROR(IF(SEARCH(Расчет!$B$8,T182),\"!\",\"\"),\"\")=\"\",0,MAX($S$9:S181)+1)","v":0},"Скарификатор (одноразовый металлический)",0,0,"","",{"$f":"IFERROR(LOOKUP(,-1/($T182=Вводные[Наименование])/(Вводные[Дата]<$U$1),Вводные[Остаток]),0)+IF(Медикаменты[[#This Row],[Дата остатка]]<$U$1,Медикаменты[[#This Row],[Остаток]],0)","v":0},{"$f":"IF(T182=\"\",\"\",SUMPRODUCT((Вводные[Дата]>=$U$1)*(Вводные[Дата]<=$U$2)*(Вводные[Наименование]=$T182),Вводные[Приход]))","v":0},{"$f":"IF(T182=\"\",\"\",SUMPRODUCT((Вводные[Дата]>=$U$1)*(Вводные[Дата]<=$U$2)*(Вводные[Наименование]=$T182),Вводные[Расход]))","v":0},{"$f":"IFERROR(Медикаменты[[#This Row],[Остаток]]+Медикаменты[[#This Row],[Приход за период]]-Медикаменты[[#This Row],[Расход за период]],\"\")","v":""},{"$f":"IFERROR(SUMIF(Вводные[Наименование],Медикаменты[[#This Row],[Наименование]],Вводные[Приход]),0)","v":0},{"$f":"IFERROR(SUMIF(Вводные[Наименование],Медикаменты[[#This Row],[Наименование]],Вводные[Расход]),0)","v":0},{"$f":"IFERROR(Медикаменты[[#This Row],[Остаток]]+Медикаменты[[#This Row],[Приход общий]]-Медикаменты[[#This Row],[Расход общий]],0)","v":0},null,null,"Скальпель (однораз., хир., стер.)","шт."]
[null,null,null,null,null,null,null,null,null,null,null,null,null,null,null,null,null,null,{"$f":"IF(IFERROR(IF(SEARCH(Расчет!$B$8,T183),\"!\",\"\"),\"\")=\"\",0,MAX($S$9:S182)+1)","v":0},"Сорбифер-Дурулес (таб., 320 мг., №30)",0,0,"00:00:00",0,{"$f":"IFERROR(LOOKUP(,-1/($T183=Вводные[Наименование])/(Вводные[Дата]<$U$1),Вводные[Остаток]),0)+IF(Медикаменты[[#This Row],[Дата остатка]]<$U$1,Медикаменты[[#This Row],[Остаток]],0)","v":0},{"$f":"IF(T183=\"\",\"\",SUMPRODUCT((Вводные[Дата]>=$U$1)*(Вводные[Дата]<=$U$2)*(Вводные[Наименование]=$T183),Вводные[Приход]))","v":0},{"$f":"IF(T183=\"\",\"\",SUMPRODUCT((Вводные[Дата]>=$U$1)*(Вводные[Дата]<=$U$2)*(Вводные[Наименование]=$T183),Вводные[Расход]))","v":0},{"$f":"IFERROR(Медикаменты[[#This Row],[Остаток]]+Медикаменты[[#This Row],[Приход за период]]-Медикаменты[[#This Row],[Расход за период]],\"\")","v":0},{"$f":"IFERROR(SUMIF(Вводные[Наименование],Медикаменты[[#This Row],[Наименование]],Вводные[Приход]),0)","v":0},{"$f":"IFERROR(SUMIF(Вводные[Наименование],Медикаменты[[#This Row],[Наименование]],Вводные[Расход]),0)","v":0},{"$f":"IFERROR(Медикаменты[[#This Row],[Остаток]]+Медикаменты[[#This Row],[Приход общий]]-Медикаменты[[#This Row],[Расход общий]],0)","v":0},null,null,"Скарификатор (однора., метал.)","шт."]
[null,null,null,null,null,null,null,null,null,null,null,null,null,null,null,null,null,null,{"$f":"IF(IFERROR(IF(SEARCH(Расчет!$B$8,T184),\"!\",\"\"),\"\")=\"\",0,MAX($S$9:S183)+1)","v":0},"Софрадекс (5 мл.)","уп.",1,"","",{"$f":"IFERROR(LOOKUP(,-1/($T184=Вводные[Наименование])/(Вводные[Дата]<$U$1),Вводные[Остаток]),0)+IF(Медикаменты[[#This Row],[Дата остатка]]<$U$1,Медикаменты[[#This Row],[Остаток]],0)","v":0},{"$f":"IF(T184=\"\",\"\",SUMPRODUCT((Вводные[Дата]>=$U$1)*(Вводные[Дата]<=$U$2)*(Вводные[Наименование]=$T184),Вводные[Приход]))","v":0},{"$f":"IF(T184=\"\",\"\",SUMPRODUCT((Вводные[Дата]>=$U$1)*(Вводные[Дата]<=$U$2)*(Вводные[Наименование]=$T184),Вводные[Расход]))","v":0},{"$f":"IFERROR(Медикаменты[[#This Row],[Остаток]]+Медикаменты[[#This Row],[Приход за период]]-Медикаменты[[#This Row],[Расход за период]],\"\")","v":""},{"$f":"IFERROR(SUMIF(Вводные[Наименование],Медикаменты[[#This Row],[Наименование]],Вводные[Приход]),0)","v":0},{"$f":"IFERROR(SUMIF(Вводные[Наименование],Медикаменты[[#This Row],[Наименование]],Вводные[Расход]),0)","v":0},{"$f":"IFERROR(Медикаменты[[#This Row],[Остаток]]+Медикаменты[[#This Row],[Приход общий]]-Медикаменты[[#This Row],[Расход общий]],0)","v":0},null,null,"Скарификатор (одноразовый металлический)"]
[null,null,null,null,null,null,null,null,null,null,null,null,null,null,null,null,null,null,{"$f":"IF(IFERROR(IF(SEARCH(Расчет!$B$8,T185),\"!\",\"\"),\"\")=\"\",0,MAX($S$9:S184)+1)","v":0},"Спирт этиловый (70%, 100 мл.)","фл.",240,"2018-03-30",4000,{"$f":"IFERROR(LOOKUP(,-1/($T185=Вводные[Наименование])/(Вводные[Дата]<$U$1),Вводные[Остаток]),0)+IF(Медикаменты[[#This Row],[Дата остатка]]<$U$1,Медикаменты[[#This Row],[Остаток]],0)","v":4000},{"$f":"IF(T185=\"\",\"\",SUMPRODUCT((Вводные[Дата]>=$U$1)*(Вводные[Дата]<=$U$2)*(Вводные[Наименование]=$T185),Вводные[Приход]))","v":0},{"$f":"IF(T185=\"\",\"\",SUMPRODUCT((Вводные[Дата]>=$U$1)*(Вводные[Дата]<=$U$2)*(Вводные[Наименование]=$T185),Вводные[Расход]))","v":0},{"$f":"IFERROR(Медикаменты[[#This Row],[Остаток]]+Медикаменты[[#This Row],[Приход за период]]-Медикаменты[[#This Row],[Расход за период]],\"\")","v":4000},{"$f":"IFERROR(SUMIF(Вводные[Наименование],Медикаменты[[#This Row],[Наименование]],Вводные[Приход]),0)","v":0},{"$f":"IFERROR(SUMIF(Вводные[Наименование],Медикаменты[[#This Row],[Наименование]],Вводные[Расход]),0)","v":0},{"$f":"IFERROR(Медикаменты[[#This Row],[Остаток]]+Медикаменты[[#This Row],[Приход общий]]-Медикаменты[[#This Row],[Расход общий]],0)","v":4000},null,null,"Сорбифер-Дурулес (таб., 320 мг., №30)"]
[null,null,null,null,null,null,null,null,null,null,null,null,null,null,null,null,null,null,{"$f":"IF(IFERROR(IF(SEARCH(Расчет!$B$8,T186),\"!\",\"\"),\"\")=\"\",0,MAX($S$9:S185)+1)","v":0},"Спирт этиловый (95%, 100 мл.)","фл",50,"2018-03-30",3600,{"$f":"IFERROR(LOOKUP(,-1/($T186=Вводные[Наименование])/(Вводные[Дата]<$U$1),Вводные[Остаток]),0)+IF(Медикаменты[[#This Row],[Дата остатка]]<$U$1,Медикаменты[[#This Row],[Остаток]],0)","v":3600},{"$f":"IF(T186=\"\",\"\",SUMPRODUCT((Вводные[Дата]>=$U$1)*(Вводные[Дата]<=$U$2)*(Вводные[Наименование]=$T186),Вводные[Приход]))","v":0},{"$f":"IF(T186=\"\",\"\",SUMPRODUCT((Вводные[Дата]>=$U$1)*(Вводные[Дата]<=$U$2)*(Вводные[Наименование]=$T186),Вводные[Расход]))","v":0},{"$f":"IFERROR(Медикаменты[[#This Row],[Остаток]]+Медикаменты[[#This Row],[Приход за период]]-Медикаменты[[#This Row],[Расход за период]],\"\")","v":3600},{"$f":"IFERROR(SUMIF(Вводные[Наименование],Медикаменты[[#This Row],[Наименование]],Вводные[Приход]),0)","v":0},{"$f":"IFERROR(SUMIF(Вводные[Наименование],Медикаменты[[#This Row],[Наименование]],Вводные[Расход]),0)","v":0},{"$f":"IFERROR(Медикаменты[[#This Row],[Остаток]]+Медикаменты[[#This Row],[Приход общий]]-Медикаменты[[#This Row],[Расход общий]],0)","v":3600},null,null,"Софрадекс (5 мл.)","уп."]
[null,null,null,null,null,null,null,null,null,null,null,null,null,null,null,null,null,null,{"$f":"IF(IFERROR(IF(SEARCH(Расчет!$B$8,T187),\"!\",\"\"),\"\")=\"\",0,MAX($S$9:S186)+1)","v":0},"Средство Эвойлан-Универсал с антимикробным эффектом (5 л.)","шт.",3,"","",{"$f":"IFERROR(LOOKUP(,-1/($T187=Вводные[Наименование])/(Вводные[Дата]<$U$1),Вводные[Остаток]),0)+IF(Медикаменты[[#This Row],[Дата остатка]]<$U$1,Медикаменты[[#This Row],[Остаток]],0)","v":0},{"$f":"IF(T187=\"\",\"\",SUMPRODUCT((Вводные[Дата]>=$U$1)*(Вводные[Дата]<=$U$2)*(Вводные[Наименование]=$T187),Вводные[Приход]))","v":0},{"$f":"IF(T187=\"\",\"\",SUMPRODUCT((Вводные[Дата]>=$U$1)*(Вводные[Дата]<=$U$2)*(Вводные[Наименование]=$T187),Вводные[Расход]))","v":0},{"$f":"IFERROR(Медикаменты[[#This Row],[Остаток]]+Медикаменты[[#This Row],[Приход за период]]-Медикаменты[[#This Row],[Расход за период]],\"\")","v":""},{"$f":"IFERROR(SUMIF(Вводные[Наименование],Медикаменты[[#This Row],[Наименование]],Вводные[Приход]),0)","v":0},{"$f":"IFERROR(SUMIF(Вводные[Наименование],Медикаменты[[#This Row],[Наименование]],Вводные[Расход]),0)","v":0},{"$f":"IFERROR(Медикаменты[[#This Row],[Остаток]]+Медикаменты[[#This Row],[Приход общий]]-Медикаменты[[#This Row],[Расход общий]],0)","v":0},null,null,"Спирт этиловый (70%, 100 мл.)","фл."]
[null,null,null,null,null,null,null,null,null,null,null,null,null,null,null,null,null,null,{"$f":"IF(IFERROR(IF(SEARCH(Расчет!$B$8,T188),\"!\",\"\"),\"\")=\"\",0,MAX($S$9:S187)+1)","v":0},"Сульфацил натрий (20%, 1,5 мл., №2)","уп.",110,"","",{"$f":"IFERROR(LOOKUP(,-1/($T188=Вводные[Наименование])/(Вводные[Дата]<$U$1),Вводные[Остаток]),0)+IF(Медикаменты[[#This Row],[Дата остатка]]<$U$1,Медикаменты[[#This Row],[Остаток]],0)","v":0},{"$f":"IF(T188=\"\",\"\",SUMPRODUCT((Вводные[Дата]>=$U$1)*(Вводные[Дата]<=$U$2)*(Вводные[Наименование]=$T188),Вводные[Приход]))","v":0},{"$f":"IF(T188=\"\",\"\",SUMPRODUCT((Вводные[Дата]>=$U$1)*(Вводные[Дата]<=$U$2)*(Вводные[Наименование]=$T188),Вводные[Расход]))","v":0},{"$f":"IFERROR(Медикаменты[[#This Row],[Остаток]]+Медикаменты[[#This Row],[Приход за период]]-Медикаменты[[#This Row],[Расход за период]],\"\")","v":""},{"$f":"IFERROR(SUMIF(Вводные[Наименование],Медикаменты[[#This Row],[Наименование]],Вводные[Приход]),0)","v":0},{"$f":"IFERROR(SUMIF(Вводные[Наименование],Медикаменты[[#This Row],[Наименование]],Вводные[Расход]),0)","v":0},{"$f":"IFERROR(Медикаменты[[#This Row],[Остаток]]+Медикаменты[[#This Row],[Приход общий]]-Медикаменты[[#This Row],[Расход общий]],0)","v":0},null,null,"Спирт этиловый (95%, 100 мл.)","фл"]
[null,null,null,null,null,null,null,null,null,null,null,null,null,null,null,null,null,null,{"$f":"IF(IFERROR(IF(SEARCH(Расчет!$B$8,T189),\"!\",\"\"),\"\")=\"\",0,MAX($S$9:S188)+1)","v":0},"Сумка холодильник с электронным термоиндикатором (25 л.)","шт",9,"","",{"$f":"IFERROR(LOOKUP(,-1/($T189=Вводные[Наименование])/(Вводные[Дата]<$U$1),Вводные[Остаток]),0)+IF(Медикаменты[[#This Row],[Дата остатка]]<$U$1,Медикаменты[[#This Row],[Остаток]],0)","v":0},{"$f":"IF(T189=\"\",\"\",SUMPRODUCT((Вводные[Дата]>=$U$1)*(Вводные[Дата]<=$U$2)*(Вводные[Наименование]=$T189),Вводные[Приход]))","v":0},{"$f":"IF(T189=\"\",\"\",SUMPRODUCT((Вводные[Дата]>=$U$1)*(Вводные[Дата]<=$U$2)*(Вводные[Наименование]=$T189),Вводные[Расход]))","v":0},{"$f":"IFERROR(Медикаменты[[#This Row],[Остаток]]+Медикаменты[[#This Row],[Приход за период]]-Медикаменты[[#This Row],[Расход за период]],\"\")","v":""},{"$f":"IFERROR(SUMIF(Вводные[Наименование],Медикаменты[[#This Row],[Наименование]],Вводные[Приход]),0)","v":0},{"$f":"IFERROR(SUMIF(Вводные[Наименование],Медикаменты[[#This Row],[Наименование]],Вводные[Расход]),0)","v":0},{"$f":"IFERROR(Медикаменты[[#This Row],[Остаток]]+Медикаменты[[#This Row],[Приход общий]]-Медикаменты[[#This Row],[Расход общий]],0)","v":0},null,null,"Средство Эвойлан-Универсал с антимикробным эффектом (5 л.)","шт."]
[null,null,null,null,null,null,null,null,null,null,null,null,null,null,null,null,null,null,{"$f":"IF(IFERROR(IF(SEARCH(Расчет!$B$8,T190),\"!\",\"\"),\"\")=\"\",0,MAX($S$9:S189)+1)","v":0},"Супрастин (амп., 2%, 1,0 мл.)",0,0,"2018-03-30",5,{"$f":"IFERROR(LOOKUP(,-1/($T190=Вводные[Наименование])/(Вводные[Дата]<$U$1),Вводные[Остаток]),0)+IF(Медикаменты[[#This Row],[Дата остатка]]<$U$1,Медикаменты[[#This Row],[Остаток]],0)","v":5},{"$f":"IF(T190=\"\",\"\",SUMPRODUCT((Вводные[Дата]>=$U$1)*(Вводные[Дата]<=$U$2)*(Вводные[Наименование]=$T190),Вводные[Приход]))","v":0},{"$f":"IF(T190=\"\",\"\",SUMPRODUCT((Вводные[Дата]>=$U$1)*(Вводные[Дата]<=$U$2)*(Вводные[Наименование]=$T190),Вводные[Расход]))","v":0},{"$f":"IFERROR(Медикаменты[[#This Row],[Остаток]]+Медикаменты[[#This Row],[Приход за период]]-Медикаменты[[#This Row],[Расход за период]],\"\")","v":5},{"$f":"IFERROR(SUMIF(Вводные[Наименование],Медикаменты[[#This Row],[Наименование]],Вводные[Приход]),0)","v":0},{"$f":"IFERROR(SUMIF(Вводные[Наименование],Медикаменты[[#This Row],[Наименование]],Вводные[Расход]),0)","v":0},{"$f":"IFERROR(Медикаменты[[#This Row],[Остаток]]+Медикаменты[[#This Row],[Приход общий]]-Медикаменты[[#This Row],[Расход общий]],0)","v":5},null,null,"Сульфацил натрий (20%, 1,5 мл., №2)","уп."]
[null,null,null,null,null,null,null,null,null,null,null,null,null,null,null,null,null,null,{"$f":"IF(IFERROR(IF(SEARCH(Расчет!$B$8,T191),\"!\",\"\"),\"\")=\"\",0,MAX($S$9:S190)+1)","v":0},"Супрастин (таб., 25 мг., №20)",0,0,"","",{"$f":"IFERROR(LOOKUP(,-1/($T191=Вводные[Наименование])/(Вводные[Дата]<$U$1),Вводные[Остаток]),0)+IF(Медикаменты[[#This Row],[Дата остатка]]<$U$1,Медикаменты[[#This Row],[Остаток]],0)","v":0},{"$f":"IF(T191=\"\",\"\",SUMPRODUCT((Вводные[Дата]>=$U$1)*(Вводные[Дата]<=$U$2)*(Вводные[Наименование]=$T191),Вводные[Приход]))","v":0},{"$f":"IF(T191=\"\",\"\",SUMPRODUCT((Вводные[Дата]>=$U$1)*(Вводные[Дата]<=$U$2)*(Вводные[Наименование]=$T191),Вводные[Расход]))","v":0},{"$f":"IFERROR(Медикаменты[[#This Row],[Остаток]]+Медикаменты[[#This Row],[Приход за период]]-Медикаменты[[#This Row],[Расход за период]],\"\")","v":""},{"$f":"IFERROR(SUMIF(Вводные[Наименование],Медикаменты[[#This Row],[Наименование]],Вводные[Приход]),0)","v":0},{"$f":"IFERROR(SUMIF(Вводные[Наименование],Медикаменты[[#This Row],[Наименование]],Вводные[Расход]),0)","v":0},{"$f":"IFERROR(Медикаменты[[#This Row],[Остаток]]+Медикаменты[[#This Row],[Приход общий]]-Медикаменты[[#This Row],[Расход общий]],0)","v":0},null,null,"Сумка холодильник с электронным термоиндикатором (25 л.)","шт"]
[null,null,null,null,null,null,null,null,null,null,null,null,null,null,null,null,null,null,{"$f":"IF(IFERROR(IF(SEARCH(Расчет!$B$8,T192),\"!\",\"\"),\"\")=\"\",0,MAX($S$9:S191)+1)","v":0},"Тампон-зонд (100 шт.)","шт.",500,"","",{"$f":"IFERROR(LOOKUP(,-1/($T192=Вводные[Наименование])/(Вводные[Дата]<$U$1),Вводные[Остаток]),0)+IF(Медикаменты[[#This Row],[Дата остатка]]<$U$1,Медикаменты[[#This Row],[Остаток]],0)","v":0},{"$f":"IF(T192=\"\",\"\",SUMPRODUCT((Вводные[Дата]>=$U$1)*(Вводные[Дата]<=$U$2)*(Вводные[Наименование]=$T192),Вводные[Приход]))","v":0},{"$f":"IF(T192=\"\",\"\",SUMPRODUCT((Вводные[Дата]>=$U$1)*(Вводные[Дата]<=$U$2)*(Вводные[Наименование]=$T192),Вводные[Расход]))","v":0},{"$f":"IFERROR(Медикаменты[[#This Row],[Остаток]]+Медикаменты[[#This Row],[Приход за период]]-Медикаменты[[#This Row],[Расход за период]],\"\")","v":""},{"$f":"IFERROR(SUMIF(Вводные[Наименование],Медикаменты[[#This Row],[Наименование]],Вводные[Приход]),0)","v":0},{"$f":"IFERROR(SUMIF(Вводные[Наименование],Медикаменты[[#This Row],[Наименование]],Вводные[Расход]),0)","v":0},{"$f":"IFERROR(Медикаменты[[#This Row],[Остаток]]+Медикаменты[[#This Row],[Приход общий]]-Медикаменты[[#This Row],[Расход общий]],0)","v":0},null,null,"Супрастин (амп., 2%, 1,0 мл.)"]
[null,null,null,null,null,null,null,null,null,null,null,null,null,null,null,null,null,null,{"$f":"IF(IFERROR(IF(SEARCH(Расчет!$B$8,T193),\"!\",\"\"),\"\")=\"\",0,MAX($S$9:S192)+1)","v":0},"Тиамин-хлорид 5%-1,0 №10 амп.",0,0,"","",{"$f":"IFERROR(LOOKUP(,-1/($T193=Вводные[Наименование])/(Вводные[Дата]<$U$1),Вводные[Остаток]),0)+IF(Медикаменты[[#This Row],[Дата остатка]]<$U$1,Медикаменты[[#This Row],[Остаток]],0)","v":0},{"$f":"IF(T193=\"\",\"\",SUMPRODUCT((Вводные[Дата]>=$U$1)*(Вводные[Дата]<=$U$2)*(Вводные[Наименование]=$T193),Вводные[Приход]))","v":0},{"$f":"IF(T193=\"\",\"\",SUMPRODUCT((Вводные[Дата]>=$U$1)*(Вводные[Дата]<=$U$2)*(Вводные[Наименование]=$T193),Вводные[Расход]))","v":0},{"$f":"IFERROR(Медикаменты[[#This Row],[Остаток]]+Медикаменты[[#This Row],[Приход за период]]-Медикаменты[[#This Row],[Расход за период]],\"\")","v":""},{"$f":"IFERROR(SUMIF(Вводные[Наименование],Медикаменты[[#This Row],[Наименование]],Вводные[Приход]),0)","v":0},{"$f":"IFERROR(SUMIF(Вводные[Наименование],Медикаменты[[#This Row],[Наименование]],Вводные[Расход]),0)","v":0},{"$f":"IFERROR(Медикаменты[[#This Row],[Остаток]]+Медикаменты[[#This Row],[Приход общий]]-Медикаменты[[#This Row],[Расход общий]],0)","v":0},null,null,"Супрастин (таб., 25 мг., №20)"]
[null,null,null,null,null,null,null,null,null,null,null,null,null,null,null,null,null,null,{"$f":"IF(IFERROR(IF(SEARCH(Расчет!$B$8,T194),\"!\",\"\"),\"\")=\"\",0,MAX($S$9:S193)+1)","v":0},"Токоферола ацетат (50% 100 мг., №10)",0,0,"00:00:00",0,{"$f":"IFERROR(LOOKUP(,-1/($T194=Вводные[Наименование])/(Вводные[Дата]<$U$1),Вводные[Остаток]),0)+IF(Медикаменты[[#This Row],[Дата остатка]]<$U$1,Медикаменты[[#This Row],[Остаток]],0)","v":0},{"$f":"IF(T194=\"\",\"\",SUMPRODUCT((Вводные[Дата]>=$U$1)*(Вводные[Дата]<=$U$2)*(Вводные[Наименование]=$T194),Вводные[Приход]))","v":0},{"$f":"IF(T194=\"\",\"\",SUMPRODUCT((Вводные[Дата]>=$U$1)*(Вводные[Дата]<=$U$2)*(Вводные[Наименование]=$T194),Вводные[Расход]))","v":0},{"$f":"IFERROR(Медикаменты[[#This Row],[Остаток]]+Медикаменты[[#This Row],[Приход за период]]-Медикаменты[[#This Row],[Расход за период]],\"\")","v":0},{"$f":"IFERROR(SUMIF(Вводные[Наименование],Медикаменты[[#This Row],[Наименование]],Вводные[Приход]),0)","v":0},{"$f":"IFERROR(SUMIF(Вводные[Наименование],Медикаменты[[#This Row],[Наименование]],Вводные[Расход]),0)","v":0},{"$f":"IFERROR(Медикаменты[[#This Row],[Остаток]]+Медикаменты[[#This Row],[Приход общий]]-Медикаменты[[#This Row],[Расход общий]],0)","v":0},null,null,"Тампон-зонд (100 шт.)","шт."]
[null,null,null,null,null,null,null,null,null,null,null,null,null,null,null,null,null,null,{"$f":"IF(IFERROR(IF(SEARCH(Расчет!$B$8,T195),\"!\",\"\"),\"\")=\"\",0,MAX($S$9:S194)+1)","v":0},"Фамотидин (таб., 20 мг., №20)","уп.",2,"","",{"$f":"IFERROR(LOOKUP(,-1/($T195=Вводные[Наименование])/(Вводные[Дата]<$U$1),Вводные[Остаток]),0)+IF(Медикаменты[[#This Row],[Дата остатка]]<$U$1,Медикаменты[[#This Row],[Остаток]],0)","v":0},{"$f":"IF(T195=\"\",\"\",SUMPRODUCT((Вводные[Дата]>=$U$1)*(Вводные[Дата]<=$U$2)*(Вводные[Наименование]=$T195),Вводные[Приход]))","v":0},{"$f":"IF(T195=\"\",\"\",SUMPRODUCT((Вводные[Дата]>=$U$1)*(Вводные[Дата]<=$U$2)*(Вводные[Наименование]=$T195),Вводные[Расход]))","v":0},{"$f":"IFERROR(Медикаменты[[#This Row],[Остаток]]+Медикаменты[[#This Row],[Приход за период]]-Медикаменты[[#This Row],[Расход за период]],\"\")","v":""},{"$f":"IFERROR(SUMIF(Вводные[Наименование],Медикаменты[[#This Row],[Наименование]],Вводные[Приход]),0)","v":0},{"$f":"IFERROR(SUMIF(Вводные[Наименование],Медикаменты[[#This Row],[Наименование]],Вводные[Расход]),0)","v":0},{"$f":"IFERROR(Медикаменты[[#This Row],[Остаток]]+Медикаменты[[#This Row],[Приход общий]]-Медикаменты[[#This Row],[Расход общий]],0)","v":0},null,null,"Тиамин-хлорид 5%-1,0 №10 амп."]
[null,null,null,null,null,null,null,null,null,null,null,null,null,null,null,null,null,null,{"$f":"IF(IFERROR(IF(SEARCH(Расчет!$B$8,T196),\"!\",\"\"),\"\")=\"\",0,MAX($S$9:S195)+1)","v":0},"Фартук медицинский одноразовый","шт",100,"","",{"$f":"IFERROR(LOOKUP(,-1/($T196=Вводные[Наименование])/(Вводные[Дата]<$U$1),Вводные[Остаток]),0)+IF(Медикаменты[[#This Row],[Дата остатка]]<$U$1,Медикаменты[[#This Row],[Остаток]],0)","v":0},{"$f":"IF(T196=\"\",\"\",SUMPRODUCT((Вводные[Дата]>=$U$1)*(Вводные[Дата]<=$U$2)*(Вводные[Наименование]=$T196),Вводные[Приход]))","v":0},{"$f":"IF(T196=\"\",\"\",SUMPRODUCT((Вводные[Дата]>=$U$1)*(Вводные[Дата]<=$U$2)*(Вводные[Наименование]=$T196),Вводные[Расход]))","v":0},{"$f":"IFERROR(Медикаменты[[#This Row],[Остаток]]+Медикаменты[[#This Row],[Приход за период]]-Медикаменты[[#This Row],[Расход за период]],\"\")","v":""},{"$f":"IFERROR(SUMIF(Вводные[Наименование],Медикаменты[[#This Row],[Наименование]],Вводные[Приход]),0)","v":0},{"$f":"IFERROR(SUMIF(Вводные[Наименование],Медикаменты[[#This Row],[Наименование]],Вводные[Расход]),0)","v":0},{"$f":"IFERROR(Медикаменты[[#This Row],[Остаток]]+Медикаменты[[#This Row],[Приход общий]]-Медикаменты[[#This Row],[Расход общий]],0)","v":0},null,null,"Токоферола ацетат (50% 100 мг., №10)"]
[null,null,null,null,null,null,null,null,null,null,null,null,null,null,null,null,null,null,{"$f":"IF(IFERROR(IF(SEARCH(Расчет!$B$8,T197),\"!\",\"\"),\"\")=\"\",0,MAX($S$9:S196)+1)","v":0},"Фенибут (таб., 250 мг., №20)","уп.",3,"","",{"$f":"IFERROR(LOOKUP(,-1/($T197=Вводные[Наименование])/(Вводные[Дата]<$U$1),Вводные[Остаток]),0)+IF(Медикаменты[[#This Row],[Дата остатка]]<$U$1,Медикаменты[[#This Row],[Остаток]],0)","v":0},{"$f":"IF(T197=\"\",\"\",SUMPRODUCT((Вводные[Дата]>=$U$1)*(Вводные[Дата]<=$U$2)*(Вводные[Наименование]=$T197),Вводные[Приход]))","v":0},{"$f":"IF(T197=\"\",\"\",SUMPRODUCT((Вводные[Дата]>=$U$1)*(Вводные[Дата]<=$U$2)*(Вводные[Наименование]=$T197),Вводные[Расход]))","v":0},{"$f":"IFERROR(Медикаменты[[#This Row],[Остаток]]+Медикаменты[[#This Row],[Приход за период]]-Медикаменты[[#This Row],[Расход за период]],\"\")","v":""},{"$f":"IFERROR(SUMIF(Вводные[Наименование],Медикаменты[[#This Row],[Наименование]],Вводные[Приход]),0)","v":0},{"$f":"IFERROR(SUMIF(Вводные[Наименование],Медикаменты[[#This Row],[Наименование]],Вводные[Расход]),0)","v":0},{"$f":"IFERROR(Медикаменты[[#This Row],[Остаток]]+Медикаменты[[#This Row],[Приход общий]]-Медикаменты[[#This Row],[Расход общий]],0)","v":0},null,null,"Фамотидин (таб., 20 мг., №20)","уп."]
[null,null,null,null,null,null,null,null,null,null,null,null,null,null,null,null,null,null,{"$f":"IF(IFERROR(IF(SEARCH(Расчет!$B$8,T198),\"!\",\"\"),\"\")=\"\",0,MAX($S$9:S197)+1)","v":0},"Фенибут (табл., 250 мг., №20)","уп.",5,"2018-03-30",20,{"$f":"IFERROR(LOOKUP(,-1/($T198=Вводные[Наименование])/(Вводные[Дата]<$U$1),Вводные[Остаток]),0)+IF(Медикаменты[[#This Row],[Дата остатка]]<$U$1,Медикаменты[[#This Row],[Остаток]],0)","v":20},{"$f":"IF(T198=\"\",\"\",SUMPRODUCT((Вводные[Дата]>=$U$1)*(Вводные[Дата]<=$U$2)*(Вводные[Наименование]=$T198),Вводные[Приход]))","v":0},{"$f":"IF(T198=\"\",\"\",SUMPRODUCT((Вводные[Дата]>=$U$1)*(Вводные[Дата]<=$U$2)*(Вводные[Наименование]=$T198),Вводные[Расход]))","v":0},{"$f":"IFERROR(Медикаменты[[#This Row],[Остаток]]+Медикаменты[[#This Row],[Приход за период]]-Медикаменты[[#This Row],[Расход за период]],\"\")","v":20},{"$f":"IFERROR(SUMIF(Вводные[Наименование],Медикаменты[[#This Row],[Наименование]],Вводные[Приход]),0)","v":0},{"$f":"IFERROR(SUMIF(Вводные[Наименование],Медикаменты[[#This Row],[Наименование]],Вводные[Расход]),0)","v":0},{"$f":"IFERROR(Медикаменты[[#This Row],[Остаток]]+Медикаменты[[#This Row],[Приход общий]]-Медикаменты[[#This Row],[Расход общий]],0)","v":20},null,null,"Фартук медицинский одноразовый","шт"]
[null,null,null,null,null,null,null,null,null,null,null,null,null,null,null,null,null,null,{"$f":"IF(IFERROR(IF(SEARCH(Расчет!$B$8,T199),\"!\",\"\"),\"\")=\"\",0,MAX($S$9:S198)+1)","v":0},"Халат (хир., нест.)","шт.",20,"","",{"$f":"IFERROR(LOOKUP(,-1/($T199=Вводные[Наименование])/(Вводные[Дата]<$U$1),Вводные[Остаток]),0)+IF(Медикаменты[[#This Row],[Дата остатка]]<$U$1,Медикаменты[[#This Row],[Остаток]],0)","v":0},{"$f":"IF(T199=\"\",\"\",SUMPRODUCT((Вводные[Дата]>=$U$1)*(Вводные[Дата]<=$U$2)*(Вводные[Наименование]=$T199),Вводные[Приход]))","v":0},{"$f":"IF(T199=\"\",\"\",SUMPRODUCT((Вводные[Дата]>=$U$1)*(Вводные[Дата]<=$U$2)*(Вводные[Наименование]=$T199),Вводные[Расход]))","v":0},{"$f":"IFERROR(Медикаменты[[#This Row],[Остаток]]+Медикаменты[[#This Row],[Приход за период]]-Медикаменты[[#This Row],[Расход за период]],\"\")","v":""},{"$f":"IFERROR(SUMIF(Вводные[Наименование],Медикаменты[[#This Row],[Наименование]],Вводные[Приход]),0)","v":0},{"$f":"IFERROR(SUMIF(Вводные[Наименование],Медикаменты[[#This Row],[Наименование]],Вводные[Расход]),0)","v":0},{"$f":"IFERROR(Медикаменты[[#This Row],[Остаток]]+Медикаменты[[#This Row],[Приход общий]]-Медикаменты[[#This Row],[Расход общий]],0)","v":0},null,null,"Фенибут (таб., 250 мг., №20)","уп."]
[null,null,null,null,null,null,null,null,null,null,null,null,null,null,null,null,null,null,{"$f":"IF(IFERROR(IF(SEARCH(Расчет!$B$8,T200),\"!\",\"\"),\"\")=\"\",0,MAX($S$9:S199)+1)","v":0},"Халат (хир., стер.)","шт",50,"","",{"$f":"IFERROR(LOOKUP(,-1/($T200=Вводные[Наименование])/(Вводные[Дата]<$U$1),Вводные[Остаток]),0)+IF(Медикаменты[[#This Row],[Дата остатка]]<$U$1,Медикаменты[[#This Row],[Остаток]],0)","v":0},{"$f":"IF(T200=\"\",\"\",SUMPRODUCT((Вводные[Дата]>=$U$1)*(Вводные[Дата]<=$U$2)*(Вводные[Наименование]=$T200),Вводные[Приход]))","v":0},{"$f":"IF(T200=\"\",\"\",SUMPRODUCT((Вводные[Дата]>=$U$1)*(Вводные[Дата]<=$U$2)*(Вводные[Наименование]=$T200),Вводные[Расход]))","v":0},{"$f":"IFERROR(Медикаменты[[#This Row],[Остаток]]+Медикаменты[[#This Row],[Приход за период]]-Медикаменты[[#This Row],[Расход за период]],\"\")","v":""},{"$f":"IFERROR(SUMIF(Вводные[Наименование],Медикаменты[[#This Row],[Наименование]],Вводные[Приход]),0)","v":0},{"$f":"IFERROR(SUMIF(Вводные[Наименование],Медикаменты[[#This Row],[Наименование]],Вводные[Расход]),0)","v":0},{"$f":"IFERROR(Медикаменты[[#This Row],[Остаток]]+Медикаменты[[#This Row],[Приход общий]]-Медикаменты[[#This Row],[Расход общий]],0)","v":0},null,null,"Фенибут (табл., 250 мг., №20)","уп."]
[null,null,null,null,null,null,null,null,null,null,null,null,null,null,null,null,null,null,{"$f":"IF(IFERROR(IF(SEARCH(Расчет!$B$8,T201),\"!\",\"\"),\"\")=\"\",0,MAX($S$9:S200)+1)","v":0},"Халат детский с капюшоном для спелеолечения","шт",130,"","",{"$f":"IFERROR(LOOKUP(,-1/($T201=Вводные[Наименование])/(Вводные[Дата]<$U$1),Вводные[Остаток]),0)+IF(Медикаменты[[#This Row],[Дата остатка]]<$U$1,Медикаменты[[#This Row],[Остаток]],0)","v":0},{"$f":"IF(T201=\"\",\"\",SUMPRODUCT((Вводные[Дата]>=$U$1)*(Вводные[Дата]<=$U$2)*(Вводные[Наименование]=$T201),Вводные[Приход]))","v":0},{"$f":"IF(T201=\"\",\"\",SUMPRODUCT((Вводные[Дата]>=$U$1)*(Вводные[Дата]<=$U$2)*(Вводные[Наименование]=$T201),Вводные[Расход]))","v":0},{"$f":"IFERROR(Медикаменты[[#This Row],[Остаток]]+Медикаменты[[#This Row],[Приход за период]]-Медикаменты[[#This Row],[Расход за период]],\"\")","v":""},{"$f":"IFERROR(SUMIF(Вводные[Наименование],Медикаменты[[#This Row],[Наименование]],Вводные[Приход]),0)","v":0},{"$f":"IFERROR(SUMIF(Вводные[Наименование],Медикаменты[[#This Row],[Наименование]],Вводные[Расход]),0)","v":0},{"$f":"IFERROR(Медикаменты[[#This Row],[Остаток]]+Медикаменты[[#This Row],[Приход общий]]-Медикаменты[[#This Row],[Расход общий]],0)","v":0},null,null,"Халат (хир., нест.)","шт."]
[null,null,null,null,null,null,null,null,null,null,null,null,null,null,null,null,null,null,{"$f":"IF(IFERROR(IF(SEARCH(Расчет!$B$8,T202),\"!\",\"\"),\"\")=\"\",0,MAX($S$9:S201)+1)","v":0},"Хлоргексидин (амп., 0,05%, 100 мл.)","уп.",100,"","",{"$f":"IFERROR(LOOKUP(,-1/($T202=Вводные[Наименование])/(Вводные[Дата]<$U$1),Вводные[Остаток]),0)+IF(Медикаменты[[#This Row],[Дата остатка]]<$U$1,Медикаменты[[#This Row],[Остаток]],0)","v":0},{"$f":"IF(T202=\"\",\"\",SUMPRODUCT((Вводные[Дата]>=$U$1)*(Вводные[Дата]<=$U$2)*(Вводные[Наименование]=$T202),Вводные[Приход]))","v":0},{"$f":"IF(T202=\"\",\"\",SUMPRODUCT((Вводные[Дата]>=$U$1)*(Вводные[Дата]<=$U$2)*(Вводные[Наименование]=$T202),Вводные[Расход]))","v":0},{"$f":"IFERROR(Медикаменты[[#This Row],[Остаток]]+Медикаменты[[#This Row],[Приход за период]]-Медикаменты[[#This Row],[Расход за период]],\"\")","v":""},{"$f":"IFERROR(SUMIF(Вводные[Наименование],Медикаменты[[#This Row],[Наименование]],Вводные[Приход]),0)","v":0},{"$f":"IFERROR(SUMIF(Вводные[Наименование],Медикаменты[[#This Row],[Наименование]],Вводные[Расход]),0)","v":0},{"$f":"IFERROR(Медикаменты[[#This Row],[Остаток]]+Медикаменты[[#This Row],[Приход общий]]-Медикаменты[[#This Row],[Расход общий]],0)","v":0},null,null,"Халат (хир., стер.)","шт"]
[null,null,null,null,null,null,null,null,null,null,null,null,null,null,null,null,null,null,{"$f":"IF(IFERROR(IF(SEARCH(Расчет!$B$8,T203),\"!\",\"\"),\"\")=\"\",0,MAX($S$9:S202)+1)","v":0},"Хлоргексидин (р-р для местного и наружного применения 0,05% - 100 мл., № 1)","фл.",45,"","",{"$f":"IFERROR(LOOKUP(,-1/($T203=Вводные[Наименование])/(Вводные[Дата]<$U$1),Вводные[Остаток]),0)+IF(Медикаменты[[#This Row],[Дата остатка]]<$U$1,Медикаменты[[#This Row],[Остаток]],0)","v":0},{"$f":"IF(T203=\"\",\"\",SUMPRODUCT((Вводные[Дата]>=$U$1)*(Вводные[Дата]<=$U$2)*(Вводные[Наименование]=$T203),Вводные[Приход]))","v":0},{"$f":"IF(T203=\"\",\"\",SUMPRODUCT((Вводные[Дата]>=$U$1)*(Вводные[Дата]<=$U$2)*(Вводные[Наименование]=$T203),Вводные[Расход]))","v":0},{"$f":"IFERROR(Медикаменты[[#This Row],[Остаток]]+Медикаменты[[#This Row],[Приход за период]]-Медикаменты[[#This Row],[Расход за период]],\"\")","v":""},{"$f":"IFERROR(SUMIF(Вводные[Наименование],Медикаменты[[#This Row],[Наименование]],Вводные[Приход]),0)","v":0},{"$f":"IFERROR(SUMIF(Вводные[Наименование],Медикаменты[[#This Row],[Наименование]],Вводные[Расход]),0)","v":0},{"$f":"IFERROR(Медикаменты[[#This Row],[Остаток]]+Медикаменты[[#This Row],[Приход общий]]-Медикаменты[[#This Row],[Расход общий]],0)","v":0},null,null,"Халат детский с капюшоном для спелеолечения","шт"]
[null,null,null,null,null,null,null,null,null,null,null,null,null,null,null,null,null,null,{"$f":"IF(IFERROR(IF(SEARCH(Расчет!$B$8,T204),\"!\",\"\"),\"\")=\"\",0,MAX($S$9:S203)+1)","v":0},"Хлоропирамин (амп., 20 мг., 1 мл., №5)","уп.",45,"","",{"$f":"IFERROR(LOOKUP(,-1/($T204=Вводные[Наименование])/(Вводные[Дата]<$U$1),Вводные[Остаток]),0)+IF(Медикаменты[[#This Row],[Дата остатка]]<$U$1,Медикаменты[[#This Row],[Остаток]],0)","v":0},{"$f":"IF(T204=\"\",\"\",SUMPRODUCT((Вводные[Дата]>=$U$1)*(Вводные[Дата]<=$U$2)*(Вводные[Наименование]=$T204),Вводные[Приход]))","v":0},{"$f":"IF(T204=\"\",\"\",SUMPRODUCT((Вводные[Дата]>=$U$1)*(Вводные[Дата]<=$U$2)*(Вводные[Наименование]=$T204),Вводные[Расход]))","v":0},{"$f":"IFERROR(Медикаменты[[#This Row],[Остаток]]+Медикаменты[[#This Row],[Приход за период]]-Медикаменты[[#This Row],[Расход за период]],\"\")","v":""},{"$f":"IFERROR(SUMIF(Вводные[Наименование],Медикаменты[[#This Row],[Наименование]],Вводные[Приход]),0)","v":0},{"$f":"IFERROR(SUMIF(Вводные[Наименование],Медикаменты[[#This Row],[Наименование]],Вводные[Расход]),0)","v":0},{"$f":"IFERROR(Медикаменты[[#This Row],[Остаток]]+Медикаменты[[#This Row],[Приход общий]]-Медикаменты[[#This Row],[Расход общий]],0)","v":0},null,null,"Хлоргексидин (амп., 0,05%, 100 мл.)","уп."]
[null,null,null,null,null,null,null,null,null,null,null,null,null,null,null,null,null,null,{"$f":"IF(IFERROR(IF(SEARCH(Расчет!$B$8,T205),\"!\",\"\"),\"\")=\"\",0,MAX($S$9:S204)+1)","v":0},"Хлоропирамин (таб., 0,025 г., №20)","уп.",20,"","",{"$f":"IFERROR(LOOKUP(,-1/($T205=Вводные[Наименование])/(Вводные[Дата]<$U$1),Вводные[Остаток]),0)+IF(Медикаменты[[#This Row],[Дата остатка]]<$U$1,Медикаменты[[#This Row],[Остаток]],0)","v":0},{"$f":"IF(T205=\"\",\"\",SUMPRODUCT((Вводные[Дата]>=$U$1)*(Вводные[Дата]<=$U$2)*(Вводные[Наименование]=$T205),Вводные[Приход]))","v":0},{"$f":"IF(T205=\"\",\"\",SUMPRODUCT((Вводные[Дата]>=$U$1)*(Вводные[Дата]<=$U$2)*(Вводные[Наименование]=$T205),Вводные[Расход]))","v":0},{"$f":"IFERROR(Медикаменты[[#This Row],[Остаток]]+Медикаменты[[#This Row],[Приход за период]]-Медикаменты[[#This Row],[Расход за период]],\"\")","v":""},{"$f":"IFERROR(SUMIF(Вводные[Наименование],Медикаменты[[#This Row],[Наименование]],Вводные[Приход]),0)","v":0},{"$f":"IFERROR(SUMIF(Вводные[Наименование],Медикаменты[[#This Row],[Наименование]],Вводные[Расход]),0)","v":0},{"$f":"IFERROR(Медикаменты[[#This Row],[Остаток]]+Медикаменты[[#This Row],[Приход общий]]-Медикаменты[[#This Row],[Расход общий]],0)","v":0},null,null,"Хлоргексидин (р-р для местного и наружного применения 0,05% - 100 мл., № 1)","фл."]
[null,null,null,null,null,null,null,null,null,null,null,null,null,null,null,null,null,null,{"$f":"IF(IFERROR(IF(SEARCH(Расчет!$B$8,T206),\"!\",\"\"),\"\")=\"\",0,MAX($S$9:S205)+1)","v":0},"Церебролизин (амп., 5 мл., №5)","уп.",2,"","",{"$f":"IFERROR(LOOKUP(,-1/($T206=Вводные[Наименование])/(Вводные[Дата]<$U$1),Вводные[Остаток]),0)+IF(Медикаменты[[#This Row],[Дата остатка]]<$U$1,Медикаменты[[#This Row],[Остаток]],0)","v":0},{"$f":"IF(T206=\"\",\"\",SUMPRODUCT((Вводные[Дата]>=$U$1)*(Вводные[Дата]<=$U$2)*(Вводные[Наименование]=$T206),Вводные[Приход]))","v":0},{"$f":"IF(T206=\"\",\"\",SUMPRODUCT((Вводные[Дата]>=$U$1)*(Вводные[Дата]<=$U$2)*(Вводные[Наименование]=$T206),Вводные[Расход]))","v":0},{"$f":"IFERROR(Медикаменты[[#This Row],[Остаток]]+Медикаменты[[#This Row],[Приход за период]]-Медикаменты[[#This Row],[Расход за период]],\"\")","v":""},{"$f":"IFERROR(SUMIF(Вводные[Наименование],Медикаменты[[#This Row],[Наименование]],Вводные[Приход]),0)","v":0},{"$f":"IFERROR(SUMIF(Вводные[Наименование],Медикаменты[[#This Row],[Наименование]],Вводные[Расход]),0)","v":0},{"$f":"IFERROR(Медикаменты[[#This Row],[Остаток]]+Медикаменты[[#This Row],[Приход общий]]-Медикаменты[[#This Row],[Расход общий]],0)","v":0},null,null,"Хлоропирамин (амп., 20 мг., 1 мл., №5)","уп."]
[null,null,null,null,null,null,null,null,null,null,null,null,null,null,null,null,null,null,{"$f":"IF(IFERROR(IF(SEARCH(Расчет!$B$8,T207),\"!\",\"\"),\"\")=\"\",0,MAX($S$9:S206)+1)","v":0},"Цетиризин (табл., 10 мг., № 30)","уп.",35,"","",{"$f":"IFERROR(LOOKUP(,-1/($T207=Вводные[Наименование])/(Вводные[Дата]<$U$1),Вводные[Остаток]),0)+IF(Медикаменты[[#This Row],[Дата остатка]]<$U$1,Медикаменты[[#This Row],[Остаток]],0)","v":0},{"$f":"IF(T207=\"\",\"\",SUMPRODUCT((Вводные[Дата]>=$U$1)*(Вводные[Дата]<=$U$2)*(Вводные[Наименование]=$T207),Вводные[Приход]))","v":0},{"$f":"IF(T207=\"\",\"\",SUMPRODUCT((Вводные[Дата]>=$U$1)*(Вводные[Дата]<=$U$2)*(Вводные[Наименование]=$T207),Вводные[Расход]))","v":0},{"$f":"IFERROR(Медикаменты[[#This Row],[Остаток]]+Медикаменты[[#This Row],[Приход за период]]-Медикаменты[[#This Row],[Расход за период]],\"\")","v":""},{"$f":"IFERROR(SUMIF(Вводные[Наименование],Медикаменты[[#This Row],[Наименование]],Вводные[Приход]),0)","v":0},{"$f":"IFERROR(SUMIF(Вводные[Наименование],Медикаменты[[#This Row],[Наименование]],Вводные[Расход]),0)","v":0},{"$f":"IFERROR(Медикаменты[[#This Row],[Остаток]]+Медикаменты[[#This Row],[Приход общий]]-Медикаменты[[#This Row],[Расход общий]],0)","v":0},null,null,"Хлоропирамин (таб., 0,025 г., №20)","уп."]
[null,null,null,null,null,null,null,null,null,null,null,null,null,null,null,null,null,null,{"$f":"IF(IFERROR(IF(SEARCH(Расчет!$B$8,T208),\"!\",\"\"),\"\")=\"\",0,MAX($S$9:S207)+1)","v":0},"Цианокабаламини (р-р для инъекций по 0,5 мг/1 мл, амп. по 1 мл., № 10)","уп.",100,"","",{"$f":"IFERROR(LOOKUP(,-1/($T208=Вводные[Наименование])/(Вводные[Дата]<$U$1),Вводные[Остаток]),0)+IF(Медикаменты[[#This Row],[Дата остатка]]<$U$1,Медикаменты[[#This Row],[Остаток]],0)","v":0},{"$f":"IF(T208=\"\",\"\",SUMPRODUCT((Вводные[Дата]>=$U$1)*(Вводные[Дата]<=$U$2)*(Вводные[Наименование]=$T208),Вводные[Приход]))","v":0},{"$f":"IF(T208=\"\",\"\",SUMPRODUCT((Вводные[Дата]>=$U$1)*(Вводные[Дата]<=$U$2)*(Вводные[Наименование]=$T208),Вводные[Расход]))","v":0},{"$f":"IFERROR(Медикаменты[[#This Row],[Остаток]]+Медикаменты[[#This Row],[Приход за период]]-Медикаменты[[#This Row],[Расход за период]],\"\")","v":""},{"$f":"IFERROR(SUMIF(Вводные[Наименование],Медикаменты[[#This Row],[Наименование]],Вводные[Приход]),0)","v":0},{"$f":"IFERROR(SUMIF(Вводные[Наименование],Медикаменты[[#This Row],[Наименование]],Вводные[Расход]),0)","v":0},{"$f":"IFERROR(Медикаменты[[#This Row],[Остаток]]+Медикаменты[[#This Row],[Приход общий]]-Медикаменты[[#This Row],[Расход общий]],0)","v":0},null,null,"Церебролизин (амп., 5 мл., №5)","уп."]
[null,null,null,null,null,null,null,null,null,null,null,null,null,null,null,null,null,null,{"$f":"IF(IFERROR(IF(SEARCH(Расчет!$B$8,T209),\"!\",\"\"),\"\")=\"\",0,MAX($S$9:S208)+1)","v":0},"Цианокобаламин (амп., 1 мл., №10)","уп.",70,"","",{"$f":"IFERROR(LOOKUP(,-1/($T209=Вводные[Наименование])/(Вводные[Дата]<$U$1),Вводные[Остаток]),0)+IF(Медикаменты[[#This Row],[Дата остатка]]<$U$1,Медикаменты[[#This Row],[Остаток]],0)","v":0},{"$f":"IF(T209=\"\",\"\",SUMPRODUCT((Вводные[Дата]>=$U$1)*(Вводные[Дата]<=$U$2)*(Вводные[Наименование]=$T209),Вводные[Приход]))","v":0},{"$f":"IF(T209=\"\",\"\",SUMPRODUCT((Вводные[Дата]>=$U$1)*(Вводные[Дата]<=$U$2)*(Вводные[Наименование]=$T209),Вводные[Расход]))","v":0},{"$f":"IFERROR(Медикаменты[[#This Row],[Остаток]]+Медикаменты[[#This Row],[Приход за период]]-Медикаменты[[#This Row],[Расход за период]],\"\")","v":""},{"$f":"IFERROR(SUMIF(Вводные[Наименование],Медикаменты[[#This Row],[Наименование]],Вводные[Приход]),0)","v":0},{"$f":"IFERROR(SUMIF(Вводные[Наименование],Медикаменты[[#This Row],[Наименование]],Вводные[Расход]),0)","v":0},{"$f":"IFERROR(Медикаменты[[#This Row],[Остаток]]+Медикаменты[[#This Row],[Приход общий]]-Медикаменты[[#This Row],[Расход общий]],0)","v":0},null,null,"Цетиризин (табл., 10 мг., № 30)","уп."]
[null,null,null,null,null,null,null,null,null,null,null,null,null,null,null,null,null,null,{"$f":"IF(IFERROR(IF(SEARCH(Расчет!$B$8,T210),\"!\",\"\"),\"\")=\"\",0,MAX($S$9:S209)+1)","v":0},"Цикломед (1%, 5 мл.)","уп.",30,"","",{"$f":"IFERROR(LOOKUP(,-1/($T210=Вводные[Наименование])/(Вводные[Дата]<$U$1),Вводные[Остаток]),0)+IF(Медикаменты[[#This Row],[Дата остатка]]<$U$1,Медикаменты[[#This Row],[Остаток]],0)","v":0},{"$f":"IF(T210=\"\",\"\",SUMPRODUCT((Вводные[Дата]>=$U$1)*(Вводные[Дата]<=$U$2)*(Вводные[Наименование]=$T210),Вводные[Приход]))","v":0},{"$f":"IF(T210=\"\",\"\",SUMPRODUCT((Вводные[Дата]>=$U$1)*(Вводные[Дата]<=$U$2)*(Вводные[Наименование]=$T210),Вводные[Расход]))","v":0},{"$f":"IFERROR(Медикаменты[[#This Row],[Остаток]]+Медикаменты[[#This Row],[Приход за период]]-Медикаменты[[#This Row],[Расход за период]],\"\")","v":""},{"$f":"IFERROR(SUMIF(Вводные[Наименование],Медикаменты[[#This Row],[Наименование]],Вводные[Приход]),0)","v":0},{"$f":"IFERROR(SUMIF(Вводные[Наименование],Медикаменты[[#This Row],[Наименование]],Вводные[Расход]),0)","v":0},{"$f":"IFERROR(Медикаменты[[#This Row],[Остаток]]+Медикаменты[[#This Row],[Приход общий]]-Медикаменты[[#This Row],[Расход общий]],0)","v":0},null,null,"Цианокабаламини (р-р для инъекций по 0,5 мг/1 мл, амп. по 1 мл., № 10)","уп."]
[null,null,null,null,null,null,null,null,null,null,null,null,null,null,null,null,null,null,{"$f":"IF(IFERROR(IF(SEARCH(Расчет!$B$8,T211),\"!\",\"\"),\"\")=\"\",0,MAX($S$9:S210)+1)","v":0},"Циннаризин (таб. 25 мг., №50)","уп.",5,"","",{"$f":"IFERROR(LOOKUP(,-1/($T211=Вводные[Наименование])/(Вводные[Дата]<$U$1),Вводные[Остаток]),0)+IF(Медикаменты[[#This Row],[Дата остатка]]<$U$1,Медикаменты[[#This Row],[Остаток]],0)","v":0},{"$f":"IF(T211=\"\",\"\",SUMPRODUCT((Вводные[Дата]>=$U$1)*(Вводные[Дата]<=$U$2)*(Вводные[Наименование]=$T211),Вводные[Приход]))","v":0},{"$f":"IF(T211=\"\",\"\",SUMPRODUCT((Вводные[Дата]>=$U$1)*(Вводные[Дата]<=$U$2)*(Вводные[Наименование]=$T211),Вводные[Расход]))","v":0},{"$f":"IFERROR(Медикаменты[[#This Row],[Остаток]]+Медикаменты[[#This Row],[Приход за период]]-Медикаменты[[#This Row],[Расход за период]],\"\")","v":""},{"$f":"IFERROR(SUMIF(Вводные[Наименование],Медикаменты[[#This Row],[Наименование]],Вводные[Приход]),0)","v":0},{"$f":"IFERROR(SUMIF(Вводные[Наименование],Медикаменты[[#This Row],[Наименование]],Вводные[Расход]),0)","v":0},{"$f":"IFERROR(Медикаменты[[#This Row],[Остаток]]+Медикаменты[[#This Row],[Приход общий]]-Медикаменты[[#This Row],[Расход общий]],0)","v":0},null,null,"Цианокобаламин (амп., 1 мл., №10)","уп."]
[null,null,null,null,null,null,null,null,null,null,null,null,null,null,null,null,null,null,{"$f":"IF(IFERROR(IF(SEARCH(Расчет!$B$8,T212),\"!\",\"\"),\"\")=\"\",0,MAX($S$9:S211)+1)","v":0},"Циннаризин (табл., 25 мг., № 50)","уп.",5,"","",{"$f":"IFERROR(LOOKUP(,-1/($T212=Вводные[Наименование])/(Вводные[Дата]<$U$1),Вводные[Остаток]),0)+IF(Медикаменты[[#This Row],[Дата остатка]]<$U$1,Медикаменты[[#This Row],[Остаток]],0)","v":0},{"$f":"IF(T212=\"\",\"\",SUMPRODUCT((Вводные[Дата]>=$U$1)*(Вводные[Дата]<=$U$2)*(Вводные[Наименование]=$T212),Вводные[Приход]))","v":0},{"$f":"IF(T212=\"\",\"\",SUMPRODUCT((Вводные[Дата]>=$U$1)*(Вводные[Дата]<=$U$2)*(Вводные[Наименование]=$T212),Вводные[Расход]))","v":0},{"$f":"IFERROR(Медикаменты[[#This Row],[Остаток]]+Медикаменты[[#This Row],[Приход за период]]-Медикаменты[[#This Row],[Расход за период]],\"\")","v":""},{"$f":"IFERROR(SUMIF(Вводные[Наименование],Медикаменты[[#This Row],[Наименование]],Вводные[Приход]),0)","v":0},{"$f":"IFERROR(SUMIF(Вводные[Наименование],Медикаменты[[#This Row],[Наименование]],Вводные[Расход]),0)","v":0},{"$f":"IFERROR(Медикаменты[[#This Row],[Остаток]]+Медикаменты[[#This Row],[Приход общий]]-Медикаменты[[#This Row],[Расход общий]],0)","v":0},null,null,"Цикломед (1%, 5 мл.)","уп."]
[null,null,null,null,null,null,null,null,null,null,null,null,null,null,null,null,null,null,{"$f":"IF(IFERROR(IF(SEARCH(Расчет!$B$8,T213),\"!\",\"\"),\"\")=\"\",0,MAX($S$9:S212)+1)","v":0},"Шапочка медицинская (нест.)","шт",1000,"","",{"$f":"IFERROR(LOOKUP(,-1/($T213=Вводные[Наименование])/(Вводные[Дата]<$U$1),Вводные[Остаток]),0)+IF(Медикаменты[[#This Row],[Дата остатка]]<$U$1,Медикаменты[[#This Row],[Остаток]],0)","v":0},{"$f":"IF(T213=\"\",\"\",SUMPRODUCT((Вводные[Дата]>=$U$1)*(Вводные[Дата]<=$U$2)*(Вводные[Наименование]=$T213),Вводные[Приход]))","v":0},{"$f":"IF(T213=\"\",\"\",SUMPRODUCT((Вводные[Дата]>=$U$1)*(Вводные[Дата]<=$U$2)*(Вводные[Наименование]=$T213),Вводные[Расход]))","v":0},{"$f":"IFERROR(Медикаменты[[#This Row],[Остаток]]+Медикаменты[[#This Row],[Приход за период]]-Медикаменты[[#This Row],[Расход за период]],\"\")","v":""},{"$f":"IFERROR(SUMIF(Вводные[Наименование],Медикаменты[[#This Row],[Наименование]],Вводные[Приход]),0)","v":0},{"$f":"IFERROR(SUMIF(Вводные[Наименование],Медикаменты[[#This Row],[Наименование]],Вводные[Расход]),0)","v":0},{"$f":"IFERROR(Медикаменты[[#This Row],[Остаток]]+Медикаменты[[#This Row],[Приход общий]]-Медикаменты[[#This Row],[Расход общий]],0)","v":0},null,null,"Циннаризин (таб. 25 мг., №50)","уп."]
[null,null,null,null,null,null,null,null,null,null,null,null,null,null,null,null,null,null,{"$f":"IF(IFERROR(IF(SEARCH(Расчет!$B$8,T214),\"!\",\"\"),\"\")=\"\",0,MAX($S$9:S213)+1)","v":0},"Шпатель (стер., 100 шт.)","шт.",9000,"2018-03-30",19900,{"$f":"IFERROR(LOOKUP(,-1/($T214=Вводные[Наименование])/(Вводные[Дата]<$U$1),Вводные[Остаток]),0)+IF(Медикаменты[[#This Row],[Дата остатка]]<$U$1,Медикаменты[[#This Row],[Остаток]],0)","v":19900},{"$f":"IF(T214=\"\",\"\",SUMPRODUCT((Вводные[Дата]>=$U$1)*(Вводные[Дата]<=$U$2)*(Вводные[Наименование]=$T214),Вводные[Приход]))","v":0},{"$f":"IF(T214=\"\",\"\",SUMPRODUCT((Вводные[Дата]>=$U$1)*(Вводные[Дата]<=$U$2)*(Вводные[Наименование]=$T214),Вводные[Расход]))","v":0},{"$f":"IFERROR(Медикаменты[[#This Row],[Остаток]]+Медикаменты[[#This Row],[Приход за период]]-Медикаменты[[#This Row],[Расход за период]],\"\")","v":19900},{"$f":"IFERROR(SUMIF(Вводные[Наименование],Медикаменты[[#This Row],[Наименование]],Вводные[Приход]),0)","v":0},{"$f":"IFERROR(SUMIF(Вводные[Наименование],Медикаменты[[#This Row],[Наименование]],Вводные[Расход]),0)","v":0},{"$f":"IFERROR(Медикаменты[[#This Row],[Остаток]]+Медикаменты[[#This Row],[Приход общий]]-Медикаменты[[#This Row],[Расход общий]],0)","v":19900},null,null,"Циннаризин (табл., 25 мг., № 50)","уп."]
[null,null,null,null,null,null,null,null,null,null,null,null,null,null,null,null,null,null,{"$f":"IF(IFERROR(IF(SEARCH(Расчет!$B$8,T215),\"!\",\"\"),\"\")=\"\",0,MAX($S$9:S214)+1)","v":0},"Шприц (1,0 мл.)","шт.",10000,"","",{"$f":"IFERROR(LOOKUP(,-1/($T215=Вводные[Наименование])/(Вводные[Дата]<$U$1),Вводные[Остаток]),0)+IF(Медикаменты[[#This Row],[Дата остатка]]<$U$1,Медикаменты[[#This Row],[Остаток]],0)","v":0},{"$f":"IF(T215=\"\",\"\",SUMPRODUCT((Вводные[Дата]>=$U$1)*(Вводные[Дата]<=$U$2)*(Вводные[Наименование]=$T215),Вводные[Приход]))","v":0},{"$f":"IF(T215=\"\",\"\",SUMPRODUCT((Вводные[Дата]>=$U$1)*(Вводные[Дата]<=$U$2)*(Вводные[Наименование]=$T215),Вводные[Расход]))","v":0},{"$f":"IFERROR(Медикаменты[[#This Row],[Остаток]]+Медикаменты[[#This Row],[Приход за период]]-Медикаменты[[#This Row],[Расход за период]],\"\")","v":""},{"$f":"IFERROR(SUMIF(Вводные[Наименование],Медикаменты[[#This Row],[Наименование]],Вводные[Приход]),0)","v":0},{"$f":"IFERROR(SUMIF(Вводные[Наименование],Медикаменты[[#This Row],[Наименование]],Вводные[Расход]),0)","v":0},{"$f":"IFERROR(Медикаменты[[#This Row],[Остаток]]+Медикаменты[[#This Row],[Приход общий]]-Медикаменты[[#This Row],[Расход общий]],0)","v":0},null,null,"Шапочка медицинская (нест.)","шт"]
[null,null,null,null,null,null,null,null,null,null,null,null,null,null,null,null,null,null,{"$f":"IF(IFERROR(IF(SEARCH(Расчет!$B$8,T216),\"!\",\"\"),\"\")=\"\",0,MAX($S$9:S215)+1)","v":0},"Шприц (10,0 мл.)","шт.",1000,"","",{"$f":"IFERROR(LOOKUP(,-1/($T216=Вводные[Наименование])/(Вводные[Дата]<$U$1),Вводные[Остаток]),0)+IF(Медикаменты[[#This Row],[Дата остатка]]<$U$1,Медикаменты[[#This Row],[Остаток]],0)","v":0},{"$f":"IF(T216=\"\",\"\",SUMPRODUCT((Вводные[Дата]>=$U$1)*(Вводные[Дата]<=$U$2)*(Вводные[Наименование]=$T216),Вводные[Приход]))","v":0},{"$f":"IF(T216=\"\",\"\",SUMPRODUCT((Вводные[Дата]>=$U$1)*(Вводные[Дата]<=$U$2)*(Вводные[Наименование]=$T216),Вводные[Расход]))","v":0},{"$f":"IFERROR(Медикаменты[[#This Row],[Остаток]]+Медикаменты[[#This Row],[Приход за период]]-Медикаменты[[#This Row],[Расход за период]],\"\")","v":""},{"$f":"IFERROR(SUMIF(Вводные[Наименование],Медикаменты[[#This Row],[Наименование]],Вводные[Приход]),0)","v":0},{"$f":"IFERROR(SUMIF(Вводные[Наименование],Медикаменты[[#This Row],[Наименование]],Вводные[Расход]),0)","v":0},{"$f":"IFERROR(Медикаменты[[#This Row],[Остаток]]+Медикаменты[[#This Row],[Приход общий]]-Медикаменты[[#This Row],[Расход общий]],0)","v":0},null,null,"Шпатель (стер., 100 шт.)","шт."]
[null,null,null,null,null,null,null,null,null,null,null,null,null,null,null,null,null,null,{"$f":"IF(IFERROR(IF(SEARCH(Расчет!$B$8,T217),\"!\",\"\"),\"\")=\"\",0,MAX($S$9:S216)+1)","v":0},"Шприц (2,0 мл.)","шт.",10000,"","",{"$f":"IFERROR(LOOKUP(,-1/($T217=Вводные[Наименование])/(Вводные[Дата]<$U$1),Вводные[Остаток]),0)+IF(Медикаменты[[#This Row],[Дата остатка]]<$U$1,Медикаменты[[#This Row],[Остаток]],0)","v":0},{"$f":"IF(T217=\"\",\"\",SUMPRODUCT((Вводные[Дата]>=$U$1)*(Вводные[Дата]<=$U$2)*(Вводные[Наименование]=$T217),Вводные[Приход]))","v":0},{"$f":"IF(T217=\"\",\"\",SUMPRODUCT((Вводные[Дата]>=$U$1)*(Вводные[Дата]<=$U$2)*(Вводные[Наименование]=$T217),Вводные[Расход]))","v":0},{"$f":"IFERROR(Медикаменты[[#This Row],[Остаток]]+Медикаменты[[#This Row],[Приход за период]]-Медикаменты[[#This Row],[Расход за период]],\"\")","v":""},{"$f":"IFERROR(SUMIF(Вводные[Наименование],Медикаменты[[#This Row],[Наименование]],Вводные[Приход]),0)","v":0},{"$f":"IFERROR(SUMIF(Вводные[Наименование],Медикаменты[[#This Row],[Наименование]],Вводные[Расход]),0)","v":0},{"$f":"IFERROR(Медикаменты[[#This Row],[Остаток]]+Медикаменты[[#This Row],[Приход общий]]-Медикаменты[[#This Row],[Расход общий]],0)","v":0},null,null,"Шприц (1,0 мл.)","шт."]
[null,null,null,null,null,null,null,null,null,null,null,null,null,null,null,null,null,null,{"$f":"IF(IFERROR(IF(SEARCH(Расчет!$B$8,T218),\"!\",\"\"),\"\")=\"\",0,MAX($S$9:S217)+1)","v":0},"Шприц (20,0 мл.)","шт.",1500,"","",{"$f":"IFERROR(LOOKUP(,-1/($T218=Вводные[Наименование])/(Вводные[Дата]<$U$1),Вводные[Остаток]),0)+IF(Медикаменты[[#This Row],[Дата остатка]]<$U$1,Медикаменты[[#This Row],[Остаток]],0)","v":0},{"$f":"IF(T218=\"\",\"\",SUMPRODUCT((Вводные[Дата]>=$U$1)*(Вводные[Дата]<=$U$2)*(Вводные[Наименование]=$T218),Вводные[Приход]))","v":0},{"$f":"IF(T218=\"\",\"\",SUMPRODUCT((Вводные[Дата]>=$U$1)*(Вводные[Дата]<=$U$2)*(Вводные[Наименование]=$T218),Вводные[Расход]))","v":0},{"$f":"IFERROR(Медикаменты[[#This Row],[Остаток]]+Медикаменты[[#This Row],[Приход за период]]-Медикаменты[[#This Row],[Расход за период]],\"\")","v":""},{"$f":"IFERROR(SUMIF(Вводные[Наименование],Медикаменты[[#This Row],[Наименование]],Вводные[Приход]),0)","v":0},{"$f":"IFERROR(SUMIF(Вводные[Наименование],Медикаменты[[#This Row],[Наименование]],Вводные[Расход]),0)","v":0},{"$f":"IFERROR(Медикаменты[[#This Row],[Остаток]]+Медикаменты[[#This Row],[Приход общий]]-Медикаменты[[#This Row],[Расход общий]],0)","v":0},null,null,"Шприц (10,0 мл.)","шт."]
[null,null,null,null,null,null,null,null,null,null,null,null,null,null,null,null,null,null,{"$f":"IF(IFERROR(IF(SEARCH(Расчет!$B$8,T219),\"!\",\"\"),\"\")=\"\",0,MAX($S$9:S218)+1)","v":0},"Шприц (5,0 мл.)","шт.",1500,"","",{"$f":"IFERROR(LOOKUP(,-1/($T219=Вводные[Наименование])/(Вводные[Дата]<$U$1),Вводные[Остаток]),0)+IF(Медикаменты[[#This Row],[Дата остатка]]<$U$1,Медикаменты[[#This Row],[Остаток]],0)","v":0},{"$f":"IF(T219=\"\",\"\",SUMPRODUCT((Вводные[Дата]>=$U$1)*(Вводные[Дата]<=$U$2)*(Вводные[Наименование]=$T219),Вводные[Приход]))","v":0},{"$f":"IF(T219=\"\",\"\",SUMPRODUCT((Вводные[Дата]>=$U$1)*(Вводные[Дата]<=$U$2)*(Вводные[Наименование]=$T219),Вводные[Расход]))","v":0},{"$f":"IFERROR(Медикаменты[[#This Row],[Остаток]]+Медикаменты[[#This Row],[Приход за период]]-Медикаменты[[#This Row],[Расход за период]],\"\")","v":""},{"$f":"IFERROR(SUMIF(Вводные[Наименование],Медикаменты[[#This Row],[Наименование]],Вводные[Приход]),0)","v":0},{"$f":"IFERROR(SUMIF(Вводные[Наименование],Медикаменты[[#This Row],[Наименование]],Вводные[Расход]),0)","v":0},{"$f":"IFERROR(Медикаменты[[#This Row],[Остаток]]+Медикаменты[[#This Row],[Приход общий]]-Медикаменты[[#This Row],[Расход общий]],0)","v":0},null,null,"Шприц (2,0 мл.)","шт."]
[null,null,null,null,null,null,null,null,null,null,null,null,null,null,null,null,null,null,{"$f":"IF(IFERROR(IF(SEARCH(Расчет!$B$8,T220),\"!\",\"\"),\"\")=\"\",0,MAX($S$9:S219)+1)","v":0},"Энап (таб., 10 мг., №20)",0,0,null,0,{"$f":"IFERROR(LOOKUP(,-1/($T220=Вводные[Наименование])/(Вводные[Дата]<$U$1),Вводные[Остаток]),0)+IF(Медикаменты[[#This Row],[Дата остатка]]<$U$1,Медикаменты[[#This Row],[Остаток]],0)","v":0},{"$f":"IF(T220=\"\",\"\",SUMPRODUCT((Вводные[Дата]>=$U$1)*(Вводные[Дата]<=$U$2)*(Вводные[Наименование]=$T220),Вводные[Приход]))","v":0},{"$f":"IF(T220=\"\",\"\",SUMPRODUCT((Вводные[Дата]>=$U$1)*(Вводные[Дата]<=$U$2)*(Вводные[Наименование]=$T220),Вводные[Расход]))","v":0},{"$f":"IFERROR(Медикаменты[[#This Row],[Остаток]]+Медикаменты[[#This Row],[Приход за период]]-Медикаменты[[#This Row],[Расход за период]],\"\")","v":0},{"$f":"IFERROR(SUMIF(Вводные[Наименование],Медикаменты[[#This Row],[Наименование]],Вводные[Приход]),0)","v":0},{"$f":"IFERROR(SUMIF(Вводные[Наименование],Медикаменты[[#This Row],[Наименование]],Вводные[Расход]),0)","v":0},{"$f":"IFERROR(Медикаменты[[#This Row],[Остаток]]+Медикаменты[[#This Row],[Приход общий]]-Медикаменты[[#This Row],[Расход общий]],0)","v":0},null,null,"Шприц (20,0 мл.)","шт."]
[null,null,null,null,null,null,null,null,null,null,null,null,null,null,null,null,null,null,{"$f":"IF(IFERROR(IF(SEARCH(Расчет!$B$8,T221),\"!\",\"\"),\"\")=\"\",0,MAX($S$9:S220)+1)","v":0},"Эуфиллин (амп., 2,4%, 10 мл., №10)","уп.",30,"","",{"$f":"IFERROR(LOOKUP(,-1/($T221=Вводные[Наименование])/(Вводные[Дата]<$U$1),Вводные[Остаток]),0)+IF(Медикаменты[[#This Row],[Дата остатка]]<$U$1,Медикаменты[[#This Row],[Остаток]],0)","v":0},{"$f":"IF(T221=\"\",\"\",SUMPRODUCT((Вводные[Дата]>=$U$1)*(Вводные[Дата]<=$U$2)*(Вводные[Наименование]=$T221),Вводные[Приход]))","v":0},{"$f":"IF(T221=\"\",\"\",SUMPRODUCT((Вводные[Дата]>=$U$1)*(Вводные[Дата]<=$U$2)*(Вводные[Наименование]=$T221),Вводные[Расход]))","v":0},{"$f":"IFERROR(Медикаменты[[#This Row],[Остаток]]+Медикаменты[[#This Row],[Приход за период]]-Медикаменты[[#This Row],[Расход за период]],\"\")","v":""},{"$f":"IFERROR(SUMIF(Вводные[Наименование],Медикаменты[[#This Row],[Наименование]],Вводные[Приход]),0)","v":0},{"$f":"IFERROR(SUMIF(Вводные[Наименование],Медикаменты[[#This Row],[Наименование]],Вводные[Расход]),0)","v":0},{"$f":"IFERROR(Медикаменты[[#This Row],[Остаток]]+Медикаменты[[#This Row],[Приход общий]]-Медикаменты[[#This Row],[Расход общий]],0)","v":0},null,null,"Шприц (5,0 мл.)","шт."]
[null,null,null,null,null,null,null,null,null,null,null,null,null,null,null,null,null,null,{"$f":"IF(IFERROR(IF(SEARCH(Расчет!$B$8,T222),\"!\",\"\"),\"\")=\"\",0,MAX($S$9:S221)+1)","v":0},"Языкодержатель для детей","шт",7,"","",{"$f":"IFERROR(LOOKUP(,-1/($T222=Вводные[Наименование])/(Вводные[Дата]<$U$1),Вводные[Остаток]),0)+IF(Медикаменты[[#This Row],[Дата остатка]]<$U$1,Медикаменты[[#This Row],[Остаток]],0)","v":0},{"$f":"IF(T222=\"\",\"\",SUMPRODUCT((Вводные[Дата]>=$U$1)*(Вводные[Дата]<=$U$2)*(Вводные[Наименование]=$T222),Вводные[Приход]))","v":0},{"$f":"IF(T222=\"\",\"\",SUMPRODUCT((Вводные[Дата]>=$U$1)*(Вводные[Дата]<=$U$2)*(Вводные[Наименование]=$T222),Вводные[Расход]))","v":0},{"$f":"IFERROR(Медикаменты[[#This Row],[Остаток]]+Медикаменты[[#This Row],[Приход за период]]-Медикаменты[[#This Row],[Расход за период]],\"\")","v":""},{"$f":"IFERROR(SUMIF(Вводные[Наименование],Медикаменты[[#This Row],[Наименование]],Вводные[Приход]),0)","v":0},{"$f":"IFERROR(SUMIF(Вводные[Наименование],Медикаменты[[#This Row],[Наименование]],Вводные[Расход]),0)","v":0},{"$f":"IFERROR(Медикаменты[[#This Row],[Остаток]]+Медикаменты[[#This Row],[Приход общий]]-Медикаменты[[#This Row],[Расход общий]],0)","v":0},null,null,"Энап (таб., 10 мг., №20)"]
[null,null,null,null,null,null,null,null,null,null,null,null,null,null,null,null,null,null,null,null,null,null,null,null,null,null,null,null,null,null,null,null,null,"Эуфиллин (амп., 2,4%, 10 мл., №10)","уп."]
[null,null,null,null,null,null,null,null,null,null,null,null,null,null,null,null,null,null,null,null,null,null,null,null,null,null,null,null,null,null,null,null,null,"Языкодержатель для детей","шт"]

{"sheet":"Отчет","index":1,"n_rows":101,"n_cols":13,"rows_kept":101,"cut":false,"hidden":false,"merged":[[11,10,11,11],[11,1,12,1],[11,2,12,2],[11,4,11,5],[11,6,11,7],[11,8,11,9]]}
["Дневной стационар","Отделение",null,null,null,null,null,null,null,null,null,null,{"$f":"K1","v":0}]
["май","Месяц отчета",null,null,null,null,null,null,null,null,null,null,0]
[2018,"Год отчета",null,null,null,null,null,null,null,null,null,null,0]
["2017-09-16","Дата отчета"]
[null,1,null,null,null,null,null,null,null,null,null,"Утверждаю  ",0]
[null,null,null,null,null,null,null,null,null,null,null,"Главный врач  __________Е.М. Гусенкова",0]
[null,null,null,null,null,null,null,null,null,null,null,{"$f":"IF(A4=\"\",\"От «\"&DAY(TODAY())&\"»\"&TEXT(TODAY(),\"[$-FC19] ММММ\")&\" \"&YEAR(TODAY())&\" г.\",\"От «\"&DAY(A4)&\"»\"&TEXT(A4,\"[$-FC19] ММММ\")&\" \"&YEAR(A4)&\" г.\")","v":"От «16» сентября 2017 г."},0]
[null,null,null,null,null,null,null,null,null,null,null,null,{"$f":"L7","v":"От «16» сентября 2017 г."}]
[null,null,null,null,null,"ОТЧЕТ"]
[null,null,null,null,null,{"$f":"IF(A1=\"Дневной стационар\",Расчет!T1,Расчет!T2)","v":"по расходованию медикаментов в дневном стационаре ОГАУЗ ИГДП №2 "},null,null,null,null,null,null,0]
[null,null,null,null,null,{"$f":"\"За \"&CONCATENATE(A2,\" \",A3,\" года\")","v":"За май 2018 года"},null,null,null,null,null,null,0]
[null,"№ п/п","Наименование","Ед.","Остаток на начало",null,"Приход",null,"Расход",null,"Остаток на конец",null,"Остаток на конец"]
[null,null,null,"изм.","кол-во","сумма","кол-во","сумма","кол-во","сумма","кол-во","сумма","кол-во"]
[null,1,null,"","",null,"",null,"",null,"","",{"$f":"K14","v":""}]
[null,2,"","","",null,"",null,"",null,"","",{"$f":"K15","v":""}]
[null,3,"","","",null,"",null,"",null,"","",""]
[null,4,"","","",null,"",null,"",null,"","",""]
[null,5,"","","",null,"",null,"",null,"","",""]
[null,6,"","","",null,"",null,"",null,"","",""]
[null,7,"","","",null,"",null,"",null,"","",""]
[null,8,"","","",null,"",null,"",null,"","",""]
[null,9,"","","",null,"",null,"",null,"","",""]
[null,10,"","","",null,"",null,"",null,"","",""]
[null,11,"","","",null,"",null,"",null,"","",""]
[null,12,"","","",null,"",null,"",null,"","",""]
[null,13,"","","",null,"",null,"",null,"","",""]
[null,14,"","","",null,"",null,"",null,"","",""]
[null,15,"","","",null,"",null,"",null,"","",""]
[null,16,"","","",null,"",null,"",null,"","",""]
[null,17,"","","",null,"",null,"",null,"","",""]
[null,18,"","","",null,"",null,"",null,"","",""]
[null,19,"","","",null,"",null,"",null,"","",""]
[null,20,"","","",null,"",null,"",null,"","",""]
[null,21,"","","",null,"",null,"",null,"","",""]
[null,22,"","","",null,"",null,"",null,"","",""]
[null,23,"","","",null,"",null,"",null,"","",""]
[null,24,"","","",null,"",null,"",null,"","",""]
[null,25,"","","",null,"",null,"",null,"","",""]
[null,26,"","","",null,"",null,"",null,"","",""]
[null,27,"","","",null,"",null,"",null,"","",""]
[null,28,"","","",null,"",null,"",null,"","",""]
[null,29,"","","",null,"",null,"",null,"","",""]
[null,30,"","","",null,"",null,"",null,"","",""]
[null,31,"","","",null,"",null,"",null,"","",""]
[null,32,"","","",null,"",null,"",null,"","",""]
[null,33,"","","",null,"",null,"",null,"","",""]
[null,34,"","","",null,"",null,"",null,"","",""]
[null,35,"","","",null,"",null,"",null,"","",""]
[null,36,"","","",null,"",null,"",null,"","",""]
[null,37,"","","",null,"",null,"",null,"","",""]
[null,38,"","","",null,"",null,"",null,"","",""]
[null,"","","","",null,"",null,"",null,"","",""]
[null,"","","","",null,"",null,"",null,"","",""]
[null,"","","","",null,"",null,"",null,"","",""]
[null,"","","","",null,"",null,"",null,"","",""]
[null,"","","","",null,"",null,"",null,"","",""]
[null,"","","","",null,"",null,"",null,"","",""]
[null,"","","","",null,"",null,"",null,"","",""]
[null,"","","","",null,"",null,"",null,"","",""]
[null,"","","","",null,"",null,"",null,"","",""]
[null,"","","","",null,"",null,"",null,"","",""]
[null,"","","","",null,"",null,"",null,"","",""]
[null,"","","","",null,"",null,"",null,"","",""]
[null,"","","","",null,"",null,"",null,"","",""]
[null,"","","","",null,"",null,"",null,"","",""]
[null,"","","","",null,"",null,"",null,"","",""]
[null,"","","","",null,"",null,"",null,"","",""]
[null,"","","","",null,"",null,"",null,"","",""]
[null,"","","","",null,"",null,"",null,"","",""]
[null,"","","","",null,"",null,"",null,"","",""]
[null,"","","","",null,"",null,"",null,"","",""]
[null,"","","","",null,"",null,"",null,"","",""]
[null,"","","","",null,"",null,"",null,"","",""]
[null,"","","","",null,"",null,"",null,"","",""]
[null,"","","","",null,"",null,"",null,"","",""]
[null,"","","","",null,"",null,"",null,"","",""]
[null,"","","","",null,"",null,"",null,"","",""]
[null,"","","","",null,"",null,"",null,"","",""]
[null,"","","","",null,"",null,"",null,"","",{"$f":"K79","v":""}]
[null,"","","","",null,"",null,"",null,"","",""]
[null,"","","","",null,"",null,"",null,"","",""]
[null,"","","","",null,"",null,"",null,"","",""]
[null,"","","","",null,"",null,"",null,"","",""]
[null,"","","","",null,"",null,"",null,"","",""]
[null,"","","","",null,"",null,"",null,"","",""]
[null,"","","","",null,"",null,"",null,"","",""]
[null,"","","","",null,"",null,"",null,"","",""]
[null,"","","","",null,"",null,"",null,"","",""]
[null,"","","","",null,"",null,"",null,"","",""]
[null,"","","","",null,"",null,"",null,"","",""]
[null,"","","","",null,"",null,"",null,"","",""]
[null,"","","","",null,"",null,"",null,"","",""]
[null,"","","","",null,"",null,"",null,"","",""]
[null,"","","","",null,"",null,"",null,"","",""]
[null,"","","","",null,"",null,"",null,"","",""]
[null,"","","","",null,"",null,"",null,"","",""]
[null,"","","","",null,"",null,"",null,"","",""]
[null,"","","","",null,"",null,"",null,"","",""]
[null,"","","","",null,"",null,"",null,"","",""]
[null,"","","","",null,"",null,"",null,"","",""]
[null,"","","","",null,"",null,"",null,"","",""]

{"sheet":"Медикаменты","index":2,"n_rows":322,"n_cols":27,"rows_kept":322,"cut":false,"hidden":false,"merged":[]}
["Наименование новое","Единицы","Количество","Цена за упаковку","Единицы в упаковке","Количество в упаковке","Цена за единицу",null,null,null,"Поставщик","Контактные данные","Договор",null,null,"Наименование","Поставщик","Поставщик22","Договор","Столбец3","Единицы","Обеъем закупки","Остаток",null,null,null,"Медикаменты"]
["?водный раствор люголя","?",null,null,null,null,"",null,null,null,"ООО \"Медресурс\"","Иванов, 11-22-99",12345,null,null,"Адреналин гидрохлорид (р-р, 0,1%, 1 мл.)",{"$f":"CONCATENATE(Договоры_tb[[#This Row],[Поставщик22]],\" (дог. №\",Договоры_tb[[#This Row],[Договор]],\"; ост.\",Договоры_tb[[#This Row],[Остаток]],\")\")","v":"ООО \"Медресурс\" (дог. №12345; ост.0)"},"ООО \"Медресурс\"",12345,null,"уп.",100,0,null,null,null,"Адреналин гидрохлорид (р-р, 0,1%, 1 мл.)"]
["?Детский жирный крем","?",null,null,null,null,"",null,null,null,"ООО \"Сибмедком\"","Петров, 895012345678 (9-00-18-00)",4569,null,null,"Пробирка Vacuette (8 мл., 50 шт.)",{"$f":"CONCATENATE(Договоры_tb[[#This Row],[Поставщик22]],\" (дог. №\",Договоры_tb[[#This Row],[Договор]],\"; ост.\",Договоры_tb[[#This Row],[Остаток]],\")\")","v":"ООО \"Медресурс\" (дог. №12345; ост.100)"},"ООО \"Медресурс\"",12345,null,"уп.",150,100,null,null,null,"Бинт (нест., 10 м.х15 см.)"]
["?Иголка","?",null,null,null,null,"",null,null,null,"ООО \"Медресурс\"","Иванов, 11-22-99","ПР-123",null,null,"Пробирка Vacuette (9 мл., 50 шт.)",{"$f":"CONCATENATE(Договоры_tb[[#This Row],[Поставщик22]],\" (дог. №\",Договоры_tb[[#This Row],[Договор]],\"; ост.\",Договоры_tb[[#This Row],[Остаток]],\")\")","v":"ООО \"Медресурс\" (дог. №12345; ост.100)"},"ООО \"Медресурс\"",12345,null,"уп.",200,100,null,null,null,"Бинт (нест., 5 м.х10 см.)"]
["?Лекарственные стредства","?",null,null,null,null,"",null,null,null,"ООО \"Восток\"","Маша, 952632588932","Кн-999",null,null,"Пробирка вакуумная Cerebrum (4 мл., 50 шт.)",{"$f":"CONCATENATE(Договоры_tb[[#This Row],[Поставщик22]],\" (дог. №\",Договоры_tb[[#This Row],[Договор]],\"; ост.\",Договоры_tb[[#This Row],[Остаток]],\")\")","v":"ООО \"Медресурс\" (дог. №12345; ост.10)"},"ООО \"Медресурс\"",12345,null,"уп.",20,10,null,null,null,"Бинт (стер. 10 м.х15 см.)"]
["?Пеленка одноразовая","шт.",1,370,null,null,"",null,null,null,"ООО \"Сибмедком\"","Петров, 895012345678 (9-00-18-00)",5996,null,null,"Пробирка вакуумная Cerebrum (5 мл., 50 шт.)",{"$f":"CONCATENATE(Договоры_tb[[#This Row],[Поставщик22]],\" (дог. №\",Договоры_tb[[#This Row],[Договор]],\"; ост.\",Договоры_tb[[#This Row],[Остаток]],\")\")","v":"ООО \"Медресурс\" (дог. №12345; ост.20)"},"ООО \"Медресурс\"",12345,null,"уп.",30,20,null,null,null,"Бинт (стер. 5 м.х10 см.)"]
["?Перевязочный метариал","?",null,null,null,null,"",null,null,null,null,null,null,null,null,"Пробирка вакуумная Cerebrum (8 мл., 50 шт.)",{"$f":"CONCATENATE(Договоры_tb[[#This Row],[Поставщик22]],\" (дог. №\",Договоры_tb[[#This Row],[Договор]],\"; ост.\",Договоры_tb[[#This Row],[Остаток]],\")\")","v":"ООО \"Медресурс\" (дог. №12345; ост.10)"},"ООО \"Медресурс\"",12345,null,"уп.",40,10,null,null,null,"Контейнер для сбора мочи (стер., 100 мл.)"]
["?Пробирка (с активатором свертывания)","шт.",1,1200,null,null,"",null,null,null,null,null,null,null,null,"Пробирка микровета с ЭДТА (0,2 мл., 100 шт.)",{"$f":"CONCATENATE(Договоры_tb[[#This Row],[Поставщик22]],\" (дог. №\",Договоры_tb[[#This Row],[Договор]],\"; ост.\",Договоры_tb[[#This Row],[Остаток]],\")\")","v":"ООО \"Медресурс\" (дог. №12345; ост.30)"},"ООО \"Медресурс\"",12345,null,"уп.",80,30,null,null,null,"Контейнер для утилизации отходов МК-01 (однораз., желтый, 3 л.)"]
["?Салфетка для обработки датчиков","шт.",1,214.02,null,null,"",null,null,null,{"$f":"CONCATENATE(K2,\" (дог. №\",M2,\")\")","v":"ООО \"Медресурс\" (дог. №12345)"},null,null,null,null,"Пробирка вакуумная Cerebrum (4 мл., 50 шт.)",{"$f":"CONCATENATE(Договоры_tb[[#This Row],[Поставщик22]],\" (дог. №\",Договоры_tb[[#This Row],[Договор]],\"; ост.\",Договоры_tb[[#This Row],[Остаток]],\")\")","v":"ООО \"Медресурс\" (дог. №4569; ост.20)"},"ООО \"Медресурс\"",4569,null,"уп.",50,20,null,null,null,"Контейнер для утилизации отходов МК-04 (многораз., бирюзовый, 7,5 л.)."]
["?Салфетка одноразовая","шт.",1,214.02,null,null,"",null,null,null,{"$f":"CONCATENATE(K3,\" (дог. №\",M3,\")\")","v":"ООО \"Сибмедком\" (дог. №4569)"},null,null,null,null,"Пакеты упаковочные для стерилизации СтериТ (150*250, 100 шт.)",{"$f":"CONCATENATE(Договоры_tb[[#This Row],[Поставщик22]],\" (дог. №\",Договоры_tb[[#This Row],[Договор]],\"; ост.\",Договоры_tb[[#This Row],[Остаток]],\")\")","v":"ООО \"Медресурс\" (дог. №4569; ост.0)"},"ООО \"Медресурс\"",4569,null,"уп.",50,0,null,null,null,"Контейнер для утилизации отходов МК-05 (многораз., желтый 50 л.)"]
["?Спирт","мл.",null,28,null,null,"",null,null,null,"ООО \"Медресурс\" (дог. №ПР-123)",null,null,null,null,"Пакеты упаковочные для стерилизации СтериТ (200*300, 100 шт.)",{"$f":"CONCATENATE(Договоры_tb[[#This Row],[Поставщик22]],\" (дог. №\",Договоры_tb[[#This Row],[Договор]],\"; ост.\",Договоры_tb[[#This Row],[Остаток]],\")\")","v":"ООО \"Медресурс\" (дог. №4569; ост.0)"},"ООО \"Медресурс\"",4569,null,"уп.",60,0,null,null,null,"Контрольная сыворотка на РМП (отрицательный) (1 мл., 10 шт.)"]
["?Спиртовая салфетка","шт.",1,1.35,null,null,"",null,null,null,"ООО \"Восток\" (дог. №Кн-999)",null,null,null,null,"Пакеты упаковочные для стерилизации СтериТ (200*330, 100 шт.)",{"$f":"CONCATENATE(Договоры_tb[[#This Row],[Поставщик22]],\" (дог. №\",Договоры_tb[[#This Row],[Договор]],\"; ост.\",Договоры_tb[[#This Row],[Остаток]],\")\")","v":"ООО \"Медресурс\" (дог. №4569; ост.10)"},"ООО \"Медресурс\"",4569,null,"уп.",180,10,null,null,null,"Контрольная сыворотка на РМП (положительная) (1 мл., 10 шт.)"]
["?Тампон для задней тампонады","?",null,null,null,null,"",null,null,null,"ООО \"Сибмедком\" (дог. №5996)",null,null,null,null,"Шприц (1 мл.)",{"$f":"CONCATENATE(Договоры_tb[[#This Row],[Поставщик22]],\" (дог. №\",Договоры_tb[[#This Row],[Договор]],\"; ост.\",Договоры_tb[[#This Row],[Остаток]],\")\")","v":"ООО \"Медресурс\" (дог. №4569; ост.50)"},"ООО \"Медресурс\"",4569,null,"шт.",120,50,null,null,null,"Контрольная сыворотка на РМП (слабоположительный) (1 мл., 10 шт.)"]
["?Термобумага для эхограмм","снимок",null,4.6399999999999997,null,null,"",null,null,null,null,null,null,null,null,"Шприц (10 мл.)",{"$f":"CONCATENATE(Договоры_tb[[#This Row],[Поставщик22]],\" (дог. №\",Договоры_tb[[#This Row],[Договор]],\"; ост.\",Договоры_tb[[#This Row],[Остаток]],\")\")","v":"ООО \"Сибмедком\" (дог. №4569; ост.70)"},"ООО \"Сибмедком\"",4569,null,"шт.",180,70,null,null,null,"Контрольный материал гематологических анализаторов (2х2,5 норм. ур., 1х2,5 ср. ур., 1х2,5 выс. ур.)"]
["?Турудна","?",null,null,null,null,"",null,null,null,null,null,null,null,null,"Шприц (2 мл. 2 иглы)",{"$f":"CONCATENATE(Договоры_tb[[#This Row],[Поставщик22]],\" (дог. №\",Договоры_tb[[#This Row],[Договор]],\"; ост.\",Договоры_tb[[#This Row],[Остаток]],\")\")","v":"ООО \"Сибмедком\" (дог. №4569; ост.20)"},"ООО \"Сибмедком\"",4569,null,"шт.",90,20,null,null,null,"Пакеты упаковочные для стерилизации СтериТ (150*250, 100 шт.)"]
["?Физраствор","?",null,null,null,null,"",null,null,null,null,null,null,null,null,"Шприц (2 мл.)",{"$f":"CONCATENATE(Договоры_tb[[#This Row],[Поставщик22]],\" (дог. №\",Договоры_tb[[#This Row],[Договор]],\"; ост.\",Договоры_tb[[#This Row],[Остаток]],\")\")","v":"ООО \"Сибмедком\" (дог. №4569; ост.60)"},"ООО \"Сибмедком\"",4569,null,"шт.",110,60,null,null,null,"Пакеты упаковочные для стерилизации СтериТ (200*300, 100 шт.)"]
["?Шовный материал","?",null,null,null,null,"",null,null,null,null,null,null,null,null,"Шприц (20 мл.)",{"$f":"CONCATENATE(Договоры_tb[[#This Row],[Поставщик22]],\" (дог. №\",Договоры_tb[[#This Row],[Договор]],\"; ост.\",Договоры_tb[[#This Row],[Остаток]],\")\")","v":"ООО \"Сибмедком\" (дог. №4569; ост.100)"},"ООО \"Сибмедком\"",4569,null,"шт.",150,100,null,null,null,"Пакеты упаковочные для стерилизации СтериТ (200*330, 100 шт.)"]
["Адреналин гидрохлорид (р-р, 0,1%, 1 мл.)","уп.",20,74.510000000000005,null,null,"",null,null,null,null,null,null,null,null,"Шприц (5 мл. 2 иглы)",{"$f":"CONCATENATE(Договоры_tb[[#This Row],[Поставщик22]],\" (дог. №\",Договоры_tb[[#This Row],[Договор]],\"; ост.\",Договоры_tb[[#This Row],[Остаток]],\")\")","v":"ООО \"Сибмедком\" (дог. №4569; ост.70)"},"ООО \"Сибмедком\"",4569,null,"шт.",130,70,null,null,null,"Пробирка Vacuette (8 мл., 50 шт.)"]
["Азитромицин (таб., 125 мг, №6)","уп.",10,206.67,null,null,"",null,null,null,null,null,null,null,null,"Шприц (5 мл.)",{"$f":"CONCATENATE(Договоры_tb[[#This Row],[Поставщик22]],\" (дог. №\",Договоры_tb[[#This Row],[Договор]],\"; ост.\",Договоры_tb[[#This Row],[Остаток]],\")\")","v":"ООО \"Сибмедком\" (дог. №4569; ост.50)"},"ООО \"Сибмедком\"",4569,null,"шт.",120,50,null,null,null,"Пробирка Vacuette (9 мл., 50 шт.)"]
["Азопирам","комп.",10,364.44,null,null,"",null,null,null,null,null,null,null,null,"Адреналин гидрохлорид (р-р, 0,1%, 1 мл.)",{"$f":"CONCATENATE(Договоры_tb[[#This Row],[Поставщик22]],\" (дог. №\",Договоры_tb[[#This Row],[Договор]],\"; ост.\",Договоры_tb[[#This Row],[Остаток]],\")\")","v":"ООО \"Медресурс\" (дог. №ПР-123; ост.30)"},"ООО \"Медресурс\"","ПР-123",null,"уп.",150,30,null,null,null,"Пробирка вакуумная Cerebrum (4 мл., 50 шт.)"]
["Азур-эозин по Романовскому (р-р, 0,76%, окраска 6000, 1 л.)","фл.",6,261.60000000000002,"мл.",1000,0.2616,null,null,null,null,null,null,null,null,"Бинт (нест., 10 м.х15 см.)",{"$f":"CONCATENATE(Договоры_tb[[#This Row],[Поставщик22]],\" (дог. №\",Договоры_tb[[#This Row],[Договор]],\"; ост.\",Договоры_tb[[#This Row],[Остаток]],\")\")","v":"ООО \"Медресурс\" (дог. №ПР-123; ост.60)"},"ООО \"Медресурс\"","ПР-123",null,"уп.",100,60,null,null,null,"Пробирка вакуумная Cerebrum (5 мл., 50 шт.)"]
["Актовегин (р-р, 5 мл., №5)","уп.",2,675,null,null,"",null,null,null,null,null,null,null,null,"Бинт (нест., 5 м.х10 см.)",{"$f":"CONCATENATE(Договоры_tb[[#This Row],[Поставщик22]],\" (дог. №\",Договоры_tb[[#This Row],[Договор]],\"; ост.\",Договоры_tb[[#This Row],[Остаток]],\")\")","v":"ООО \"Медресурс\" (дог. №ПР-123; ост.60)"},"ООО \"Медресурс\"","ПР-123",null,"уп.",120,60,null,null,null,"Пробирка вакуумная Cerebrum (8 мл., 50 шт.)"]
["Аллерген из библиотечной пыли для диагностики","комп.",2,4216.63,"комп.",1,4216.63,null,null,null,null,null,null,null,null,"Бинт (стер. 10 м.х15 см.)",{"$f":"CONCATENATE(Договоры_tb[[#This Row],[Поставщик22]],\" (дог. №\",Договоры_tb[[#This Row],[Договор]],\"; ост.\",Договоры_tb[[#This Row],[Остаток]],\")\")","v":"ООО \"Медресурс\" (дог. №ПР-123; ост.50)"},"ООО \"Медресурс\"","ПР-123",null,"уп.",90,50,null,null,null,"Пробирка микровета с ЭДТА (0,2 мл., 100 шт.)"]
["Аллерген из дафнии для диагностики","комп.",1,4216.63,"комп.",1,4216.63,null,null,null,null,null,null,null,null,"Бинт (стер. 5 м.х10 см.)",{"$f":"CONCATENATE(Договоры_tb[[#This Row],[Поставщик22]],\" (дог. №\",Договоры_tb[[#This Row],[Договор]],\"; ост.\",Договоры_tb[[#This Row],[Остаток]],\")\")","v":"ООО \"Медресурс\" (дог. №ПР-123; ост.50)"},"ООО \"Медресурс\"","ПР-123",null,"уп.",100,50,null,null,null,"Шприц (1 мл.)"]
["Аллерген из домашней пыли для диагностики","комп.",2,6644.33,"комп.",1,6644.33,null,null,null,null,null,null,null,null,"Контейнер для сбора мочи (стер., 100 мл.)",{"$f":"CONCATENATE(Договоры_tb[[#This Row],[Поставщик22]],\" (дог. №\",Договоры_tb[[#This Row],[Договор]],\"; ост.\",Договоры_tb[[#This Row],[Остаток]],\")\")","v":"ООО \"Восток\" (дог. №Кн-999; ост.50)"},"ООО \"Восток\"","Кн-999",null,"шт.",140,50,null,null,null,"Шприц (10 мл.)"]
["Аллерген из клеща Dermatophagoides pteronissinus для диагностики и лечения","комп.",2,6644.33,"комп.",1,6644.33,null,null,null,null,null,null,null,null,"Адреналин гидрохлорид (р-р, 0,1%, 1 мл.)",{"$f":"CONCATENATE(Договоры_tb[[#This Row],[Поставщик22]],\" (дог. №\",Договоры_tb[[#This Row],[Договор]],\"; ост.\",Договоры_tb[[#This Row],[Остаток]],\")\")","v":"ООО \"Восток\" (дог. №Кн-999; ост.40)"},"ООО \"Восток\"","Кн-999",null,"шт.",110,40,null,null,null,"Шприц (2 мл. 2 иглы)"]
["Аллерген из пера подушек для диагностики и лечения","комп.",2,6644.33,"комп.",1,6644.33,null,null,null,null,null,null,null,null,"Контейнер для утилизации отходов МК-01 (однораз., желтый, 3 л.)",{"$f":"CONCATENATE(Договоры_tb[[#This Row],[Поставщик22]],\" (дог. №\",Договоры_tb[[#This Row],[Договор]],\"; ост.\",Договоры_tb[[#This Row],[Остаток]],\")\")","v":"ООО \"Восток\" (дог. №Кн-999; ост.30)"},"ООО \"Восток\"","Кн-999",null,"шт.",200,30,null,null,null,"Шприц (2 мл.)"]
["Аллерген из перхоти лошади для диагностики","комп.",2,4216.63,"комп.",1,4216.63,null,null,null,null,null,null,null,null,"Контейнер для утилизации отходов МК-04 (многораз., бирюзовый, 7,5 л.).",{"$f":"CONCATENATE(Договоры_tb[[#This Row],[Поставщик22]],\" (дог. №\",Договоры_tb[[#This Row],[Договор]],\"; ост.\",Договоры_tb[[#This Row],[Остаток]],\")\")","v":"ООО \"Восток\" (дог. №Кн-999; ост.20)"},"ООО \"Восток\"","Кн-999",null,"шт.",60,20,null,null,null,"Шприц (20 мл.)"]
["Аллерген из пыльцы березы висячей для диагностики и лечения","комп.",2,3932.61,"комп.",1,3932.61,null,null,null,null,null,null,null,null,"Контейнер для утилизации отходов МК-05 (многораз., желтый 50 л.)",{"$f":"CONCATENATE(Договоры_tb[[#This Row],[Поставщик22]],\" (дог. №\",Договоры_tb[[#This Row],[Договор]],\"; ост.\",Договоры_tb[[#This Row],[Остаток]],\")\")","v":"ООО \"Восток\" (дог. №Кн-999; ост.20)"},"ООО \"Восток\"","Кн-999",null,"шт.",80,20,null,null,null,"Шприц (5 мл. 2 иглы)"]
["Аллерген из пыльцы клена ясенелистного для диагностики и лечения","комп.",1,3932.61,"комп.",1,3932.61,null,null,null,null,null,null,null,null,"Контрольная сыворотка на РМП (отрицательный) (1 мл., 10 шт.)",{"$f":"CONCATENATE(Договоры_tb[[#This Row],[Поставщик22]],\" (дог. №\",Договоры_tb[[#This Row],[Договор]],\"; ост.\",Договоры_tb[[#This Row],[Остаток]],\")\")","v":"ООО \"Восток\" (дог. №Кн-999; ост.50)"},"ООО \"Восток\"","Кн-999",null,"уп.",200,50,null,null,null,"Шприц (5 мл.)"]
["Аллерген из пыльцы лебеды татарской для диагностики и лечения","комп.",2,3932.61,"комп.",1,3932.61,null,null,null,null,null,null,null,null,"Контрольная сыворотка на РМП (положительная) (1 мл., 10 шт.)",{"$f":"CONCATENATE(Договоры_tb[[#This Row],[Поставщик22]],\" (дог. №\",Договоры_tb[[#This Row],[Договор]],\"; ост.\",Договоры_tb[[#This Row],[Остаток]],\")\")","v":"ООО \"Восток\" (дог. №Кн-999; ост.0)"},"ООО \"Восток\"","Кн-999",null,"уп.",60,0]
["Аллерген из пыльцы луговых трав для диагностики и лечения","комп.",2,4424.42,"комп.",1,4424.42,null,null,null,null,null,null,null,null,"Контрольная сыворотка на РМП (слабоположительный) (1 мл., 10 шт.)",{"$f":"CONCATENATE(Договоры_tb[[#This Row],[Поставщик22]],\" (дог. №\",Договоры_tb[[#This Row],[Договор]],\"; ост.\",Договоры_tb[[#This Row],[Остаток]],\")\")","v":"ООО \"Восток\" (дог. №Кн-999; ост.20)"},"ООО \"Восток\"","Кн-999",null,"уп.",90,20]
["Аллерген из пыльцы одуванчика лекарственного для диагностики и лечения","комп.",1,3932.61,"комп.",1,3932.61,null,null,null,null,null,null,null,null,"Адреналин гидрохлорид (р-р, 0,1%, 1 мл.)",{"$f":"CONCATENATE(Договоры_tb[[#This Row],[Поставщик22]],\" (дог. №\",Договоры_tb[[#This Row],[Договор]],\"; ост.\",Договоры_tb[[#This Row],[Остаток]],\")\")","v":"ООО \"Сибмедком\" (дог. №5996; ост.40)"},"ООО \"Сибмедком\"",5996,null,"уп.",70,40]
["Аллерген из пыльцы полыни горькой для диагностики и лечения","комп.",2,3932.61,"комп.",1,3932.61,null,null,null,null,null,null,null,null,"Пакеты упаковочные для стерилизации СтериТ (200*300, 100 шт.)",{"$f":"CONCATENATE(Договоры_tb[[#This Row],[Поставщик22]],\" (дог. №\",Договоры_tb[[#This Row],[Договор]],\"; ост.\",Договоры_tb[[#This Row],[Остаток]],\")\")","v":"ООО \"Сибмедком\" (дог. №5996; ост.40)"},"ООО \"Сибмедком\"",5996,null,"уп.",100,40]
["Аллерген эпидермальный из шерсти кошки для диагностики","комп.",2,4216.63,"комп.",1,4216.63,null,null,null,null,null,null,null,null,"Пакеты упаковочные для стерилизации СтериТ (200*330, 100 шт.)",{"$f":"CONCATENATE(Договоры_tb[[#This Row],[Поставщик22]],\" (дог. №\",Договоры_tb[[#This Row],[Договор]],\"; ост.\",Договоры_tb[[#This Row],[Остаток]],\")\")","v":"ООО \"Сибмедком\" (дог. №5996; ост.110)"},"ООО \"Сибмедком\"",5996,null,"уп.",200,110]
["Аллерген эпидермальный из шерсти собаки для диагностики","комп.",2,4216.63,"комп.",1,4216.63]
["Амброксол (р-р для приема внутрь и ингаляций, 7,5 мг./1 мл., 100 мл.)","фл.",5,171.13,null,null,""]
["Аммиака раствор (амп., 10%, 40 мл.)","фл.",50,21,null,null,""]
["Баллон Политцера с оливами","набор",1,3422.4,null,null,""]
["Берет медицинский (однораз.)","шт.",1,11,"шт.",1,11]
["Беродуал (р-р для ингаляций флакон/кап. по 20 мл.)","фл.",5,260.13,null,null,""]
["Бинт (нест., 10 м.х15 см.)","шт.",1,21.36,"шт.",1,21.36]
["Бинт (нест., 5 м.х10 см.)","шт.",1,6.13,"шт.",1,6.13]
["Бинт (стер. 10 м.х15 см.)","шт.",1,23.68,"шт.",1,23.68]
["Бинт (стер. 5 м.х10 см.)","шт.",1,7.44,"шт.",1,7.44]
["Бонадерм - крем для рук восстанавливающий (100 мл.)","шт.",1,99.12,"мл.",100,0.99120000000000008]
["Бонадерм-гель (100 мл.)","шт.",1,178.18,"мл.",100,1.7818000000000001]
["Бонадерм-ИП салфетки (100 шт.)","уп.",150,324.5,"шт.",100,3.2450000000000001]
["Бонадерм-Ультра (100 мл., с распыляющей насадкой)","шт.",1,149.86000000000001,"мл.",100,1.4986000000000002]
["Бонадерм-Ультра (50 мл., с распыляющей насадкой)","шт.",1,118,"мл.",50,2.36]
["Бриллиантовый зеленый (амп., 1%, 10 мл.)","шт.",1,9.5,"мл.",10,0.95]
["Бромгексин (таб., 4 мг., № 50)","уп.",50,70.77,null,null,""]
["Бромгексин (таб., 8 мг., № 20)","уп.",20,9.2799999999999994,null,null,""]
["Бумага для спирографа Микролаб viasys (110*12*12)","уп.",5,72.34,null,null,""]
["Бумага УЗИ сканер (20 м.)","рул.",2,1006.3,"м.",20,50.314999999999998]
["Бумага ЭКГ (110 мм. х 30 мм.)","рул.",60,108,null,null,""]
["Бумага ЭКГ (80 мм. х 70 мм., 300 л.)","пач.",50,74.61,null,null,""]
["Буфер для окраски мазков (рН от 6,8 до 7,2, 10 мл.)","фл.",6,46.9,null,null,""]
["Вазелиновое масло (100 мл.)","шт.",1,52.8,"мл.",100,0.52800000000000002]
["Валериана (20 мг., №50)","уп.",null,null,null,null,""]
["Вата (нест. 100 гр.)","уп.",70,21.1,null,null,""]
["Вата (нест. 250 гр.)","уп.",60,46.92,null,null,""]
["Вата (стер. 100 гр.)","уп.",5,28.54,null,null,""]
["Ватные палочки, ушные (100 шт.)","уп.",5000,0.14000000000000001,"шт.",100,1.4000000000000002E-3]
["Ватные шарики (стер.)","уп.",null,null,null,null,""]
["Вентолин Небулы (амп., для ингаляций 1 мг/мл., 2,5 мл. № 20)","уп.",3,265.13,"шт.",20,13.256499999999999]
["Винпоцетин (таб., 5 мг., №10)","уп.",70,54.6,null,null,""]
["Винпоцетин-АКОС (амп., 2 мл., №10)","уп.",20,57.24,null,null,""]
["Вода дистиллированная (амп., 50 мл., №10)","уп.",60,30.25,null,null,""]
["Воронка ушная (1-4 мм.)","шт.",1,200,"шт.",1,200]
["Воронка ушная (2-5 мм.)","шт.",1,200,"шт.",1,200]
["Гель для УЗИ (1 л.)","фл.",10,169.58,null,1000,0.16958000000000001]
["Гель для УЗИ (5 л.)","кан.",1,633.66,null,null,""]
["Гипотиазид (таб., 25 мг., №20)","уп.",null,null,null,null,""]
["Гистамин дигидрохлорид 0,1% раствор (аллерген), шт",null,null,1100,null,null,""]
["Глицин (таб., 100 мг., №50)","уп.",75,31,null,null,""]
["Губка гемостатическая коллагеновая (90х90 мм., №1)","уп.",150,95,null,null,""]
["Дез.средство \"Литосептин\", 1л, л",null,null,1206,null,null,""]
["Дез.средство \"Литосептин\", 5л, л",null,null,1120.7,null,null,""]
["Дез.средство \"ОДС-14\", 1л, л",null,null,936.86,null,null,""]
["Дезинфицирующее средство \"Бонацид\", л",null,null,1237.82,null,null,""]
["Дексаметазон (сусп., 5 мл., №1)","уп.",3,33.43,null,null,""]
["Диаскинтест, доз.",null,null,53.69,null,null,""]
["Диклофенак (75 мг., №10)","уп.",null,null,null,null,""]
["Димексид (100 мл.)","уп.",4,46.3,null,null,""]
["Диспенсер для листовых полотенец","шт.",1,908.6,"шт.",1,908.6]
["Дозатор автоматический BIOHIT (100-1000 мкл.)","шт.",1,6800,"шт.",1,6800]
["Дозатор автоматический BIOHIT (500-5000 мкл.)","шт.",1,10744,"шт.",1,10744]
["Дозатор жидк. дез. средств локтевой","шт.",1,1843.75,"шт.",1,1843.75]
["Доксициклин","уп.",null,15.78,null,null,""]
["Дюфастон (таб., 10 мг., №20)","уп.",null,null,null,null,""]
["Ёмкость для сбора использованного медицинского материала класса Б","шт.",1,44.32,"шт.",1,44.32]
["Жгут венозный детский","шт.",1,382,"шт.",1,382]
["Жгут многоразовый автоматический Vacuette","шт.",1,617,"шт.",1,617]
["Жгут резиновый кровостанавливающий (1,5 м.)","шт.",1,27,"шт.",1,27]
["Зажим типа Москит изогнутый (140 мм.)","шт.",1,384,"шт.",1,384]
["Зажим типа Москит прямой (150 мм.)","шт.",1,346,"шт.",1,346]
["Зеркало гинекологическое \"Куско\"","шт.",1,null,"шт.",1,0]
["Зеркало носовое (№30)","шт.",1,603,"шт.",1,603]
["Зеркало носовое (№35)","шт.",1,603,"шт.",1,603]
["Зеркало носовое (№40)","шт.",1,603,"шт.",1,603]
["Зонд аттиковый (140 мм.)","шт.",1,430,"шт.",1,430]
["Зонд урогенитальный (стер., однораз.)","шт.",1,5.42,"шт.",1,5.42]
["Игла двусторонняя Vacuette ( 0,8х38 мм (21Gх1 ½), 100 шт.)","уп.",80,965,"шт.",100,9.65]
["Игла зеленая для пробирок Vacuette (100 шт.)","уп.",80,965,"шт.",100,9.65]
["Иглодержатель","шт.",1,430,"шт.",1,430]
["Инструмент универсальный сенсорный","шт.",1,1205,"шт.",1,1205]
["Кавинтон (амп., 10 мг., 2,0, №10)","уп.",null,null,null,null,""]
["Кавинтон (таб. 5 мг., №50)","уп.",null,null,null,null,""]
["Калибратор (10 ммоль/л, 4 шт.)","уп.",2,450,"шт.",4,112.5]
["Кальция хлорид (10%, 5,0 №10)","уп.",null,null,null,null,""]
["Камера Горяева","шт.",1,584.53,"шт.",1,584.53]
["Канюля для промывания аттика","шт.",1,298,"шт.",1,298]
["Капилляр Панченкова ","шт.",1,9.3000000000000007,"шт.",1,9.3000000000000007]
["Катетер урологический (женский, стер.)","шт.",1,6.88,"шт.",1,6.88]
["Кислородная подушка (25 л.)","шт.",1,1123,"шт.",1,1123]
["Кислота уксусная (р-р)","уп.",null,54,null,null,""]
["Колларгол (р-р)","уп.",null,98,null,null,""]
["Комплект противоэпидемический","комп.",1,1787.52,null,null,""]
["Контейнер для сбора кала (стер., 40 мл.)","шт.",1,4.12,"шт.",1,4.12]
["Контейнер для сбора мочи (стер., 100 мл.)","шт.",1,4.74,"шт.",1,4.74]
["Контейнер для утилизации отходов МК-01 (однораз., желтый, 0,25 л.)","шт.",1,20,"шт.",1,20]
["Контейнер для утилизации отходов МК-01 (однораз., желтый, 3 л.)","шт.",1,60,"шт.",1,60]
["Контейнер для утилизации отходов МК-04 (многораз., бирюзовый, 7,5 л.).","шт.",1,400,"шт.",1,400]
["Контейнер для утилизации отходов МК-05 (многораз., желтый 50 л.)","шт.",1,2500,"шт.",1,2500]
["Контрольная сыворотка на РМП (отрицательный) (1 мл., 10 шт.)","уп.",1,3150,"шт.",10,315]
["Контрольная сыворотка на РМП (положительная) (1 мл., 10 шт.)","уп.",1,3600,"шт.",10,360]
["Контрольная сыворотка на РМП (слабоположительный) (1 мл., 10 шт.)","уп.",1,3000,"шт.",10,300]
["Контрольный материал гематологических анализаторов (2х2,5 норм. ур., 1х2,5 ср. ур., 1х2,5 выс. ур.)","набор",3,7667.17,null,null,""]
["Корвалол ","уп.",null,null,null,null,""]
["Костюм хирургический медицинский","шт.",1,731.88,"шт.",1,731.88]
["Краситель для окраски ретикулоцитов (1%, 50 мл., 2000 опред.)","фл.",2,31,null,null,""]
["Крафт-пакет (100 шт.)","уп.",2,426.82,null,null,""]
["Крючок Воячека","шт.",1,520,"шт.",1,520]
["Ланцет (скарификатор) (однораз.,  автомат., 200 шт.)","?",20,1680,"шт.",200,8.4]
["Ланцет (скарификатор) (однораз., 100 шт.)","?",55,2616,"шт.",100,26.16]
["Лейкопластырь (бактер. 2х6 см.)","шт.",1,2.2999999999999998,"шт.",1,2.2999999999999998]
["Лейкопластырь (катушка, 2х500 см.)","шт.",1,25.64,"шт.",1,25.64]
["Лейкопластырь (фикс. 6 рул.)","уп.",1,552.66,null,null,""]
["Лента диаграммная из термобумаги","шт.",1,39.200000000000003,"шт.",1,39.200000000000003]
["Лидокаин (амп., 2%, №10)","уп.",5,19.61,"шт.",10,1.9609999999999999]
["Лидокаин (спрей, 10%, 38 гр.)","уп.",3,362,null,null,""]
["Линкомицин (амп., 1 мл., №10)","уп.",4,73,"шт.",10,7.3]
["Ложка Фолькмана","шт.",1,4.4000000000000004,"шт.",1,4.4000000000000004]
["Лоток н/ж ЛМП 200","шт.",1,125,"шт.",1,125]
["Люгоря (р-р)","уп.",null,80,null,null,""]
["Мазь гидрокортизоновая (0,5%, 5 мл.)","уп.",4,46.58,"мл.",5,9.3159999999999989]
["Мазь левомеколь (40 гр.)","уп.",7,118.8,"гр.",40,2.9699999999999998]
["Мазь тетрациклиновая (1%, 5 гр.)","уп.",2,56.48,"гр.",5,11.295999999999999]
["Марля (нестр.)","м.",150,11.03,null,null,""]
["Маска Лепесток 200","шт.",1,25.25,"шт.",1,25.25]
["Маска медицинская трёхслойная, одноразовая (нестер., 50 шт.)","уп.",100,175,"шт.",50,3.5]
["Масло иммерсионное (100 мл.)","уп.",6,109,"мл.",100,1.0900000000000001]
["МДГР (5 л.)","шт.",1,1510.4,"мл.",5000,0.30208000000000002]
["Мексидол (амп., 5%, 50 мг.- 2 мл., №10)","уп.",50,397,"шт.",10,39.700000000000003]
["Мексидол (таб., 125 мг., №50)","уп.",20,384,null,null,""]
["Мембрана глюкозооксидазная (5 шт.)","уп.",5,3500,"шт.",5,700]
["Метронидазол (таб., 0,2 мг., №10)","уп.",null,null,null,null,""]
["Мешок АМБУ детский","шт.",1,3944,"шт.",1,3944]
["Микропробирка (200 мкл., антикоагул., 100 шт.)","уп.",150,1133.5999999999999,"шт.",100,11.335999999999999]
["Микропробирки типа Эппендорф (1,5 мл., 500 шт.)","уп.",6,1300,"шт.",500,2.6]
["Мультипакет для паровой стерилизации (1000 шт.)","уп.",2,1300,"шт.",1000,1.3]
["Мундштук картонный одноразовый","шт.",1,0.8,"шт.",1,0.8]
["Набор реагентов для исследования кала на гельминты, метод Като (500 опред., 500 шт.)","набор",2,970.1,null,null,""]
["Набор реагентов для клинического анализа кала","набор",2,1896.6,null,null,""]
["Набор реагентов для определения C-реактивного белка (100 опред.)","набор",6,700,null,null,""]
["Набор реагентов для определения HDL холестерина (2х50 мл.)","набор",3,1000,null,null,""]
["Набор реагентов для определения аланинаминотрансферазы (5х48 мл., 1х60 мл.)","набор",6,1000,null,null,""]
["Набор реагентов для определения альбумина (1х250 мл., 1х5 мл.)","набор",1,750,null,null,""]
["Набор реагентов для определения альфа-амилазы (120 мл.)","набор",1,3850,null,null,""]
["Набор реагентов для определения аспартатаминотрансферазы (5х48 мл., 1х60 мл.)","набор",6,1000,null,null,""]
["Набор реагентов для определения железа (2х100 мл, 1х5 мл.)","набор",2,4350,null,null,""]
["Набор реагентов для определения калия (2х50 мл.)","набор",2,3100,null,null,""]
["Набор реагентов для определения кальция (2х50 мл.)","набор",2,620,null,null,""]
["Набор реагентов для определения креатинина (100 мл.)","набор",2,550,null,null,""]
["Набор реагентов для определения магния (50 мл.)","набор",2,1200,null,null,""]
["Набор реагентов для определения мочевины (50 мл.)","набор",4,620,null,null,""]
["Набор реагентов для определения общего белка (1х1 л., 1х5 мл.)","набор",1,1600,null,null,""]
["Набор реагентов для определения общего и прямого билирубина (508 мл.)","набор",3,800,null,null,""]
["Набор реагентов для определения общего холестерина (2х100 мл.)","набор",6,1200,null,null,""]
["Набор реагентов для определения содержания антистрептолизина О (12,5 мл., 100 опред.)","набор",6,700,null,null,""]
["Набор реагентов для определения содержания ревматоидного фактора (100 опред.)","набор",6,550,null,null,""]
["Набор реагентов для определения триглицеридов (2х50 мл.)","набор",3,1000,null,null,""]
["Набор реагентов для определения фосфора (2х100 мл.)","набор",1,680,null,null,""]
["Набор реагентов для определения хлоридов (2х100 мл.)","набор",1,630,null,null,""]
["Набор реагентов для определения щелочной фосфатазы (250 мл.)","набор",1,1350,null,null,""]
["Наконечники для дозаторов 100-1000 мкл (480 шт.)","уп.",6,750,"шт.",480,1.5625]
["Наконечники для дозаторов 20-200 мкл (1000 шт.)","набор",6,1500,null,null,""]
["Напальчник","шт.",1,0.66,"шт.",1,0.66]
["Настойка йода (амп., 5%, 10 мл.)","уп.",140,13,"мл.",10,1.3]
["Натрия тиосульфат (30%, 10 мл., №10)","уп.",null,null,null,null,""]
["Натрия хлорид (амп., 0,9%, 10 мл., №10)","уп.",40,38.729999999999997,null,null,""]
["Натрия хлорид (амп., 0,9%, 5 мл., №10)","уп.",30,26.51,null,null,""]
["Натрия хлорид (стер., 0,9%, 250 мл.)","фл.",125,25.05,null,null,""]
["Натрия цитрат (р-р)","уп.",null,98,null,null,""]
["Никотиновая кислота (амп., 1%, 1 мл., №10)","фл.",null,null,null,null,""]
["Новокаин (амп., 0,5%, 5 мл., №10)","уп.",3,19.11,null,null,""]
["Новокаин (амп., 2%, 2 мл., №10)","уп.",4,16.7,null,null,""]
["Омепразол (капс., 20 мг., №30)","уп.",1,41.83,null,null,""]
["Омепразол (капс., 20 мг., №50)","уп.",null,null,null,null,""]
["Очищающая жидкость (800 промывок, 4 шт.)","уп.",2,570,"шт.",800,0.71250000000000002]
["Очищающий раствор (1 л.)","фл.",5,1660.31,null,null,""]
["Очки защитные","шт.",1,40.92,"шт.",1,40.92]
["Пакет д/стер. Самоклеющийся","шт.",1,9.43,"шт.",1,9.43]
["Пакет для сбора медицинских отходов класса Б (30 л., 100 шт.)","уп.",30,254,"шт.",100,2.54]
["Пакеты упаковочные для стерилизации СтериТ (100*200, 100 шт.)","уп.",2,700,"шт.",100,7]
["Пакеты упаковочные для стерилизации СтериТ (150*250, 100 шт.)","уп.",2,900,"шт.",100,9]
["Пакеты упаковочные для стерилизации СтериТ (200*300, 100 шт.)","уп.",1,1000,"шт.",100,10]
["Пакеты упаковочные для стерилизации СтериТ (200*330, 100 шт.)","уп.",2,1200,"шт.",100,12]
["Палочка стеклянная","шт.",1,1.6,"шт.",1,1.6]
["Пантогам (таб., 250 мг., №50)","уп.",40,390,null,null,""]
["Папаверин (амп., 2%, 2мл №10)","уп.",110,33,"шт.",10,3.3]
["Парацентезная игла","шт.",1,522,"шт.",1,522]
["Парацетамол (таб., 500 мг., №10)","уп.",400,5.3,null,null,""]
["Парацетамол детский (сусп., 100 гр.)","уп.",25,53,"гр.",100,0.53]
["Перекись водорода (3%, 100 мл.)","фл.",170,11.47,null,null,""]
["Перекись водорода (6%, 100 мл.)","фл.",null,51,null,null,""]
["Перчатки (нестер, латекс.)","пара",40000,4.04,null,null,""]
["Перчатки (нестер, нитрил.)","пара",500,3.99,null,null,""]
["Перчатки (стер, латекс.)","пара",350,8.7899999999999991,null,null,""]
["Петля микробиологическая разная стерильная","шт.",1,3.38,"шт.",1,3.38]
["Пинцет (многораз.)","шт.",1,6.4,"шт.",1,6.4]
["Пинцет (однораз., стер.)","шт.",1,6.78,"шт.",1,6.78]
["Пирацетам (амп., 20%, 5 мл., №10)","уп.",65,35,null,null,""]
["Пирацетам (капсулы 0,4 г. №60)","шт.",1,1.72,"шт.",1,1.72]
["Пирацетам (таб., 400 мг., №60)","уп.",34,143,null,null,""]
["Пиридоксина гидрохлорид (амп., 5%, 1 мл., №10)","уп.",70,26.6,null,null,""]
["Повязка медицинская (стер., 10х20 см., 25 шт.)","уп.",1,351,"шт.",25,14.04]
["Повязка медицинская (стер., 10х20 см., 50 шт.)","уп.",1,1073,"шт.",50,21.46]
["Повязка медицинская (стер., 9х10 см., 30 шт.)","уп.",1,211.8,"шт.",30,7.0600000000000005]
["Повязка медицинская (стер., 9х10 см., 50 шт.)","уп.",1,587,"шт.",50,11.74]
["Полотенце бумажное (200 шт.)","уп.",200,192.43,"шт.",200,0.96215000000000006]
["Предметное стекло (50 шт.)","уп.",10,163.5,"шт.",50,3.27]
["Преднизолон (амп., 30мг/мл, 1 мл., №3)","уп.",58,38.6,"шт.",3,12.866666666666667]
["Пробирка  вакуумная Cerebrum (6 мл., 100 шт.)","уп.",20000,4.8,"шт.",100,4.8000000000000001E-2]
["Пробирка Vacuette (4 мл., 50 шт.)","уп.",5500,10.92,"шт.",50,0.21840000000000001]
["Пробирка Vacuette (8 мл., 50 шт.)","уп.",1200,12.74,"шт.",50,0.25480000000000003]
["Пробирка Vacuette (9 мл., 50 шт.)","уп.",1000,21.1,"шт.",50,0.42200000000000004]
["Пробирка вакуумная Cerebrum (4 мл., 50 шт.)","уп.",220,240,"шт.",50,4.8]
["Пробирка вакуумная Cerebrum (5 мл., 50 шт.)","уп.",2,375,"шт.",50,7.5]
["Пробирка вакуумная Cerebrum (8 мл., 50 шт.)","уп.",20,1020,"шт.",50,20.399999999999999]
["Пробирка микровета с ЭДТА (0,2 мл., 100 шт.)","уп.",150,1133.5999999999999,"шт.",100,11.335999999999999]
["Пробирка с ватным тампоном","шт.",1,6.1,"шт.",1,6.1]
["Пробирка с ватным тампоном стерильная (без наполнителя)","шт.",1,9.08,"шт.",1,9.08]
["Пробирка стеклянная (10 мл.)","шт.",1,4.5,"шт.",1,4.5]
["Пробирки ВАКУТЕЙНЕР","?",null,null,null,null,""]
["Пробирки микробиологические одноразовые с завинчивающейся крышкой (стер., 10 мл.)","шт.",1,11.7,"шт.",1,11.7]
["Проклин антисептик (1 л. с триггером)","шт.",1,401.2,"шт.",1000,0.4012]
["Промывающий раствор (1 л.)","фл.",5,218,null,null,""]
["Промывающий раствор (5 л.)","фл.",6,3375.02,null,null,""]
["Простыня (нест, 70х80 см., 200 шт.)","рул.",45,740.8,"шт.",200,3.7039999999999997]
["Пульмикорт (суспензия для ингаляций 0,5 мг/мл, 2 мл., №20)","уп.",50,921.67,"шт.",20,46.083500000000001]
["Реагент буферная смесь (10 гр.)","уп.",2,5000,"гр.",10,500]
["Реагент изотонический разбавитель (20 л.)","уп.",33,3187.8,"мл.",20000,0.15939]
["Реагент лизирующий раствор (1 л.)","фл.",15,3039.16,null,null,""]
["Реактив Самсона (100 опред.)","набор",2,100,null,null,""]
["Рентгеновская пленка Carestream Health Dry View 5700 Laser Imager (20х25 см., 125 л.)","уп.",10,6423.4,"шт.",125,51.3872]
["Рентгеновская пленка Carestream Health Dry View 5700 Laser Imager (35х43 см., 125 л.)","уп.",6,16429.5,"шт.",125,131.43600000000001]
["Рибоксин (таб., 200 мг., №50)","уп.",5,47,null,null,""]
["Роторасширитель с фиксатором для детей","шт.",1,2180,"шт.",1,2180]
["Салфетка (спанлейс, 30х40, 100 шт.)","уп.",140,214.02,"шт.",100,2.1402000000000001]
["Салфетка (стер., 110х85 мм., 70%)","шт.",1,1.38,"шт.",1,1.38]
["Салфетка (стер., 14х16 см., №10)","уп.",200,9.01,"шт.",10,0.90100000000000002]
["Салфетка (стер., 5х5 см., №10)","уп.",700,18.39,"шт.",10,1.839]
["Салфетка (стер., 60х100 мм., 70%)","шт.",1,1.35,"шт.",1,1.35]
["Сальбутамол (100 мкг/доза, 90 доз, 12 мл. аэрозоль)","уп.",123,103.4,"доза",90,1.1488888888888888]
["Сбор успокоительный (50,0 г.)","?",null,null,null,null,""]
["Септолит-Форте (1 л.)","шт.",1,2017.8,"шт.",1000,2.0177999999999998]
["Скальпель (однораз., хир., стер.)","шт.",1,12,"шт.",1,12]
["Смесь для очистки и обезжиривания стекол (1 л.)","фл.",10,122,null,null,""]
["Сорбифер-Дурулес (таб., 320 мг., №30)","уп.",null,null,null,null,""]
["Софрадекс (капли, 5 мл.)","фл.",1,308.60000000000002,"мл.",5,61.720000000000006]
["Спирт этиловый (70%, 100 мл.)","фл.",240,19.170000000000002,null,null,""]
["Спирт этиловый (95%, 100 мл.)","фл.",50,27.68,null,null,""]
["Средство Эвойлан-Универсал с антимикробным эффектом (5 л.)","шт.",1,1438.42,"шт.",5000,0.287684]
["Стекло покровное (1000 шт.)","уп.",10,320,"шт.",1000,0.32]
["Сульфацил натрий (20%, 1,5 мл., №2)","уп.",110,39,"шт.",2,19.5]
["Сумка холодильник с электронным термоиндикатором (25 л.)","шт.",1,7975,"шт.",1,7975]
["Супрастин (амп., 2%, 1,0 мл.)","уп.",null,null,null,null,""]
["Супрастин (таб., 25 мг., №20)","уп.",null,null,null,null,""]
["Тампон-зонд (100 шт.)","уп.",5,1104,"шт.",100,11.04]
["Термобумага (57х30х12 мм.)","шт.",1,39.200000000000003,"шт.",null,""]
["Термобумага для биохимического анализатора (шир. 80 мм.)","рул.",20,90,null,null,""]
["Тест-полоски Multistix 10SG (100 шт.)","уп.",150,1437.7,"шт.",100,14.377000000000001]
["Тиамин-хлорид  (амп., 5%, 1,0 мл., №10)","уп.",null,null,"шт.",10,0]
["Токоферола ацетат (50% 100 мг., №10)","уп.",null,null,null,null,""]
["Тропикамид (капли 0,5%, 10 мл.)","уп.",null,61.78,null,null,""]
["Тропикамид (капли 1%, 10 мл.)","уп.",null,102.85,null,null,""]
["Фамотидин (таб., 20 мг., №20)","уп.",2,22.62,null,null,""]
["Фартук медицинский одноразовый","шт.",1,11.4,"шт.",1,11.4]
["Фенибут (таб., 250 мг., №20)","уп.",3,107,null,null,""]
["Фиксатор-краситель по Май-Грюнвальду (0,2%, фикс. 3000, окраска 2000, 1 л.)","фл.",6,457.8,null,null,""]
["Фильтры обеззоленные «Белая лента» (диам. 5,5 см., 100 шт.)","уп.",2,1700,null,null,""]
["Фурацилин (р-р)","уп.",null,78,null,null,""]
["Халат (хир., нест.)","шт.",1,59.92,"шт.",1,59.92]
["Халат (хир., стер.)","шт.",1,59.79,"шт.",1,59.79]
["Халат детский с капюшоном для спелеолечения","шт.",1,3.1,"шт.",1,3.1]
["Хлоргексидин (амп., 0,05%, 100 мл.)","уп.",100,12.1,null,null,""]
["Хлоропирамин (амп., 20 мг., 1 мл., №5)","уп.",45,102,null,null,""]
["Хлоропирамин (таб., 0,025 гр., №20)","уп.",20,67.16,null,null,""]
["Церебролизин (амп., 5 мл., №5)","уп.",2,1044,null,null,""]
["Цетиризин (таб., 10 мг., № 30)","уп.",35,123.59999999999998,null,null,""]
["Цианокобаламин (амп., 0,5 мг./1 мл., 1 мл., №10)","уп.",70,26.04,null,null,""]
["Цикломед (1%, 5 мл.)","уп.",30,553,null,null,""]
["Циннаризин (таб. 25 мг., №50)","уп.",5,27,null,null,""]
["Цоликлон Анти-А (флак., 10 мл., 10 шт.)","уп.",2,800,null,10,80]
["Цоликлон Анти-В (флак., 10 мл., 10 шт.)","уп.",2,800,null,10,80]
["Цоликлон Анти-Д (флак., 10 мл., 10 шт.)","уп.",2,1683,null,10,168.3]
["Чашка Петри (60 мм. х 15 мм.)","шт.",1,7.5,"шт.",1,7.5]
["Шапочка медицинская (нест.)","шт.",1,1.26,"шт.",1,1.26]
["Шпатель (стер., 100 шт.)","уп.",9000,1.76,null,null,""]
["Шприц (1 мл.)","шт.",1,3.38,"шт.",1,3.38]
["Шприц (10 мл.)","шт.",1,7.39,"шт.",1,7.39]
["Шприц (2 мл. 2 иглы)","шт.",1,4.43,"шт.",1,4.43]
["Шприц (2 мл.)","шт.",1,4.3499999999999996,"шт.",1,4.3499999999999996]
["Шприц (20 мл.)","шт.",1,10.42,"шт.",1,10.42]
["Шприц (5 мл. 2 иглы)","шт.",1,5.17,"шт.",1,5.17]
["Шприц (5 мл.)","шт.",1,5.17,"шт.",1,5.17]
["Экобак (5 л.)","шт.",1,584.88,"мл.",5000,0.116976]
["Энап (таб., 10 мг., №20)","уп.",null,null,null,null,""]
["Эуфиллин (амп., 2,4%, 10 мл., №10)","уп.",30,34.6,null,null,""]
["Языкодержатель для детей","шт.",1,695,"шт.",1,695]